{"text_format":"1","workbook":"xlsx","n_sheets":2,"sheets":["DC Power Distribution (Desc)","DC Power Distribution (Code)"],"not_rendered":{"charts":0,"images":0,"macros":1,"external_links":1,"defined_names":12,"comments":0,"pivot_tables":0},"unopened":[],"bounds":{"document_bytes":16777216,"sheet_cells":100000,"rows_first":2000,"rows_last":500,"rows_between":2000,"halvings":0,"cell_chars":16384,"cell_head_chars":4096},"cells_cut":0,"cells_raw":0,"read":"whole","date_system":"1900"}

{"sheet":"DC Power Distribution (Desc)","index":0,"n_rows":2,"n_cols":16,"rows_kept":2,"cut":false,"hidden":false,"merged":[]}
["Site Identification Name\nEquipment Cabinet SIN","Equipment Location Id ","Previous Name","Installed Date (YYYY/MM/DD)","Manufacturer ","Model ","Serial Number ","NIC Card Installed ","IP Address ","MAC Address ","Battery Pack Installed ","Input Voltage","Output Voltage(s)","Load/Draw (Amp)","Number of Rectifier Positions","Number of Breaker Positions"]
["This Field is for Reference Only\nDO NOT IMPORT","EQUIP_LOC_ID\nREQUIRED FIELD","This Field is for Reference Only\nDO NOT IMPORT","DATE_INSTALLED","ELEC_MANUF_CD ","ELEC_MODEL_CD ","SERIAL_NUMBER","NIC_CARD_IND_CD \nREQUIRED FIELD","IP_ADDRESS","MAC_ADDRESS","BATTERY_PACK_IND_CD\nREQUIRED FIELD","DEV_INPUT_VOLTAGE_CD ","DEV_OUTPUT_VOLTAGE_CD ","DCPDS_LOAD_DRAW ","RECTIFIER _POSITION ","BREAKER_POSITION "]

{"sheet":"DC Power Distribution (Code)","index":1,"n_rows":202,"n_cols":16,"rows_kept":202,"cut":false,"hidden":false,"merged":[]}
["Structure Entity Cd","Equipment Location Id ","Installed Date (YYYY/MM/DD)","Manufacturer ","Model ","Serial Number ","NIC Card Installed ","IP Address ","MAC Address ","Battery Pack Installed ","Input Voltage","Output Voltage(s)","Load/Draw (Amp)","Number of Rectifier Positions","Number of Breaker Positions","Electrical Equipment Type"]
["ENTITY_ID      REQUIRED FIELD","EQUIP_LOC_ID  REQUIRED FIELD","DATE_INSTALLED","ELEC_MANUF_CD ","ELEC_MODEL_CD ","SERIAL_NUMBER","NIC_CARD_IND_CD REQUIRED FIELD","IP_ADDRESS","MAC_ADDRESS","BATTERY_PACK_IND_CD REQUIRED FIELD","DEV_INPUT_VOLTAGE_CD ","DEV_OUTPUT_VOLTAGE_CD ","DCPDS_LOAD_DRAW ","RECTIFIER _POSITION ","BREAKER_POSITION ","ELEC_DEV_TYPE_CD"]
[{"$f":"IF('DC Power Distribution (Desc)'!B3=\"\",\"\",2029)","v":""},{"$f":"IF('DC Power Distribution (Desc)'!B3=\"\",\"\",'DC Power Distribution (Desc)'!B3)","v":""},{"$f":"IF('DC Power Distribution (Desc)'!D3=\"\",\"\",'DC Power Distribution (Desc)'!D3)","v":""},{"$f":"IF('DC Power Distribution (Desc)'!E3=\"\",\"\",INDEX([1]ELECTRIC_DEV_MANUF!$A$2:$A$1500,MATCH(1,([1]ELECTRIC_DEV_MANUF!$B$2:$B$1500='DC Power Distribution (Desc)'!$E3)*([1]ELECTRIC_DEV_MANUF!$D$2:$D$1500=\"DCPWRDIS\"),0),0))","v":""},{"$f":"IF('DC Power Distribution (Desc)'!F3=\"\",\"\",INDEX([1]ELECTRIC_DEV_MODEL!$A$2:$A$1500,MATCH(1,([1]ELECTRIC_DEV_MODEL!$C$2:$C$1500='DC Power Distribution (Desc)'!$E3)*([1]ELECTRIC_DEV_MODEL!$D$2:$D$1500='DC Power Distribution (Desc)'!$F3)*([1]ELECTRIC_DEV_MODEL!$F$2:$F$1500=\"DCPWRDIS\"),0),0))","v":""},{"$f":"IF('DC Power Distribution (Desc)'!G3=\"\",\"\",'DC Power Distribution (Desc)'!G3)","v":""},{"$f":"IF('DC Power Distribution (Desc)'!H3=\"\",\"\",INDEX([1]YES_NO!$A$2:$A$100,MATCH('DC Power Distribution (Desc)'!$H3,[1]!MASTER_YES_NO_DESC[#Data],0),0))","v":""},{"$f":"IF('DC Power Distribution (Desc)'!I3=\"\",\"\",'DC Power Distribution (Desc)'!I3)","v":""},{"$f":"IF('DC Power Distribution (Desc)'!J3=\"\",\"\",'DC Power Distribution (Desc)'!J3)","v":""},{"$f":"IF('DC Power Distribution (Desc)'!K3=\"\",\"\",INDEX([1]YES_NO!$A$2:$A$100,MATCH('DC Power Distribution (Desc)'!$K3,[1]!MASTER_YES_NO_DESC[#Data],0),0))","v":""},{"$f":"IF('DC Power Distribution (Desc)'!L3=\"\",\"\",INDEX([1]DEV_INPUT_VOLTAGE!$A$2:$A$100,MATCH('DC Power Distribution (Desc)'!$L3,[1]!MASTER_DEV_INPUT_VOLTAGE_DESC[#Data],0),0))","v":""},{"$f":"IF('DC Power Distribution (Desc)'!M3=\"\",\"\",INDEX([1]DEV_OUTPUT_VOLTAGE!$A$2:$A$100,MATCH('DC Power Distribution (Desc)'!$M3,[1]!MASTER_DEV_INPUT_VOLTAGE_DESC[#Data],0),0))","v":""},{"$f":"IF('DC Power Distribution (Desc)'!N3=\"\",\"\",'DC Power Distribution (Desc)'!N3)","v":""},{"$f":"IF('DC Power Distribution (Desc)'!O3=\"\",\"\",'DC Power Distribution (Desc)'!O3)","v":""},{"$f":"IF('DC Power Distribution (Desc)'!P3=\"\",\"\",'DC Power Distribution (Desc)'!P3)","v":""},{"$f":"IF('DC Power Distribution (Desc)'!B3=\"\",\"\",\"NA\")","v":""}]
[{"$f":"IF('DC Power Distribution (Desc)'!B4=\"\",\"\",2029)","v":""},{"$f":"IF('DC Power Distribution (Desc)'!B4=\"\",\"\",'DC Power Distribution (Desc)'!B4)","v":""},{"$f":"IF('DC Power Distribution (Desc)'!D4=\"\",\"\",'DC Power Distribution (Desc)'!D4)","v":""},{"$f":"IF('DC Power Distribution (Desc)'!E4=\"\",\"\",INDEX([1]ELECTRIC_DEV_MANUF!$A$2:$A$1500,MATCH(1,([1]ELECTRIC_DEV_MANUF!$B$2:$B$1500='DC Power Distribution (Desc)'!$E4)*([1]ELECTRIC_DEV_MANUF!$D$2:$D$1500=\"DCPWRDIS\"),0),0))","v":""},{"$f":"IF('DC Power Distribution (Desc)'!F4=\"\",\"\",INDEX([1]ELECTRIC_DEV_MODEL!$A$2:$A$1500,MATCH(1,([1]ELECTRIC_DEV_MODEL!$C$2:$C$1500='DC Power Distribution (Desc)'!$E4)*([1]ELECTRIC_DEV_MODEL!$D$2:$D$1500='DC Power Distribution (Desc)'!$F4)*([1]ELECTRIC_DEV_MODEL!$F$2:$F$1500=\"DCPWRDIS\"),0),0))","v":""},{"$f":"IF('DC Power Distribution (Desc)'!G4=\"\",\"\",'DC Power Distribution (Desc)'!G4)","v":""},{"$f":"IF('DC Power Distribution (Desc)'!H4=\"\",\"\",INDEX([1]YES_NO!$A$2:$A$100,MATCH('DC Power Distribution (Desc)'!$H4,[1]!MASTER_YES_NO_DESC[#Data],0),0))","v":""},{"$f":"IF('DC Power Distribution (Desc)'!I4=\"\",\"\",'DC Power Distribution (Desc)'!I4)","v":""},{"$f":"IF('DC Power Distribution (Desc)'!J4=\"\",\"\",'DC Power Distribution (Desc)'!J4)","v":""},{"$f":"IF('DC Power Distribution (Desc)'!K4=\"\",\"\",INDEX([1]YES_NO!$A$2:$A$100,MATCH('DC Power Distribution (Desc)'!$K4,[1]!MASTER_YES_NO_DESC[#Data],0),0))","v":""},{"$f":"IF('DC Power Distribution (Desc)'!L4=\"\",\"\",INDEX([1]DEV_INPUT_VOLTAGE!$A$2:$A$100,MATCH('DC Power Distribution (Desc)'!$L4,[1]!MASTER_DEV_INPUT_VOLTAGE_DESC[#Data],0),0))","v":""},{"$f":"IF('DC Power Distribution (Desc)'!M4=\"\",\"\",INDEX([1]DEV_OUTPUT_VOLTAGE!$A$2:$A$100,MATCH('DC Power Distribution (Desc)'!$M4,[1]!MASTER_DEV_INPUT_VOLTAGE_DESC[#Data],0),0))","v":""},{"$f":"IF('DC Power Distribution (Desc)'!N4=\"\",\"\",'DC Power Distribution (Desc)'!N4)","v":""},{"$f":"IF('DC Power Distribution (Desc)'!O4=\"\",\"\",'DC Power Distribution (Desc)'!O4)","v":""},{"$f":"IF('DC Power Distribution (Desc)'!P4=\"\",\"\",'DC Power Distribution (Desc)'!P4)","v":""},{"$f":"IF('DC Power Distribution (Desc)'!B4=\"\",\"\",\"NA\")","v":""}]
[{"$f":"IF('DC Power Distribution (Desc)'!B5=\"\",\"\",2029)","v":""},{"$f":"IF('DC Power Distribution (Desc)'!B5=\"\",\"\",'DC Power Distribution (Desc)'!B5)","v":""},{"$f":"IF('DC Power Distribution (Desc)'!D5=\"\",\"\",'DC Power Distribution (Desc)'!D5)","v":""},{"$f":"IF('DC Power Distribution (Desc)'!E5=\"\",\"\",INDEX([1]ELECTRIC_DEV_MANUF!$A$2:$A$1500,MATCH(1,([1]ELECTRIC_DEV_MANUF!$B$2:$B$1500='DC Power Distribution (Desc)'!$E5)*([1]ELECTRIC_DEV_MANUF!$D$2:$D$1500=\"DCPWRDIS\"),0),0))","v":""},{"$f":"IF('DC Power Distribution (Desc)'!F5=\"\",\"\",INDEX([1]ELECTRIC_DEV_MODEL!$A$2:$A$1500,MATCH(1,([1]ELECTRIC_DEV_MODEL!$C$2:$C$1500='DC Power Distribution (Desc)'!$E5)*([1]ELECTRIC_DEV_MODEL!$D$2:$D$1500='DC Power Distribution (Desc)'!$F5)*([1]ELECTRIC_DEV_MODEL!$F$2:$F$1500=\"DCPWRDIS\"),0),0))","v":""},{"$f":"IF('DC Power Distribution (Desc)'!G5=\"\",\"\",'DC Power Distribution (Desc)'!G5)","v":""},{"$f":"IF('DC Power Distribution (Desc)'!H5=\"\",\"\",INDEX([1]YES_NO!$A$2:$A$100,MATCH('DC Power Distribution (Desc)'!$H5,[1]!MASTER_YES_NO_DESC[#Data],0),0))","v":""},{"$f":"IF('DC Power Distribution (Desc)'!I5=\"\",\"\",'DC Power Distribution (Desc)'!I5)","v":""},{"$f":"IF('DC Power Distribution (Desc)'!J5=\"\",\"\",'DC Power Distribution (Desc)'!J5)","v":""},{"$f":"IF('DC Power Distribution (Desc)'!K5=\"\",\"\",INDEX([1]YES_NO!$A$2:$A$100,MATCH('DC Power Distribution (Desc)'!$K5,[1]!MASTER_YES_NO_DESC[#Data],0),0))","v":""},{"$f":"IF('DC Power Distribution (Desc)'!L5=\"\",\"\",INDEX([1]DEV_INPUT_VOLTAGE!$A$2:$A$100,MATCH('DC Power Distribution (Desc)'!$L5,[1]!MASTER_DEV_INPUT_VOLTAGE_DESC[#Data],0),0))","v":""},{"$f":"IF('DC Power Distribution (Desc)'!M5=\"\",\"\",INDEX([1]DEV_OUTPUT_VOLTAGE!$A$2:$A$100,MATCH('DC Power Distribution (Desc)'!$M5,[1]!MASTER_DEV_INPUT_VOLTAGE_DESC[#Data],0),0))","v":""},{"$f":"IF('DC Power Distribution (Desc)'!N5=\"\",\"\",'DC Power Distribution (Desc)'!N5)","v":""},{"$f":"IF('DC Power Distribution (Desc)'!O5=\"\",\"\",'DC Power Distribution (Desc)'!O5)","v":""},{"$f":"IF('DC Power Distribution (Desc)'!P5=\"\",\"\",'DC Power Distribution (Desc)'!P5)","v":""},{"$f":"IF('DC Power Distribution (Desc)'!B5=\"\",\"\",\"NA\")","v":""}]
[{"$f":"IF('DC Power Distribution (Desc)'!B6=\"\",\"\",2029)","v":""},{"$f":"IF('DC Power Distribution (Desc)'!B6=\"\",\"\",'DC Power Distribution (Desc)'!B6)","v":""},{"$f":"IF('DC Power Distribution (Desc)'!D6=\"\",\"\",'DC Power Distribution (Desc)'!D6)","v":""},{"$f":"IF('DC Power Distribution (Desc)'!E6=\"\",\"\",INDEX([1]ELECTRIC_DEV_MANUF!$A$2:$A$1500,MATCH(1,([1]ELECTRIC_DEV_MANUF!$B$2:$B$1500='DC Power Distribution (Desc)'!$E6)*([1]ELECTRIC_DEV_MANUF!$D$2:$D$1500=\"DCPWRDIS\"),0),0))","v":""},{"$f":"IF('DC Power Distribution (Desc)'!F6=\"\",\"\",INDEX([1]ELECTRIC_DEV_MODEL!$A$2:$A$1500,MATCH(1,([1]ELECTRIC_DEV_MODEL!$C$2:$C$1500='DC Power Distribution (Desc)'!$E6)*([1]ELECTRIC_DEV_MODEL!$D$2:$D$1500='DC Power Distribution (Desc)'!$F6)*([1]ELECTRIC_DEV_MODEL!$F$2:$F$1500=\"DCPWRDIS\"),0),0))","v":""},{"$f":"IF('DC Power Distribution (Desc)'!G6=\"\",\"\",'DC Power Distribution (Desc)'!G6)","v":""},{"$f":"IF('DC Power Distribution (Desc)'!H6=\"\",\"\",INDEX([1]YES_NO!$A$2:$A$100,MATCH('DC Power Distribution (Desc)'!$H6,[1]!MASTER_YES_NO_DESC[#Data],0),0))","v":""},{"$f":"IF('DC Power Distribution (Desc)'!I6=\"\",\"\",'DC Power Distribution (Desc)'!I6)","v":""},{"$f":"IF('DC Power Distribution (Desc)'!J6=\"\",\"\",'DC Power Distribution (Desc)'!J6)","v":""},{"$f":"IF('DC Power Distribution (Desc)'!K6=\"\",\"\",INDEX([1]YES_NO!$A$2:$A$100,MATCH('DC Power Distribution (Desc)'!$K6,[1]!MASTER_YES_NO_DESC[#Data],0),0))","v":""},{"$f":"IF('DC Power Distribution (Desc)'!L6=\"\",\"\",INDEX([1]DEV_INPUT_VOLTAGE!$A$2:$A$100,MATCH('DC Power Distribution (Desc)'!$L6,[1]!MASTER_DEV_INPUT_VOLTAGE_DESC[#Data],0),0))","v":""},{"$f":"IF('DC Power Distribution (Desc)'!M6=\"\",\"\",INDEX([1]DEV_OUTPUT_VOLTAGE!$A$2:$A$100,MATCH('DC Power Distribution (Desc)'!$M6,[1]!MASTER_DEV_INPUT_VOLTAGE_DESC[#Data],0),0))","v":""},{"$f":"IF('DC Power Distribution (Desc)'!N6=\"\",\"\",'DC Power Distribution (Desc)'!N6)","v":""},{"$f":"IF('DC Power Distribution (Desc)'!O6=\"\",\"\",'DC Power Distribution (Desc)'!O6)","v":""},{"$f":"IF('DC Power Distribution (Desc)'!P6=\"\",\"\",'DC Power Distribution (Desc)'!P6)","v":""},{"$f":"IF('DC Power Distribution (Desc)'!B6=\"\",\"\",\"NA\")","v":""}]
[{"$f":"IF('DC Power Distribution (Desc)'!B7=\"\",\"\",2029)","v":""},{"$f":"IF('DC Power Distribution (Desc)'!B7=\"\",\"\",'DC Power Distribution (Desc)'!B7)","v":""},{"$f":"IF('DC Power Distribution (Desc)'!D7=\"\",\"\",'DC Power Distribution (Desc)'!D7)","v":""},{"$f":"IF('DC Power Distribution (Desc)'!E7=\"\",\"\",INDEX([1]ELECTRIC_DEV_MANUF!$A$2:$A$1500,MATCH(1,([1]ELECTRIC_DEV_MANUF!$B$2:$B$1500='DC Power Distribution (Desc)'!$E7)*([1]ELECTRIC_DEV_MANUF!$D$2:$D$1500=\"DCPWRDIS\"),0),0))","v":""},{"$f":"IF('DC Power Distribution (Desc)'!F7=\"\",\"\",INDEX([1]ELECTRIC_DEV_MODEL!$A$2:$A$1500,MATCH(1,([1]ELECTRIC_DEV_MODEL!$C$2:$C$1500='DC Power Distribution (Desc)'!$E7)*([1]ELECTRIC_DEV_MODEL!$D$2:$D$1500='DC Power Distribution (Desc)'!$F7)*([1]ELECTRIC_DEV_MODEL!$F$2:$F$1500=\"DCPWRDIS\"),0),0))","v":""},{"$f":"IF('DC Power Distribution (Desc)'!G7=\"\",\"\",'DC Power Distribution (Desc)'!G7)","v":""},{"$f":"IF('DC Power Distribution (Desc)'!H7=\"\",\"\",INDEX([1]YES_NO!$A$2:$A$100,MATCH('DC Power Distribution (Desc)'!$H7,[1]!MASTER_YES_NO_DESC[#Data],0),0))","v":""},{"$f":"IF('DC Power Distribution (Desc)'!I7=\"\",\"\",'DC Power Distribution (Desc)'!I7)","v":""},{"$f":"IF('DC Power Distribution (Desc)'!J7=\"\",\"\",'DC Power Distribution (Desc)'!J7)","v":""},{"$f":"IF('DC Power Distribution (Desc)'!K7=\"\",\"\",INDEX([1]YES_NO!$A$2:$A$100,MATCH('DC Power Distribution (Desc)'!$K7,[1]!MASTER_YES_NO_DESC[#Data],0),0))","v":""},{"$f":"IF('DC Power Distribution (Desc)'!L7=\"\",\"\",INDEX([1]DEV_INPUT_VOLTAGE!$A$2:$A$100,MATCH('DC Power Distribution (Desc)'!$L7,[1]!MASTER_DEV_INPUT_VOLTAGE_DESC[#Data],0),0))","v":""},{"$f":"IF('DC Power Distribution (Desc)'!M7=\"\",\"\",INDEX([1]DEV_OUTPUT_VOLTAGE!$A$2:$A$100,MATCH('DC Power Distribution (Desc)'!$M7,[1]!MASTER_DEV_INPUT_VOLTAGE_DESC[#Data],0),0))","v":""},{"$f":"IF('DC Power Distribution (Desc)'!N7=\"\",\"\",'DC Power Distribution (Desc)'!N7)","v":""},{"$f":"IF('DC Power Distribution (Desc)'!O7=\"\",\"\",'DC Power Distribution (Desc)'!O7)","v":""},{"$f":"IF('DC Power Distribution (Desc)'!P7=\"\",\"\",'DC Power Distribution (Desc)'!P7)","v":""},{"$f":"IF('DC Power Distribution (Desc)'!B7=\"\",\"\",\"NA\")","v":""}]
[{"$f":"IF('DC Power Distribution (Desc)'!B8=\"\",\"\",2029)","v":""},{"$f":"IF('DC Power Distribution (Desc)'!B8=\"\",\"\",'DC Power Distribution (Desc)'!B8)","v":""},{"$f":"IF('DC Power Distribution (Desc)'!D8=\"\",\"\",'DC Power Distribution (Desc)'!D8)","v":""},{"$f":"IF('DC Power Distribution (Desc)'!E8=\"\",\"\",INDEX([1]ELECTRIC_DEV_MANUF!$A$2:$A$1500,MATCH(1,([1]ELECTRIC_DEV_MANUF!$B$2:$B$1500='DC Power Distribution (Desc)'!$E8)*([1]ELECTRIC_DEV_MANUF!$D$2:$D$1500=\"DCPWRDIS\"),0),0))","v":""},{"$f":"IF('DC Power Distribution (Desc)'!F8=\"\",\"\",INDEX([1]ELECTRIC_DEV_MODEL!$A$2:$A$1500,MATCH(1,([1]ELECTRIC_DEV_MODEL!$C$2:$C$1500='DC Power Distribution (Desc)'!$E8)*([1]ELECTRIC_DEV_MODEL!$D$2:$D$1500='DC Power Distribution (Desc)'!$F8)*([1]ELECTRIC_DEV_MODEL!$F$2:$F$1500=\"DCPWRDIS\"),0),0))","v":""},{"$f":"IF('DC Power Distribution (Desc)'!G8=\"\",\"\",'DC Power Distribution (Desc)'!G8)","v":""},{"$f":"IF('DC Power Distribution (Desc)'!H8=\"\",\"\",INDEX([1]YES_NO!$A$2:$A$100,MATCH('DC Power Distribution (Desc)'!$H8,[1]!MASTER_YES_NO_DESC[#Data],0),0))","v":""},{"$f":"IF('DC Power Distribution (Desc)'!I8=\"\",\"\",'DC Power Distribution (Desc)'!I8)","v":""},{"$f":"IF('DC Power Distribution (Desc)'!J8=\"\",\"\",'DC Power Distribution (Desc)'!J8)","v":""},{"$f":"IF('DC Power Distribution (Desc)'!K8=\"\",\"\",INDEX([1]YES_NO!$A$2:$A$100,MATCH('DC Power Distribution (Desc)'!$K8,[1]!MASTER_YES_NO_DESC[#Data],0),0))","v":""},{"$f":"IF('DC Power Distribution (Desc)'!L8=\"\",\"\",INDEX([1]DEV_INPUT_VOLTAGE!$A$2:$A$100,MATCH('DC Power Distribution (Desc)'!$L8,[1]!MASTER_DEV_INPUT_VOLTAGE_DESC[#Data],0),0))","v":""},{"$f":"IF('DC Power Distribution (Desc)'!M8=\"\",\"\",INDEX([1]DEV_OUTPUT_VOLTAGE!$A$2:$A$100,MATCH('DC Power Distribution (Desc)'!$M8,[1]!MASTER_DEV_INPUT_VOLTAGE_DESC[#Data],0),0))","v":""},{"$f":"IF('DC Power Distribution (Desc)'!N8=\"\",\"\",'DC Power Distribution (Desc)'!N8)","v":""},{"$f":"IF('DC Power Distribution (Desc)'!O8=\"\",\"\",'DC Power Distribution (Desc)'!O8)","v":""},{"$f":"IF('DC Power Distribution (Desc)'!P8=\"\",\"\",'DC Power Distribution (Desc)'!P8)","v":""},{"$f":"IF('DC Power Distribution (Desc)'!B8=\"\",\"\",\"NA\")","v":""}]
[{"$f":"IF('DC Power Distribution (Desc)'!B9=\"\",\"\",2029)","v":""},{"$f":"IF('DC Power Distribution (Desc)'!B9=\"\",\"\",'DC Power Distribution (Desc)'!B9)","v":""},{"$f":"IF('DC Power Distribution (Desc)'!D9=\"\",\"\",'DC Power Distribution (Desc)'!D9)","v":""},{"$f":"IF('DC Power Distribution (Desc)'!E9=\"\",\"\",INDEX([1]ELECTRIC_DEV_MANUF!$A$2:$A$1500,MATCH(1,([1]ELECTRIC_DEV_MANUF!$B$2:$B$1500='DC Power Distribution (Desc)'!$E9)*([1]ELECTRIC_DEV_MANUF!$D$2:$D$1500=\"DCPWRDIS\"),0),0))","v":""},{"$f":"IF('DC Power Distribution (Desc)'!F9=\"\",\"\",INDEX([1]ELECTRIC_DEV_MODEL!$A$2:$A$1500,MATCH(1,([1]ELECTRIC_DEV_MODEL!$C$2:$C$1500='DC Power Distribution (Desc)'!$E9)*([1]ELECTRIC_DEV_MODEL!$D$2:$D$1500='DC Power Distribution (Desc)'!$F9)*([1]ELECTRIC_DEV_MODEL!$F$2:$F$1500=\"DCPWRDIS\"),0),0))","v":""},{"$f":"IF('DC Power Distribution (Desc)'!G9=\"\",\"\",'DC Power Distribution (Desc)'!G9)","v":""},{"$f":"IF('DC Power Distribution (Desc)'!H9=\"\",\"\",INDEX([1]YES_NO!$A$2:$A$100,MATCH('DC Power Distribution (Desc)'!$H9,[1]!MASTER_YES_NO_DESC[#Data],0),0))","v":""},{"$f":"IF('DC Power Distribution (Desc)'!I9=\"\",\"\",'DC Power Distribution (Desc)'!I9)","v":""},{"$f":"IF('DC Power Distribution (Desc)'!J9=\"\",\"\",'DC Power Distribution (Desc)'!J9)","v":""},{"$f":"IF('DC Power Distribution (Desc)'!K9=\"\",\"\",INDEX([1]YES_NO!$A$2:$A$100,MATCH('DC Power Distribution (Desc)'!$K9,[1]!MASTER_YES_NO_DESC[#Data],0),0))","v":""},{"$f":"IF('DC Power Distribution (Desc)'!L9=\"\",\"\",INDEX([1]DEV_INPUT_VOLTAGE!$A$2:$A$100,MATCH('DC Power Distribution (Desc)'!$L9,[1]!MASTER_DEV_INPUT_VOLTAGE_DESC[#Data],0),0))","v":""},{"$f":"IF('DC Power Distribution (Desc)'!M9=\"\",\"\",INDEX([1]DEV_OUTPUT_VOLTAGE!$A$2:$A$100,MATCH('DC Power Distribution (Desc)'!$M9,[1]!MASTER_DEV_INPUT_VOLTAGE_DESC[#Data],0),0))","v":""},{"$f":"IF('DC Power Distribution (Desc)'!N9=\"\",\"\",'DC Power Distribution (Desc)'!N9)","v":""},{"$f":"IF('DC Power Distribution (Desc)'!O9=\"\",\"\",'DC Power Distribution (Desc)'!O9)","v":""},{"$f":"IF('DC Power Distribution (Desc)'!P9=\"\",\"\",'DC Power Distribution (Desc)'!P9)","v":""},{"$f":"IF('DC Power Distribution (Desc)'!B9=\"\",\"\",\"NA\")","v":""}]
[{"$f":"IF('DC Power Distribution (Desc)'!B10=\"\",\"\",2029)","v":""},{"$f":"IF('DC Power Distribution (Desc)'!B10=\"\",\"\",'DC Power Distribution (Desc)'!B10)","v":""},{"$f":"IF('DC Power Distribution (Desc)'!D10=\"\",\"\",'DC Power Distribution (Desc)'!D10)","v":""},{"$f":"IF('DC Power Distribution (Desc)'!E10=\"\",\"\",INDEX([1]ELECTRIC_DEV_MANUF!$A$2:$A$1500,MATCH(1,([1]ELECTRIC_DEV_MANUF!$B$2:$B$1500='DC Power Distribution (Desc)'!$E10)*([1]ELECTRIC_DEV_MANUF!$D$2:$D$1500=\"DCPWRDIS\"),0),0))","v":""},{"$f":"IF('DC Power Distribution (Desc)'!F10=\"\",\"\",INDEX([1]ELECTRIC_DEV_MODEL!$A$2:$A$1500,MATCH(1,([1]ELECTRIC_DEV_MODEL!$C$2:$C$1500='DC Power Distribution (Desc)'!$E10)*([1]ELECTRIC_DEV_MODEL!$D$2:$D$1500='DC Power Distribution (Desc)'!$F10)*([1]ELECTRIC_DEV_MODEL!$F$2:$F$1500=\"DCPWRDIS\"),0),0))","v":""},{"$f":"IF('DC Power Distribution (Desc)'!G10=\"\",\"\",'DC Power Distribution (Desc)'!G10)","v":""},{"$f":"IF('DC Power Distribution (Desc)'!H10=\"\",\"\",INDEX([1]YES_NO!$A$2:$A$100,MATCH('DC Power Distribution (Desc)'!$H10,[1]!MASTER_YES_NO_DESC[#Data],0),0))","v":""},{"$f":"IF('DC Power Distribution (Desc)'!I10=\"\",\"\",'DC Power Distribution (Desc)'!I10)","v":""},{"$f":"IF('DC Power Distribution (Desc)'!J10=\"\",\"\",'DC Power Distribution (Desc)'!J10)","v":""},{"$f":"IF('DC Power Distribution (Desc)'!K10=\"\",\"\",INDEX([1]YES_NO!$A$2:$A$100,MATCH('DC Power Distribution (Desc)'!$K10,[1]!MASTER_YES_NO_DESC[#Data],0),0))","v":""},{"$f":"IF('DC Power Distribution (Desc)'!L10=\"\",\"\",INDEX([1]DEV_INPUT_VOLTAGE!$A$2:$A$100,MATCH('DC Power Distribution (Desc)'!$L10,[1]!MASTER_DEV_INPUT_VOLTAGE_DESC[#Data],0),0))","v":""},{"$f":"IF('DC Power Distribution (Desc)'!M10=\"\",\"\",INDEX([1]DEV_OUTPUT_VOLTAGE!$A$2:$A$100,MATCH('DC Power Distribution (Desc)'!$M10,[1]!MASTER_DEV_INPUT_VOLTAGE_DESC[#Data],0),0))","v":""},{"$f":"IF('DC Power Distribution (Desc)'!N10=\"\",\"\",'DC Power Distribution (Desc)'!N10)","v":""},{"$f":"IF('DC Power Distribution (Desc)'!O10=\"\",\"\",'DC Power Distribution (Desc)'!O10)","v":""},{"$f":"IF('DC Power Distribution (Desc)'!P10=\"\",\"\",'DC Power Distribution (Desc)'!P10)","v":""},{"$f":"IF('DC Power Distribution (Desc)'!B10=\"\",\"\",\"NA\")","v":""}]
[{"$f":"IF('DC Power Distribution (Desc)'!B11=\"\",\"\",2029)","v":""},{"$f":"IF('DC Power Distribution (Desc)'!B11=\"\",\"\",'DC Power Distribution (Desc)'!B11)","v":""},{"$f":"IF('DC Power Distribution (Desc)'!D11=\"\",\"\",'DC Power Distribution (Desc)'!D11)","v":""},{"$f":"IF('DC Power Distribution (Desc)'!E11=\"\",\"\",INDEX([1]ELECTRIC_DEV_MANUF!$A$2:$A$1500,MATCH(1,([1]ELECTRIC_DEV_MANUF!$B$2:$B$1500='DC Power Distribution (Desc)'!$E11)*([1]ELECTRIC_DEV_MANUF!$D$2:$D$1500=\"DCPWRDIS\"),0),0))","v":""},{"$f":"IF('DC Power Distribution (Desc)'!F11=\"\",\"\",INDEX([1]ELECTRIC_DEV_MODEL!$A$2:$A$1500,MATCH(1,([1]ELECTRIC_DEV_MODEL!$C$2:$C$1500='DC Power Distribution (Desc)'!$E11)*([1]ELECTRIC_DEV_MODEL!$D$2:$D$1500='DC Power Distribution (Desc)'!$F11)*([1]ELECTRIC_DEV_MODEL!$F$2:$F$1500=\"DCPWRDIS\"),0),0))","v":""},{"$f":"IF('DC Power Distribution (Desc)'!G11=\"\",\"\",'DC Power Distribution (Desc)'!G11)","v":""},{"$f":"IF('DC Power Distribution (Desc)'!H11=\"\",\"\",INDEX([1]YES_NO!$A$2:$A$100,MATCH('DC Power Distribution (Desc)'!$H11,[1]!MASTER_YES_NO_DESC[#Data],0),0))","v":""},{"$f":"IF('DC Power Distribution (Desc)'!I11=\"\",\"\",'DC Power Distribution (Desc)'!I11)","v":""},{"$f":"IF('DC Power Distribution (Desc)'!J11=\"\",\"\",'DC Power Distribution (Desc)'!J11)","v":""},{"$f":"IF('DC Power Distribution (Desc)'!K11=\"\",\"\",INDEX([1]YES_NO!$A$2:$A$100,MATCH('DC Power Distribution (Desc)'!$K11,[1]!MASTER_YES_NO_DESC[#Data],0),0))","v":""},{"$f":"IF('DC Power Distribution (Desc)'!L11=\"\",\"\",INDEX([1]DEV_INPUT_VOLTAGE!$A$2:$A$100,MATCH('DC Power Distribution (Desc)'!$L11,[1]!MASTER_DEV_INPUT_VOLTAGE_DESC[#Data],0),0))","v":""},{"$f":"IF('DC Power Distribution (Desc)'!M11=\"\",\"\",INDEX([1]DEV_OUTPUT_VOLTAGE!$A$2:$A$100,MATCH('DC Power Distribution (Desc)'!$M11,[1]!MASTER_DEV_INPUT_VOLTAGE_DESC[#Data],0),0))","v":""},{"$f":"IF('DC Power Distribution (Desc)'!N11=\"\",\"\",'DC Power Distribution (Desc)'!N11)","v":""},{"$f":"IF('DC Power Distribution (Desc)'!O11=\"\",\"\",'DC Power Distribution (Desc)'!O11)","v":""},{"$f":"IF('DC Power Distribution (Desc)'!P11=\"\",\"\",'DC Power Distribution (Desc)'!P11)","v":""},{"$f":"IF('DC Power Distribution (Desc)'!B11=\"\",\"\",\"NA\")","v":""}]
[{"$f":"IF('DC Power Distribution (Desc)'!B12=\"\",\"\",2029)","v":""},{"$f":"IF('DC Power Distribution (Desc)'!B12=\"\",\"\",'DC Power Distribution (Desc)'!B12)","v":""},{"$f":"IF('DC Power Distribution (Desc)'!D12=\"\",\"\",'DC Power Distribution (Desc)'!D12)","v":""},{"$f":"IF('DC Power Distribution (Desc)'!E12=\"\",\"\",INDEX([1]ELECTRIC_DEV_MANUF!$A$2:$A$1500,MATCH(1,([1]ELECTRIC_DEV_MANUF!$B$2:$B$1500='DC Power Distribution (Desc)'!$E12)*([1]ELECTRIC_DEV_MANUF!$D$2:$D$1500=\"DCPWRDIS\"),0),0))","v":""},{"$f":"IF('DC Power Distribution (Desc)'!F12=\"\",\"\",INDEX([1]ELECTRIC_DEV_MODEL!$A$2:$A$1500,MATCH(1,([1]ELECTRIC_DEV_MODEL!$C$2:$C$1500='DC Power Distribution (Desc)'!$E12)*([1]ELECTRIC_DEV_MODEL!$D$2:$D$1500='DC Power Distribution (Desc)'!$F12)*([1]ELECTRIC_DEV_MODEL!$F$2:$F$1500=\"DCPWRDIS\"),0),0))","v":""},{"$f":"IF('DC Power Distribution (Desc)'!G12=\"\",\"\",'DC Power Distribution (Desc)'!G12)","v":""},{"$f":"IF('DC Power Distribution (Desc)'!H12=\"\",\"\",INDEX([1]YES_NO!$A$2:$A$100,MATCH('DC Power Distribution (Desc)'!$H12,[1]!MASTER_YES_NO_DESC[#Data],0),0))","v":""},{"$f":"IF('DC Power Distribution (Desc)'!I12=\"\",\"\",'DC Power Distribution (Desc)'!I12)","v":""},{"$f":"IF('DC Power Distribution (Desc)'!J12=\"\",\"\",'DC Power Distribution (Desc)'!J12)","v":""},{"$f":"IF('DC Power Distribution (Desc)'!K12=\"\",\"\",INDEX([1]YES_NO!$A$2:$A$100,MATCH('DC Power Distribution (Desc)'!$K12,[1]!MASTER_YES_NO_DESC[#Data],0),0))","v":""},{"$f":"IF('DC Power Distribution (Desc)'!L12=\"\",\"\",INDEX([1]DEV_INPUT_VOLTAGE!$A$2:$A$100,MATCH('DC Power Distribution (Desc)'!$L12,[1]!MASTER_DEV_INPUT_VOLTAGE_DESC[#Data],0),0))","v":""},{"$f":"IF('DC Power Distribution (Desc)'!M12=\"\",\"\",INDEX([1]DEV_OUTPUT_VOLTAGE!$A$2:$A$100,MATCH('DC Power Distribution (Desc)'!$M12,[1]!MASTER_DEV_INPUT_VOLTAGE_DESC[#Data],0),0))","v":""},{"$f":"IF('DC Power Distribution (Desc)'!N12=\"\",\"\",'DC Power Distribution (Desc)'!N12)","v":""},{"$f":"IF('DC Power Distribution (Desc)'!O12=\"\",\"\",'DC Power Distribution (Desc)'!O12)","v":""},{"$f":"IF('DC Power Distribution (Desc)'!P12=\"\",\"\",'DC Power Distribution (Desc)'!P12)","v":""},{"$f":"IF('DC Power Distribution (Desc)'!B12=\"\",\"\",\"NA\")","v":""}]
[{"$f":"IF('DC Power Distribution (Desc)'!B13=\"\",\"\",2029)","v":""},{"$f":"IF('DC Power Distribution (Desc)'!B13=\"\",\"\",'DC Power Distribution (Desc)'!B13)","v":""},{"$f":"IF('DC Power Distribution (Desc)'!D13=\"\",\"\",'DC Power Distribution (Desc)'!D13)","v":""},{"$f":"IF('DC Power Distribution (Desc)'!E13=\"\",\"\",INDEX([1]ELECTRIC_DEV_MANUF!$A$2:$A$1500,MATCH(1,([1]ELECTRIC_DEV_MANUF!$B$2:$B$1500='DC Power Distribution (Desc)'!$E13)*([1]ELECTRIC_DEV_MANUF!$D$2:$D$1500=\"DCPWRDIS\"),0),0))","v":""},{"$f":"IF('DC Power Distribution (Desc)'!F13=\"\",\"\",INDEX([1]ELECTRIC_DEV_MODEL!$A$2:$A$1500,MATCH(1,([1]ELECTRIC_DEV_MODEL!$C$2:$C$1500='DC Power Distribution (Desc)'!$E13)*([1]ELECTRIC_DEV_MODEL!$D$2:$D$1500='DC Power Distribution (Desc)'!$F13)*([1]ELECTRIC_DEV_MODEL!$F$2:$F$1500=\"DCPWRDIS\"),0),0))","v":""},{"$f":"IF('DC Power Distribution (Desc)'!G13=\"\",\"\",'DC Power Distribution (Desc)'!G13)","v":""},{"$f":"IF('DC Power Distribution (Desc)'!H13=\"\",\"\",INDEX([1]YES_NO!$A$2:$A$100,MATCH('DC Power Distribution (Desc)'!$H13,[1]!MASTER_YES_NO_DESC[#Data],0),0))","v":""},{"$f":"IF('DC Power Distribution (Desc)'!I13=\"\",\"\",'DC Power Distribution (Desc)'!I13)","v":""},{"$f":"IF('DC Power Distribution (Desc)'!J13=\"\",\"\",'DC Power Distribution (Desc)'!J13)","v":""},{"$f":"IF('DC Power Distribution (Desc)'!K13=\"\",\"\",INDEX([1]YES_NO!$A$2:$A$100,MATCH('DC Power Distribution (Desc)'!$K13,[1]!MASTER_YES_NO_DESC[#Data],0),0))","v":""},{"$f":"IF('DC Power Distribution (Desc)'!L13=\"\",\"\",INDEX([1]DEV_INPUT_VOLTAGE!$A$2:$A$100,MATCH('DC Power Distribution (Desc)'!$L13,[1]!MASTER_DEV_INPUT_VOLTAGE_DESC[#Data],0),0))","v":""},{"$f":"IF('DC Power Distribution (Desc)'!M13=\"\",\"\",INDEX([1]DEV_OUTPUT_VOLTAGE!$A$2:$A$100,MATCH('DC Power Distribution (Desc)'!$M13,[1]!MASTER_DEV_INPUT_VOLTAGE_DESC[#Data],0),0))","v":""},{"$f":"IF('DC Power Distribution (Desc)'!N13=\"\",\"\",'DC Power Distribution (Desc)'!N13)","v":""},{"$f":"IF('DC Power Distribution (Desc)'!O13=\"\",\"\",'DC Power Distribution (Desc)'!O13)","v":""},{"$f":"IF('DC Power Distribution (Desc)'!P13=\"\",\"\",'DC Power Distribution (Desc)'!P13)","v":""},{"$f":"IF('DC Power Distribution (Desc)'!B13=\"\",\"\",\"NA\")","v":""}]
[{"$f":"IF('DC Power Distribution (Desc)'!B14=\"\",\"\",2029)","v":""},{"$f":"IF('DC Power Distribution (Desc)'!B14=\"\",\"\",'DC Power Distribution (Desc)'!B14)","v":""},{"$f":"IF('DC Power Distribution (Desc)'!D14=\"\",\"\",'DC Power Distribution (Desc)'!D14)","v":""},{"$f":"IF('DC Power Distribution (Desc)'!E14=\"\",\"\",INDEX([1]ELECTRIC_DEV_MANUF!$A$2:$A$1500,MATCH(1,([1]ELECTRIC_DEV_MANUF!$B$2:$B$1500='DC Power Distribution (Desc)'!$E14)*([1]ELECTRIC_DEV_MANUF!$D$2:$D$1500=\"DCPWRDIS\"),0),0))","v":""},{"$f":"IF('DC Power Distribution (Desc)'!F14=\"\",\"\",INDEX([1]ELECTRIC_DEV_MODEL!$A$2:$A$1500,MATCH(1,([1]ELECTRIC_DEV_MODEL!$C$2:$C$1500='DC Power Distribution (Desc)'!$E14)*([1]ELECTRIC_DEV_MODEL!$D$2:$D$1500='DC Power Distribution (Desc)'!$F14)*([1]ELECTRIC_DEV_MODEL!$F$2:$F$1500=\"DCPWRDIS\"),0),0))","v":""},{"$f":"IF('DC Power Distribution (Desc)'!G14=\"\",\"\",'DC Power Distribution (Desc)'!G14)","v":""},{"$f":"IF('DC Power Distribution (Desc)'!H14=\"\",\"\",INDEX([1]YES_NO!$A$2:$A$100,MATCH('DC Power Distribution (Desc)'!$H14,[1]!MASTER_YES_NO_DESC[#Data],0),0))","v":""},{"$f":"IF('DC Power Distribution (Desc)'!I14=\"\",\"\",'DC Power Distribution (Desc)'!I14)","v":""},{"$f":"IF('DC Power Distribution (Desc)'!J14=\"\",\"\",'DC Power Distribution (Desc)'!J14)","v":""},{"$f":"IF('DC Power Distribution (Desc)'!K14=\"\",\"\",INDEX([1]YES_NO!$A$2:$A$100,MATCH('DC Power Distribution (Desc)'!$K14,[1]!MASTER_YES_NO_DESC[#Data],0),0))","v":""},{"$f":"IF('DC Power Distribution (Desc)'!L14=\"\",\"\",INDEX([1]DEV_INPUT_VOLTAGE!$A$2:$A$100,MATCH('DC Power Distribution (Desc)'!$L14,[1]!MASTER_DEV_INPUT_VOLTAGE_DESC[#Data],0),0))","v":""},{"$f":"IF('DC Power Distribution (Desc)'!M14=\"\",\"\",INDEX([1]DEV_OUTPUT_VOLTAGE!$A$2:$A$100,MATCH('DC Power Distribution (Desc)'!$M14,[1]!MASTER_DEV_INPUT_VOLTAGE_DESC[#Data],0),0))","v":""},{"$f":"IF('DC Power Distribution (Desc)'!N14=\"\",\"\",'DC Power Distribution (Desc)'!N14)","v":""},{"$f":"IF('DC Power Distribution (Desc)'!O14=\"\",\"\",'DC Power Distribution (Desc)'!O14)","v":""},{"$f":"IF('DC Power Distribution (Desc)'!P14=\"\",\"\",'DC Power Distribution (Desc)'!P14)","v":""},{"$f":"IF('DC Power Distribution (Desc)'!B14=\"\",\"\",\"NA\")","v":""}]
[{"$f":"IF('DC Power Distribution (Desc)'!B15=\"\",\"\",2029)","v":""},{"$f":"IF('DC Power Distribution (Desc)'!B15=\"\",\"\",'DC Power Distribution (Desc)'!B15)","v":""},{"$f":"IF('DC Power Distribution (Desc)'!D15=\"\",\"\",'DC Power Distribution (Desc)'!D15)","v":""},{"$f":"IF('DC Power Distribution (Desc)'!E15=\"\",\"\",INDEX([1]ELECTRIC_DEV_MANUF!$A$2:$A$1500,MATCH(1,([1]ELECTRIC_DEV_MANUF!$B$2:$B$1500='DC Power Distribution (Desc)'!$E15)*([1]ELECTRIC_DEV_MANUF!$D$2:$D$1500=\"DCPWRDIS\"),0),0))","v":""},{"$f":"IF('DC Power Distribution (Desc)'!F15=\"\",\"\",INDEX([1]ELECTRIC_DEV_MODEL!$A$2:$A$1500,MATCH(1,([1]ELECTRIC_DEV_MODEL!$C$2:$C$1500='DC Power Distribution (Desc)'!$E15)*([1]ELECTRIC_DEV_MODEL!$D$2:$D$1500='DC Power Distribution (Desc)'!$F15)*([1]ELECTRIC_DEV_MODEL!$F$2:$F$1500=\"DCPWRDIS\"),0),0))","v":""},{"$f":"IF('DC Power Distribution (Desc)'!G15=\"\",\"\",'DC Power Distribution (Desc)'!G15)","v":""},{"$f":"IF('DC Power Distribution (Desc)'!H15=\"\",\"\",INDEX([1]YES_NO!$A$2:$A$100,MATCH('DC Power Distribution (Desc)'!$H15,[1]!MASTER_YES_NO_DESC[#Data],0),0))","v":""},{"$f":"IF('DC Power Distribution (Desc)'!I15=\"\",\"\",'DC Power Distribution (Desc)'!I15)","v":""},{"$f":"IF('DC Power Distribution (Desc)'!J15=\"\",\"\",'DC Power Distribution (Desc)'!J15)","v":""},{"$f":"IF('DC Power Distribution (Desc)'!K15=\"\",\"\",INDEX([1]YES_NO!$A$2:$A$100,MATCH('DC Power Distribution (Desc)'!$K15,[1]!MASTER_YES_NO_DESC[#Data],0),0))","v":""},{"$f":"IF('DC Power Distribution (Desc)'!L15=\"\",\"\",INDEX([1]DEV_INPUT_VOLTAGE!$A$2:$A$100,MATCH('DC Power Distribution (Desc)'!$L15,[1]!MASTER_DEV_INPUT_VOLTAGE_DESC[#Data],0),0))","v":""},{"$f":"IF('DC Power Distribution (Desc)'!M15=\"\",\"\",INDEX([1]DEV_OUTPUT_VOLTAGE!$A$2:$A$100,MATCH('DC Power Distribution (Desc)'!$M15,[1]!MASTER_DEV_INPUT_VOLTAGE_DESC[#Data],0),0))","v":""},{"$f":"IF('DC Power Distribution (Desc)'!N15=\"\",\"\",'DC Power Distribution (Desc)'!N15)","v":""},{"$f":"IF('DC Power Distribution (Desc)'!O15=\"\",\"\",'DC Power Distribution (Desc)'!O15)","v":""},{"$f":"IF('DC Power Distribution (Desc)'!P15=\"\",\"\",'DC Power Distribution (Desc)'!P15)","v":""},{"$f":"IF('DC Power Distribution (Desc)'!B15=\"\",\"\",\"NA\")","v":""}]
[{"$f":"IF('DC Power Distribution (Desc)'!B16=\"\",\"\",2029)","v":""},{"$f":"IF('DC Power Distribution (Desc)'!B16=\"\",\"\",'DC Power Distribution (Desc)'!B16)","v":""},{"$f":"IF('DC Power Distribution (Desc)'!D16=\"\",\"\",'DC Power Distribution (Desc)'!D16)","v":""},{"$f":"IF('DC Power Distribution (Desc)'!E16=\"\",\"\",INDEX([1]ELECTRIC_DEV_MANUF!$A$2:$A$1500,MATCH(1,([1]ELECTRIC_DEV_MANUF!$B$2:$B$1500='DC Power Distribution (Desc)'!$E16)*([1]ELECTRIC_DEV_MANUF!$D$2:$D$1500=\"DCPWRDIS\"),0),0))","v":""},{"$f":"IF('DC Power Distribution (Desc)'!F16=\"\",\"\",INDEX([1]ELECTRIC_DEV_MODEL!$A$2:$A$1500,MATCH(1,([1]ELECTRIC_DEV_MODEL!$C$2:$C$1500='DC Power Distribution (Desc)'!$E16)*([1]ELECTRIC_DEV_MODEL!$D$2:$D$1500='DC Power Distribution (Desc)'!$F16)*([1]ELECTRIC_DEV_MODEL!$F$2:$F$1500=\"DCPWRDIS\"),0),0))","v":""},{"$f":"IF('DC Power Distribution (Desc)'!G16=\"\",\"\",'DC Power Distribution (Desc)'!G16)","v":""},{"$f":"IF('DC Power Distribution (Desc)'!H16=\"\",\"\",INDEX([1]YES_NO!$A$2:$A$100,MATCH('DC Power Distribution (Desc)'!$H16,[1]!MASTER_YES_NO_DESC[#Data],0),0))","v":""},{"$f":"IF('DC Power Distribution (Desc)'!I16=\"\",\"\",'DC Power Distribution (Desc)'!I16)","v":""},{"$f":"IF('DC Power Distribution (Desc)'!J16=\"\",\"\",'DC Power Distribution (Desc)'!J16)","v":""},{"$f":"IF('DC Power Distribution (Desc)'!K16=\"\",\"\",INDEX([1]YES_NO!$A$2:$A$100,MATCH('DC Power Distribution (Desc)'!$K16,[1]!MASTER_YES_NO_DESC[#Data],0),0))","v":""},{"$f":"IF('DC Power Distribution (Desc)'!L16=\"\",\"\",INDEX([1]DEV_INPUT_VOLTAGE!$A$2:$A$100,MATCH('DC Power Distribution (Desc)'!$L16,[1]!MASTER_DEV_INPUT_VOLTAGE_DESC[#Data],0),0))","v":""},{"$f":"IF('DC Power Distribution (Desc)'!M16=\"\",\"\",INDEX([1]DEV_OUTPUT_VOLTAGE!$A$2:$A$100,MATCH('DC Power Distribution (Desc)'!$M16,[1]!MASTER_DEV_INPUT_VOLTAGE_DESC[#Data],0),0))","v":""},{"$f":"IF('DC Power Distribution (Desc)'!N16=\"\",\"\",'DC Power Distribution (Desc)'!N16)","v":""},{"$f":"IF('DC Power Distribution (Desc)'!O16=\"\",\"\",'DC Power Distribution (Desc)'!O16)","v":""},{"$f":"IF('DC Power Distribution (Desc)'!P16=\"\",\"\",'DC Power Distribution (Desc)'!P16)","v":""},{"$f":"IF('DC Power Distribution (Desc)'!B16=\"\",\"\",\"NA\")","v":""}]
[{"$f":"IF('DC Power Distribution (Desc)'!B17=\"\",\"\",2029)","v":""},{"$f":"IF('DC Power Distribution (Desc)'!B17=\"\",\"\",'DC Power Distribution (Desc)'!B17)","v":""},{"$f":"IF('DC Power Distribution (Desc)'!D17=\"\",\"\",'DC Power Distribution (Desc)'!D17)","v":""},{"$f":"IF('DC Power Distribution (Desc)'!E17=\"\",\"\",INDEX([1]ELECTRIC_DEV_MANUF!$A$2:$A$1500,MATCH(1,([1]ELECTRIC_DEV_MANUF!$B$2:$B$1500='DC Power Distribution (Desc)'!$E17)*([1]ELECTRIC_DEV_MANUF!$D$2:$D$1500=\"DCPWRDIS\"),0),0))","v":""},{"$f":"IF('DC Power Distribution (Desc)'!F17=\"\",\"\",INDEX([1]ELECTRIC_DEV_MODEL!$A$2:$A$1500,MATCH(1,([1]ELECTRIC_DEV_MODEL!$C$2:$C$1500='DC Power Distribution (Desc)'!$E17)*([1]ELECTRIC_DEV_MODEL!$D$2:$D$1500='DC Power Distribution (Desc)'!$F17)*([1]ELECTRIC_DEV_MODEL!$F$2:$F$1500=\"DCPWRDIS\"),0),0))","v":""},{"$f":"IF('DC Power Distribution (Desc)'!G17=\"\",\"\",'DC Power Distribution (Desc)'!G17)","v":""},{"$f":"IF('DC Power Distribution (Desc)'!H17=\"\",\"\",INDEX([1]YES_NO!$A$2:$A$100,MATCH('DC Power Distribution (Desc)'!$H17,[1]!MASTER_YES_NO_DESC[#Data],0),0))","v":""},{"$f":"IF('DC Power Distribution (Desc)'!I17=\"\",\"\",'DC Power Distribution (Desc)'!I17)","v":""},{"$f":"IF('DC Power Distribution (Desc)'!J17=\"\",\"\",'DC Power Distribution (Desc)'!J17)","v":""},{"$f":"IF('DC Power Distribution (Desc)'!K17=\"\",\"\",INDEX([1]YES_NO!$A$2:$A$100,MATCH('DC Power Distribution (Desc)'!$K17,[1]!MASTER_YES_NO_DESC[#Data],0),0))","v":""},{"$f":"IF('DC Power Distribution (Desc)'!L17=\"\",\"\",INDEX([1]DEV_INPUT_VOLTAGE!$A$2:$A$100,MATCH('DC Power Distribution (Desc)'!$L17,[1]!MASTER_DEV_INPUT_VOLTAGE_DESC[#Data],0),0))","v":""},{"$f":"IF('DC Power Distribution (Desc)'!M17=\"\",\"\",INDEX([1]DEV_OUTPUT_VOLTAGE!$A$2:$A$100,MATCH('DC Power Distribution (Desc)'!$M17,[1]!MASTER_DEV_INPUT_VOLTAGE_DESC[#Data],0),0))","v":""},{"$f":"IF('DC Power Distribution (Desc)'!N17=\"\",\"\",'DC Power Distribution (Desc)'!N17)","v":""},{"$f":"IF('DC Power Distribution (Desc)'!O17=\"\",\"\",'DC Power Distribution (Desc)'!O17)","v":""},{"$f":"IF('DC Power Distribution (Desc)'!P17=\"\",\"\",'DC Power Distribution (Desc)'!P17)","v":""},{"$f":"IF('DC Power Distribution (Desc)'!B17=\"\",\"\",\"NA\")","v":""}]
[{"$f":"IF('DC Power Distribution (Desc)'!B18=\"\",\"\",2029)","v":""},{"$f":"IF('DC Power Distribution (Desc)'!B18=\"\",\"\",'DC Power Distribution (Desc)'!B18)","v":""},{"$f":"IF('DC Power Distribution (Desc)'!D18=\"\",\"\",'DC Power Distribution (Desc)'!D18)","v":""},{"$f":"IF('DC Power Distribution (Desc)'!E18=\"\",\"\",INDEX([1]ELECTRIC_DEV_MANUF!$A$2:$A$1500,MATCH(1,([1]ELECTRIC_DEV_MANUF!$B$2:$B$1500='DC Power Distribution (Desc)'!$E18)*([1]ELECTRIC_DEV_MANUF!$D$2:$D$1500=\"DCPWRDIS\"),0),0))","v":""},{"$f":"IF('DC Power Distribution (Desc)'!F18=\"\",\"\",INDEX([1]ELECTRIC_DEV_MODEL!$A$2:$A$1500,MATCH(1,([1]ELECTRIC_DEV_MODEL!$C$2:$C$1500='DC Power Distribution (Desc)'!$E18)*([1]ELECTRIC_DEV_MODEL!$D$2:$D$1500='DC Power Distribution (Desc)'!$F18)*([1]ELECTRIC_DEV_MODEL!$F$2:$F$1500=\"DCPWRDIS\"),0),0))","v":""},{"$f":"IF('DC Power Distribution (Desc)'!G18=\"\",\"\",'DC Power Distribution (Desc)'!G18)","v":""},{"$f":"IF('DC Power Distribution (Desc)'!H18=\"\",\"\",INDEX([1]YES_NO!$A$2:$A$100,MATCH('DC Power Distribution (Desc)'!$H18,[1]!MASTER_YES_NO_DESC[#Data],0),0))","v":""},{"$f":"IF('DC Power Distribution (Desc)'!I18=\"\",\"\",'DC Power Distribution (Desc)'!I18)","v":""},{"$f":"IF('DC Power Distribution (Desc)'!J18=\"\",\"\",'DC Power Distribution (Desc)'!J18)","v":""},{"$f":"IF('DC Power Distribution (Desc)'!K18=\"\",\"\",INDEX([1]YES_NO!$A$2:$A$100,MATCH('DC Power Distribution (Desc)'!$K18,[1]!MASTER_YES_NO_DESC[#Data],0),0))","v":""},{"$f":"IF('DC Power Distribution (Desc)'!L18=\"\",\"\",INDEX([1]DEV_INPUT_VOLTAGE!$A$2:$A$100,MATCH('DC Power Distribution (Desc)'!$L18,[1]!MASTER_DEV_INPUT_VOLTAGE_DESC[#Data],0),0))","v":""},{"$f":"IF('DC Power Distribution (Desc)'!M18=\"\",\"\",INDEX([1]DEV_OUTPUT_VOLTAGE!$A$2:$A$100,MATCH('DC Power Distribution (Desc)'!$M18,[1]!MASTER_DEV_INPUT_VOLTAGE_DESC[#Data],0),0))","v":""},{"$f":"IF('DC Power Distribution (Desc)'!N18=\"\",\"\",'DC Power Distribution (Desc)'!N18)","v":""},{"$f":"IF('DC Power Distribution (Desc)'!O18=\"\",\"\",'DC Power Distribution (Desc)'!O18)","v":""},{"$f":"IF('DC Power Distribution (Desc)'!P18=\"\",\"\",'DC Power Distribution (Desc)'!P18)","v":""},{"$f":"IF('DC Power Distribution (Desc)'!B18=\"\",\"\",\"NA\")","v":""}]
[{"$f":"IF('DC Power Distribution (Desc)'!B19=\"\",\"\",2029)","v":""},{"$f":"IF('DC Power Distribution (Desc)'!B19=\"\",\"\",'DC Power Distribution (Desc)'!B19)","v":""},{"$f":"IF('DC Power Distribution (Desc)'!D19=\"\",\"\",'DC Power Distribution (Desc)'!D19)","v":""},{"$f":"IF('DC Power Distribution (Desc)'!E19=\"\",\"\",INDEX([1]ELECTRIC_DEV_MANUF!$A$2:$A$1500,MATCH(1,([1]ELECTRIC_DEV_MANUF!$B$2:$B$1500='DC Power Distribution (Desc)'!$E19)*([1]ELECTRIC_DEV_MANUF!$D$2:$D$1500=\"DCPWRDIS\"),0),0))","v":""},{"$f":"IF('DC Power Distribution (Desc)'!F19=\"\",\"\",INDEX([1]ELECTRIC_DEV_MODEL!$A$2:$A$1500,MATCH(1,([1]ELECTRIC_DEV_MODEL!$C$2:$C$1500='DC Power Distribution (Desc)'!$E19)*([1]ELECTRIC_DEV_MODEL!$D$2:$D$1500='DC Power Distribution (Desc)'!$F19)*([1]ELECTRIC_DEV_MODEL!$F$2:$F$1500=\"DCPWRDIS\"),0),0))","v":""},{"$f":"IF('DC Power Distribution (Desc)'!G19=\"\",\"\",'DC Power Distribution (Desc)'!G19)","v":""},{"$f":"IF('DC Power Distribution (Desc)'!H19=\"\",\"\",INDEX([1]YES_NO!$A$2:$A$100,MATCH('DC Power Distribution (Desc)'!$H19,[1]!MASTER_YES_NO_DESC[#Data],0),0))","v":""},{"$f":"IF('DC Power Distribution (Desc)'!I19=\"\",\"\",'DC Power Distribution (Desc)'!I19)","v":""},{"$f":"IF('DC Power Distribution (Desc)'!J19=\"\",\"\",'DC Power Distribution (Desc)'!J19)","v":""},{"$f":"IF('DC Power Distribution (Desc)'!K19=\"\",\"\",INDEX([1]YES_NO!$A$2:$A$100,MATCH('DC Power Distribution (Desc)'!$K19,[1]!MASTER_YES_NO_DESC[#Data],0),0))","v":""},{"$f":"IF('DC Power Distribution (Desc)'!L19=\"\",\"\",INDEX([1]DEV_INPUT_VOLTAGE!$A$2:$A$100,MATCH('DC Power Distribution (Desc)'!$L19,[1]!MASTER_DEV_INPUT_VOLTAGE_DESC[#Data],0),0))","v":""},{"$f":"IF('DC Power Distribution (Desc)'!M19=\"\",\"\",INDEX([1]DEV_OUTPUT_VOLTAGE!$A$2:$A$100,MATCH('DC Power Distribution (Desc)'!$M19,[1]!MASTER_DEV_INPUT_VOLTAGE_DESC[#Data],0),0))","v":""},{"$f":"IF('DC Power Distribution (Desc)'!N19=\"\",\"\",'DC Power Distribution (Desc)'!N19)","v":""},{"$f":"IF('DC Power Distribution (Desc)'!O19=\"\",\"\",'DC Power Distribution (Desc)'!O19)","v":""},{"$f":"IF('DC Power Distribution (Desc)'!P19=\"\",\"\",'DC Power Distribution (Desc)'!P19)","v":""},{"$f":"IF('DC Power Distribution (Desc)'!B19=\"\",\"\",\"NA\")","v":""}]
[{"$f":"IF('DC Power Distribution (Desc)'!B20=\"\",\"\",2029)","v":""},{"$f":"IF('DC Power Distribution (Desc)'!B20=\"\",\"\",'DC Power Distribution (Desc)'!B20)","v":""},{"$f":"IF('DC Power Distribution (Desc)'!D20=\"\",\"\",'DC Power Distribution (Desc)'!D20)","v":""},{"$f":"IF('DC Power Distribution (Desc)'!E20=\"\",\"\",INDEX([1]ELECTRIC_DEV_MANUF!$A$2:$A$1500,MATCH(1,([1]ELECTRIC_DEV_MANUF!$B$2:$B$1500='DC Power Distribution (Desc)'!$E20)*([1]ELECTRIC_DEV_MANUF!$D$2:$D$1500=\"DCPWRDIS\"),0),0))","v":""},{"$f":"IF('DC Power Distribution (Desc)'!F20=\"\",\"\",INDEX([1]ELECTRIC_DEV_MODEL!$A$2:$A$1500,MATCH(1,([1]ELECTRIC_DEV_MODEL!$C$2:$C$1500='DC Power Distribution (Desc)'!$E20)*([1]ELECTRIC_DEV_MODEL!$D$2:$D$1500='DC Power Distribution (Desc)'!$F20)*([1]ELECTRIC_DEV_MODEL!$F$2:$F$1500=\"DCPWRDIS\"),0),0))","v":""},{"$f":"IF('DC Power Distribution (Desc)'!G20=\"\",\"\",'DC Power Distribution (Desc)'!G20)","v":""},{"$f":"IF('DC Power Distribution (Desc)'!H20=\"\",\"\",INDEX([1]YES_NO!$A$2:$A$100,MATCH('DC Power Distribution (Desc)'!$H20,[1]!MASTER_YES_NO_DESC[#Data],0),0))","v":""},{"$f":"IF('DC Power Distribution (Desc)'!I20=\"\",\"\",'DC Power Distribution (Desc)'!I20)","v":""},{"$f":"IF('DC Power Distribution (Desc)'!J20=\"\",\"\",'DC Power Distribution (Desc)'!J20)","v":""},{"$f":"IF('DC Power Distribution (Desc)'!K20=\"\",\"\",INDEX([1]YES_NO!$A$2:$A$100,MATCH('DC Power Distribution (Desc)'!$K20,[1]!MASTER_YES_NO_DESC[#Data],0),0))","v":""},{"$f":"IF('DC Power Distribution (Desc)'!L20=\"\",\"\",INDEX([1]DEV_INPUT_VOLTAGE!$A$2:$A$100,MATCH('DC Power Distribution (Desc)'!$L20,[1]!MASTER_DEV_INPUT_VOLTAGE_DESC[#Data],0),0))","v":""},{"$f":"IF('DC Power Distribution (Desc)'!M20=\"\",\"\",INDEX([1]DEV_OUTPUT_VOLTAGE!$A$2:$A$100,MATCH('DC Power Distribution (Desc)'!$M20,[1]!MASTER_DEV_INPUT_VOLTAGE_DESC[#Data],0),0))","v":""},{"$f":"IF('DC Power Distribution (Desc)'!N20=\"\",\"\",'DC Power Distribution (Desc)'!N20)","v":""},{"$f":"IF('DC Power Distribution (Desc)'!O20=\"\",\"\",'DC Power Distribution (Desc)'!O20)","v":""},{"$f":"IF('DC Power Distribution (Desc)'!P20=\"\",\"\",'DC Power Distribution (Desc)'!P20)","v":""},{"$f":"IF('DC Power Distribution (Desc)'!B20=\"\",\"\",\"NA\")","v":""}]
[{"$f":"IF('DC Power Distribution (Desc)'!B21=\"\",\"\",2029)","v":""},{"$f":"IF('DC Power Distribution (Desc)'!B21=\"\",\"\",'DC Power Distribution (Desc)'!B21)","v":""},{"$f":"IF('DC Power Distribution (Desc)'!D21=\"\",\"\",'DC Power Distribution (Desc)'!D21)","v":""},{"$f":"IF('DC Power Distribution (Desc)'!E21=\"\",\"\",INDEX([1]ELECTRIC_DEV_MANUF!$A$2:$A$1500,MATCH(1,([1]ELECTRIC_DEV_MANUF!$B$2:$B$1500='DC Power Distribution (Desc)'!$E21)*([1]ELECTRIC_DEV_MANUF!$D$2:$D$1500=\"DCPWRDIS\"),0),0))","v":""},{"$f":"IF('DC Power Distribution (Desc)'!F21=\"\",\"\",INDEX([1]ELECTRIC_DEV_MODEL!$A$2:$A$1500,MATCH(1,([1]ELECTRIC_DEV_MODEL!$C$2:$C$1500='DC Power Distribution (Desc)'!$E21)*([1]ELECTRIC_DEV_MODEL!$D$2:$D$1500='DC Power Distribution (Desc)'!$F21)*([1]ELECTRIC_DEV_MODEL!$F$2:$F$1500=\"DCPWRDIS\"),0),0))","v":""},{"$f":"IF('DC Power Distribution (Desc)'!G21=\"\",\"\",'DC Power Distribution (Desc)'!G21)","v":""},{"$f":"IF('DC Power Distribution (Desc)'!H21=\"\",\"\",INDEX([1]YES_NO!$A$2:$A$100,MATCH('DC Power Distribution (Desc)'!$H21,[1]!MASTER_YES_NO_DESC[#Data],0),0))","v":""},{"$f":"IF('DC Power Distribution (Desc)'!I21=\"\",\"\",'DC Power Distribution (Desc)'!I21)","v":""},{"$f":"IF('DC Power Distribution (Desc)'!J21=\"\",\"\",'DC Power Distribution (Desc)'!J21)","v":""},{"$f":"IF('DC Power Distribution (Desc)'!K21=\"\",\"\",INDEX([1]YES_NO!$A$2:$A$100,MATCH('DC Power Distribution (Desc)'!$K21,[1]!MASTER_YES_NO_DESC[#Data],0),0))","v":""},{"$f":"IF('DC Power Distribution (Desc)'!L21=\"\",\"\",INDEX([1]DEV_INPUT_VOLTAGE!$A$2:$A$100,MATCH('DC Power Distribution (Desc)'!$L21,[1]!MASTER_DEV_INPUT_VOLTAGE_DESC[#Data],0),0))","v":""},{"$f":"IF('DC Power Distribution (Desc)'!M21=\"\",\"\",INDEX([1]DEV_OUTPUT_VOLTAGE!$A$2:$A$100,MATCH('DC Power Distribution (Desc)'!$M21,[1]!MASTER_DEV_INPUT_VOLTAGE_DESC[#Data],0),0))","v":""},{"$f":"IF('DC Power Distribution (Desc)'!N21=\"\",\"\",'DC Power Distribution (Desc)'!N21)","v":""},{"$f":"IF('DC Power Distribution (Desc)'!O21=\"\",\"\",'DC Power Distribution (Desc)'!O21)","v":""},{"$f":"IF('DC Power Distribution (Desc)'!P21=\"\",\"\",'DC Power Distribution (Desc)'!P21)","v":""},{"$f":"IF('DC Power Distribution (Desc)'!B21=\"\",\"\",\"NA\")","v":""}]
[{"$f":"IF('DC Power Distribution (Desc)'!B22=\"\",\"\",2029)","v":""},{"$f":"IF('DC Power Distribution (Desc)'!B22=\"\",\"\",'DC Power Distribution (Desc)'!B22)","v":""},{"$f":"IF('DC Power Distribution (Desc)'!D22=\"\",\"\",'DC Power Distribution (Desc)'!D22)","v":""},{"$f":"IF('DC Power Distribution (Desc)'!E22=\"\",\"\",INDEX([1]ELECTRIC_DEV_MANUF!$A$2:$A$1500,MATCH(1,([1]ELECTRIC_DEV_MANUF!$B$2:$B$1500='DC Power Distribution (Desc)'!$E22)*([1]ELECTRIC_DEV_MANUF!$D$2:$D$1500=\"DCPWRDIS\"),0),0))","v":""},{"$f":"IF('DC Power Distribution (Desc)'!F22=\"\",\"\",INDEX([1]ELECTRIC_DEV_MODEL!$A$2:$A$1500,MATCH(1,([1]ELECTRIC_DEV_MODEL!$C$2:$C$1500='DC Power Distribution (Desc)'!$E22)*([1]ELECTRIC_DEV_MODEL!$D$2:$D$1500='DC Power Distribution (Desc)'!$F22)*([1]ELECTRIC_DEV_MODEL!$F$2:$F$1500=\"DCPWRDIS\"),0),0))","v":""},{"$f":"IF('DC Power Distribution (Desc)'!G22=\"\",\"\",'DC Power Distribution (Desc)'!G22)","v":""},{"$f":"IF('DC Power Distribution (Desc)'!H22=\"\",\"\",INDEX([1]YES_NO!$A$2:$A$100,MATCH('DC Power Distribution (Desc)'!$H22,[1]!MASTER_YES_NO_DESC[#Data],0),0))","v":""},{"$f":"IF('DC Power Distribution (Desc)'!I22=\"\",\"\",'DC Power Distribution (Desc)'!I22)","v":""},{"$f":"IF('DC Power Distribution (Desc)'!J22=\"\",\"\",'DC Power Distribution (Desc)'!J22)","v":""},{"$f":"IF('DC Power Distribution (Desc)'!K22=\"\",\"\",INDEX([1]YES_NO!$A$2:$A$100,MATCH('DC Power Distribution (Desc)'!$K22,[1]!MASTER_YES_NO_DESC[#Data],0),0))","v":""},{"$f":"IF('DC Power Distribution (Desc)'!L22=\"\",\"\",INDEX([1]DEV_INPUT_VOLTAGE!$A$2:$A$100,MATCH('DC Power Distribution (Desc)'!$L22,[1]!MASTER_DEV_INPUT_VOLTAGE_DESC[#Data],0),0))","v":""},{"$f":"IF('DC Power Distribution (Desc)'!M22=\"\",\"\",INDEX([1]DEV_OUTPUT_VOLTAGE!$A$2:$A$100,MATCH('DC Power Distribution (Desc)'!$M22,[1]!MASTER_DEV_INPUT_VOLTAGE_DESC[#Data],0),0))","v":""},{"$f":"IF('DC Power Distribution (Desc)'!N22=\"\",\"\",'DC Power Distribution (Desc)'!N22)","v":""},{"$f":"IF('DC Power Distribution (Desc)'!O22=\"\",\"\",'DC Power Distribution (Desc)'!O22)","v":""},{"$f":"IF('DC Power Distribution (Desc)'!P22=\"\",\"\",'DC Power Distribution (Desc)'!P22)","v":""},{"$f":"IF('DC Power Distribution (Desc)'!B22=\"\",\"\",\"NA\")","v":""}]
[{"$f":"IF('DC Power Distribution (Desc)'!B23=\"\",\"\",2029)","v":""},{"$f":"IF('DC Power Distribution (Desc)'!B23=\"\",\"\",'DC Power Distribution (Desc)'!B23)","v":""},{"$f":"IF('DC Power Distribution (Desc)'!D23=\"\",\"\",'DC Power Distribution (Desc)'!D23)","v":""},{"$f":"IF('DC Power Distribution (Desc)'!E23=\"\",\"\",INDEX([1]ELECTRIC_DEV_MANUF!$A$2:$A$1500,MATCH(1,([1]ELECTRIC_DEV_MANUF!$B$2:$B$1500='DC Power Distribution (Desc)'!$E23)*([1]ELECTRIC_DEV_MANUF!$D$2:$D$1500=\"DCPWRDIS\"),0),0))","v":""},{"$f":"IF('DC Power Distribution (Desc)'!F23=\"\",\"\",INDEX([1]ELECTRIC_DEV_MODEL!$A$2:$A$1500,MATCH(1,([1]ELECTRIC_DEV_MODEL!$C$2:$C$1500='DC Power Distribution (Desc)'!$E23)*([1]ELECTRIC_DEV_MODEL!$D$2:$D$1500='DC Power Distribution (Desc)'!$F23)*([1]ELECTRIC_DEV_MODEL!$F$2:$F$1500=\"DCPWRDIS\"),0),0))","v":""},{"$f":"IF('DC Power Distribution (Desc)'!G23=\"\",\"\",'DC Power Distribution (Desc)'!G23)","v":""},{"$f":"IF('DC Power Distribution (Desc)'!H23=\"\",\"\",INDEX([1]YES_NO!$A$2:$A$100,MATCH('DC Power Distribution (Desc)'!$H23,[1]!MASTER_YES_NO_DESC[#Data],0),0))","v":""},{"$f":"IF('DC Power Distribution (Desc)'!I23=\"\",\"\",'DC Power Distribution (Desc)'!I23)","v":""},{"$f":"IF('DC Power Distribution (Desc)'!J23=\"\",\"\",'DC Power Distribution (Desc)'!J23)","v":""},{"$f":"IF('DC Power Distribution (Desc)'!K23=\"\",\"\",INDEX([1]YES_NO!$A$2:$A$100,MATCH('DC Power Distribution (Desc)'!$K23,[1]!MASTER_YES_NO_DESC[#Data],0),0))","v":""},{"$f":"IF('DC Power Distribution (Desc)'!L23=\"\",\"\",INDEX([1]DEV_INPUT_VOLTAGE!$A$2:$A$100,MATCH('DC Power Distribution (Desc)'!$L23,[1]!MASTER_DEV_INPUT_VOLTAGE_DESC[#Data],0),0))","v":""},{"$f":"IF('DC Power Distribution (Desc)'!M23=\"\",\"\",INDEX([1]DEV_OUTPUT_VOLTAGE!$A$2:$A$100,MATCH('DC Power Distribution (Desc)'!$M23,[1]!MASTER_DEV_INPUT_VOLTAGE_DESC[#Data],0),0))","v":""},{"$f":"IF('DC Power Distribution (Desc)'!N23=\"\",\"\",'DC Power Distribution (Desc)'!N23)","v":""},{"$f":"IF('DC Power Distribution (Desc)'!O23=\"\",\"\",'DC Power Distribution (Desc)'!O23)","v":""},{"$f":"IF('DC Power Distribution (Desc)'!P23=\"\",\"\",'DC Power Distribution (Desc)'!P23)","v":""},{"$f":"IF('DC Power Distribution (Desc)'!B23=\"\",\"\",\"NA\")","v":""}]
[{"$f":"IF('DC Power Distribution (Desc)'!B24=\"\",\"\",2029)","v":""},{"$f":"IF('DC Power Distribution (Desc)'!B24=\"\",\"\",'DC Power Distribution (Desc)'!B24)","v":""},{"$f":"IF('DC Power Distribution (Desc)'!D24=\"\",\"\",'DC Power Distribution (Desc)'!D24)","v":""},{"$f":"IF('DC Power Distribution (Desc)'!E24=\"\",\"\",INDEX([1]ELECTRIC_DEV_MANUF!$A$2:$A$1500,MATCH(1,([1]ELECTRIC_DEV_MANUF!$B$2:$B$1500='DC Power Distribution (Desc)'!$E24)*([1]ELECTRIC_DEV_MANUF!$D$2:$D$1500=\"DCPWRDIS\"),0),0))","v":""},{"$f":"IF('DC Power Distribution (Desc)'!F24=\"\",\"\",INDEX([1]ELECTRIC_DEV_MODEL!$A$2:$A$1500,MATCH(1,([1]ELECTRIC_DEV_MODEL!$C$2:$C$1500='DC Power Distribution (Desc)'!$E24)*([1]ELECTRIC_DEV_MODEL!$D$2:$D$1500='DC Power Distribution (Desc)'!$F24)*([1]ELECTRIC_DEV_MODEL!$F$2:$F$1500=\"DCPWRDIS\"),0),0))","v":""},{"$f":"IF('DC Power Distribution (Desc)'!G24=\"\",\"\",'DC Power Distribution (Desc)'!G24)","v":""},{"$f":"IF('DC Power Distribution (Desc)'!H24=\"\",\"\",INDEX([1]YES_NO!$A$2:$A$100,MATCH('DC Power Distribution (Desc)'!$H24,[1]!MASTER_YES_NO_DESC[#Data],0),0))","v":""},{"$f":"IF('DC Power Distribution (Desc)'!I24=\"\",\"\",'DC Power Distribution (Desc)'!I24)","v":""},{"$f":"IF('DC Power Distribution (Desc)'!J24=\"\",\"\",'DC Power Distribution (Desc)'!J24)","v":""},{"$f":"IF('DC Power Distribution (Desc)'!K24=\"\",\"\",INDEX([1]YES_NO!$A$2:$A$100,MATCH('DC Power Distribution (Desc)'!$K24,[1]!MASTER_YES_NO_DESC[#Data],0),0))","v":""},{"$f":"IF('DC Power Distribution (Desc)'!L24=\"\",\"\",INDEX([1]DEV_INPUT_VOLTAGE!$A$2:$A$100,MATCH('DC Power Distribution (Desc)'!$L24,[1]!MASTER_DEV_INPUT_VOLTAGE_DESC[#Data],0),0))","v":""},{"$f":"IF('DC Power Distribution (Desc)'!M24=\"\",\"\",INDEX([1]DEV_OUTPUT_VOLTAGE!$A$2:$A$100,MATCH('DC Power Distribution (Desc)'!$M24,[1]!MASTER_DEV_INPUT_VOLTAGE_DESC[#Data],0),0))","v":""},{"$f":"IF('DC Power Distribution (Desc)'!N24=\"\",\"\",'DC Power Distribution (Desc)'!N24)","v":""},{"$f":"IF('DC Power Distribution (Desc)'!O24=\"\",\"\",'DC Power Distribution (Desc)'!O24)","v":""},{"$f":"IF('DC Power Distribution (Desc)'!P24=\"\",\"\",'DC Power Distribution (Desc)'!P24)","v":""},{"$f":"IF('DC Power Distribution (Desc)'!B24=\"\",\"\",\"NA\")","v":""}]
[{"$f":"IF('DC Power Distribution (Desc)'!B25=\"\",\"\",2029)","v":""},{"$f":"IF('DC Power Distribution (Desc)'!B25=\"\",\"\",'DC Power Distribution (Desc)'!B25)","v":""},{"$f":"IF('DC Power Distribution (Desc)'!D25=\"\",\"\",'DC Power Distribution (Desc)'!D25)","v":""},{"$f":"IF('DC Power Distribution (Desc)'!E25=\"\",\"\",INDEX([1]ELECTRIC_DEV_MANUF!$A$2:$A$1500,MATCH(1,([1]ELECTRIC_DEV_MANUF!$B$2:$B$1500='DC Power Distribution (Desc)'!$E25)*([1]ELECTRIC_DEV_MANUF!$D$2:$D$1500=\"DCPWRDIS\"),0),0))","v":""},{"$f":"IF('DC Power Distribution (Desc)'!F25=\"\",\"\",INDEX([1]ELECTRIC_DEV_MODEL!$A$2:$A$1500,MATCH(1,([1]ELECTRIC_DEV_MODEL!$C$2:$C$1500='DC Power Distribution (Desc)'!$E25)*([1]ELECTRIC_DEV_MODEL!$D$2:$D$1500='DC Power Distribution (Desc)'!$F25)*([1]ELECTRIC_DEV_MODEL!$F$2:$F$1500=\"DCPWRDIS\"),0),0))","v":""},{"$f":"IF('DC Power Distribution (Desc)'!G25=\"\",\"\",'DC Power Distribution (Desc)'!G25)","v":""},{"$f":"IF('DC Power Distribution (Desc)'!H25=\"\",\"\",INDEX([1]YES_NO!$A$2:$A$100,MATCH('DC Power Distribution (Desc)'!$H25,[1]!MASTER_YES_NO_DESC[#Data],0),0))","v":""},{"$f":"IF('DC Power Distribution (Desc)'!I25=\"\",\"\",'DC Power Distribution (Desc)'!I25)","v":""},{"$f":"IF('DC Power Distribution (Desc)'!J25=\"\",\"\",'DC Power Distribution (Desc)'!J25)","v":""},{"$f":"IF('DC Power Distribution (Desc)'!K25=\"\",\"\",INDEX([1]YES_NO!$A$2:$A$100,MATCH('DC Power Distribution (Desc)'!$K25,[1]!MASTER_YES_NO_DESC[#Data],0),0))","v":""},{"$f":"IF('DC Power Distribution (Desc)'!L25=\"\",\"\",INDEX([1]DEV_INPUT_VOLTAGE!$A$2:$A$100,MATCH('DC Power Distribution (Desc)'!$L25,[1]!MASTER_DEV_INPUT_VOLTAGE_DESC[#Data],0),0))","v":""},{"$f":"IF('DC Power Distribution (Desc)'!M25=\"\",\"\",INDEX([1]DEV_OUTPUT_VOLTAGE!$A$2:$A$100,MATCH('DC Power Distribution (Desc)'!$M25,[1]!MASTER_DEV_INPUT_VOLTAGE_DESC[#Data],0),0))","v":""},{"$f":"IF('DC Power Distribution (Desc)'!N25=\"\",\"\",'DC Power Distribution (Desc)'!N25)","v":""},{"$f":"IF('DC Power Distribution (Desc)'!O25=\"\",\"\",'DC Power Distribution (Desc)'!O25)","v":""},{"$f":"IF('DC Power Distribution (Desc)'!P25=\"\",\"\",'DC Power Distribution (Desc)'!P25)","v":""},{"$f":"IF('DC Power Distribution (Desc)'!B25=\"\",\"\",\"NA\")","v":""}]
[{"$f":"IF('DC Power Distribution (Desc)'!B26=\"\",\"\",2029)","v":""},{"$f":"IF('DC Power Distribution (Desc)'!B26=\"\",\"\",'DC Power Distribution (Desc)'!B26)","v":""},{"$f":"IF('DC Power Distribution (Desc)'!D26=\"\",\"\",'DC Power Distribution (Desc)'!D26)","v":""},{"$f":"IF('DC Power Distribution (Desc)'!E26=\"\",\"\",INDEX([1]ELECTRIC_DEV_MANUF!$A$2:$A$1500,MATCH(1,([1]ELECTRIC_DEV_MANUF!$B$2:$B$1500='DC Power Distribution (Desc)'!$E26)*([1]ELECTRIC_DEV_MANUF!$D$2:$D$1500=\"DCPWRDIS\"),0),0))","v":""},{"$f":"IF('DC Power Distribution (Desc)'!F26=\"\",\"\",INDEX([1]ELECTRIC_DEV_MODEL!$A$2:$A$1500,MATCH(1,([1]ELECTRIC_DEV_MODEL!$C$2:$C$1500='DC Power Distribution (Desc)'!$E26)*([1]ELECTRIC_DEV_MODEL!$D$2:$D$1500='DC Power Distribution (Desc)'!$F26)*([1]ELECTRIC_DEV_MODEL!$F$2:$F$1500=\"DCPWRDIS\"),0),0))","v":""},{"$f":"IF('DC Power Distribution (Desc)'!G26=\"\",\"\",'DC Power Distribution (Desc)'!G26)","v":""},{"$f":"IF('DC Power Distribution (Desc)'!H26=\"\",\"\",INDEX([1]YES_NO!$A$2:$A$100,MATCH('DC Power Distribution (Desc)'!$H26,[1]!MASTER_YES_NO_DESC[#Data],0),0))","v":""},{"$f":"IF('DC Power Distribution (Desc)'!I26=\"\",\"\",'DC Power Distribution (Desc)'!I26)","v":""},{"$f":"IF('DC Power Distribution (Desc)'!J26=\"\",\"\",'DC Power Distribution (Desc)'!J26)","v":""},{"$f":"IF('DC Power Distribution (Desc)'!K26=\"\",\"\",INDEX([1]YES_NO!$A$2:$A$100,MATCH('DC Power Distribution (Desc)'!$K26,[1]!MASTER_YES_NO_DESC[#Data],0),0))","v":""},{"$f":"IF('DC Power Distribution (Desc)'!L26=\"\",\"\",INDEX([1]DEV_INPUT_VOLTAGE!$A$2:$A$100,MATCH('DC Power Distribution (Desc)'!$L26,[1]!MASTER_DEV_INPUT_VOLTAGE_DESC[#Data],0),0))","v":""},{"$f":"IF('DC Power Distribution (Desc)'!M26=\"\",\"\",INDEX([1]DEV_OUTPUT_VOLTAGE!$A$2:$A$100,MATCH('DC Power Distribution (Desc)'!$M26,[1]!MASTER_DEV_INPUT_VOLTAGE_DESC[#Data],0),0))","v":""},{"$f":"IF('DC Power Distribution (Desc)'!N26=\"\",\"\",'DC Power Distribution (Desc)'!N26)","v":""},{"$f":"IF('DC Power Distribution (Desc)'!O26=\"\",\"\",'DC Power Distribution (Desc)'!O26)","v":""},{"$f":"IF('DC Power Distribution (Desc)'!P26=\"\",\"\",'DC Power Distribution (Desc)'!P26)","v":""},{"$f":"IF('DC Power Distribution (Desc)'!B26=\"\",\"\",\"NA\")","v":""}]
[{"$f":"IF('DC Power Distribution (Desc)'!B27=\"\",\"\",2029)","v":""},{"$f":"IF('DC Power Distribution (Desc)'!B27=\"\",\"\",'DC Power Distribution (Desc)'!B27)","v":""},{"$f":"IF('DC Power Distribution (Desc)'!D27=\"\",\"\",'DC Power Distribution (Desc)'!D27)","v":""},{"$f":"IF('DC Power Distribution (Desc)'!E27=\"\",\"\",INDEX([1]ELECTRIC_DEV_MANUF!$A$2:$A$1500,MATCH(1,([1]ELECTRIC_DEV_MANUF!$B$2:$B$1500='DC Power Distribution (Desc)'!$E27)*([1]ELECTRIC_DEV_MANUF!$D$2:$D$1500=\"DCPWRDIS\"),0),0))","v":""},{"$f":"IF('DC Power Distribution (Desc)'!F27=\"\",\"\",INDEX([1]ELECTRIC_DEV_MODEL!$A$2:$A$1500,MATCH(1,([1]ELECTRIC_DEV_MODEL!$C$2:$C$1500='DC Power Distribution (Desc)'!$E27)*([1]ELECTRIC_DEV_MODEL!$D$2:$D$1500='DC Power Distribution (Desc)'!$F27)*([1]ELECTRIC_DEV_MODEL!$F$2:$F$1500=\"DCPWRDIS\"),0),0))","v":""},{"$f":"IF('DC Power Distribution (Desc)'!G27=\"\",\"\",'DC Power Distribution (Desc)'!G27)","v":""},{"$f":"IF('DC Power Distribution (Desc)'!H27=\"\",\"\",INDEX([1]YES_NO!$A$2:$A$100,MATCH('DC Power Distribution (Desc)'!$H27,[1]!MASTER_YES_NO_DESC[#Data],0),0))","v":""},{"$f":"IF('DC Power Distribution (Desc)'!I27=\"\",\"\",'DC Power Distribution (Desc)'!I27)","v":""},{"$f":"IF('DC Power Distribution (Desc)'!J27=\"\",\"\",'DC Power Distribution (Desc)'!J27)","v":""},{"$f":"IF('DC Power Distribution (Desc)'!K27=\"\",\"\",INDEX([1]YES_NO!$A$2:$A$100,MATCH('DC Power Distribution (Desc)'!$K27,[1]!MASTER_YES_NO_DESC[#Data],0),0))","v":""},{"$f":"IF('DC Power Distribution (Desc)'!L27=\"\",\"\",INDEX([1]DEV_INPUT_VOLTAGE!$A$2:$A$100,MATCH('DC Power Distribution (Desc)'!$L27,[1]!MASTER_DEV_INPUT_VOLTAGE_DESC[#Data],0),0))","v":""},{"$f":"IF('DC Power Distribution (Desc)'!M27=\"\",\"\",INDEX([1]DEV_OUTPUT_VOLTAGE!$A$2:$A$100,MATCH('DC Power Distribution (Desc)'!$M27,[1]!MASTER_DEV_INPUT_VOLTAGE_DESC[#Data],0),0))","v":""},{"$f":"IF('DC Power Distribution (Desc)'!N27=\"\",\"\",'DC Power Distribution (Desc)'!N27)","v":""},{"$f":"IF('DC Power Distribution (Desc)'!O27=\"\",\"\",'DC Power Distribution (Desc)'!O27)","v":""},{"$f":"IF('DC Power Distribution (Desc)'!P27=\"\",\"\",'DC Power Distribution (Desc)'!P27)","v":""},{"$f":"IF('DC Power Distribution (Desc)'!B27=\"\",\"\",\"NA\")","v":""}]
[{"$f":"IF('DC Power Distribution (Desc)'!B28=\"\",\"\",2029)","v":""},{"$f":"IF('DC Power Distribution (Desc)'!B28=\"\",\"\",'DC Power Distribution (Desc)'!B28)","v":""},{"$f":"IF('DC Power Distribution (Desc)'!D28=\"\",\"\",'DC Power Distribution (Desc)'!D28)","v":""},{"$f":"IF('DC Power Distribution (Desc)'!E28=\"\",\"\",INDEX([1]ELECTRIC_DEV_MANUF!$A$2:$A$1500,MATCH(1,([1]ELECTRIC_DEV_MANUF!$B$2:$B$1500='DC Power Distribution (Desc)'!$E28)*([1]ELECTRIC_DEV_MANUF!$D$2:$D$1500=\"DCPWRDIS\"),0),0))","v":""},{"$f":"IF('DC Power Distribution (Desc)'!F28=\"\",\"\",INDEX([1]ELECTRIC_DEV_MODEL!$A$2:$A$1500,MATCH(1,([1]ELECTRIC_DEV_MODEL!$C$2:$C$1500='DC Power Distribution (Desc)'!$E28)*([1]ELECTRIC_DEV_MODEL!$D$2:$D$1500='DC Power Distribution (Desc)'!$F28)*([1]ELECTRIC_DEV_MODEL!$F$2:$F$1500=\"DCPWRDIS\"),0),0))","v":""},{"$f":"IF('DC Power Distribution (Desc)'!G28=\"\",\"\",'DC Power Distribution (Desc)'!G28)","v":""},{"$f":"IF('DC Power Distribution (Desc)'!H28=\"\",\"\",INDEX([1]YES_NO!$A$2:$A$100,MATCH('DC Power Distribution (Desc)'!$H28,[1]!MASTER_YES_NO_DESC[#Data],0),0))","v":""},{"$f":"IF('DC Power Distribution (Desc)'!I28=\"\",\"\",'DC Power Distribution (Desc)'!I28)","v":""},{"$f":"IF('DC Power Distribution (Desc)'!J28=\"\",\"\",'DC Power Distribution (Desc)'!J28)","v":""},{"$f":"IF('DC Power Distribution (Desc)'!K28=\"\",\"\",INDEX([1]YES_NO!$A$2:$A$100,MATCH('DC Power Distribution (Desc)'!$K28,[1]!MASTER_YES_NO_DESC[#Data],0),0))","v":""},{"$f":"IF('DC Power Distribution (Desc)'!L28=\"\",\"\",INDEX([1]DEV_INPUT_VOLTAGE!$A$2:$A$100,MATCH('DC Power Distribution (Desc)'!$L28,[1]!MASTER_DEV_INPUT_VOLTAGE_DESC[#Data],0),0))","v":""},{"$f":"IF('DC Power Distribution (Desc)'!M28=\"\",\"\",INDEX([1]DEV_OUTPUT_VOLTAGE!$A$2:$A$100,MATCH('DC Power Distribution (Desc)'!$M28,[1]!MASTER_DEV_INPUT_VOLTAGE_DESC[#Data],0),0))","v":""},{"$f":"IF('DC Power Distribution (Desc)'!N28=\"\",\"\",'DC Power Distribution (Desc)'!N28)","v":""},{"$f":"IF('DC Power Distribution (Desc)'!O28=\"\",\"\",'DC Power Distribution (Desc)'!O28)","v":""},{"$f":"IF('DC Power Distribution (Desc)'!P28=\"\",\"\",'DC Power Distribution (Desc)'!P28)","v":""},{"$f":"IF('DC Power Distribution (Desc)'!B28=\"\",\"\",\"NA\")","v":""}]
[{"$f":"IF('DC Power Distribution (Desc)'!B29=\"\",\"\",2029)","v":""},{"$f":"IF('DC Power Distribution (Desc)'!B29=\"\",\"\",'DC Power Distribution (Desc)'!B29)","v":""},{"$f":"IF('DC Power Distribution (Desc)'!D29=\"\",\"\",'DC Power Distribution (Desc)'!D29)","v":""},{"$f":"IF('DC Power Distribution (Desc)'!E29=\"\",\"\",INDEX([1]ELECTRIC_DEV_MANUF!$A$2:$A$1500,MATCH(1,([1]ELECTRIC_DEV_MANUF!$B$2:$B$1500='DC Power Distribution (Desc)'!$E29)*([1]ELECTRIC_DEV_MANUF!$D$2:$D$1500=\"DCPWRDIS\"),0),0))","v":""},{"$f":"IF('DC Power Distribution (Desc)'!F29=\"\",\"\",INDEX([1]ELECTRIC_DEV_MODEL!$A$2:$A$1500,MATCH(1,([1]ELECTRIC_DEV_MODEL!$C$2:$C$1500='DC Power Distribution (Desc)'!$E29)*([1]ELECTRIC_DEV_MODEL!$D$2:$D$1500='DC Power Distribution (Desc)'!$F29)*([1]ELECTRIC_DEV_MODEL!$F$2:$F$1500=\"DCPWRDIS\"),0),0))","v":""},{"$f":"IF('DC Power Distribution (Desc)'!G29=\"\",\"\",'DC Power Distribution (Desc)'!G29)","v":""},{"$f":"IF('DC Power Distribution (Desc)'!H29=\"\",\"\",INDEX([1]YES_NO!$A$2:$A$100,MATCH('DC Power Distribution (Desc)'!$H29,[1]!MASTER_YES_NO_DESC[#Data],0),0))","v":""},{"$f":"IF('DC Power Distribution (Desc)'!I29=\"\",\"\",'DC Power Distribution (Desc)'!I29)","v":""},{"$f":"IF('DC Power Distribution (Desc)'!J29=\"\",\"\",'DC Power Distribution (Desc)'!J29)","v":""},{"$f":"IF('DC Power Distribution (Desc)'!K29=\"\",\"\",INDEX([1]YES_NO!$A$2:$A$100,MATCH('DC Power Distribution (Desc)'!$K29,[1]!MASTER_YES_NO_DESC[#Data],0),0))","v":""},{"$f":"IF('DC Power Distribution (Desc)'!L29=\"\",\"\",INDEX([1]DEV_INPUT_VOLTAGE!$A$2:$A$100,MATCH('DC Power Distribution (Desc)'!$L29,[1]!MASTER_DEV_INPUT_VOLTAGE_DESC[#Data],0),0))","v":""},{"$f":"IF('DC Power Distribution (Desc)'!M29=\"\",\"\",INDEX([1]DEV_OUTPUT_VOLTAGE!$A$2:$A$100,MATCH('DC Power Distribution (Desc)'!$M29,[1]!MASTER_DEV_INPUT_VOLTAGE_DESC[#Data],0),0))","v":""},{"$f":"IF('DC Power Distribution (Desc)'!N29=\"\",\"\",'DC Power Distribution (Desc)'!N29)","v":""},{"$f":"IF('DC Power Distribution (Desc)'!O29=\"\",\"\",'DC Power Distribution (Desc)'!O29)","v":""},{"$f":"IF('DC Power Distribution (Desc)'!P29=\"\",\"\",'DC Power Distribution (Desc)'!P29)","v":""},{"$f":"IF('DC Power Distribution (Desc)'!B29=\"\",\"\",\"NA\")","v":""}]
[{"$f":"IF('DC Power Distribution (Desc)'!B30=\"\",\"\",2029)","v":""},{"$f":"IF('DC Power Distribution (Desc)'!B30=\"\",\"\",'DC Power Distribution (Desc)'!B30)","v":""},{"$f":"IF('DC Power Distribution (Desc)'!D30=\"\",\"\",'DC Power Distribution (Desc)'!D30)","v":""},{"$f":"IF('DC Power Distribution (Desc)'!E30=\"\",\"\",INDEX([1]ELECTRIC_DEV_MANUF!$A$2:$A$1500,MATCH(1,([1]ELECTRIC_DEV_MANUF!$B$2:$B$1500='DC Power Distribution (Desc)'!$E30)*([1]ELECTRIC_DEV_MANUF!$D$2:$D$1500=\"DCPWRDIS\"),0),0))","v":""},{"$f":"IF('DC Power Distribution (Desc)'!F30=\"\",\"\",INDEX([1]ELECTRIC_DEV_MODEL!$A$2:$A$1500,MATCH(1,([1]ELECTRIC_DEV_MODEL!$C$2:$C$1500='DC Power Distribution (Desc)'!$E30)*([1]ELECTRIC_DEV_MODEL!$D$2:$D$1500='DC Power Distribution (Desc)'!$F30)*([1]ELECTRIC_DEV_MODEL!$F$2:$F$1500=\"DCPWRDIS\"),0),0))","v":""},{"$f":"IF('DC Power Distribution (Desc)'!G30=\"\",\"\",'DC Power Distribution (Desc)'!G30)","v":""},{"$f":"IF('DC Power Distribution (Desc)'!H30=\"\",\"\",INDEX([1]YES_NO!$A$2:$A$100,MATCH('DC Power Distribution (Desc)'!$H30,[1]!MASTER_YES_NO_DESC[#Data],0),0))","v":""},{"$f":"IF('DC Power Distribution (Desc)'!I30=\"\",\"\",'DC Power Distribution (Desc)'!I30)","v":""},{"$f":"IF('DC Power Distribution (Desc)'!J30=\"\",\"\",'DC Power Distribution (Desc)'!J30)","v":""},{"$f":"IF('DC Power Distribution (Desc)'!K30=\"\",\"\",INDEX([1]YES_NO!$A$2:$A$100,MATCH('DC Power Distribution (Desc)'!$K30,[1]!MASTER_YES_NO_DESC[#Data],0),0))","v":""},{"$f":"IF('DC Power Distribution (Desc)'!L30=\"\",\"\",INDEX([1]DEV_INPUT_VOLTAGE!$A$2:$A$100,MATCH('DC Power Distribution (Desc)'!$L30,[1]!MASTER_DEV_INPUT_VOLTAGE_DESC[#Data],0),0))","v":""},{"$f":"IF('DC Power Distribution (Desc)'!M30=\"\",\"\",INDEX([1]DEV_OUTPUT_VOLTAGE!$A$2:$A$100,MATCH('DC Power Distribution (Desc)'!$M30,[1]!MASTER_DEV_INPUT_VOLTAGE_DESC[#Data],0),0))","v":""},{"$f":"IF('DC Power Distribution (Desc)'!N30=\"\",\"\",'DC Power Distribution (Desc)'!N30)","v":""},{"$f":"IF('DC Power Distribution (Desc)'!O30=\"\",\"\",'DC Power Distribution (Desc)'!O30)","v":""},{"$f":"IF('DC Power Distribution (Desc)'!P30=\"\",\"\",'DC Power Distribution (Desc)'!P30)","v":""},{"$f":"IF('DC Power Distribution (Desc)'!B30=\"\",\"\",\"NA\")","v":""}]
[{"$f":"IF('DC Power Distribution (Desc)'!B31=\"\",\"\",2029)","v":""},{"$f":"IF('DC Power Distribution (Desc)'!B31=\"\",\"\",'DC Power Distribution (Desc)'!B31)","v":""},{"$f":"IF('DC Power Distribution (Desc)'!D31=\"\",\"\",'DC Power Distribution (Desc)'!D31)","v":""},{"$f":"IF('DC Power Distribution (Desc)'!E31=\"\",\"\",INDEX([1]ELECTRIC_DEV_MANUF!$A$2:$A$1500,MATCH(1,([1]ELECTRIC_DEV_MANUF!$B$2:$B$1500='DC Power Distribution (Desc)'!$E31)*([1]ELECTRIC_DEV_MANUF!$D$2:$D$1500=\"DCPWRDIS\"),0),0))","v":""},{"$f":"IF('DC Power Distribution (Desc)'!F31=\"\",\"\",INDEX([1]ELECTRIC_DEV_MODEL!$A$2:$A$1500,MATCH(1,([1]ELECTRIC_DEV_MODEL!$C$2:$C$1500='DC Power Distribution (Desc)'!$E31)*([1]ELECTRIC_DEV_MODEL!$D$2:$D$1500='DC Power Distribution (Desc)'!$F31)*([1]ELECTRIC_DEV_MODEL!$F$2:$F$1500=\"DCPWRDIS\"),0),0))","v":""},{"$f":"IF('DC Power Distribution (Desc)'!G31=\"\",\"\",'DC Power Distribution (Desc)'!G31)","v":""},{"$f":"IF('DC Power Distribution (Desc)'!H31=\"\",\"\",INDEX([1]YES_NO!$A$2:$A$100,MATCH('DC Power Distribution (Desc)'!$H31,[1]!MASTER_YES_NO_DESC[#Data],0),0))","v":""},{"$f":"IF('DC Power Distribution (Desc)'!I31=\"\",\"\",'DC Power Distribution (Desc)'!I31)","v":""},{"$f":"IF('DC Power Distribution (Desc)'!J31=\"\",\"\",'DC Power Distribution (Desc)'!J31)","v":""},{"$f":"IF('DC Power Distribution (Desc)'!K31=\"\",\"\",INDEX([1]YES_NO!$A$2:$A$100,MATCH('DC Power Distribution (Desc)'!$K31,[1]!MASTER_YES_NO_DESC[#Data],0),0))","v":""},{"$f":"IF('DC Power Distribution (Desc)'!L31=\"\",\"\",INDEX([1]DEV_INPUT_VOLTAGE!$A$2:$A$100,MATCH('DC Power Distribution (Desc)'!$L31,[1]!MASTER_DEV_INPUT_VOLTAGE_DESC[#Data],0),0))","v":""},{"$f":"IF('DC Power Distribution (Desc)'!M31=\"\",\"\",INDEX([1]DEV_OUTPUT_VOLTAGE!$A$2:$A$100,MATCH('DC Power Distribution (Desc)'!$M31,[1]!MASTER_DEV_INPUT_VOLTAGE_DESC[#Data],0),0))","v":""},{"$f":"IF('DC Power Distribution (Desc)'!N31=\"\",\"\",'DC Power Distribution (Desc)'!N31)","v":""},{"$f":"IF('DC Power Distribution (Desc)'!O31=\"\",\"\",'DC Power Distribution (Desc)'!O31)","v":""},{"$f":"IF('DC Power Distribution (Desc)'!P31=\"\",\"\",'DC Power Distribution (Desc)'!P31)","v":""},{"$f":"IF('DC Power Distribution (Desc)'!B31=\"\",\"\",\"NA\")","v":""}]
[{"$f":"IF('DC Power Distribution (Desc)'!B32=\"\",\"\",2029)","v":""},{"$f":"IF('DC Power Distribution (Desc)'!B32=\"\",\"\",'DC Power Distribution (Desc)'!B32)","v":""},{"$f":"IF('DC Power Distribution (Desc)'!D32=\"\",\"\",'DC Power Distribution (Desc)'!D32)","v":""},{"$f":"IF('DC Power Distribution (Desc)'!E32=\"\",\"\",INDEX([1]ELECTRIC_DEV_MANUF!$A$2:$A$1500,MATCH(1,([1]ELECTRIC_DEV_MANUF!$B$2:$B$1500='DC Power Distribution (Desc)'!$E32)*([1]ELECTRIC_DEV_MANUF!$D$2:$D$1500=\"DCPWRDIS\"),0),0))","v":""},{"$f":"IF('DC Power Distribution (Desc)'!F32=\"\",\"\",INDEX([1]ELECTRIC_DEV_MODEL!$A$2:$A$1500,MATCH(1,([1]ELECTRIC_DEV_MODEL!$C$2:$C$1500='DC Power Distribution (Desc)'!$E32)*([1]ELECTRIC_DEV_MODEL!$D$2:$D$1500='DC Power Distribution (Desc)'!$F32)*([1]ELECTRIC_DEV_MODEL!$F$2:$F$1500=\"DCPWRDIS\"),0),0))","v":""},{"$f":"IF('DC Power Distribution (Desc)'!G32=\"\",\"\",'DC Power Distribution (Desc)'!G32)","v":""},{"$f":"IF('DC Power Distribution (Desc)'!H32=\"\",\"\",INDEX([1]YES_NO!$A$2:$A$100,MATCH('DC Power Distribution (Desc)'!$H32,[1]!MASTER_YES_NO_DESC[#Data],0),0))","v":""},{"$f":"IF('DC Power Distribution (Desc)'!I32=\"\",\"\",'DC Power Distribution (Desc)'!I32)","v":""},{"$f":"IF('DC Power Distribution (Desc)'!J32=\"\",\"\",'DC Power Distribution (Desc)'!J32)","v":""},{"$f":"IF('DC Power Distribution (Desc)'!K32=\"\",\"\",INDEX([1]YES_NO!$A$2:$A$100,MATCH('DC Power Distribution (Desc)'!$K32,[1]!MASTER_YES_NO_DESC[#Data],0),0))","v":""},{"$f":"IF('DC Power Distribution (Desc)'!L32=\"\",\"\",INDEX([1]DEV_INPUT_VOLTAGE!$A$2:$A$100,MATCH('DC Power Distribution (Desc)'!$L32,[1]!MASTER_DEV_INPUT_VOLTAGE_DESC[#Data],0),0))","v":""},{"$f":"IF('DC Power Distribution (Desc)'!M32=\"\",\"\",INDEX([1]DEV_OUTPUT_VOLTAGE!$A$2:$A$100,MATCH('DC Power Distribution (Desc)'!$M32,[1]!MASTER_DEV_INPUT_VOLTAGE_DESC[#Data],0),0))","v":""},{"$f":"IF('DC Power Distribution (Desc)'!N32=\"\",\"\",'DC Power Distribution (Desc)'!N32)","v":""},{"$f":"IF('DC Power Distribution (Desc)'!O32=\"\",\"\",'DC Power Distribution (Desc)'!O32)","v":""},{"$f":"IF('DC Power Distribution (Desc)'!P32=\"\",\"\",'DC Power Distribution (Desc)'!P32)","v":""},{"$f":"IF('DC Power Distribution (Desc)'!B32=\"\",\"\",\"NA\")","v":""}]
[{"$f":"IF('DC Power Distribution (Desc)'!B33=\"\",\"\",2029)","v":""},{"$f":"IF('DC Power Distribution (Desc)'!B33=\"\",\"\",'DC Power Distribution (Desc)'!B33)","v":""},{"$f":"IF('DC Power Distribution (Desc)'!D33=\"\",\"\",'DC Power Distribution (Desc)'!D33)","v":""},{"$f":"IF('DC Power Distribution (Desc)'!E33=\"\",\"\",INDEX([1]ELECTRIC_DEV_MANUF!$A$2:$A$1500,MATCH(1,([1]ELECTRIC_DEV_MANUF!$B$2:$B$1500='DC Power Distribution (Desc)'!$E33)*([1]ELECTRIC_DEV_MANUF!$D$2:$D$1500=\"DCPWRDIS\"),0),0))","v":""},{"$f":"IF('DC Power Distribution (Desc)'!F33=\"\",\"\",INDEX([1]ELECTRIC_DEV_MODEL!$A$2:$A$1500,MATCH(1,([1]ELECTRIC_DEV_MODEL!$C$2:$C$1500='DC Power Distribution (Desc)'!$E33)*([1]ELECTRIC_DEV_MODEL!$D$2:$D$1500='DC Power Distribution (Desc)'!$F33)*([1]ELECTRIC_DEV_MODEL!$F$2:$F$1500=\"DCPWRDIS\"),0),0))","v":""},{"$f":"IF('DC Power Distribution (Desc)'!G33=\"\",\"\",'DC Power Distribution (Desc)'!G33)","v":""},{"$f":"IF('DC Power Distribution (Desc)'!H33=\"\",\"\",INDEX([1]YES_NO!$A$2:$A$100,MATCH('DC Power Distribution (Desc)'!$H33,[1]!MASTER_YES_NO_DESC[#Data],0),0))","v":""},{"$f":"IF('DC Power Distribution (Desc)'!I33=\"\",\"\",'DC Power Distribution (Desc)'!I33)","v":""},{"$f":"IF('DC Power Distribution (Desc)'!J33=\"\",\"\",'DC Power Distribution (Desc)'!J33)","v":""},{"$f":"IF('DC Power Distribution (Desc)'!K33=\"\",\"\",INDEX([1]YES_NO!$A$2:$A$100,MATCH('DC Power Distribution (Desc)'!$K33,[1]!MASTER_YES_NO_DESC[#Data],0),0))","v":""},{"$f":"IF('DC Power Distribution (Desc)'!L33=\"\",\"\",INDEX([1]DEV_INPUT_VOLTAGE!$A$2:$A$100,MATCH('DC Power Distribution (Desc)'!$L33,[1]!MASTER_DEV_INPUT_VOLTAGE_DESC[#Data],0),0))","v":""},{"$f":"IF('DC Power Distribution (Desc)'!M33=\"\",\"\",INDEX([1]DEV_OUTPUT_VOLTAGE!$A$2:$A$100,MATCH('DC Power Distribution (Desc)'!$M33,[1]!MASTER_DEV_INPUT_VOLTAGE_DESC[#Data],0),0))","v":""},{"$f":"IF('DC Power Distribution (Desc)'!N33=\"\",\"\",'DC Power Distribution (Desc)'!N33)","v":""},{"$f":"IF('DC Power Distribution (Desc)'!O33=\"\",\"\",'DC Power Distribution (Desc)'!O33)","v":""},{"$f":"IF('DC Power Distribution (Desc)'!P33=\"\",\"\",'DC Power Distribution (Desc)'!P33)","v":""},{"$f":"IF('DC Power Distribution (Desc)'!B33=\"\",\"\",\"NA\")","v":""}]
[{"$f":"IF('DC Power Distribution (Desc)'!B34=\"\",\"\",2029)","v":""},{"$f":"IF('DC Power Distribution (Desc)'!B34=\"\",\"\",'DC Power Distribution (Desc)'!B34)","v":""},{"$f":"IF('DC Power Distribution (Desc)'!D34=\"\",\"\",'DC Power Distribution (Desc)'!D34)","v":""},{"$f":"IF('DC Power Distribution (Desc)'!E34=\"\",\"\",INDEX([1]ELECTRIC_DEV_MANUF!$A$2:$A$1500,MATCH(1,([1]ELECTRIC_DEV_MANUF!$B$2:$B$1500='DC Power Distribution (Desc)'!$E34)*([1]ELECTRIC_DEV_MANUF!$D$2:$D$1500=\"DCPWRDIS\"),0),0))","v":""},{"$f":"IF('DC Power Distribution (Desc)'!F34=\"\",\"\",INDEX([1]ELECTRIC_DEV_MODEL!$A$2:$A$1500,MATCH(1,([1]ELECTRIC_DEV_MODEL!$C$2:$C$1500='DC Power Distribution (Desc)'!$E34)*([1]ELECTRIC_DEV_MODEL!$D$2:$D$1500='DC Power Distribution (Desc)'!$F34)*([1]ELECTRIC_DEV_MODEL!$F$2:$F$1500=\"DCPWRDIS\"),0),0))","v":""},{"$f":"IF('DC Power Distribution (Desc)'!G34=\"\",\"\",'DC Power Distribution (Desc)'!G34)","v":""},{"$f":"IF('DC Power Distribution (Desc)'!H34=\"\",\"\",INDEX([1]YES_NO!$A$2:$A$100,MATCH('DC Power Distribution (Desc)'!$H34,[1]!MASTER_YES_NO_DESC[#Data],0),0))","v":""},{"$f":"IF('DC Power Distribution (Desc)'!I34=\"\",\"\",'DC Power Distribution (Desc)'!I34)","v":""},{"$f":"IF('DC Power Distribution (Desc)'!J34=\"\",\"\",'DC Power Distribution (Desc)'!J34)","v":""},{"$f":"IF('DC Power Distribution (Desc)'!K34=\"\",\"\",INDEX([1]YES_NO!$A$2:$A$100,MATCH('DC Power Distribution (Desc)'!$K34,[1]!MASTER_YES_NO_DESC[#Data],0),0))","v":""},{"$f":"IF('DC Power Distribution (Desc)'!L34=\"\",\"\",INDEX([1]DEV_INPUT_VOLTAGE!$A$2:$A$100,MATCH('DC Power Distribution (Desc)'!$L34,[1]!MASTER_DEV_INPUT_VOLTAGE_DESC[#Data],0),0))","v":""},{"$f":"IF('DC Power Distribution (Desc)'!M34=\"\",\"\",INDEX([1]DEV_OUTPUT_VOLTAGE!$A$2:$A$100,MATCH('DC Power Distribution (Desc)'!$M34,[1]!MASTER_DEV_INPUT_VOLTAGE_DESC[#Data],0),0))","v":""},{"$f":"IF('DC Power Distribution (Desc)'!N34=\"\",\"\",'DC Power Distribution (Desc)'!N34)","v":""},{"$f":"IF('DC Power Distribution (Desc)'!O34=\"\",\"\",'DC Power Distribution (Desc)'!O34)","v":""},{"$f":"IF('DC Power Distribution (Desc)'!P34=\"\",\"\",'DC Power Distribution (Desc)'!P34)","v":""},{"$f":"IF('DC Power Distribution (Desc)'!B34=\"\",\"\",\"NA\")","v":""}]
[{"$f":"IF('DC Power Distribution (Desc)'!B35=\"\",\"\",2029)","v":""},{"$f":"IF('DC Power Distribution (Desc)'!B35=\"\",\"\",'DC Power Distribution (Desc)'!B35)","v":""},{"$f":"IF('DC Power Distribution (Desc)'!D35=\"\",\"\",'DC Power Distribution (Desc)'!D35)","v":""},{"$f":"IF('DC Power Distribution (Desc)'!E35=\"\",\"\",INDEX([1]ELECTRIC_DEV_MANUF!$A$2:$A$1500,MATCH(1,([1]ELECTRIC_DEV_MANUF!$B$2:$B$1500='DC Power Distribution (Desc)'!$E35)*([1]ELECTRIC_DEV_MANUF!$D$2:$D$1500=\"DCPWRDIS\"),0),0))","v":""},{"$f":"IF('DC Power Distribution (Desc)'!F35=\"\",\"\",INDEX([1]ELECTRIC_DEV_MODEL!$A$2:$A$1500,MATCH(1,([1]ELECTRIC_DEV_MODEL!$C$2:$C$1500='DC Power Distribution (Desc)'!$E35)*([1]ELECTRIC_DEV_MODEL!$D$2:$D$1500='DC Power Distribution (Desc)'!$F35)*([1]ELECTRIC_DEV_MODEL!$F$2:$F$1500=\"DCPWRDIS\"),0),0))","v":""},{"$f":"IF('DC Power Distribution (Desc)'!G35=\"\",\"\",'DC Power Distribution (Desc)'!G35)","v":""},{"$f":"IF('DC Power Distribution (Desc)'!H35=\"\",\"\",INDEX([1]YES_NO!$A$2:$A$100,MATCH('DC Power Distribution (Desc)'!$H35,[1]!MASTER_YES_NO_DESC[#Data],0),0))","v":""},{"$f":"IF('DC Power Distribution (Desc)'!I35=\"\",\"\",'DC Power Distribution (Desc)'!I35)","v":""},{"$f":"IF('DC Power Distribution (Desc)'!J35=\"\",\"\",'DC Power Distribution (Desc)'!J35)","v":""},{"$f":"IF('DC Power Distribution (Desc)'!K35=\"\",\"\",INDEX([1]YES_NO!$A$2:$A$100,MATCH('DC Power Distribution (Desc)'!$K35,[1]!MASTER_YES_NO_DESC[#Data],0),0))","v":""},{"$f":"IF('DC Power Distribution (Desc)'!L35=\"\",\"\",INDEX([1]DEV_INPUT_VOLTAGE!$A$2:$A$100,MATCH('DC Power Distribution (Desc)'!$L35,[1]!MASTER_DEV_INPUT_VOLTAGE_DESC[#Data],0),0))","v":""},{"$f":"IF('DC Power Distribution (Desc)'!M35=\"\",\"\",INDEX([1]DEV_OUTPUT_VOLTAGE!$A$2:$A$100,MATCH('DC Power Distribution (Desc)'!$M35,[1]!MASTER_DEV_INPUT_VOLTAGE_DESC[#Data],0),0))","v":""},{"$f":"IF('DC Power Distribution (Desc)'!N35=\"\",\"\",'DC Power Distribution (Desc)'!N35)","v":""},{"$f":"IF('DC Power Distribution (Desc)'!O35=\"\",\"\",'DC Power Distribution (Desc)'!O35)","v":""},{"$f":"IF('DC Power Distribution (Desc)'!P35=\"\",\"\",'DC Power Distribution (Desc)'!P35)","v":""},{"$f":"IF('DC Power Distribution (Desc)'!B35=\"\",\"\",\"NA\")","v":""}]
[{"$f":"IF('DC Power Distribution (Desc)'!B36=\"\",\"\",2029)","v":""},{"$f":"IF('DC Power Distribution (Desc)'!B36=\"\",\"\",'DC Power Distribution (Desc)'!B36)","v":""},{"$f":"IF('DC Power Distribution (Desc)'!D36=\"\",\"\",'DC Power Distribution (Desc)'!D36)","v":""},{"$f":"IF('DC Power Distribution (Desc)'!E36=\"\",\"\",INDEX([1]ELECTRIC_DEV_MANUF!$A$2:$A$1500,MATCH(1,([1]ELECTRIC_DEV_MANUF!$B$2:$B$1500='DC Power Distribution (Desc)'!$E36)*([1]ELECTRIC_DEV_MANUF!$D$2:$D$1500=\"DCPWRDIS\"),0),0))","v":""},{"$f":"IF('DC Power Distribution (Desc)'!F36=\"\",\"\",INDEX([1]ELECTRIC_DEV_MODEL!$A$2:$A$1500,MATCH(1,([1]ELECTRIC_DEV_MODEL!$C$2:$C$1500='DC Power Distribution (Desc)'!$E36)*([1]ELECTRIC_DEV_MODEL!$D$2:$D$1500='DC Power Distribution (Desc)'!$F36)*([1]ELECTRIC_DEV_MODEL!$F$2:$F$1500=\"DCPWRDIS\"),0),0))","v":""},{"$f":"IF('DC Power Distribution (Desc)'!G36=\"\",\"\",'DC Power Distribution (Desc)'!G36)","v":""},{"$f":"IF('DC Power Distribution (Desc)'!H36=\"\",\"\",INDEX([1]YES_NO!$A$2:$A$100,MATCH('DC Power Distribution (Desc)'!$H36,[1]!MASTER_YES_NO_DESC[#Data],0),0))","v":""},{"$f":"IF('DC Power Distribution (Desc)'!I36=\"\",\"\",'DC Power Distribution (Desc)'!I36)","v":""},{"$f":"IF('DC Power Distribution (Desc)'!J36=\"\",\"\",'DC Power Distribution (Desc)'!J36)","v":""},{"$f":"IF('DC Power Distribution (Desc)'!K36=\"\",\"\",INDEX([1]YES_NO!$A$2:$A$100,MATCH('DC Power Distribution (Desc)'!$K36,[1]!MASTER_YES_NO_DESC[#Data],0),0))","v":""},{"$f":"IF('DC Power Distribution (Desc)'!L36=\"\",\"\",INDEX([1]DEV_INPUT_VOLTAGE!$A$2:$A$100,MATCH('DC Power Distribution (Desc)'!$L36,[1]!MASTER_DEV_INPUT_VOLTAGE_DESC[#Data],0),0))","v":""},{"$f":"IF('DC Power Distribution (Desc)'!M36=\"\",\"\",INDEX([1]DEV_OUTPUT_VOLTAGE!$A$2:$A$100,MATCH('DC Power Distribution (Desc)'!$M36,[1]!MASTER_DEV_INPUT_VOLTAGE_DESC[#Data],0),0))","v":""},{"$f":"IF('DC Power Distribution (Desc)'!N36=\"\",\"\",'DC Power Distribution (Desc)'!N36)","v":""},{"$f":"IF('DC Power Distribution (Desc)'!O36=\"\",\"\",'DC Power Distribution (Desc)'!O36)","v":""},{"$f":"IF('DC Power Distribution (Desc)'!P36=\"\",\"\",'DC Power Distribution (Desc)'!P36)","v":""},{"$f":"IF('DC Power Distribution (Desc)'!B36=\"\",\"\",\"NA\")","v":""}]
[{"$f":"IF('DC Power Distribution (Desc)'!B37=\"\",\"\",2029)","v":""},{"$f":"IF('DC Power Distribution (Desc)'!B37=\"\",\"\",'DC Power Distribution (Desc)'!B37)","v":""},{"$f":"IF('DC Power Distribution (Desc)'!D37=\"\",\"\",'DC Power Distribution (Desc)'!D37)","v":""},{"$f":"IF('DC Power Distribution (Desc)'!E37=\"\",\"\",INDEX([1]ELECTRIC_DEV_MANUF!$A$2:$A$1500,MATCH(1,([1]ELECTRIC_DEV_MANUF!$B$2:$B$1500='DC Power Distribution (Desc)'!$E37)*([1]ELECTRIC_DEV_MANUF!$D$2:$D$1500=\"DCPWRDIS\"),0),0))","v":""},{"$f":"IF('DC Power Distribution (Desc)'!F37=\"\",\"\",INDEX([1]ELECTRIC_DEV_MODEL!$A$2:$A$1500,MATCH(1,([1]ELECTRIC_DEV_MODEL!$C$2:$C$1500='DC Power Distribution (Desc)'!$E37)*([1]ELECTRIC_DEV_MODEL!$D$2:$D$1500='DC Power Distribution (Desc)'!$F37)*([1]ELECTRIC_DEV_MODEL!$F$2:$F$1500=\"DCPWRDIS\"),0),0))","v":""},{"$f":"IF('DC Power Distribution (Desc)'!G37=\"\",\"\",'DC Power Distribution (Desc)'!G37)","v":""},{"$f":"IF('DC Power Distribution (Desc)'!H37=\"\",\"\",INDEX([1]YES_NO!$A$2:$A$100,MATCH('DC Power Distribution (Desc)'!$H37,[1]!MASTER_YES_NO_DESC[#Data],0),0))","v":""},{"$f":"IF('DC Power Distribution (Desc)'!I37=\"\",\"\",'DC Power Distribution (Desc)'!I37)","v":""},{"$f":"IF('DC Power Distribution (Desc)'!J37=\"\",\"\",'DC Power Distribution (Desc)'!J37)","v":""},{"$f":"IF('DC Power Distribution (Desc)'!K37=\"\",\"\",INDEX([1]YES_NO!$A$2:$A$100,MATCH('DC Power Distribution (Desc)'!$K37,[1]!MASTER_YES_NO_DESC[#Data],0),0))","v":""},{"$f":"IF('DC Power Distribution (Desc)'!L37=\"\",\"\",INDEX([1]DEV_INPUT_VOLTAGE!$A$2:$A$100,MATCH('DC Power Distribution (Desc)'!$L37,[1]!MASTER_DEV_INPUT_VOLTAGE_DESC[#Data],0),0))","v":""},{"$f":"IF('DC Power Distribution (Desc)'!M37=\"\",\"\",INDEX([1]DEV_OUTPUT_VOLTAGE!$A$2:$A$100,MATCH('DC Power Distribution (Desc)'!$M37,[1]!MASTER_DEV_INPUT_VOLTAGE_DESC[#Data],0),0))","v":""},{"$f":"IF('DC Power Distribution (Desc)'!N37=\"\",\"\",'DC Power Distribution (Desc)'!N37)","v":""},{"$f":"IF('DC Power Distribution (Desc)'!O37=\"\",\"\",'DC Power Distribution (Desc)'!O37)","v":""},{"$f":"IF('DC Power Distribution (Desc)'!P37=\"\",\"\",'DC Power Distribution (Desc)'!P37)","v":""},{"$f":"IF('DC Power Distribution (Desc)'!B37=\"\",\"\",\"NA\")","v":""}]
[{"$f":"IF('DC Power Distribution (Desc)'!B38=\"\",\"\",2029)","v":""},{"$f":"IF('DC Power Distribution (Desc)'!B38=\"\",\"\",'DC Power Distribution (Desc)'!B38)","v":""},{"$f":"IF('DC Power Distribution (Desc)'!D38=\"\",\"\",'DC Power Distribution (Desc)'!D38)","v":""},{"$f":"IF('DC Power Distribution (Desc)'!E38=\"\",\"\",INDEX([1]ELECTRIC_DEV_MANUF!$A$2:$A$1500,MATCH(1,([1]ELECTRIC_DEV_MANUF!$B$2:$B$1500='DC Power Distribution (Desc)'!$E38)*([1]ELECTRIC_DEV_MANUF!$D$2:$D$1500=\"DCPWRDIS\"),0),0))","v":""},{"$f":"IF('DC Power Distribution (Desc)'!F38=\"\",\"\",INDEX([1]ELECTRIC_DEV_MODEL!$A$2:$A$1500,MATCH(1,([1]ELECTRIC_DEV_MODEL!$C$2:$C$1500='DC Power Distribution (Desc)'!$E38)*([1]ELECTRIC_DEV_MODEL!$D$2:$D$1500='DC Power Distribution (Desc)'!$F38)*([1]ELECTRIC_DEV_MODEL!$F$2:$F$1500=\"DCPWRDIS\"),0),0))","v":""},{"$f":"IF('DC Power Distribution (Desc)'!G38=\"\",\"\",'DC Power Distribution (Desc)'!G38)","v":""},{"$f":"IF('DC Power Distribution (Desc)'!H38=\"\",\"\",INDEX([1]YES_NO!$A$2:$A$100,MATCH('DC Power Distribution (Desc)'!$H38,[1]!MASTER_YES_NO_DESC[#Data],0),0))","v":""},{"$f":"IF('DC Power Distribution (Desc)'!I38=\"\",\"\",'DC Power Distribution (Desc)'!I38)","v":""},{"$f":"IF('DC Power Distribution (Desc)'!J38=\"\",\"\",'DC Power Distribution (Desc)'!J38)","v":""},{"$f":"IF('DC Power Distribution (Desc)'!K38=\"\",\"\",INDEX([1]YES_NO!$A$2:$A$100,MATCH('DC Power Distribution (Desc)'!$K38,[1]!MASTER_YES_NO_DESC[#Data],0),0))","v":""},{"$f":"IF('DC Power Distribution (Desc)'!L38=\"\",\"\",INDEX([1]DEV_INPUT_VOLTAGE!$A$2:$A$100,MATCH('DC Power Distribution (Desc)'!$L38,[1]!MASTER_DEV_INPUT_VOLTAGE_DESC[#Data],0),0))","v":""},{"$f":"IF('DC Power Distribution (Desc)'!M38=\"\",\"\",INDEX([1]DEV_OUTPUT_VOLTAGE!$A$2:$A$100,MATCH('DC Power Distribution (Desc)'!$M38,[1]!MASTER_DEV_INPUT_VOLTAGE_DESC[#Data],0),0))","v":""},{"$f":"IF('DC Power Distribution (Desc)'!N38=\"\",\"\",'DC Power Distribution (Desc)'!N38)","v":""},{"$f":"IF('DC Power Distribution (Desc)'!O38=\"\",\"\",'DC Power Distribution (Desc)'!O38)","v":""},{"$f":"IF('DC Power Distribution (Desc)'!P38=\"\",\"\",'DC Power Distribution (Desc)'!P38)","v":""},{"$f":"IF('DC Power Distribution (Desc)'!B38=\"\",\"\",\"NA\")","v":""}]
[{"$f":"IF('DC Power Distribution (Desc)'!B39=\"\",\"\",2029)","v":""},{"$f":"IF('DC Power Distribution (Desc)'!B39=\"\",\"\",'DC Power Distribution (Desc)'!B39)","v":""},{"$f":"IF('DC Power Distribution (Desc)'!D39=\"\",\"\",'DC Power Distribution (Desc)'!D39)","v":""},{"$f":"IF('DC Power Distribution (Desc)'!E39=\"\",\"\",INDEX([1]ELECTRIC_DEV_MANUF!$A$2:$A$1500,MATCH(1,([1]ELECTRIC_DEV_MANUF!$B$2:$B$1500='DC Power Distribution (Desc)'!$E39)*([1]ELECTRIC_DEV_MANUF!$D$2:$D$1500=\"DCPWRDIS\"),0),0))","v":""},{"$f":"IF('DC Power Distribution (Desc)'!F39=\"\",\"\",INDEX([1]ELECTRIC_DEV_MODEL!$A$2:$A$1500,MATCH(1,([1]ELECTRIC_DEV_MODEL!$C$2:$C$1500='DC Power Distribution (Desc)'!$E39)*([1]ELECTRIC_DEV_MODEL!$D$2:$D$1500='DC Power Distribution (Desc)'!$F39)*([1]ELECTRIC_DEV_MODEL!$F$2:$F$1500=\"DCPWRDIS\"),0),0))","v":""},{"$f":"IF('DC Power Distribution (Desc)'!G39=\"\",\"\",'DC Power Distribution (Desc)'!G39)","v":""},{"$f":"IF('DC Power Distribution (Desc)'!H39=\"\",\"\",INDEX([1]YES_NO!$A$2:$A$100,MATCH('DC Power Distribution (Desc)'!$H39,[1]!MASTER_YES_NO_DESC[#Data],0),0))","v":""},{"$f":"IF('DC Power Distribution (Desc)'!I39=\"\",\"\",'DC Power Distribution (Desc)'!I39)","v":""},{"$f":"IF('DC Power Distribution (Desc)'!J39=\"\",\"\",'DC Power Distribution (Desc)'!J39)","v":""},{"$f":"IF('DC Power Distribution (Desc)'!K39=\"\",\"\",INDEX([1]YES_NO!$A$2:$A$100,MATCH('DC Power Distribution (Desc)'!$K39,[1]!MASTER_YES_NO_DESC[#Data],0),0))","v":""},{"$f":"IF('DC Power Distribution (Desc)'!L39=\"\",\"\",INDEX([1]DEV_INPUT_VOLTAGE!$A$2:$A$100,MATCH('DC Power Distribution (Desc)'!$L39,[1]!MASTER_DEV_INPUT_VOLTAGE_DESC[#Data],0),0))","v":""},{"$f":"IF('DC Power Distribution (Desc)'!M39=\"\",\"\",INDEX([1]DEV_OUTPUT_VOLTAGE!$A$2:$A$100,MATCH('DC Power Distribution (Desc)'!$M39,[1]!MASTER_DEV_INPUT_VOLTAGE_DESC[#Data],0),0))","v":""},{"$f":"IF('DC Power Distribution (Desc)'!N39=\"\",\"\",'DC Power Distribution (Desc)'!N39)","v":""},{"$f":"IF('DC Power Distribution (Desc)'!O39=\"\",\"\",'DC Power Distribution (Desc)'!O39)","v":""},{"$f":"IF('DC Power Distribution (Desc)'!P39=\"\",\"\",'DC Power Distribution (Desc)'!P39)","v":""},{"$f":"IF('DC Power Distribution (Desc)'!B39=\"\",\"\",\"NA\")","v":""}]
[{"$f":"IF('DC Power Distribution (Desc)'!B40=\"\",\"\",2029)","v":""},{"$f":"IF('DC Power Distribution (Desc)'!B40=\"\",\"\",'DC Power Distribution (Desc)'!B40)","v":""},{"$f":"IF('DC Power Distribution (Desc)'!D40=\"\",\"\",'DC Power Distribution (Desc)'!D40)","v":""},{"$f":"IF('DC Power Distribution (Desc)'!E40=\"\",\"\",INDEX([1]ELECTRIC_DEV_MANUF!$A$2:$A$1500,MATCH(1,([1]ELECTRIC_DEV_MANUF!$B$2:$B$1500='DC Power Distribution (Desc)'!$E40)*([1]ELECTRIC_DEV_MANUF!$D$2:$D$1500=\"DCPWRDIS\"),0),0))","v":""},{"$f":"IF('DC Power Distribution (Desc)'!F40=\"\",\"\",INDEX([1]ELECTRIC_DEV_MODEL!$A$2:$A$1500,MATCH(1,([1]ELECTRIC_DEV_MODEL!$C$2:$C$1500='DC Power Distribution (Desc)'!$E40)*([1]ELECTRIC_DEV_MODEL!$D$2:$D$1500='DC Power Distribution (Desc)'!$F40)*([1]ELECTRIC_DEV_MODEL!$F$2:$F$1500=\"DCPWRDIS\"),0),0))","v":""},{"$f":"IF('DC Power Distribution (Desc)'!G40=\"\",\"\",'DC Power Distribution (Desc)'!G40)","v":""},{"$f":"IF('DC Power Distribution (Desc)'!H40=\"\",\"\",INDEX([1]YES_NO!$A$2:$A$100,MATCH('DC Power Distribution (Desc)'!$H40,[1]!MASTER_YES_NO_DESC[#Data],0),0))","v":""},{"$f":"IF('DC Power Distribution (Desc)'!I40=\"\",\"\",'DC Power Distribution (Desc)'!I40)","v":""},{"$f":"IF('DC Power Distribution (Desc)'!J40=\"\",\"\",'DC Power Distribution (Desc)'!J40)","v":""},{"$f":"IF('DC Power Distribution (Desc)'!K40=\"\",\"\",INDEX([1]YES_NO!$A$2:$A$100,MATCH('DC Power Distribution (Desc)'!$K40,[1]!MASTER_YES_NO_DESC[#Data],0),0))","v":""},{"$f":"IF('DC Power Distribution (Desc)'!L40=\"\",\"\",INDEX([1]DEV_INPUT_VOLTAGE!$A$2:$A$100,MATCH('DC Power Distribution (Desc)'!$L40,[1]!MASTER_DEV_INPUT_VOLTAGE_DESC[#Data],0),0))","v":""},{"$f":"IF('DC Power Distribution (Desc)'!M40=\"\",\"\",INDEX([1]DEV_OUTPUT_VOLTAGE!$A$2:$A$100,MATCH('DC Power Distribution (Desc)'!$M40,[1]!MASTER_DEV_INPUT_VOLTAGE_DESC[#Data],0),0))","v":""},{"$f":"IF('DC Power Distribution (Desc)'!N40=\"\",\"\",'DC Power Distribution (Desc)'!N40)","v":""},{"$f":"IF('DC Power Distribution (Desc)'!O40=\"\",\"\",'DC Power Distribution (Desc)'!O40)","v":""},{"$f":"IF('DC Power Distribution (Desc)'!P40=\"\",\"\",'DC Power Distribution (Desc)'!P40)","v":""},{"$f":"IF('DC Power Distribution (Desc)'!B40=\"\",\"\",\"NA\")","v":""}]
[{"$f":"IF('DC Power Distribution (Desc)'!B41=\"\",\"\",2029)","v":""},{"$f":"IF('DC Power Distribution (Desc)'!B41=\"\",\"\",'DC Power Distribution (Desc)'!B41)","v":""},{"$f":"IF('DC Power Distribution (Desc)'!D41=\"\",\"\",'DC Power Distribution (Desc)'!D41)","v":""},{"$f":"IF('DC Power Distribution (Desc)'!E41=\"\",\"\",INDEX([1]ELECTRIC_DEV_MANUF!$A$2:$A$1500,MATCH(1,([1]ELECTRIC_DEV_MANUF!$B$2:$B$1500='DC Power Distribution (Desc)'!$E41)*([1]ELECTRIC_DEV_MANUF!$D$2:$D$1500=\"DCPWRDIS\"),0),0))","v":""},{"$f":"IF('DC Power Distribution (Desc)'!F41=\"\",\"\",INDEX([1]ELECTRIC_DEV_MODEL!$A$2:$A$1500,MATCH(1,([1]ELECTRIC_DEV_MODEL!$C$2:$C$1500='DC Power Distribution (Desc)'!$E41)*([1]ELECTRIC_DEV_MODEL!$D$2:$D$1500='DC Power Distribution (Desc)'!$F41)*([1]ELECTRIC_DEV_MODEL!$F$2:$F$1500=\"DCPWRDIS\"),0),0))","v":""},{"$f":"IF('DC Power Distribution (Desc)'!G41=\"\",\"\",'DC Power Distribution (Desc)'!G41)","v":""},{"$f":"IF('DC Power Distribution (Desc)'!H41=\"\",\"\",INDEX([1]YES_NO!$A$2:$A$100,MATCH('DC Power Distribution (Desc)'!$H41,[1]!MASTER_YES_NO_DESC[#Data],0),0))","v":""},{"$f":"IF('DC Power Distribution (Desc)'!I41=\"\",\"\",'DC Power Distribution (Desc)'!I41)","v":""},{"$f":"IF('DC Power Distribution (Desc)'!J41=\"\",\"\",'DC Power Distribution (Desc)'!J41)","v":""},{"$f":"IF('DC Power Distribution (Desc)'!K41=\"\",\"\",INDEX([1]YES_NO!$A$2:$A$100,MATCH('DC Power Distribution (Desc)'!$K41,[1]!MASTER_YES_NO_DESC[#Data],0),0))","v":""},{"$f":"IF('DC Power Distribution (Desc)'!L41=\"\",\"\",INDEX([1]DEV_INPUT_VOLTAGE!$A$2:$A$100,MATCH('DC Power Distribution (Desc)'!$L41,[1]!MASTER_DEV_INPUT_VOLTAGE_DESC[#Data],0),0))","v":""},{"$f":"IF('DC Power Distribution (Desc)'!M41=\"\",\"\",INDEX([1]DEV_OUTPUT_VOLTAGE!$A$2:$A$100,MATCH('DC Power Distribution (Desc)'!$M41,[1]!MASTER_DEV_INPUT_VOLTAGE_DESC[#Data],0),0))","v":""},{"$f":"IF('DC Power Distribution (Desc)'!N41=\"\",\"\",'DC Power Distribution (Desc)'!N41)","v":""},{"$f":"IF('DC Power Distribution (Desc)'!O41=\"\",\"\",'DC Power Distribution (Desc)'!O41)","v":""},{"$f":"IF('DC Power Distribution (Desc)'!P41=\"\",\"\",'DC Power Distribution (Desc)'!P41)","v":""},{"$f":"IF('DC Power Distribution (Desc)'!B41=\"\",\"\",\"NA\")","v":""}]
[{"$f":"IF('DC Power Distribution (Desc)'!B42=\"\",\"\",2029)","v":""},{"$f":"IF('DC Power Distribution (Desc)'!B42=\"\",\"\",'DC Power Distribution (Desc)'!B42)","v":""},{"$f":"IF('DC Power Distribution (Desc)'!D42=\"\",\"\",'DC Power Distribution (Desc)'!D42)","v":""},{"$f":"IF('DC Power Distribution (Desc)'!E42=\"\",\"\",INDEX([1]ELECTRIC_DEV_MANUF!$A$2:$A$1500,MATCH(1,([1]ELECTRIC_DEV_MANUF!$B$2:$B$1500='DC Power Distribution (Desc)'!$E42)*([1]ELECTRIC_DEV_MANUF!$D$2:$D$1500=\"DCPWRDIS\"),0),0))","v":""},{"$f":"IF('DC Power Distribution (Desc)'!F42=\"\",\"\",INDEX([1]ELECTRIC_DEV_MODEL!$A$2:$A$1500,MATCH(1,([1]ELECTRIC_DEV_MODEL!$C$2:$C$1500='DC Power Distribution (Desc)'!$E42)*([1]ELECTRIC_DEV_MODEL!$D$2:$D$1500='DC Power Distribution (Desc)'!$F42)*([1]ELECTRIC_DEV_MODEL!$F$2:$F$1500=\"DCPWRDIS\"),0),0))","v":""},{"$f":"IF('DC Power Distribution (Desc)'!G42=\"\",\"\",'DC Power Distribution (Desc)'!G42)","v":""},{"$f":"IF('DC Power Distribution (Desc)'!H42=\"\",\"\",INDEX([1]YES_NO!$A$2:$A$100,MATCH('DC Power Distribution (Desc)'!$H42,[1]!MASTER_YES_NO_DESC[#Data],0),0))","v":""},{"$f":"IF('DC Power Distribution (Desc)'!I42=\"\",\"\",'DC Power Distribution (Desc)'!I42)","v":""},{"$f":"IF('DC Power Distribution (Desc)'!J42=\"\",\"\",'DC Power Distribution (Desc)'!J42)","v":""},{"$f":"IF('DC Power Distribution (Desc)'!K42=\"\",\"\",INDEX([1]YES_NO!$A$2:$A$100,MATCH('DC Power Distribution (Desc)'!$K42,[1]!MASTER_YES_NO_DESC[#Data],0),0))","v":""},{"$f":"IF('DC Power Distribution (Desc)'!L42=\"\",\"\",INDEX([1]DEV_INPUT_VOLTAGE!$A$2:$A$100,MATCH('DC Power Distribution (Desc)'!$L42,[1]!MASTER_DEV_INPUT_VOLTAGE_DESC[#Data],0),0))","v":""},{"$f":"IF('DC Power Distribution (Desc)'!M42=\"\",\"\",INDEX([1]DEV_OUTPUT_VOLTAGE!$A$2:$A$100,MATCH('DC Power Distribution (Desc)'!$M42,[1]!MASTER_DEV_INPUT_VOLTAGE_DESC[#Data],0),0))","v":""},{"$f":"IF('DC Power Distribution (Desc)'!N42=\"\",\"\",'DC Power Distribution (Desc)'!N42)","v":""},{"$f":"IF('DC Power Distribution (Desc)'!O42=\"\",\"\",'DC Power Distribution (Desc)'!O42)","v":""},{"$f":"IF('DC Power Distribution (Desc)'!P42=\"\",\"\",'DC Power Distribution (Desc)'!P42)","v":""},{"$f":"IF('DC Power Distribution (Desc)'!B42=\"\",\"\",\"NA\")","v":""}]
[{"$f":"IF('DC Power Distribution (Desc)'!B43=\"\",\"\",2029)","v":""},{"$f":"IF('DC Power Distribution (Desc)'!B43=\"\",\"\",'DC Power Distribution (Desc)'!B43)","v":""},{"$f":"IF('DC Power Distribution (Desc)'!D43=\"\",\"\",'DC Power Distribution (Desc)'!D43)","v":""},{"$f":"IF('DC Power Distribution (Desc)'!E43=\"\",\"\",INDEX([1]ELECTRIC_DEV_MANUF!$A$2:$A$1500,MATCH(1,([1]ELECTRIC_DEV_MANUF!$B$2:$B$1500='DC Power Distribution (Desc)'!$E43)*([1]ELECTRIC_DEV_MANUF!$D$2:$D$1500=\"DCPWRDIS\"),0),0))","v":""},{"$f":"IF('DC Power Distribution (Desc)'!F43=\"\",\"\",INDEX([1]ELECTRIC_DEV_MODEL!$A$2:$A$1500,MATCH(1,([1]ELECTRIC_DEV_MODEL!$C$2:$C$1500='DC Power Distribution (Desc)'!$E43)*([1]ELECTRIC_DEV_MODEL!$D$2:$D$1500='DC Power Distribution (Desc)'!$F43)*([1]ELECTRIC_DEV_MODEL!$F$2:$F$1500=\"DCPWRDIS\"),0),0))","v":""},{"$f":"IF('DC Power Distribution (Desc)'!G43=\"\",\"\",'DC Power Distribution (Desc)'!G43)","v":""},{"$f":"IF('DC Power Distribution (Desc)'!H43=\"\",\"\",INDEX([1]YES_NO!$A$2:$A$100,MATCH('DC Power Distribution (Desc)'!$H43,[1]!MASTER_YES_NO_DESC[#Data],0),0))","v":""},{"$f":"IF('DC Power Distribution (Desc)'!I43=\"\",\"\",'DC Power Distribution (Desc)'!I43)","v":""},{"$f":"IF('DC Power Distribution (Desc)'!J43=\"\",\"\",'DC Power Distribution (Desc)'!J43)","v":""},{"$f":"IF('DC Power Distribution (Desc)'!K43=\"\",\"\",INDEX([1]YES_NO!$A$2:$A$100,MATCH('DC Power Distribution (Desc)'!$K43,[1]!MASTER_YES_NO_DESC[#Data],0),0))","v":""},{"$f":"IF('DC Power Distribution (Desc)'!L43=\"\",\"\",INDEX([1]DEV_INPUT_VOLTAGE!$A$2:$A$100,MATCH('DC Power Distribution (Desc)'!$L43,[1]!MASTER_DEV_INPUT_VOLTAGE_DESC[#Data],0),0))","v":""},{"$f":"IF('DC Power Distribution (Desc)'!M43=\"\",\"\",INDEX([1]DEV_OUTPUT_VOLTAGE!$A$2:$A$100,MATCH('DC Power Distribution (Desc)'!$M43,[1]!MASTER_DEV_INPUT_VOLTAGE_DESC[#Data],0),0))","v":""},{"$f":"IF('DC Power Distribution (Desc)'!N43=\"\",\"\",'DC Power Distribution (Desc)'!N43)","v":""},{"$f":"IF('DC Power Distribution (Desc)'!O43=\"\",\"\",'DC Power Distribution (Desc)'!O43)","v":""},{"$f":"IF('DC Power Distribution (Desc)'!P43=\"\",\"\",'DC Power Distribution (Desc)'!P43)","v":""},{"$f":"IF('DC Power Distribution (Desc)'!B43=\"\",\"\",\"NA\")","v":""}]
[{"$f":"IF('DC Power Distribution (Desc)'!B44=\"\",\"\",2029)","v":""},{"$f":"IF('DC Power Distribution (Desc)'!B44=\"\",\"\",'DC Power Distribution (Desc)'!B44)","v":""},{"$f":"IF('DC Power Distribution (Desc)'!D44=\"\",\"\",'DC Power Distribution (Desc)'!D44)","v":""},{"$f":"IF('DC Power Distribution (Desc)'!E44=\"\",\"\",INDEX([1]ELECTRIC_DEV_MANUF!$A$2:$A$1500,MATCH(1,([1]ELECTRIC_DEV_MANUF!$B$2:$B$1500='DC Power Distribution (Desc)'!$E44)*([1]ELECTRIC_DEV_MANUF!$D$2:$D$1500=\"DCPWRDIS\"),0),0))","v":""},{"$f":"IF('DC Power Distribution (Desc)'!F44=\"\",\"\",INDEX([1]ELECTRIC_DEV_MODEL!$A$2:$A$1500,MATCH(1,([1]ELECTRIC_DEV_MODEL!$C$2:$C$1500='DC Power Distribution (Desc)'!$E44)*([1]ELECTRIC_DEV_MODEL!$D$2:$D$1500='DC Power Distribution (Desc)'!$F44)*([1]ELECTRIC_DEV_MODEL!$F$2:$F$1500=\"DCPWRDIS\"),0),0))","v":""},{"$f":"IF('DC Power Distribution (Desc)'!G44=\"\",\"\",'DC Power Distribution (Desc)'!G44)","v":""},{"$f":"IF('DC Power Distribution (Desc)'!H44=\"\",\"\",INDEX([1]YES_NO!$A$2:$A$100,MATCH('DC Power Distribution (Desc)'!$H44,[1]!MASTER_YES_NO_DESC[#Data],0),0))","v":""},{"$f":"IF('DC Power Distribution (Desc)'!I44=\"\",\"\",'DC Power Distribution (Desc)'!I44)","v":""},{"$f":"IF('DC Power Distribution (Desc)'!J44=\"\",\"\",'DC Power Distribution (Desc)'!J44)","v":""},{"$f":"IF('DC Power Distribution (Desc)'!K44=\"\",\"\",INDEX([1]YES_NO!$A$2:$A$100,MATCH('DC Power Distribution (Desc)'!$K44,[1]!MASTER_YES_NO_DESC[#Data],0),0))","v":""},{"$f":"IF('DC Power Distribution (Desc)'!L44=\"\",\"\",INDEX([1]DEV_INPUT_VOLTAGE!$A$2:$A$100,MATCH('DC Power Distribution (Desc)'!$L44,[1]!MASTER_DEV_INPUT_VOLTAGE_DESC[#Data],0),0))","v":""},{"$f":"IF('DC Power Distribution (Desc)'!M44=\"\",\"\",INDEX([1]DEV_OUTPUT_VOLTAGE!$A$2:$A$100,MATCH('DC Power Distribution (Desc)'!$M44,[1]!MASTER_DEV_INPUT_VOLTAGE_DESC[#Data],0),0))","v":""},{"$f":"IF('DC Power Distribution (Desc)'!N44=\"\",\"\",'DC Power Distribution (Desc)'!N44)","v":""},{"$f":"IF('DC Power Distribution (Desc)'!O44=\"\",\"\",'DC Power Distribution (Desc)'!O44)","v":""},{"$f":"IF('DC Power Distribution (Desc)'!P44=\"\",\"\",'DC Power Distribution (Desc)'!P44)","v":""},{"$f":"IF('DC Power Distribution (Desc)'!B44=\"\",\"\",\"NA\")","v":""}]
[{"$f":"IF('DC Power Distribution (Desc)'!B45=\"\",\"\",2029)","v":""},{"$f":"IF('DC Power Distribution (Desc)'!B45=\"\",\"\",'DC Power Distribution (Desc)'!B45)","v":""},{"$f":"IF('DC Power Distribution (Desc)'!D45=\"\",\"\",'DC Power Distribution (Desc)'!D45)","v":""},{"$f":"IF('DC Power Distribution (Desc)'!E45=\"\",\"\",INDEX([1]ELECTRIC_DEV_MANUF!$A$2:$A$1500,MATCH(1,([1]ELECTRIC_DEV_MANUF!$B$2:$B$1500='DC Power Distribution (Desc)'!$E45)*([1]ELECTRIC_DEV_MANUF!$D$2:$D$1500=\"DCPWRDIS\"),0),0))","v":""},{"$f":"IF('DC Power Distribution (Desc)'!F45=\"\",\"\",INDEX([1]ELECTRIC_DEV_MODEL!$A$2:$A$1500,MATCH(1,([1]ELECTRIC_DEV_MODEL!$C$2:$C$1500='DC Power Distribution (Desc)'!$E45)*([1]ELECTRIC_DEV_MODEL!$D$2:$D$1500='DC Power Distribution (Desc)'!$F45)*([1]ELECTRIC_DEV_MODEL!$F$2:$F$1500=\"DCPWRDIS\"),0),0))","v":""},{"$f":"IF('DC Power Distribution (Desc)'!G45=\"\",\"\",'DC Power Distribution (Desc)'!G45)","v":""},{"$f":"IF('DC Power Distribution (Desc)'!H45=\"\",\"\",INDEX([1]YES_NO!$A$2:$A$100,MATCH('DC Power Distribution (Desc)'!$H45,[1]!MASTER_YES_NO_DESC[#Data],0),0))","v":""},{"$f":"IF('DC Power Distribution (Desc)'!I45=\"\",\"\",'DC Power Distribution (Desc)'!I45)","v":""},{"$f":"IF('DC Power Distribution (Desc)'!J45=\"\",\"\",'DC Power Distribution (Desc)'!J45)","v":""},{"$f":"IF('DC Power Distribution (Desc)'!K45=\"\",\"\",INDEX([1]YES_NO!$A$2:$A$100,MATCH('DC Power Distribution (Desc)'!$K45,[1]!MASTER_YES_NO_DESC[#Data],0),0))","v":""},{"$f":"IF('DC Power Distribution (Desc)'!L45=\"\",\"\",INDEX([1]DEV_INPUT_VOLTAGE!$A$2:$A$100,MATCH('DC Power Distribution (Desc)'!$L45,[1]!MASTER_DEV_INPUT_VOLTAGE_DESC[#Data],0),0))","v":""},{"$f":"IF('DC Power Distribution (Desc)'!M45=\"\",\"\",INDEX([1]DEV_OUTPUT_VOLTAGE!$A$2:$A$100,MATCH('DC Power Distribution (Desc)'!$M45,[1]!MASTER_DEV_INPUT_VOLTAGE_DESC[#Data],0),0))","v":""},{"$f":"IF('DC Power Distribution (Desc)'!N45=\"\",\"\",'DC Power Distribution (Desc)'!N45)","v":""},{"$f":"IF('DC Power Distribution (Desc)'!O45=\"\",\"\",'DC Power Distribution (Desc)'!O45)","v":""},{"$f":"IF('DC Power Distribution (Desc)'!P45=\"\",\"\",'DC Power Distribution (Desc)'!P45)","v":""},{"$f":"IF('DC Power Distribution (Desc)'!B45=\"\",\"\",\"NA\")","v":""}]
[{"$f":"IF('DC Power Distribution (Desc)'!B46=\"\",\"\",2029)","v":""},{"$f":"IF('DC Power Distribution (Desc)'!B46=\"\",\"\",'DC Power Distribution (Desc)'!B46)","v":""},{"$f":"IF('DC Power Distribution (Desc)'!D46=\"\",\"\",'DC Power Distribution (Desc)'!D46)","v":""},{"$f":"IF('DC Power Distribution (Desc)'!E46=\"\",\"\",INDEX([1]ELECTRIC_DEV_MANUF!$A$2:$A$1500,MATCH(1,([1]ELECTRIC_DEV_MANUF!$B$2:$B$1500='DC Power Distribution (Desc)'!$E46)*([1]ELECTRIC_DEV_MANUF!$D$2:$D$1500=\"DCPWRDIS\"),0),0))","v":""},{"$f":"IF('DC Power Distribution (Desc)'!F46=\"\",\"\",INDEX([1]ELECTRIC_DEV_MODEL!$A$2:$A$1500,MATCH(1,([1]ELECTRIC_DEV_MODEL!$C$2:$C$1500='DC Power Distribution (Desc)'!$E46)*([1]ELECTRIC_DEV_MODEL!$D$2:$D$1500='DC Power Distribution (Desc)'!$F46)*([1]ELECTRIC_DEV_MODEL!$F$2:$F$1500=\"DCPWRDIS\"),0),0))","v":""},{"$f":"IF('DC Power Distribution (Desc)'!G46=\"\",\"\",'DC Power Distribution (Desc)'!G46)","v":""},{"$f":"IF('DC Power Distribution (Desc)'!H46=\"\",\"\",INDEX([1]YES_NO!$A$2:$A$100,MATCH('DC Power Distribution (Desc)'!$H46,[1]!MASTER_YES_NO_DESC[#Data],0),0))","v":""},{"$f":"IF('DC Power Distribution (Desc)'!I46=\"\",\"\",'DC Power Distribution (Desc)'!I46)","v":""},{"$f":"IF('DC Power Distribution (Desc)'!J46=\"\",\"\",'DC Power Distribution (Desc)'!J46)","v":""},{"$f":"IF('DC Power Distribution (Desc)'!K46=\"\",\"\",INDEX([1]YES_NO!$A$2:$A$100,MATCH('DC Power Distribution (Desc)'!$K46,[1]!MASTER_YES_NO_DESC[#Data],0),0))","v":""},{"$f":"IF('DC Power Distribution (Desc)'!L46=\"\",\"\",INDEX([1]DEV_INPUT_VOLTAGE!$A$2:$A$100,MATCH('DC Power Distribution (Desc)'!$L46,[1]!MASTER_DEV_INPUT_VOLTAGE_DESC[#Data],0),0))","v":""},{"$f":"IF('DC Power Distribution (Desc)'!M46=\"\",\"\",INDEX([1]DEV_OUTPUT_VOLTAGE!$A$2:$A$100,MATCH('DC Power Distribution (Desc)'!$M46,[1]!MASTER_DEV_INPUT_VOLTAGE_DESC[#Data],0),0))","v":""},{"$f":"IF('DC Power Distribution (Desc)'!N46=\"\",\"\",'DC Power Distribution (Desc)'!N46)","v":""},{"$f":"IF('DC Power Distribution (Desc)'!O46=\"\",\"\",'DC Power Distribution (Desc)'!O46)","v":""},{"$f":"IF('DC Power Distribution (Desc)'!P46=\"\",\"\",'DC Power Distribution (Desc)'!P46)","v":""},{"$f":"IF('DC Power Distribution (Desc)'!B46=\"\",\"\",\"NA\")","v":""}]
[{"$f":"IF('DC Power Distribution (Desc)'!B47=\"\",\"\",2029)","v":""},{"$f":"IF('DC Power Distribution (Desc)'!B47=\"\",\"\",'DC Power Distribution (Desc)'!B47)","v":""},{"$f":"IF('DC Power Distribution (Desc)'!D47=\"\",\"\",'DC Power Distribution (Desc)'!D47)","v":""},{"$f":"IF('DC Power Distribution (Desc)'!E47=\"\",\"\",INDEX([1]ELECTRIC_DEV_MANUF!$A$2:$A$1500,MATCH(1,([1]ELECTRIC_DEV_MANUF!$B$2:$B$1500='DC Power Distribution (Desc)'!$E47)*([1]ELECTRIC_DEV_MANUF!$D$2:$D$1500=\"DCPWRDIS\"),0),0))","v":""},{"$f":"IF('DC Power Distribution (Desc)'!F47=\"\",\"\",INDEX([1]ELECTRIC_DEV_MODEL!$A$2:$A$1500,MATCH(1,([1]ELECTRIC_DEV_MODEL!$C$2:$C$1500='DC Power Distribution (Desc)'!$E47)*([1]ELECTRIC_DEV_MODEL!$D$2:$D$1500='DC Power Distribution (Desc)'!$F47)*([1]ELECTRIC_DEV_MODEL!$F$2:$F$1500=\"DCPWRDIS\"),0),0))","v":""},{"$f":"IF('DC Power Distribution (Desc)'!G47=\"\",\"\",'DC Power Distribution (Desc)'!G47)","v":""},{"$f":"IF('DC Power Distribution (Desc)'!H47=\"\",\"\",INDEX([1]YES_NO!$A$2:$A$100,MATCH('DC Power Distribution (Desc)'!$H47,[1]!MASTER_YES_NO_DESC[#Data],0),0))","v":""},{"$f":"IF('DC Power Distribution (Desc)'!I47=\"\",\"\",'DC Power Distribution (Desc)'!I47)","v":""},{"$f":"IF('DC Power Distribution (Desc)'!J47=\"\",\"\",'DC Power Distribution (Desc)'!J47)","v":""},{"$f":"IF('DC Power Distribution (Desc)'!K47=\"\",\"\",INDEX([1]YES_NO!$A$2:$A$100,MATCH('DC Power Distribution (Desc)'!$K47,[1]!MASTER_YES_NO_DESC[#Data],0),0))","v":""},{"$f":"IF('DC Power Distribution (Desc)'!L47=\"\",\"\",INDEX([1]DEV_INPUT_VOLTAGE!$A$2:$A$100,MATCH('DC Power Distribution (Desc)'!$L47,[1]!MASTER_DEV_INPUT_VOLTAGE_DESC[#Data],0),0))","v":""},{"$f":"IF('DC Power Distribution (Desc)'!M47=\"\",\"\",INDEX([1]DEV_OUTPUT_VOLTAGE!$A$2:$A$100,MATCH('DC Power Distribution (Desc)'!$M47,[1]!MASTER_DEV_INPUT_VOLTAGE_DESC[#Data],0),0))","v":""},{"$f":"IF('DC Power Distribution (Desc)'!N47=\"\",\"\",'DC Power Distribution (Desc)'!N47)","v":""},{"$f":"IF('DC Power Distribution (Desc)'!O47=\"\",\"\",'DC Power Distribution (Desc)'!O47)","v":""},{"$f":"IF('DC Power Distribution (Desc)'!P47=\"\",\"\",'DC Power Distribution (Desc)'!P47)","v":""},{"$f":"IF('DC Power Distribution (Desc)'!B47=\"\",\"\",\"NA\")","v":""}]
[{"$f":"IF('DC Power Distribution (Desc)'!B48=\"\",\"\",2029)","v":""},{"$f":"IF('DC Power Distribution (Desc)'!B48=\"\",\"\",'DC Power Distribution (Desc)'!B48)","v":""},{"$f":"IF('DC Power Distribution (Desc)'!D48=\"\",\"\",'DC Power Distribution (Desc)'!D48)","v":""},{"$f":"IF('DC Power Distribution (Desc)'!E48=\"\",\"\",INDEX([1]ELECTRIC_DEV_MANUF!$A$2:$A$1500,MATCH(1,([1]ELECTRIC_DEV_MANUF!$B$2:$B$1500='DC Power Distribution (Desc)'!$E48)*([1]ELECTRIC_DEV_MANUF!$D$2:$D$1500=\"DCPWRDIS\"),0),0))","v":""},{"$f":"IF('DC Power Distribution (Desc)'!F48=\"\",\"\",INDEX([1]ELECTRIC_DEV_MODEL!$A$2:$A$1500,MATCH(1,([1]ELECTRIC_DEV_MODEL!$C$2:$C$1500='DC Power Distribution (Desc)'!$E48)*([1]ELECTRIC_DEV_MODEL!$D$2:$D$1500='DC Power Distribution (Desc)'!$F48)*([1]ELECTRIC_DEV_MODEL!$F$2:$F$1500=\"DCPWRDIS\"),0),0))","v":""},{"$f":"IF('DC Power Distribution (Desc)'!G48=\"\",\"\",'DC Power Distribution (Desc)'!G48)","v":""},{"$f":"IF('DC Power Distribution (Desc)'!H48=\"\",\"\",INDEX([1]YES_NO!$A$2:$A$100,MATCH('DC Power Distribution (Desc)'!$H48,[1]!MASTER_YES_NO_DESC[#Data],0),0))","v":""},{"$f":"IF('DC Power Distribution (Desc)'!I48=\"\",\"\",'DC Power Distribution (Desc)'!I48)","v":""},{"$f":"IF('DC Power Distribution (Desc)'!J48=\"\",\"\",'DC Power Distribution (Desc)'!J48)","v":""},{"$f":"IF('DC Power Distribution (Desc)'!K48=\"\",\"\",INDEX([1]YES_NO!$A$2:$A$100,MATCH('DC Power Distribution (Desc)'!$K48,[1]!MASTER_YES_NO_DESC[#Data],0),0))","v":""},{"$f":"IF('DC Power Distribution (Desc)'!L48=\"\",\"\",INDEX([1]DEV_INPUT_VOLTAGE!$A$2:$A$100,MATCH('DC Power Distribution (Desc)'!$L48,[1]!MASTER_DEV_INPUT_VOLTAGE_DESC[#Data],0),0))","v":""},{"$f":"IF('DC Power Distribution (Desc)'!M48=\"\",\"\",INDEX([1]DEV_OUTPUT_VOLTAGE!$A$2:$A$100,MATCH('DC Power Distribution (Desc)'!$M48,[1]!MASTER_DEV_INPUT_VOLTAGE_DESC[#Data],0),0))","v":""},{"$f":"IF('DC Power Distribution (Desc)'!N48=\"\",\"\",'DC Power Distribution (Desc)'!N48)","v":""},{"$f":"IF('DC Power Distribution (Desc)'!O48=\"\",\"\",'DC Power Distribution (Desc)'!O48)","v":""},{"$f":"IF('DC Power Distribution (Desc)'!P48=\"\",\"\",'DC Power Distribution (Desc)'!P48)","v":""},{"$f":"IF('DC Power Distribution (Desc)'!B48=\"\",\"\",\"NA\")","v":""}]
[{"$f":"IF('DC Power Distribution (Desc)'!B49=\"\",\"\",2029)","v":""},{"$f":"IF('DC Power Distribution (Desc)'!B49=\"\",\"\",'DC Power Distribution (Desc)'!B49)","v":""},{"$f":"IF('DC Power Distribution (Desc)'!D49=\"\",\"\",'DC Power Distribution (Desc)'!D49)","v":""},{"$f":"IF('DC Power Distribution (Desc)'!E49=\"\",\"\",INDEX([1]ELECTRIC_DEV_MANUF!$A$2:$A$1500,MATCH(1,([1]ELECTRIC_DEV_MANUF!$B$2:$B$1500='DC Power Distribution (Desc)'!$E49)*([1]ELECTRIC_DEV_MANUF!$D$2:$D$1500=\"DCPWRDIS\"),0),0))","v":""},{"$f":"IF('DC Power Distribution (Desc)'!F49=\"\",\"\",INDEX([1]ELECTRIC_DEV_MODEL!$A$2:$A$1500,MATCH(1,([1]ELECTRIC_DEV_MODEL!$C$2:$C$1500='DC Power Distribution (Desc)'!$E49)*([1]ELECTRIC_DEV_MODEL!$D$2:$D$1500='DC Power Distribution (Desc)'!$F49)*([1]ELECTRIC_DEV_MODEL!$F$2:$F$1500=\"DCPWRDIS\"),0),0))","v":""},{"$f":"IF('DC Power Distribution (Desc)'!G49=\"\",\"\",'DC Power Distribution (Desc)'!G49)","v":""},{"$f":"IF('DC Power Distribution (Desc)'!H49=\"\",\"\",INDEX([1]YES_NO!$A$2:$A$100,MATCH('DC Power Distribution (Desc)'!$H49,[1]!MASTER_YES_NO_DESC[#Data],0),0))","v":""},{"$f":"IF('DC Power Distribution (Desc)'!I49=\"\",\"\",'DC Power Distribution (Desc)'!I49)","v":""},{"$f":"IF('DC Power Distribution (Desc)'!J49=\"\",\"\",'DC Power Distribution (Desc)'!J49)","v":""},{"$f":"IF('DC Power Distribution (Desc)'!K49=\"\",\"\",INDEX([1]YES_NO!$A$2:$A$100,MATCH('DC Power Distribution (Desc)'!$K49,[1]!MASTER_YES_NO_DESC[#Data],0),0))","v":""},{"$f":"IF('DC Power Distribution (Desc)'!L49=\"\",\"\",INDEX([1]DEV_INPUT_VOLTAGE!$A$2:$A$100,MATCH('DC Power Distribution (Desc)'!$L49,[1]!MASTER_DEV_INPUT_VOLTAGE_DESC[#Data],0),0))","v":""},{"$f":"IF('DC Power Distribution (Desc)'!M49=\"\",\"\",INDEX([1]DEV_OUTPUT_VOLTAGE!$A$2:$A$100,MATCH('DC Power Distribution (Desc)'!$M49,[1]!MASTER_DEV_INPUT_VOLTAGE_DESC[#Data],0),0))","v":""},{"$f":"IF('DC Power Distribution (Desc)'!N49=\"\",\"\",'DC Power Distribution (Desc)'!N49)","v":""},{"$f":"IF('DC Power Distribution (Desc)'!O49=\"\",\"\",'DC Power Distribution (Desc)'!O49)","v":""},{"$f":"IF('DC Power Distribution (Desc)'!P49=\"\",\"\",'DC Power Distribution (Desc)'!P49)","v":""},{"$f":"IF('DC Power Distribution (Desc)'!B49=\"\",\"\",\"NA\")","v":""}]
[{"$f":"IF('DC Power Distribution (Desc)'!B50=\"\",\"\",2029)","v":""},{"$f":"IF('DC Power Distribution (Desc)'!B50=\"\",\"\",'DC Power Distribution (Desc)'!B50)","v":""},{"$f":"IF('DC Power Distribution (Desc)'!D50=\"\",\"\",'DC Power Distribution (Desc)'!D50)","v":""},{"$f":"IF('DC Power Distribution (Desc)'!E50=\"\",\"\",INDEX([1]ELECTRIC_DEV_MANUF!$A$2:$A$1500,MATCH(1,([1]ELECTRIC_DEV_MANUF!$B$2:$B$1500='DC Power Distribution (Desc)'!$E50)*([1]ELECTRIC_DEV_MANUF!$D$2:$D$1500=\"DCPWRDIS\"),0),0))","v":""},{"$f":"IF('DC Power Distribution (Desc)'!F50=\"\",\"\",INDEX([1]ELECTRIC_DEV_MODEL!$A$2:$A$1500,MATCH(1,([1]ELECTRIC_DEV_MODEL!$C$2:$C$1500='DC Power Distribution (Desc)'!$E50)*([1]ELECTRIC_DEV_MODEL!$D$2:$D$1500='DC Power Distribution (Desc)'!$F50)*([1]ELECTRIC_DEV_MODEL!$F$2:$F$1500=\"DCPWRDIS\"),0),0))","v":""},{"$f":"IF('DC Power Distribution (Desc)'!G50=\"\",\"\",'DC Power Distribution (Desc)'!G50)","v":""},{"$f":"IF('DC Power Distribution (Desc)'!H50=\"\",\"\",INDEX([1]YES_NO!$A$2:$A$100,MATCH('DC Power Distribution (Desc)'!$H50,[1]!MASTER_YES_NO_DESC[#Data],0),0))","v":""},{"$f":"IF('DC Power Distribution (Desc)'!I50=\"\",\"\",'DC Power Distribution (Desc)'!I50)","v":""},{"$f":"IF('DC Power Distribution (Desc)'!J50=\"\",\"\",'DC Power Distribution (Desc)'!J50)","v":""},{"$f":"IF('DC Power Distribution (Desc)'!K50=\"\",\"\",INDEX([1]YES_NO!$A$2:$A$100,MATCH('DC Power Distribution (Desc)'!$K50,[1]!MASTER_YES_NO_DESC[#Data],0),0))","v":""},{"$f":"IF('DC Power Distribution (Desc)'!L50=\"\",\"\",INDEX([1]DEV_INPUT_VOLTAGE!$A$2:$A$100,MATCH('DC Power Distribution (Desc)'!$L50,[1]!MASTER_DEV_INPUT_VOLTAGE_DESC[#Data],0),0))","v":""},{"$f":"IF('DC Power Distribution (Desc)'!M50=\"\",\"\",INDEX([1]DEV_OUTPUT_VOLTAGE!$A$2:$A$100,MATCH('DC Power Distribution (Desc)'!$M50,[1]!MASTER_DEV_INPUT_VOLTAGE_DESC[#Data],0),0))","v":""},{"$f":"IF('DC Power Distribution (Desc)'!N50=\"\",\"\",'DC Power Distribution (Desc)'!N50)","v":""},{"$f":"IF('DC Power Distribution (Desc)'!O50=\"\",\"\",'DC Power Distribution (Desc)'!O50)","v":""},{"$f":"IF('DC Power Distribution (Desc)'!P50=\"\",\"\",'DC Power Distribution (Desc)'!P50)","v":""},{"$f":"IF('DC Power Distribution (Desc)'!B50=\"\",\"\",\"NA\")","v":""}]
[{"$f":"IF('DC Power Distribution (Desc)'!B51=\"\",\"\",2029)","v":""},{"$f":"IF('DC Power Distribution (Desc)'!B51=\"\",\"\",'DC Power Distribution (Desc)'!B51)","v":""},{"$f":"IF('DC Power Distribution (Desc)'!D51=\"\",\"\",'DC Power Distribution (Desc)'!D51)","v":""},{"$f":"IF('DC Power Distribution (Desc)'!E51=\"\",\"\",INDEX([1]ELECTRIC_DEV_MANUF!$A$2:$A$1500,MATCH(1,([1]ELECTRIC_DEV_MANUF!$B$2:$B$1500='DC Power Distribution (Desc)'!$E51)*([1]ELECTRIC_DEV_MANUF!$D$2:$D$1500=\"DCPWRDIS\"),0),0))","v":""},{"$f":"IF('DC Power Distribution (Desc)'!F51=\"\",\"\",INDEX([1]ELECTRIC_DEV_MODEL!$A$2:$A$1500,MATCH(1,([1]ELECTRIC_DEV_MODEL!$C$2:$C$1500='DC Power Distribution (Desc)'!$E51)*([1]ELECTRIC_DEV_MODEL!$D$2:$D$1500='DC Power Distribution (Desc)'!$F51)*([1]ELECTRIC_DEV_MODEL!$F$2:$F$1500=\"DCPWRDIS\"),0),0))","v":""},{"$f":"IF('DC Power Distribution (Desc)'!G51=\"\",\"\",'DC Power Distribution (Desc)'!G51)","v":""},{"$f":"IF('DC Power Distribution (Desc)'!H51=\"\",\"\",INDEX([1]YES_NO!$A$2:$A$100,MATCH('DC Power Distribution (Desc)'!$H51,[1]!MASTER_YES_NO_DESC[#Data],0),0))","v":""},{"$f":"IF('DC Power Distribution (Desc)'!I51=\"\",\"\",'DC Power Distribution (Desc)'!I51)","v":""},{"$f":"IF('DC Power Distribution (Desc)'!J51=\"\",\"\",'DC Power Distribution (Desc)'!J51)","v":""},{"$f":"IF('DC Power Distribution (Desc)'!K51=\"\",\"\",INDEX([1]YES_NO!$A$2:$A$100,MATCH('DC Power Distribution (Desc)'!$K51,[1]!MASTER_YES_NO_DESC[#Data],0),0))","v":""},{"$f":"IF('DC Power Distribution (Desc)'!L51=\"\",\"\",INDEX([1]DEV_INPUT_VOLTAGE!$A$2:$A$100,MATCH('DC Power Distribution (Desc)'!$L51,[1]!MASTER_DEV_INPUT_VOLTAGE_DESC[#Data],0),0))","v":""},{"$f":"IF('DC Power Distribution (Desc)'!M51=\"\",\"\",INDEX([1]DEV_OUTPUT_VOLTAGE!$A$2:$A$100,MATCH('DC Power Distribution (Desc)'!$M51,[1]!MASTER_DEV_INPUT_VOLTAGE_DESC[#Data],0),0))","v":""},{"$f":"IF('DC Power Distribution (Desc)'!N51=\"\",\"\",'DC Power Distribution (Desc)'!N51)","v":""},{"$f":"IF('DC Power Distribution (Desc)'!O51=\"\",\"\",'DC Power Distribution (Desc)'!O51)","v":""},{"$f":"IF('DC Power Distribution (Desc)'!P51=\"\",\"\",'DC Power Distribution (Desc)'!P51)","v":""},{"$f":"IF('DC Power Distribution (Desc)'!B51=\"\",\"\",\"NA\")","v":""}]
[{"$f":"IF('DC Power Distribution (Desc)'!B52=\"\",\"\",2029)","v":""},{"$f":"IF('DC Power Distribution (Desc)'!B52=\"\",\"\",'DC Power Distribution (Desc)'!B52)","v":""},{"$f":"IF('DC Power Distribution (Desc)'!D52=\"\",\"\",'DC Power Distribution (Desc)'!D52)","v":""},{"$f":"IF('DC Power Distribution (Desc)'!E52=\"\",\"\",INDEX([1]ELECTRIC_DEV_MANUF!$A$2:$A$1500,MATCH(1,([1]ELECTRIC_DEV_MANUF!$B$2:$B$1500='DC Power Distribution (Desc)'!$E52)*([1]ELECTRIC_DEV_MANUF!$D$2:$D$1500=\"DCPWRDIS\"),0),0))","v":""},{"$f":"IF('DC Power Distribution (Desc)'!F52=\"\",\"\",INDEX([1]ELECTRIC_DEV_MODEL!$A$2:$A$1500,MATCH(1,([1]ELECTRIC_DEV_MODEL!$C$2:$C$1500='DC Power Distribution (Desc)'!$E52)*([1]ELECTRIC_DEV_MODEL!$D$2:$D$1500='DC Power Distribution (Desc)'!$F52)*([1]ELECTRIC_DEV_MODEL!$F$2:$F$1500=\"DCPWRDIS\"),0),0))","v":""},{"$f":"IF('DC Power Distribution (Desc)'!G52=\"\",\"\",'DC Power Distribution (Desc)'!G52)","v":""},{"$f":"IF('DC Power Distribution (Desc)'!H52=\"\",\"\",INDEX([1]YES_NO!$A$2:$A$100,MATCH('DC Power Distribution (Desc)'!$H52,[1]!MASTER_YES_NO_DESC[#Data],0),0))","v":""},{"$f":"IF('DC Power Distribution (Desc)'!I52=\"\",\"\",'DC Power Distribution (Desc)'!I52)","v":""},{"$f":"IF('DC Power Distribution (Desc)'!J52=\"\",\"\",'DC Power Distribution (Desc)'!J52)","v":""},{"$f":"IF('DC Power Distribution (Desc)'!K52=\"\",\"\",INDEX([1]YES_NO!$A$2:$A$100,MATCH('DC Power Distribution (Desc)'!$K52,[1]!MASTER_YES_NO_DESC[#Data],0),0))","v":""},{"$f":"IF('DC Power Distribution (Desc)'!L52=\"\",\"\",INDEX([1]DEV_INPUT_VOLTAGE!$A$2:$A$100,MATCH('DC Power Distribution (Desc)'!$L52,[1]!MASTER_DEV_INPUT_VOLTAGE_DESC[#Data],0),0))","v":""},{"$f":"IF('DC Power Distribution (Desc)'!M52=\"\",\"\",INDEX([1]DEV_OUTPUT_VOLTAGE!$A$2:$A$100,MATCH('DC Power Distribution (Desc)'!$M52,[1]!MASTER_DEV_INPUT_VOLTAGE_DESC[#Data],0),0))","v":""},{"$f":"IF('DC Power Distribution (Desc)'!N52=\"\",\"\",'DC Power Distribution (Desc)'!N52)","v":""},{"$f":"IF('DC Power Distribution (Desc)'!O52=\"\",\"\",'DC Power Distribution (Desc)'!O52)","v":""},{"$f":"IF('DC Power Distribution (Desc)'!P52=\"\",\"\",'DC Power Distribution (Desc)'!P52)","v":""},{"$f":"IF('DC Power Distribution (Desc)'!B52=\"\",\"\",\"NA\")","v":""}]
[{"$f":"IF('DC Power Distribution (Desc)'!B53=\"\",\"\",2029)","v":""},{"$f":"IF('DC Power Distribution (Desc)'!B53=\"\",\"\",'DC Power Distribution (Desc)'!B53)","v":""},{"$f":"IF('DC Power Distribution (Desc)'!D53=\"\",\"\",'DC Power Distribution (Desc)'!D53)","v":""},{"$f":"IF('DC Power Distribution (Desc)'!E53=\"\",\"\",INDEX([1]ELECTRIC_DEV_MANUF!$A$2:$A$1500,MATCH(1,([1]ELECTRIC_DEV_MANUF!$B$2:$B$1500='DC Power Distribution (Desc)'!$E53)*([1]ELECTRIC_DEV_MANUF!$D$2:$D$1500=\"DCPWRDIS\"),0),0))","v":""},{"$f":"IF('DC Power Distribution (Desc)'!F53=\"\",\"\",INDEX([1]ELECTRIC_DEV_MODEL!$A$2:$A$1500,MATCH(1,([1]ELECTRIC_DEV_MODEL!$C$2:$C$1500='DC Power Distribution (Desc)'!$E53)*([1]ELECTRIC_DEV_MODEL!$D$2:$D$1500='DC Power Distribution (Desc)'!$F53)*([1]ELECTRIC_DEV_MODEL!$F$2:$F$1500=\"DCPWRDIS\"),0),0))","v":""},{"$f":"IF('DC Power Distribution (Desc)'!G53=\"\",\"\",'DC Power Distribution (Desc)'!G53)","v":""},{"$f":"IF('DC Power Distribution (Desc)'!H53=\"\",\"\",INDEX([1]YES_NO!$A$2:$A$100,MATCH('DC Power Distribution (Desc)'!$H53,[1]!MASTER_YES_NO_DESC[#Data],0),0))","v":""},{"$f":"IF('DC Power Distribution (Desc)'!I53=\"\",\"\",'DC Power Distribution (Desc)'!I53)","v":""},{"$f":"IF('DC Power Distribution (Desc)'!J53=\"\",\"\",'DC Power Distribution (Desc)'!J53)","v":""},{"$f":"IF('DC Power Distribution (Desc)'!K53=\"\",\"\",INDEX([1]YES_NO!$A$2:$A$100,MATCH('DC Power Distribution (Desc)'!$K53,[1]!MASTER_YES_NO_DESC[#Data],0),0))","v":""},{"$f":"IF('DC Power Distribution (Desc)'!L53=\"\",\"\",INDEX([1]DEV_INPUT_VOLTAGE!$A$2:$A$100,MATCH('DC Power Distribution (Desc)'!$L53,[1]!MASTER_DEV_INPUT_VOLTAGE_DESC[#Data],0),0))","v":""},{"$f":"IF('DC Power Distribution (Desc)'!M53=\"\",\"\",INDEX([1]DEV_OUTPUT_VOLTAGE!$A$2:$A$100,MATCH('DC Power Distribution (Desc)'!$M53,[1]!MASTER_DEV_INPUT_VOLTAGE_DESC[#Data],0),0))","v":""},{"$f":"IF('DC Power Distribution (Desc)'!N53=\"\",\"\",'DC Power Distribution (Desc)'!N53)","v":""},{"$f":"IF('DC Power Distribution (Desc)'!O53=\"\",\"\",'DC Power Distribution (Desc)'!O53)","v":""},{"$f":"IF('DC Power Distribution (Desc)'!P53=\"\",\"\",'DC Power Distribution (Desc)'!P53)","v":""},{"$f":"IF('DC Power Distribution (Desc)'!B53=\"\",\"\",\"NA\")","v":""}]
[{"$f":"IF('DC Power Distribution (Desc)'!B54=\"\",\"\",2029)","v":""},{"$f":"IF('DC Power Distribution (Desc)'!B54=\"\",\"\",'DC Power Distribution (Desc)'!B54)","v":""},{"$f":"IF('DC Power Distribution (Desc)'!D54=\"\",\"\",'DC Power Distribution (Desc)'!D54)","v":""},{"$f":"IF('DC Power Distribution (Desc)'!E54=\"\",\"\",INDEX([1]ELECTRIC_DEV_MANUF!$A$2:$A$1500,MATCH(1,([1]ELECTRIC_DEV_MANUF!$B$2:$B$1500='DC Power Distribution (Desc)'!$E54)*([1]ELECTRIC_DEV_MANUF!$D$2:$D$1500=\"DCPWRDIS\"),0),0))","v":""},{"$f":"IF('DC Power Distribution (Desc)'!F54=\"\",\"\",INDEX([1]ELECTRIC_DEV_MODEL!$A$2:$A$1500,MATCH(1,([1]ELECTRIC_DEV_MODEL!$C$2:$C$1500='DC Power Distribution (Desc)'!$E54)*([1]ELECTRIC_DEV_MODEL!$D$2:$D$1500='DC Power Distribution (Desc)'!$F54)*([1]ELECTRIC_DEV_MODEL!$F$2:$F$1500=\"DCPWRDIS\"),0),0))","v":""},{"$f":"IF('DC Power Distribution (Desc)'!G54=\"\",\"\",'DC Power Distribution (Desc)'!G54)","v":""},{"$f":"IF('DC Power Distribution (Desc)'!H54=\"\",\"\",INDEX([1]YES_NO!$A$2:$A$100,MATCH('DC Power Distribution (Desc)'!$H54,[1]!MASTER_YES_NO_DESC[#Data],0),0))","v":""},{"$f":"IF('DC Power Distribution (Desc)'!I54=\"\",\"\",'DC Power Distribution (Desc)'!I54)","v":""},{"$f":"IF('DC Power Distribution (Desc)'!J54=\"\",\"\",'DC Power Distribution (Desc)'!J54)","v":""},{"$f":"IF('DC Power Distribution (Desc)'!K54=\"\",\"\",INDEX([1]YES_NO!$A$2:$A$100,MATCH('DC Power Distribution (Desc)'!$K54,[1]!MASTER_YES_NO_DESC[#Data],0),0))","v":""},{"$f":"IF('DC Power Distribution (Desc)'!L54=\"\",\"\",INDEX([1]DEV_INPUT_VOLTAGE!$A$2:$A$100,MATCH('DC Power Distribution (Desc)'!$L54,[1]!MASTER_DEV_INPUT_VOLTAGE_DESC[#Data],0),0))","v":""},{"$f":"IF('DC Power Distribution (Desc)'!M54=\"\",\"\",INDEX([1]DEV_OUTPUT_VOLTAGE!$A$2:$A$100,MATCH('DC Power Distribution (Desc)'!$M54,[1]!MASTER_DEV_INPUT_VOLTAGE_DESC[#Data],0),0))","v":""},{"$f":"IF('DC Power Distribution (Desc)'!N54=\"\",\"\",'DC Power Distribution (Desc)'!N54)","v":""},{"$f":"IF('DC Power Distribution (Desc)'!O54=\"\",\"\",'DC Power Distribution (Desc)'!O54)","v":""},{"$f":"IF('DC Power Distribution (Desc)'!P54=\"\",\"\",'DC Power Distribution (Desc)'!P54)","v":""},{"$f":"IF('DC Power Distribution (Desc)'!B54=\"\",\"\",\"NA\")","v":""}]
[{"$f":"IF('DC Power Distribution (Desc)'!B55=\"\",\"\",2029)","v":""},{"$f":"IF('DC Power Distribution (Desc)'!B55=\"\",\"\",'DC Power Distribution (Desc)'!B55)","v":""},{"$f":"IF('DC Power Distribution (Desc)'!D55=\"\",\"\",'DC Power Distribution (Desc)'!D55)","v":""},{"$f":"IF('DC Power Distribution (Desc)'!E55=\"\",\"\",INDEX([1]ELECTRIC_DEV_MANUF!$A$2:$A$1500,MATCH(1,([1]ELECTRIC_DEV_MANUF!$B$2:$B$1500='DC Power Distribution (Desc)'!$E55)*([1]ELECTRIC_DEV_MANUF!$D$2:$D$1500=\"DCPWRDIS\"),0),0))","v":""},{"$f":"IF('DC Power Distribution (Desc)'!F55=\"\",\"\",INDEX([1]ELECTRIC_DEV_MODEL!$A$2:$A$1500,MATCH(1,([1]ELECTRIC_DEV_MODEL!$C$2:$C$1500='DC Power Distribution (Desc)'!$E55)*([1]ELECTRIC_DEV_MODEL!$D$2:$D$1500='DC Power Distribution (Desc)'!$F55)*([1]ELECTRIC_DEV_MODEL!$F$2:$F$1500=\"DCPWRDIS\"),0),0))","v":""},{"$f":"IF('DC Power Distribution (Desc)'!G55=\"\",\"\",'DC Power Distribution (Desc)'!G55)","v":""},{"$f":"IF('DC Power Distribution (Desc)'!H55=\"\",\"\",INDEX([1]YES_NO!$A$2:$A$100,MATCH('DC Power Distribution (Desc)'!$H55,[1]!MASTER_YES_NO_DESC[#Data],0),0))","v":""},{"$f":"IF('DC Power Distribution (Desc)'!I55=\"\",\"\",'DC Power Distribution (Desc)'!I55)","v":""},{"$f":"IF('DC Power Distribution (Desc)'!J55=\"\",\"\",'DC Power Distribution (Desc)'!J55)","v":""},{"$f":"IF('DC Power Distribution (Desc)'!K55=\"\",\"\",INDEX([1]YES_NO!$A$2:$A$100,MATCH('DC Power Distribution (Desc)'!$K55,[1]!MASTER_YES_NO_DESC[#Data],0),0))","v":""},{"$f":"IF('DC Power Distribution (Desc)'!L55=\"\",\"\",INDEX([1]DEV_INPUT_VOLTAGE!$A$2:$A$100,MATCH('DC Power Distribution (Desc)'!$L55,[1]!MASTER_DEV_INPUT_VOLTAGE_DESC[#Data],0),0))","v":""},{"$f":"IF('DC Power Distribution (Desc)'!M55=\"\",\"\",INDEX([1]DEV_OUTPUT_VOLTAGE!$A$2:$A$100,MATCH('DC Power Distribution (Desc)'!$M55,[1]!MASTER_DEV_INPUT_VOLTAGE_DESC[#Data],0),0))","v":""},{"$f":"IF('DC Power Distribution (Desc)'!N55=\"\",\"\",'DC Power Distribution (Desc)'!N55)","v":""},{"$f":"IF('DC Power Distribution (Desc)'!O55=\"\",\"\",'DC Power Distribution (Desc)'!O55)","v":""},{"$f":"IF('DC Power Distribution (Desc)'!P55=\"\",\"\",'DC Power Distribution (Desc)'!P55)","v":""},{"$f":"IF('DC Power Distribution (Desc)'!B55=\"\",\"\",\"NA\")","v":""}]
[{"$f":"IF('DC Power Distribution (Desc)'!B56=\"\",\"\",2029)","v":""},{"$f":"IF('DC Power Distribution (Desc)'!B56=\"\",\"\",'DC Power Distribution (Desc)'!B56)","v":""},{"$f":"IF('DC Power Distribution (Desc)'!D56=\"\",\"\",'DC Power Distribution (Desc)'!D56)","v":""},{"$f":"IF('DC Power Distribution (Desc)'!E56=\"\",\"\",INDEX([1]ELECTRIC_DEV_MANUF!$A$2:$A$1500,MATCH(1,([1]ELECTRIC_DEV_MANUF!$B$2:$B$1500='DC Power Distribution (Desc)'!$E56)*([1]ELECTRIC_DEV_MANUF!$D$2:$D$1500=\"DCPWRDIS\"),0),0))","v":""},{"$f":"IF('DC Power Distribution (Desc)'!F56=\"\",\"\",INDEX([1]ELECTRIC_DEV_MODEL!$A$2:$A$1500,MATCH(1,([1]ELECTRIC_DEV_MODEL!$C$2:$C$1500='DC Power Distribution (Desc)'!$E56)*([1]ELECTRIC_DEV_MODEL!$D$2:$D$1500='DC Power Distribution (Desc)'!$F56)*([1]ELECTRIC_DEV_MODEL!$F$2:$F$1500=\"DCPWRDIS\"),0),0))","v":""},{"$f":"IF('DC Power Distribution (Desc)'!G56=\"\",\"\",'DC Power Distribution (Desc)'!G56)","v":""},{"$f":"IF('DC Power Distribution (Desc)'!H56=\"\",\"\",INDEX([1]YES_NO!$A$2:$A$100,MATCH('DC Power Distribution (Desc)'!$H56,[1]!MASTER_YES_NO_DESC[#Data],0),0))","v":""},{"$f":"IF('DC Power Distribution (Desc)'!I56=\"\",\"\",'DC Power Distribution (Desc)'!I56)","v":""},{"$f":"IF('DC Power Distribution (Desc)'!J56=\"\",\"\",'DC Power Distribution (Desc)'!J56)","v":""},{"$f":"IF('DC Power Distribution (Desc)'!K56=\"\",\"\",INDEX([1]YES_NO!$A$2:$A$100,MATCH('DC Power Distribution (Desc)'!$K56,[1]!MASTER_YES_NO_DESC[#Data],0),0))","v":""},{"$f":"IF('DC Power Distribution (Desc)'!L56=\"\",\"\",INDEX([1]DEV_INPUT_VOLTAGE!$A$2:$A$100,MATCH('DC Power Distribution (Desc)'!$L56,[1]!MASTER_DEV_INPUT_VOLTAGE_DESC[#Data],0),0))","v":""},{"$f":"IF('DC Power Distribution (Desc)'!M56=\"\",\"\",INDEX([1]DEV_OUTPUT_VOLTAGE!$A$2:$A$100,MATCH('DC Power Distribution (Desc)'!$M56,[1]!MASTER_DEV_INPUT_VOLTAGE_DESC[#Data],0),0))","v":""},{"$f":"IF('DC Power Distribution (Desc)'!N56=\"\",\"\",'DC Power Distribution (Desc)'!N56)","v":""},{"$f":"IF('DC Power Distribution (Desc)'!O56=\"\",\"\",'DC Power Distribution (Desc)'!O56)","v":""},{"$f":"IF('DC Power Distribution (Desc)'!P56=\"\",\"\",'DC Power Distribution (Desc)'!P56)","v":""},{"$f":"IF('DC Power Distribution (Desc)'!B56=\"\",\"\",\"NA\")","v":""}]
[{"$f":"IF('DC Power Distribution (Desc)'!B57=\"\",\"\",2029)","v":""},{"$f":"IF('DC Power Distribution (Desc)'!B57=\"\",\"\",'DC Power Distribution (Desc)'!B57)","v":""},{"$f":"IF('DC Power Distribution (Desc)'!D57=\"\",\"\",'DC Power Distribution (Desc)'!D57)","v":""},{"$f":"IF('DC Power Distribution (Desc)'!E57=\"\",\"\",INDEX([1]ELECTRIC_DEV_MANUF!$A$2:$A$1500,MATCH(1,([1]ELECTRIC_DEV_MANUF!$B$2:$B$1500='DC Power Distribution (Desc)'!$E57)*([1]ELECTRIC_DEV_MANUF!$D$2:$D$1500=\"DCPWRDIS\"),0),0))","v":""},{"$f":"IF('DC Power Distribution (Desc)'!F57=\"\",\"\",INDEX([1]ELECTRIC_DEV_MODEL!$A$2:$A$1500,MATCH(1,([1]ELECTRIC_DEV_MODEL!$C$2:$C$1500='DC Power Distribution (Desc)'!$E57)*([1]ELECTRIC_DEV_MODEL!$D$2:$D$1500='DC Power Distribution (Desc)'!$F57)*([1]ELECTRIC_DEV_MODEL!$F$2:$F$1500=\"DCPWRDIS\"),0),0))","v":""},{"$f":"IF('DC Power Distribution (Desc)'!G57=\"\",\"\",'DC Power Distribution (Desc)'!G57)","v":""},{"$f":"IF('DC Power Distribution (Desc)'!H57=\"\",\"\",INDEX([1]YES_NO!$A$2:$A$100,MATCH('DC Power Distribution (Desc)'!$H57,[1]!MASTER_YES_NO_DESC[#Data],0),0))","v":""},{"$f":"IF('DC Power Distribution (Desc)'!I57=\"\",\"\",'DC Power Distribution (Desc)'!I57)","v":""},{"$f":"IF('DC Power Distribution (Desc)'!J57=\"\",\"\",'DC Power Distribution (Desc)'!J57)","v":""},{"$f":"IF('DC Power Distribution (Desc)'!K57=\"\",\"\",INDEX([1]YES_NO!$A$2:$A$100,MATCH('DC Power Distribution (Desc)'!$K57,[1]!MASTER_YES_NO_DESC[#Data],0),0))","v":""},{"$f":"IF('DC Power Distribution (Desc)'!L57=\"\",\"\",INDEX([1]DEV_INPUT_VOLTAGE!$A$2:$A$100,MATCH('DC Power Distribution (Desc)'!$L57,[1]!MASTER_DEV_INPUT_VOLTAGE_DESC[#Data],0),0))","v":""},{"$f":"IF('DC Power Distribution (Desc)'!M57=\"\",\"\",INDEX([1]DEV_OUTPUT_VOLTAGE!$A$2:$A$100,MATCH('DC Power Distribution (Desc)'!$M57,[1]!MASTER_DEV_INPUT_VOLTAGE_DESC[#Data],0),0))","v":""},{"$f":"IF('DC Power Distribution (Desc)'!N57=\"\",\"\",'DC Power Distribution (Desc)'!N57)","v":""},{"$f":"IF('DC Power Distribution (Desc)'!O57=\"\",\"\",'DC Power Distribution (Desc)'!O57)","v":""},{"$f":"IF('DC Power Distribution (Desc)'!P57=\"\",\"\",'DC Power Distribution (Desc)'!P57)","v":""},{"$f":"IF('DC Power Distribution (Desc)'!B57=\"\",\"\",\"NA\")","v":""}]
[{"$f":"IF('DC Power Distribution (Desc)'!B58=\"\",\"\",2029)","v":""},{"$f":"IF('DC Power Distribution (Desc)'!B58=\"\",\"\",'DC Power Distribution (Desc)'!B58)","v":""},{"$f":"IF('DC Power Distribution (Desc)'!D58=\"\",\"\",'DC Power Distribution (Desc)'!D58)","v":""},{"$f":"IF('DC Power Distribution (Desc)'!E58=\"\",\"\",INDEX([1]ELECTRIC_DEV_MANUF!$A$2:$A$1500,MATCH(1,([1]ELECTRIC_DEV_MANUF!$B$2:$B$1500='DC Power Distribution (Desc)'!$E58)*([1]ELECTRIC_DEV_MANUF!$D$2:$D$1500=\"DCPWRDIS\"),0),0))","v":""},{"$f":"IF('DC Power Distribution (Desc)'!F58=\"\",\"\",INDEX([1]ELECTRIC_DEV_MODEL!$A$2:$A$1500,MATCH(1,([1]ELECTRIC_DEV_MODEL!$C$2:$C$1500='DC Power Distribution (Desc)'!$E58)*([1]ELECTRIC_DEV_MODEL!$D$2:$D$1500='DC Power Distribution (Desc)'!$F58)*([1]ELECTRIC_DEV_MODEL!$F$2:$F$1500=\"DCPWRDIS\"),0),0))","v":""},{"$f":"IF('DC Power Distribution (Desc)'!G58=\"\",\"\",'DC Power Distribution (Desc)'!G58)","v":""},{"$f":"IF('DC Power Distribution (Desc)'!H58=\"\",\"\",INDEX([1]YES_NO!$A$2:$A$100,MATCH('DC Power Distribution (Desc)'!$H58,[1]!MASTER_YES_NO_DESC[#Data],0),0))","v":""},{"$f":"IF('DC Power Distribution (Desc)'!I58=\"\",\"\",'DC Power Distribution (Desc)'!I58)","v":""},{"$f":"IF('DC Power Distribution (Desc)'!J58=\"\",\"\",'DC Power Distribution (Desc)'!J58)","v":""},{"$f":"IF('DC Power Distribution (Desc)'!K58=\"\",\"\",INDEX([1]YES_NO!$A$2:$A$100,MATCH('DC Power Distribution (Desc)'!$K58,[1]!MASTER_YES_NO_DESC[#Data],0),0))","v":""},{"$f":"IF('DC Power Distribution (Desc)'!L58=\"\",\"\",INDEX([1]DEV_INPUT_VOLTAGE!$A$2:$A$100,MATCH('DC Power Distribution (Desc)'!$L58,[1]!MASTER_DEV_INPUT_VOLTAGE_DESC[#Data],0),0))","v":""},{"$f":"IF('DC Power Distribution (Desc)'!M58=\"\",\"\",INDEX([1]DEV_OUTPUT_VOLTAGE!$A$2:$A$100,MATCH('DC Power Distribution (Desc)'!$M58,[1]!MASTER_DEV_INPUT_VOLTAGE_DESC[#Data],0),0))","v":""},{"$f":"IF('DC Power Distribution (Desc)'!N58=\"\",\"\",'DC Power Distribution (Desc)'!N58)","v":""},{"$f":"IF('DC Power Distribution (Desc)'!O58=\"\",\"\",'DC Power Distribution (Desc)'!O58)","v":""},{"$f":"IF('DC Power Distribution (Desc)'!P58=\"\",\"\",'DC Power Distribution (Desc)'!P58)","v":""},{"$f":"IF('DC Power Distribution (Desc)'!B58=\"\",\"\",\"NA\")","v":""}]
[{"$f":"IF('DC Power Distribution (Desc)'!B59=\"\",\"\",2029)","v":""},{"$f":"IF('DC Power Distribution (Desc)'!B59=\"\",\"\",'DC Power Distribution (Desc)'!B59)","v":""},{"$f":"IF('DC Power Distribution (Desc)'!D59=\"\",\"\",'DC Power Distribution (Desc)'!D59)","v":""},{"$f":"IF('DC Power Distribution (Desc)'!E59=\"\",\"\",INDEX([1]ELECTRIC_DEV_MANUF!$A$2:$A$1500,MATCH(1,([1]ELECTRIC_DEV_MANUF!$B$2:$B$1500='DC Power Distribution (Desc)'!$E59)*([1]ELECTRIC_DEV_MANUF!$D$2:$D$1500=\"DCPWRDIS\"),0),0))","v":""},{"$f":"IF('DC Power Distribution (Desc)'!F59=\"\",\"\",INDEX([1]ELECTRIC_DEV_MODEL!$A$2:$A$1500,MATCH(1,([1]ELECTRIC_DEV_MODEL!$C$2:$C$1500='DC Power Distribution (Desc)'!$E59)*([1]ELECTRIC_DEV_MODEL!$D$2:$D$1500='DC Power Distribution (Desc)'!$F59)*([1]ELECTRIC_DEV_MODEL!$F$2:$F$1500=\"DCPWRDIS\"),0),0))","v":""},{"$f":"IF('DC Power Distribution (Desc)'!G59=\"\",\"\",'DC Power Distribution (Desc)'!G59)","v":""},{"$f":"IF('DC Power Distribution (Desc)'!H59=\"\",\"\",INDEX([1]YES_NO!$A$2:$A$100,MATCH('DC Power Distribution (Desc)'!$H59,[1]!MASTER_YES_NO_DESC[#Data],0),0))","v":""},{"$f":"IF('DC Power Distribution (Desc)'!I59=\"\",\"\",'DC Power Distribution (Desc)'!I59)","v":""},{"$f":"IF('DC Power Distribution (Desc)'!J59=\"\",\"\",'DC Power Distribution (Desc)'!J59)","v":""},{"$f":"IF('DC Power Distribution (Desc)'!K59=\"\",\"\",INDEX([1]YES_NO!$A$2:$A$100,MATCH('DC Power Distribution (Desc)'!$K59,[1]!MASTER_YES_NO_DESC[#Data],0),0))","v":""},{"$f":"IF('DC Power Distribution (Desc)'!L59=\"\",\"\",INDEX([1]DEV_INPUT_VOLTAGE!$A$2:$A$100,MATCH('DC Power Distribution (Desc)'!$L59,[1]!MASTER_DEV_INPUT_VOLTAGE_DESC[#Data],0),0))","v":""},{"$f":"IF('DC Power Distribution (Desc)'!M59=\"\",\"\",INDEX([1]DEV_OUTPUT_VOLTAGE!$A$2:$A$100,MATCH('DC Power Distribution (Desc)'!$M59,[1]!MASTER_DEV_INPUT_VOLTAGE_DESC[#Data],0),0))","v":""},{"$f":"IF('DC Power Distribution (Desc)'!N59=\"\",\"\",'DC Power Distribution (Desc)'!N59)","v":""},{"$f":"IF('DC Power Distribution (Desc)'!O59=\"\",\"\",'DC Power Distribution (Desc)'!O59)","v":""},{"$f":"IF('DC Power Distribution (Desc)'!P59=\"\",\"\",'DC Power Distribution (Desc)'!P59)","v":""},{"$f":"IF('DC Power Distribution (Desc)'!B59=\"\",\"\",\"NA\")","v":""}]
[{"$f":"IF('DC Power Distribution (Desc)'!B60=\"\",\"\",2029)","v":""},{"$f":"IF('DC Power Distribution (Desc)'!B60=\"\",\"\",'DC Power Distribution (Desc)'!B60)","v":""},{"$f":"IF('DC Power Distribution (Desc)'!D60=\"\",\"\",'DC Power Distribution (Desc)'!D60)","v":""},{"$f":"IF('DC Power Distribution (Desc)'!E60=\"\",\"\",INDEX([1]ELECTRIC_DEV_MANUF!$A$2:$A$1500,MATCH(1,([1]ELECTRIC_DEV_MANUF!$B$2:$B$1500='DC Power Distribution (Desc)'!$E60)*([1]ELECTRIC_DEV_MANUF!$D$2:$D$1500=\"DCPWRDIS\"),0),0))","v":""},{"$f":"IF('DC Power Distribution (Desc)'!F60=\"\",\"\",INDEX([1]ELECTRIC_DEV_MODEL!$A$2:$A$1500,MATCH(1,([1]ELECTRIC_DEV_MODEL!$C$2:$C$1500='DC Power Distribution (Desc)'!$E60)*([1]ELECTRIC_DEV_MODEL!$D$2:$D$1500='DC Power Distribution (Desc)'!$F60)*([1]ELECTRIC_DEV_MODEL!$F$2:$F$1500=\"DCPWRDIS\"),0),0))","v":""},{"$f":"IF('DC Power Distribution (Desc)'!G60=\"\",\"\",'DC Power Distribution (Desc)'!G60)","v":""},{"$f":"IF('DC Power Distribution (Desc)'!H60=\"\",\"\",INDEX([1]YES_NO!$A$2:$A$100,MATCH('DC Power Distribution (Desc)'!$H60,[1]!MASTER_YES_NO_DESC[#Data],0),0))","v":""},{"$f":"IF('DC Power Distribution (Desc)'!I60=\"\",\"\",'DC Power Distribution (Desc)'!I60)","v":""},{"$f":"IF('DC Power Distribution (Desc)'!J60=\"\",\"\",'DC Power Distribution (Desc)'!J60)","v":""},{"$f":"IF('DC Power Distribution (Desc)'!K60=\"\",\"\",INDEX([1]YES_NO!$A$2:$A$100,MATCH('DC Power Distribution (Desc)'!$K60,[1]!MASTER_YES_NO_DESC[#Data],0),0))","v":""},{"$f":"IF('DC Power Distribution (Desc)'!L60=\"\",\"\",INDEX([1]DEV_INPUT_VOLTAGE!$A$2:$A$100,MATCH('DC Power Distribution (Desc)'!$L60,[1]!MASTER_DEV_INPUT_VOLTAGE_DESC[#Data],0),0))","v":""},{"$f":"IF('DC Power Distribution (Desc)'!M60=\"\",\"\",INDEX([1]DEV_OUTPUT_VOLTAGE!$A$2:$A$100,MATCH('DC Power Distribution (Desc)'!$M60,[1]!MASTER_DEV_INPUT_VOLTAGE_DESC[#Data],0),0))","v":""},{"$f":"IF('DC Power Distribution (Desc)'!N60=\"\",\"\",'DC Power Distribution (Desc)'!N60)","v":""},{"$f":"IF('DC Power Distribution (Desc)'!O60=\"\",\"\",'DC Power Distribution (Desc)'!O60)","v":""},{"$f":"IF('DC Power Distribution (Desc)'!P60=\"\",\"\",'DC Power Distribution (Desc)'!P60)","v":""},{"$f":"IF('DC Power Distribution (Desc)'!B60=\"\",\"\",\"NA\")","v":""}]
[{"$f":"IF('DC Power Distribution (Desc)'!B61=\"\",\"\",2029)","v":""},{"$f":"IF('DC Power Distribution (Desc)'!B61=\"\",\"\",'DC Power Distribution (Desc)'!B61)","v":""},{"$f":"IF('DC Power Distribution (Desc)'!D61=\"\",\"\",'DC Power Distribution (Desc)'!D61)","v":""},{"$f":"IF('DC Power Distribution (Desc)'!E61=\"\",\"\",INDEX([1]ELECTRIC_DEV_MANUF!$A$2:$A$1500,MATCH(1,([1]ELECTRIC_DEV_MANUF!$B$2:$B$1500='DC Power Distribution (Desc)'!$E61)*([1]ELECTRIC_DEV_MANUF!$D$2:$D$1500=\"DCPWRDIS\"),0),0))","v":""},{"$f":"IF('DC Power Distribution (Desc)'!F61=\"\",\"\",INDEX([1]ELECTRIC_DEV_MODEL!$A$2:$A$1500,MATCH(1,([1]ELECTRIC_DEV_MODEL!$C$2:$C$1500='DC Power Distribution (Desc)'!$E61)*([1]ELECTRIC_DEV_MODEL!$D$2:$D$1500='DC Power Distribution (Desc)'!$F61)*([1]ELECTRIC_DEV_MODEL!$F$2:$F$1500=\"DCPWRDIS\"),0),0))","v":""},{"$f":"IF('DC Power Distribution (Desc)'!G61=\"\",\"\",'DC Power Distribution (Desc)'!G61)","v":""},{"$f":"IF('DC Power Distribution (Desc)'!H61=\"\",\"\",INDEX([1]YES_NO!$A$2:$A$100,MATCH('DC Power Distribution (Desc)'!$H61,[1]!MASTER_YES_NO_DESC[#Data],0),0))","v":""},{"$f":"IF('DC Power Distribution (Desc)'!I61=\"\",\"\",'DC Power Distribution (Desc)'!I61)","v":""},{"$f":"IF('DC Power Distribution (Desc)'!J61=\"\",\"\",'DC Power Distribution (Desc)'!J61)","v":""},{"$f":"IF('DC Power Distribution (Desc)'!K61=\"\",\"\",INDEX([1]YES_NO!$A$2:$A$100,MATCH('DC Power Distribution (Desc)'!$K61,[1]!MASTER_YES_NO_DESC[#Data],0),0))","v":""},{"$f":"IF('DC Power Distribution (Desc)'!L61=\"\",\"\",INDEX([1]DEV_INPUT_VOLTAGE!$A$2:$A$100,MATCH('DC Power Distribution (Desc)'!$L61,[1]!MASTER_DEV_INPUT_VOLTAGE_DESC[#Data],0),0))","v":""},{"$f":"IF('DC Power Distribution (Desc)'!M61=\"\",\"\",INDEX([1]DEV_OUTPUT_VOLTAGE!$A$2:$A$100,MATCH('DC Power Distribution (Desc)'!$M61,[1]!MASTER_DEV_INPUT_VOLTAGE_DESC[#Data],0),0))","v":""},{"$f":"IF('DC Power Distribution (Desc)'!N61=\"\",\"\",'DC Power Distribution (Desc)'!N61)","v":""},{"$f":"IF('DC Power Distribution (Desc)'!O61=\"\",\"\",'DC Power Distribution (Desc)'!O61)","v":""},{"$f":"IF('DC Power Distribution (Desc)'!P61=\"\",\"\",'DC Power Distribution (Desc)'!P61)","v":""},{"$f":"IF('DC Power Distribution (Desc)'!B61=\"\",\"\",\"NA\")","v":""}]
[{"$f":"IF('DC Power Distribution (Desc)'!B62=\"\",\"\",2029)","v":""},{"$f":"IF('DC Power Distribution (Desc)'!B62=\"\",\"\",'DC Power Distribution (Desc)'!B62)","v":""},{"$f":"IF('DC Power Distribution (Desc)'!D62=\"\",\"\",'DC Power Distribution (Desc)'!D62)","v":""},{"$f":"IF('DC Power Distribution (Desc)'!E62=\"\",\"\",INDEX([1]ELECTRIC_DEV_MANUF!$A$2:$A$1500,MATCH(1,([1]ELECTRIC_DEV_MANUF!$B$2:$B$1500='DC Power Distribution (Desc)'!$E62)*([1]ELECTRIC_DEV_MANUF!$D$2:$D$1500=\"DCPWRDIS\"),0),0))","v":""},{"$f":"IF('DC Power Distribution (Desc)'!F62=\"\",\"\",INDEX([1]ELECTRIC_DEV_MODEL!$A$2:$A$1500,MATCH(1,([1]ELECTRIC_DEV_MODEL!$C$2:$C$1500='DC Power Distribution (Desc)'!$E62)*([1]ELECTRIC_DEV_MODEL!$D$2:$D$1500='DC Power Distribution (Desc)'!$F62)*([1]ELECTRIC_DEV_MODEL!$F$2:$F$1500=\"DCPWRDIS\"),0),0))","v":""},{"$f":"IF('DC Power Distribution (Desc)'!G62=\"\",\"\",'DC Power Distribution (Desc)'!G62)","v":""},{"$f":"IF('DC Power Distribution (Desc)'!H62=\"\",\"\",INDEX([1]YES_NO!$A$2:$A$100,MATCH('DC Power Distribution (Desc)'!$H62,[1]!MASTER_YES_NO_DESC[#Data],0),0))","v":""},{"$f":"IF('DC Power Distribution (Desc)'!I62=\"\",\"\",'DC Power Distribution (Desc)'!I62)","v":""},{"$f":"IF('DC Power Distribution (Desc)'!J62=\"\",\"\",'DC Power Distribution (Desc)'!J62)","v":""},{"$f":"IF('DC Power Distribution (Desc)'!K62=\"\",\"\",INDEX([1]YES_NO!$A$2:$A$100,MATCH('DC Power Distribution (Desc)'!$K62,[1]!MASTER_YES_NO_DESC[#Data],0),0))","v":""},{"$f":"IF('DC Power Distribution (Desc)'!L62=\"\",\"\",INDEX([1]DEV_INPUT_VOLTAGE!$A$2:$A$100,MATCH('DC Power Distribution (Desc)'!$L62,[1]!MASTER_DEV_INPUT_VOLTAGE_DESC[#Data],0),0))","v":""},{"$f":"IF('DC Power Distribution (Desc)'!M62=\"\",\"\",INDEX([1]DEV_OUTPUT_VOLTAGE!$A$2:$A$100,MATCH('DC Power Distribution (Desc)'!$M62,[1]!MASTER_DEV_INPUT_VOLTAGE_DESC[#Data],0),0))","v":""},{"$f":"IF('DC Power Distribution (Desc)'!N62=\"\",\"\",'DC Power Distribution (Desc)'!N62)","v":""},{"$f":"IF('DC Power Distribution (Desc)'!O62=\"\",\"\",'DC Power Distribution (Desc)'!O62)","v":""},{"$f":"IF('DC Power Distribution (Desc)'!P62=\"\",\"\",'DC Power Distribution (Desc)'!P62)","v":""},{"$f":"IF('DC Power Distribution (Desc)'!B62=\"\",\"\",\"NA\")","v":""}]
[{"$f":"IF('DC Power Distribution (Desc)'!B63=\"\",\"\",2029)","v":""},{"$f":"IF('DC Power Distribution (Desc)'!B63=\"\",\"\",'DC Power Distribution (Desc)'!B63)","v":""},{"$f":"IF('DC Power Distribution (Desc)'!D63=\"\",\"\",'DC Power Distribution (Desc)'!D63)","v":""},{"$f":"IF('DC Power Distribution (Desc)'!E63=\"\",\"\",INDEX([1]ELECTRIC_DEV_MANUF!$A$2:$A$1500,MATCH(1,([1]ELECTRIC_DEV_MANUF!$B$2:$B$1500='DC Power Distribution (Desc)'!$E63)*([1]ELECTRIC_DEV_MANUF!$D$2:$D$1500=\"DCPWRDIS\"),0),0))","v":""},{"$f":"IF('DC Power Distribution (Desc)'!F63=\"\",\"\",INDEX([1]ELECTRIC_DEV_MODEL!$A$2:$A$1500,MATCH(1,([1]ELECTRIC_DEV_MODEL!$C$2:$C$1500='DC Power Distribution (Desc)'!$E63)*([1]ELECTRIC_DEV_MODEL!$D$2:$D$1500='DC Power Distribution (Desc)'!$F63)*([1]ELECTRIC_DEV_MODEL!$F$2:$F$1500=\"DCPWRDIS\"),0),0))","v":""},{"$f":"IF('DC Power Distribution (Desc)'!G63=\"\",\"\",'DC Power Distribution (Desc)'!G63)","v":""},{"$f":"IF('DC Power Distribution (Desc)'!H63=\"\",\"\",INDEX([1]YES_NO!$A$2:$A$100,MATCH('DC Power Distribution (Desc)'!$H63,[1]!MASTER_YES_NO_DESC[#Data],0),0))","v":""},{"$f":"IF('DC Power Distribution (Desc)'!I63=\"\",\"\",'DC Power Distribution (Desc)'!I63)","v":""},{"$f":"IF('DC Power Distribution (Desc)'!J63=\"\",\"\",'DC Power Distribution (Desc)'!J63)","v":""},{"$f":"IF('DC Power Distribution (Desc)'!K63=\"\",\"\",INDEX([1]YES_NO!$A$2:$A$100,MATCH('DC Power Distribution (Desc)'!$K63,[1]!MASTER_YES_NO_DESC[#Data],0),0))","v":""},{"$f":"IF('DC Power Distribution (Desc)'!L63=\"\",\"\",INDEX([1]DEV_INPUT_VOLTAGE!$A$2:$A$100,MATCH('DC Power Distribution (Desc)'!$L63,[1]!MASTER_DEV_INPUT_VOLTAGE_DESC[#Data],0),0))","v":""},{"$f":"IF('DC Power Distribution (Desc)'!M63=\"\",\"\",INDEX([1]DEV_OUTPUT_VOLTAGE!$A$2:$A$100,MATCH('DC Power Distribution (Desc)'!$M63,[1]!MASTER_DEV_INPUT_VOLTAGE_DESC[#Data],0),0))","v":""},{"$f":"IF('DC Power Distribution (Desc)'!N63=\"\",\"\",'DC Power Distribution (Desc)'!N63)","v":""},{"$f":"IF('DC Power Distribution (Desc)'!O63=\"\",\"\",'DC Power Distribution (Desc)'!O63)","v":""},{"$f":"IF('DC Power Distribution (Desc)'!P63=\"\",\"\",'DC Power Distribution (Desc)'!P63)","v":""},{"$f":"IF('DC Power Distribution (Desc)'!B63=\"\",\"\",\"NA\")","v":""}]
[{"$f":"IF('DC Power Distribution (Desc)'!B64=\"\",\"\",2029)","v":""},{"$f":"IF('DC Power Distribution (Desc)'!B64=\"\",\"\",'DC Power Distribution (Desc)'!B64)","v":""},{"$f":"IF('DC Power Distribution (Desc)'!D64=\"\",\"\",'DC Power Distribution (Desc)'!D64)","v":""},{"$f":"IF('DC Power Distribution (Desc)'!E64=\"\",\"\",INDEX([1]ELECTRIC_DEV_MANUF!$A$2:$A$1500,MATCH(1,([1]ELECTRIC_DEV_MANUF!$B$2:$B$1500='DC Power Distribution (Desc)'!$E64)*([1]ELECTRIC_DEV_MANUF!$D$2:$D$1500=\"DCPWRDIS\"),0),0))","v":""},{"$f":"IF('DC Power Distribution (Desc)'!F64=\"\",\"\",INDEX([1]ELECTRIC_DEV_MODEL!$A$2:$A$1500,MATCH(1,([1]ELECTRIC_DEV_MODEL!$C$2:$C$1500='DC Power Distribution (Desc)'!$E64)*([1]ELECTRIC_DEV_MODEL!$D$2:$D$1500='DC Power Distribution (Desc)'!$F64)*([1]ELECTRIC_DEV_MODEL!$F$2:$F$1500=\"DCPWRDIS\"),0),0))","v":""},{"$f":"IF('DC Power Distribution (Desc)'!G64=\"\",\"\",'DC Power Distribution (Desc)'!G64)","v":""},{"$f":"IF('DC Power Distribution (Desc)'!H64=\"\",\"\",INDEX([1]YES_NO!$A$2:$A$100,MATCH('DC Power Distribution (Desc)'!$H64,[1]!MASTER_YES_NO_DESC[#Data],0),0))","v":""},{"$f":"IF('DC Power Distribution (Desc)'!I64=\"\",\"\",'DC Power Distribution (Desc)'!I64)","v":""},{"$f":"IF('DC Power Distribution (Desc)'!J64=\"\",\"\",'DC Power Distribution (Desc)'!J64)","v":""},{"$f":"IF('DC Power Distribution (Desc)'!K64=\"\",\"\",INDEX([1]YES_NO!$A$2:$A$100,MATCH('DC Power Distribution (Desc)'!$K64,[1]!MASTER_YES_NO_DESC[#Data],0),0))","v":""},{"$f":"IF('DC Power Distribution (Desc)'!L64=\"\",\"\",INDEX([1]DEV_INPUT_VOLTAGE!$A$2:$A$100,MATCH('DC Power Distribution (Desc)'!$L64,[1]!MASTER_DEV_INPUT_VOLTAGE_DESC[#Data],0),0))","v":""},{"$f":"IF('DC Power Distribution (Desc)'!M64=\"\",\"\",INDEX([1]DEV_OUTPUT_VOLTAGE!$A$2:$A$100,MATCH('DC Power Distribution (Desc)'!$M64,[1]!MASTER_DEV_INPUT_VOLTAGE_DESC[#Data],0),0))","v":""},{"$f":"IF('DC Power Distribution (Desc)'!N64=\"\",\"\",'DC Power Distribution (Desc)'!N64)","v":""},{"$f":"IF('DC Power Distribution (Desc)'!O64=\"\",\"\",'DC Power Distribution (Desc)'!O64)","v":""},{"$f":"IF('DC Power Distribution (Desc)'!P64=\"\",\"\",'DC Power Distribution (Desc)'!P64)","v":""},{"$f":"IF('DC Power Distribution (Desc)'!B64=\"\",\"\",\"NA\")","v":""}]
[{"$f":"IF('DC Power Distribution (Desc)'!B65=\"\",\"\",2029)","v":""},{"$f":"IF('DC Power Distribution (Desc)'!B65=\"\",\"\",'DC Power Distribution (Desc)'!B65)","v":""},{"$f":"IF('DC Power Distribution (Desc)'!D65=\"\",\"\",'DC Power Distribution (Desc)'!D65)","v":""},{"$f":"IF('DC Power Distribution (Desc)'!E65=\"\",\"\",INDEX([1]ELECTRIC_DEV_MANUF!$A$2:$A$1500,MATCH(1,([1]ELECTRIC_DEV_MANUF!$B$2:$B$1500='DC Power Distribution (Desc)'!$E65)*([1]ELECTRIC_DEV_MANUF!$D$2:$D$1500=\"DCPWRDIS\"),0),0))","v":""},{"$f":"IF('DC Power Distribution (Desc)'!F65=\"\",\"\",INDEX([1]ELECTRIC_DEV_MODEL!$A$2:$A$1500,MATCH(1,([1]ELECTRIC_DEV_MODEL!$C$2:$C$1500='DC Power Distribution (Desc)'!$E65)*([1]ELECTRIC_DEV_MODEL!$D$2:$D$1500='DC Power Distribution (Desc)'!$F65)*([1]ELECTRIC_DEV_MODEL!$F$2:$F$1500=\"DCPWRDIS\"),0),0))","v":""},{"$f":"IF('DC Power Distribution (Desc)'!G65=\"\",\"\",'DC Power Distribution (Desc)'!G65)","v":""},{"$f":"IF('DC Power Distribution (Desc)'!H65=\"\",\"\",INDEX([1]YES_NO!$A$2:$A$100,MATCH('DC Power Distribution (Desc)'!$H65,[1]!MASTER_YES_NO_DESC[#Data],0),0))","v":""},{"$f":"IF('DC Power Distribution (Desc)'!I65=\"\",\"\",'DC Power Distribution (Desc)'!I65)","v":""},{"$f":"IF('DC Power Distribution (Desc)'!J65=\"\",\"\",'DC Power Distribution (Desc)'!J65)","v":""},{"$f":"IF('DC Power Distribution (Desc)'!K65=\"\",\"\",INDEX([1]YES_NO!$A$2:$A$100,MATCH('DC Power Distribution (Desc)'!$K65,[1]!MASTER_YES_NO_DESC[#Data],0),0))","v":""},{"$f":"IF('DC Power Distribution (Desc)'!L65=\"\",\"\",INDEX([1]DEV_INPUT_VOLTAGE!$A$2:$A$100,MATCH('DC Power Distribution (Desc)'!$L65,[1]!MASTER_DEV_INPUT_VOLTAGE_DESC[#Data],0),0))","v":""},{"$f":"IF('DC Power Distribution (Desc)'!M65=\"\",\"\",INDEX([1]DEV_OUTPUT_VOLTAGE!$A$2:$A$100,MATCH('DC Power Distribution (Desc)'!$M65,[1]!MASTER_DEV_INPUT_VOLTAGE_DESC[#Data],0),0))","v":""},{"$f":"IF('DC Power Distribution (Desc)'!N65=\"\",\"\",'DC Power Distribution (Desc)'!N65)","v":""},{"$f":"IF('DC Power Distribution (Desc)'!O65=\"\",\"\",'DC Power Distribution (Desc)'!O65)","v":""},{"$f":"IF('DC Power Distribution (Desc)'!P65=\"\",\"\",'DC Power Distribution (Desc)'!P65)","v":""},{"$f":"IF('DC Power Distribution (Desc)'!B65=\"\",\"\",\"NA\")","v":""}]
[{"$f":"IF('DC Power Distribution (Desc)'!B66=\"\",\"\",2029)","v":""},{"$f":"IF('DC Power Distribution (Desc)'!B66=\"\",\"\",'DC Power Distribution (Desc)'!B66)","v":""},{"$f":"IF('DC Power Distribution (Desc)'!D66=\"\",\"\",'DC Power Distribution (Desc)'!D66)","v":""},{"$f":"IF('DC Power Distribution (Desc)'!E66=\"\",\"\",INDEX([1]ELECTRIC_DEV_MANUF!$A$2:$A$1500,MATCH(1,([1]ELECTRIC_DEV_MANUF!$B$2:$B$1500='DC Power Distribution (Desc)'!$E66)*([1]ELECTRIC_DEV_MANUF!$D$2:$D$1500=\"DCPWRDIS\"),0),0))","v":""},{"$f":"IF('DC Power Distribution (Desc)'!F66=\"\",\"\",INDEX([1]ELECTRIC_DEV_MODEL!$A$2:$A$1500,MATCH(1,([1]ELECTRIC_DEV_MODEL!$C$2:$C$1500='DC Power Distribution (Desc)'!$E66)*([1]ELECTRIC_DEV_MODEL!$D$2:$D$1500='DC Power Distribution (Desc)'!$F66)*([1]ELECTRIC_DEV_MODEL!$F$2:$F$1500=\"DCPWRDIS\"),0),0))","v":""},{"$f":"IF('DC Power Distribution (Desc)'!G66=\"\",\"\",'DC Power Distribution (Desc)'!G66)","v":""},{"$f":"IF('DC Power Distribution (Desc)'!H66=\"\",\"\",INDEX([1]YES_NO!$A$2:$A$100,MATCH('DC Power Distribution (Desc)'!$H66,[1]!MASTER_YES_NO_DESC[#Data],0),0))","v":""},{"$f":"IF('DC Power Distribution (Desc)'!I66=\"\",\"\",'DC Power Distribution (Desc)'!I66)","v":""},{"$f":"IF('DC Power Distribution (Desc)'!J66=\"\",\"\",'DC Power Distribution (Desc)'!J66)","v":""},{"$f":"IF('DC Power Distribution (Desc)'!K66=\"\",\"\",INDEX([1]YES_NO!$A$2:$A$100,MATCH('DC Power Distribution (Desc)'!$K66,[1]!MASTER_YES_NO_DESC[#Data],0),0))","v":""},{"$f":"IF('DC Power Distribution (Desc)'!L66=\"\",\"\",INDEX([1]DEV_INPUT_VOLTAGE!$A$2:$A$100,MATCH('DC Power Distribution (Desc)'!$L66,[1]!MASTER_DEV_INPUT_VOLTAGE_DESC[#Data],0),0))","v":""},{"$f":"IF('DC Power Distribution (Desc)'!M66=\"\",\"\",INDEX([1]DEV_OUTPUT_VOLTAGE!$A$2:$A$100,MATCH('DC Power Distribution (Desc)'!$M66,[1]!MASTER_DEV_INPUT_VOLTAGE_DESC[#Data],0),0))","v":""},{"$f":"IF('DC Power Distribution (Desc)'!N66=\"\",\"\",'DC Power Distribution (Desc)'!N66)","v":""},{"$f":"IF('DC Power Distribution (Desc)'!O66=\"\",\"\",'DC Power Distribution (Desc)'!O66)","v":""},{"$f":"IF('DC Power Distribution (Desc)'!P66=\"\",\"\",'DC Power Distribution (Desc)'!P66)","v":""},{"$f":"IF('DC Power Distribution (Desc)'!B66=\"\",\"\",\"NA\")","v":""}]
[{"$f":"IF('DC Power Distribution (Desc)'!B67=\"\",\"\",2029)","v":""},{"$f":"IF('DC Power Distribution (Desc)'!B67=\"\",\"\",'DC Power Distribution (Desc)'!B67)","v":""},{"$f":"IF('DC Power Distribution (Desc)'!D67=\"\",\"\",'DC Power Distribution (Desc)'!D67)","v":""},{"$f":"IF('DC Power Distribution (Desc)'!E67=\"\",\"\",INDEX([1]ELECTRIC_DEV_MANUF!$A$2:$A$1500,MATCH(1,([1]ELECTRIC_DEV_MANUF!$B$2:$B$1500='DC Power Distribution (Desc)'!$E67)*([1]ELECTRIC_DEV_MANUF!$D$2:$D$1500=\"DCPWRDIS\"),0),0))","v":""},{"$f":"IF('DC Power Distribution (Desc)'!F67=\"\",\"\",INDEX([1]ELECTRIC_DEV_MODEL!$A$2:$A$1500,MATCH(1,([1]ELECTRIC_DEV_MODEL!$C$2:$C$1500='DC Power Distribution (Desc)'!$E67)*([1]ELECTRIC_DEV_MODEL!$D$2:$D$1500='DC Power Distribution (Desc)'!$F67)*([1]ELECTRIC_DEV_MODEL!$F$2:$F$1500=\"DCPWRDIS\"),0),0))","v":""},{"$f":"IF('DC Power Distribution (Desc)'!G67=\"\",\"\",'DC Power Distribution (Desc)'!G67)","v":""},{"$f":"IF('DC Power Distribution (Desc)'!H67=\"\",\"\",INDEX([1]YES_NO!$A$2:$A$100,MATCH('DC Power Distribution (Desc)'!$H67,[1]!MASTER_YES_NO_DESC[#Data],0),0))","v":""},{"$f":"IF('DC Power Distribution (Desc)'!I67=\"\",\"\",'DC Power Distribution (Desc)'!I67)","v":""},{"$f":"IF('DC Power Distribution (Desc)'!J67=\"\",\"\",'DC Power Distribution (Desc)'!J67)","v":""},{"$f":"IF('DC Power Distribution (Desc)'!K67=\"\",\"\",INDEX([1]YES_NO!$A$2:$A$100,MATCH('DC Power Distribution (Desc)'!$K67,[1]!MASTER_YES_NO_DESC[#Data],0),0))","v":""},{"$f":"IF('DC Power Distribution (Desc)'!L67=\"\",\"\",INDEX([1]DEV_INPUT_VOLTAGE!$A$2:$A$100,MATCH('DC Power Distribution (Desc)'!$L67,[1]!MASTER_DEV_INPUT_VOLTAGE_DESC[#Data],0),0))","v":""},{"$f":"IF('DC Power Distribution (Desc)'!M67=\"\",\"\",INDEX([1]DEV_OUTPUT_VOLTAGE!$A$2:$A$100,MATCH('DC Power Distribution (Desc)'!$M67,[1]!MASTER_DEV_INPUT_VOLTAGE_DESC[#Data],0),0))","v":""},{"$f":"IF('DC Power Distribution (Desc)'!N67=\"\",\"\",'DC Power Distribution (Desc)'!N67)","v":""},{"$f":"IF('DC Power Distribution (Desc)'!O67=\"\",\"\",'DC Power Distribution (Desc)'!O67)","v":""},{"$f":"IF('DC Power Distribution (Desc)'!P67=\"\",\"\",'DC Power Distribution (Desc)'!P67)","v":""},{"$f":"IF('DC Power Distribution (Desc)'!B67=\"\",\"\",\"NA\")","v":""}]
[{"$f":"IF('DC Power Distribution (Desc)'!B68=\"\",\"\",2029)","v":""},{"$f":"IF('DC Power Distribution (Desc)'!B68=\"\",\"\",'DC Power Distribution (Desc)'!B68)","v":""},{"$f":"IF('DC Power Distribution (Desc)'!D68=\"\",\"\",'DC Power Distribution (Desc)'!D68)","v":""},{"$f":"IF('DC Power Distribution (Desc)'!E68=\"\",\"\",INDEX([1]ELECTRIC_DEV_MANUF!$A$2:$A$1500,MATCH(1,([1]ELECTRIC_DEV_MANUF!$B$2:$B$1500='DC Power Distribution (Desc)'!$E68)*([1]ELECTRIC_DEV_MANUF!$D$2:$D$1500=\"DCPWRDIS\"),0),0))","v":""},{"$f":"IF('DC Power Distribution (Desc)'!F68=\"\",\"\",INDEX([1]ELECTRIC_DEV_MODEL!$A$2:$A$1500,MATCH(1,([1]ELECTRIC_DEV_MODEL!$C$2:$C$1500='DC Power Distribution (Desc)'!$E68)*([1]ELECTRIC_DEV_MODEL!$D$2:$D$1500='DC Power Distribution (Desc)'!$F68)*([1]ELECTRIC_DEV_MODEL!$F$2:$F$1500=\"DCPWRDIS\"),0),0))","v":""},{"$f":"IF('DC Power Distribution (Desc)'!G68=\"\",\"\",'DC Power Distribution (Desc)'!G68)","v":""},{"$f":"IF('DC Power Distribution (Desc)'!H68=\"\",\"\",INDEX([1]YES_NO!$A$2:$A$100,MATCH('DC Power Distribution (Desc)'!$H68,[1]!MASTER_YES_NO_DESC[#Data],0),0))","v":""},{"$f":"IF('DC Power Distribution (Desc)'!I68=\"\",\"\",'DC Power Distribution (Desc)'!I68)","v":""},{"$f":"IF('DC Power Distribution (Desc)'!J68=\"\",\"\",'DC Power Distribution (Desc)'!J68)","v":""},{"$f":"IF('DC Power Distribution (Desc)'!K68=\"\",\"\",INDEX([1]YES_NO!$A$2:$A$100,MATCH('DC Power Distribution (Desc)'!$K68,[1]!MASTER_YES_NO_DESC[#Data],0),0))","v":""},{"$f":"IF('DC Power Distribution (Desc)'!L68=\"\",\"\",INDEX([1]DEV_INPUT_VOLTAGE!$A$2:$A$100,MATCH('DC Power Distribution (Desc)'!$L68,[1]!MASTER_DEV_INPUT_VOLTAGE_DESC[#Data],0),0))","v":""},{"$f":"IF('DC Power Distribution (Desc)'!M68=\"\",\"\",INDEX([1]DEV_OUTPUT_VOLTAGE!$A$2:$A$100,MATCH('DC Power Distribution (Desc)'!$M68,[1]!MASTER_DEV_INPUT_VOLTAGE_DESC[#Data],0),0))","v":""},{"$f":"IF('DC Power Distribution (Desc)'!N68=\"\",\"\",'DC Power Distribution (Desc)'!N68)","v":""},{"$f":"IF('DC Power Distribution (Desc)'!O68=\"\",\"\",'DC Power Distribution (Desc)'!O68)","v":""},{"$f":"IF('DC Power Distribution (Desc)'!P68=\"\",\"\",'DC Power Distribution (Desc)'!P68)","v":""},{"$f":"IF('DC Power Distribution (Desc)'!B68=\"\",\"\",\"NA\")","v":""}]
[{"$f":"IF('DC Power Distribution (Desc)'!B69=\"\",\"\",2029)","v":""},{"$f":"IF('DC Power Distribution (Desc)'!B69=\"\",\"\",'DC Power Distribution (Desc)'!B69)","v":""},{"$f":"IF('DC Power Distribution (Desc)'!D69=\"\",\"\",'DC Power Distribution (Desc)'!D69)","v":""},{"$f":"IF('DC Power Distribution (Desc)'!E69=\"\",\"\",INDEX([1]ELECTRIC_DEV_MANUF!$A$2:$A$1500,MATCH(1,([1]ELECTRIC_DEV_MANUF!$B$2:$B$1500='DC Power Distribution (Desc)'!$E69)*([1]ELECTRIC_DEV_MANUF!$D$2:$D$1500=\"DCPWRDIS\"),0),0))","v":""},{"$f":"IF('DC Power Distribution (Desc)'!F69=\"\",\"\",INDEX([1]ELECTRIC_DEV_MODEL!$A$2:$A$1500,MATCH(1,([1]ELECTRIC_DEV_MODEL!$C$2:$C$1500='DC Power Distribution (Desc)'!$E69)*([1]ELECTRIC_DEV_MODEL!$D$2:$D$1500='DC Power Distribution (Desc)'!$F69)*([1]ELECTRIC_DEV_MODEL!$F$2:$F$1500=\"DCPWRDIS\"),0),0))","v":""},{"$f":"IF('DC Power Distribution (Desc)'!G69=\"\",\"\",'DC Power Distribution (Desc)'!G69)","v":""},{"$f":"IF('DC Power Distribution (Desc)'!H69=\"\",\"\",INDEX([1]YES_NO!$A$2:$A$100,MATCH('DC Power Distribution (Desc)'!$H69,[1]!MASTER_YES_NO_DESC[#Data],0),0))","v":""},{"$f":"IF('DC Power Distribution (Desc)'!I69=\"\",\"\",'DC Power Distribution (Desc)'!I69)","v":""},{"$f":"IF('DC Power Distribution (Desc)'!J69=\"\",\"\",'DC Power Distribution (Desc)'!J69)","v":""},{"$f":"IF('DC Power Distribution (Desc)'!K69=\"\",\"\",INDEX([1]YES_NO!$A$2:$A$100,MATCH('DC Power Distribution (Desc)'!$K69,[1]!MASTER_YES_NO_DESC[#Data],0),0))","v":""},{"$f":"IF('DC Power Distribution (Desc)'!L69=\"\",\"\",INDEX([1]DEV_INPUT_VOLTAGE!$A$2:$A$100,MATCH('DC Power Distribution (Desc)'!$L69,[1]!MASTER_DEV_INPUT_VOLTAGE_DESC[#Data],0),0))","v":""},{"$f":"IF('DC Power Distribution (Desc)'!M69=\"\",\"\",INDEX([1]DEV_OUTPUT_VOLTAGE!$A$2:$A$100,MATCH('DC Power Distribution (Desc)'!$M69,[1]!MASTER_DEV_INPUT_VOLTAGE_DESC[#Data],0),0))","v":""},{"$f":"IF('DC Power Distribution (Desc)'!N69=\"\",\"\",'DC Power Distribution (Desc)'!N69)","v":""},{"$f":"IF('DC Power Distribution (Desc)'!O69=\"\",\"\",'DC Power Distribution (Desc)'!O69)","v":""},{"$f":"IF('DC Power Distribution (Desc)'!P69=\"\",\"\",'DC Power Distribution (Desc)'!P69)","v":""},{"$f":"IF('DC Power Distribution (Desc)'!B69=\"\",\"\",\"NA\")","v":""}]
[{"$f":"IF('DC Power Distribution (Desc)'!B70=\"\",\"\",2029)","v":""},{"$f":"IF('DC Power Distribution (Desc)'!B70=\"\",\"\",'DC Power Distribution (Desc)'!B70)","v":""},{"$f":"IF('DC Power Distribution (Desc)'!D70=\"\",\"\",'DC Power Distribution (Desc)'!D70)","v":""},{"$f":"IF('DC Power Distribution (Desc)'!E70=\"\",\"\",INDEX([1]ELECTRIC_DEV_MANUF!$A$2:$A$1500,MATCH(1,([1]ELECTRIC_DEV_MANUF!$B$2:$B$1500='DC Power Distribution (Desc)'!$E70)*([1]ELECTRIC_DEV_MANUF!$D$2:$D$1500=\"DCPWRDIS\"),0),0))","v":""},{"$f":"IF('DC Power Distribution (Desc)'!F70=\"\",\"\",INDEX([1]ELECTRIC_DEV_MODEL!$A$2:$A$1500,MATCH(1,([1]ELECTRIC_DEV_MODEL!$C$2:$C$1500='DC Power Distribution (Desc)'!$E70)*([1]ELECTRIC_DEV_MODEL!$D$2:$D$1500='DC Power Distribution (Desc)'!$F70)*([1]ELECTRIC_DEV_MODEL!$F$2:$F$1500=\"DCPWRDIS\"),0),0))","v":""},{"$f":"IF('DC Power Distribution (Desc)'!G70=\"\",\"\",'DC Power Distribution (Desc)'!G70)","v":""},{"$f":"IF('DC Power Distribution (Desc)'!H70=\"\",\"\",INDEX([1]YES_NO!$A$2:$A$100,MATCH('DC Power Distribution (Desc)'!$H70,[1]!MASTER_YES_NO_DESC[#Data],0),0))","v":""},{"$f":"IF('DC Power Distribution (Desc)'!I70=\"\",\"\",'DC Power Distribution (Desc)'!I70)","v":""},{"$f":"IF('DC Power Distribution (Desc)'!J70=\"\",\"\",'DC Power Distribution (Desc)'!J70)","v":""},{"$f":"IF('DC Power Distribution (Desc)'!K70=\"\",\"\",INDEX([1]YES_NO!$A$2:$A$100,MATCH('DC Power Distribution (Desc)'!$K70,[1]!MASTER_YES_NO_DESC[#Data],0),0))","v":""},{"$f":"IF('DC Power Distribution (Desc)'!L70=\"\",\"\",INDEX([1]DEV_INPUT_VOLTAGE!$A$2:$A$100,MATCH('DC Power Distribution (Desc)'!$L70,[1]!MASTER_DEV_INPUT_VOLTAGE_DESC[#Data],0),0))","v":""},{"$f":"IF('DC Power Distribution (Desc)'!M70=\"\",\"\",INDEX([1]DEV_OUTPUT_VOLTAGE!$A$2:$A$100,MATCH('DC Power Distribution (Desc)'!$M70,[1]!MASTER_DEV_INPUT_VOLTAGE_DESC[#Data],0),0))","v":""},{"$f":"IF('DC Power Distribution (Desc)'!N70=\"\",\"\",'DC Power Distribution (Desc)'!N70)","v":""},{"$f":"IF('DC Power Distribution (Desc)'!O70=\"\",\"\",'DC Power Distribution (Desc)'!O70)","v":""},{"$f":"IF('DC Power Distribution (Desc)'!P70=\"\",\"\",'DC Power Distribution (Desc)'!P70)","v":""},{"$f":"IF('DC Power Distribution (Desc)'!B70=\"\",\"\",\"NA\")","v":""}]
[{"$f":"IF('DC Power Distribution (Desc)'!B71=\"\",\"\",2029)","v":""},{"$f":"IF('DC Power Distribution (Desc)'!B71=\"\",\"\",'DC Power Distribution (Desc)'!B71)","v":""},{"$f":"IF('DC Power Distribution (Desc)'!D71=\"\",\"\",'DC Power Distribution (Desc)'!D71)","v":""},{"$f":"IF('DC Power Distribution (Desc)'!E71=\"\",\"\",INDEX([1]ELECTRIC_DEV_MANUF!$A$2:$A$1500,MATCH(1,([1]ELECTRIC_DEV_MANUF!$B$2:$B$1500='DC Power Distribution (Desc)'!$E71)*([1]ELECTRIC_DEV_MANUF!$D$2:$D$1500=\"DCPWRDIS\"),0),0))","v":""},{"$f":"IF('DC Power Distribution (Desc)'!F71=\"\",\"\",INDEX([1]ELECTRIC_DEV_MODEL!$A$2:$A$1500,MATCH(1,([1]ELECTRIC_DEV_MODEL!$C$2:$C$1500='DC Power Distribution (Desc)'!$E71)*([1]ELECTRIC_DEV_MODEL!$D$2:$D$1500='DC Power Distribution (Desc)'!$F71)*([1]ELECTRIC_DEV_MODEL!$F$2:$F$1500=\"DCPWRDIS\"),0),0))","v":""},{"$f":"IF('DC Power Distribution (Desc)'!G71=\"\",\"\",'DC Power Distribution (Desc)'!G71)","v":""},{"$f":"IF('DC Power Distribution (Desc)'!H71=\"\",\"\",INDEX([1]YES_NO!$A$2:$A$100,MATCH('DC Power Distribution (Desc)'!$H71,[1]!MASTER_YES_NO_DESC[#Data],0),0))","v":""},{"$f":"IF('DC Power Distribution (Desc)'!I71=\"\",\"\",'DC Power Distribution (Desc)'!I71)","v":""},{"$f":"IF('DC Power Distribution (Desc)'!J71=\"\",\"\",'DC Power Distribution (Desc)'!J71)","v":""},{"$f":"IF('DC Power Distribution (Desc)'!K71=\"\",\"\",INDEX([1]YES_NO!$A$2:$A$100,MATCH('DC Power Distribution (Desc)'!$K71,[1]!MASTER_YES_NO_DESC[#Data],0),0))","v":""},{"$f":"IF('DC Power Distribution (Desc)'!L71=\"\",\"\",INDEX([1]DEV_INPUT_VOLTAGE!$A$2:$A$100,MATCH('DC Power Distribution (Desc)'!$L71,[1]!MASTER_DEV_INPUT_VOLTAGE_DESC[#Data],0),0))","v":""},{"$f":"IF('DC Power Distribution (Desc)'!M71=\"\",\"\",INDEX([1]DEV_OUTPUT_VOLTAGE!$A$2:$A$100,MATCH('DC Power Distribution (Desc)'!$M71,[1]!MASTER_DEV_INPUT_VOLTAGE_DESC[#Data],0),0))","v":""},{"$f":"IF('DC Power Distribution (Desc)'!N71=\"\",\"\",'DC Power Distribution (Desc)'!N71)","v":""},{"$f":"IF('DC Power Distribution (Desc)'!O71=\"\",\"\",'DC Power Distribution (Desc)'!O71)","v":""},{"$f":"IF('DC Power Distribution (Desc)'!P71=\"\",\"\",'DC Power Distribution (Desc)'!P71)","v":""},{"$f":"IF('DC Power Distribution (Desc)'!B71=\"\",\"\",\"NA\")","v":""}]
[{"$f":"IF('DC Power Distribution (Desc)'!B72=\"\",\"\",2029)","v":""},{"$f":"IF('DC Power Distribution (Desc)'!B72=\"\",\"\",'DC Power Distribution (Desc)'!B72)","v":""},{"$f":"IF('DC Power Distribution (Desc)'!D72=\"\",\"\",'DC Power Distribution (Desc)'!D72)","v":""},{"$f":"IF('DC Power Distribution (Desc)'!E72=\"\",\"\",INDEX([1]ELECTRIC_DEV_MANUF!$A$2:$A$1500,MATCH(1,([1]ELECTRIC_DEV_MANUF!$B$2:$B$1500='DC Power Distribution (Desc)'!$E72)*([1]ELECTRIC_DEV_MANUF!$D$2:$D$1500=\"DCPWRDIS\"),0),0))","v":""},{"$f":"IF('DC Power Distribution (Desc)'!F72=\"\",\"\",INDEX([1]ELECTRIC_DEV_MODEL!$A$2:$A$1500,MATCH(1,([1]ELECTRIC_DEV_MODEL!$C$2:$C$1500='DC Power Distribution (Desc)'!$E72)*([1]ELECTRIC_DEV_MODEL!$D$2:$D$1500='DC Power Distribution (Desc)'!$F72)*([1]ELECTRIC_DEV_MODEL!$F$2:$F$1500=\"DCPWRDIS\"),0),0))","v":""},{"$f":"IF('DC Power Distribution (Desc)'!G72=\"\",\"\",'DC Power Distribution (Desc)'!G72)","v":""},{"$f":"IF('DC Power Distribution (Desc)'!H72=\"\",\"\",INDEX([1]YES_NO!$A$2:$A$100,MATCH('DC Power Distribution (Desc)'!$H72,[1]!MASTER_YES_NO_DESC[#Data],0),0))","v":""},{"$f":"IF('DC Power Distribution (Desc)'!I72=\"\",\"\",'DC Power Distribution (Desc)'!I72)","v":""},{"$f":"IF('DC Power Distribution (Desc)'!J72=\"\",\"\",'DC Power Distribution (Desc)'!J72)","v":""},{"$f":"IF('DC Power Distribution (Desc)'!K72=\"\",\"\",INDEX([1]YES_NO!$A$2:$A$100,MATCH('DC Power Distribution (Desc)'!$K72,[1]!MASTER_YES_NO_DESC[#Data],0),0))","v":""},{"$f":"IF('DC Power Distribution (Desc)'!L72=\"\",\"\",INDEX([1]DEV_INPUT_VOLTAGE!$A$2:$A$100,MATCH('DC Power Distribution (Desc)'!$L72,[1]!MASTER_DEV_INPUT_VOLTAGE_DESC[#Data],0),0))","v":""},{"$f":"IF('DC Power Distribution (Desc)'!M72=\"\",\"\",INDEX([1]DEV_OUTPUT_VOLTAGE!$A$2:$A$100,MATCH('DC Power Distribution (Desc)'!$M72,[1]!MASTER_DEV_INPUT_VOLTAGE_DESC[#Data],0),0))","v":""},{"$f":"IF('DC Power Distribution (Desc)'!N72=\"\",\"\",'DC Power Distribution (Desc)'!N72)","v":""},{"$f":"IF('DC Power Distribution (Desc)'!O72=\"\",\"\",'DC Power Distribution (Desc)'!O72)","v":""},{"$f":"IF('DC Power Distribution (Desc)'!P72=\"\",\"\",'DC Power Distribution (Desc)'!P72)","v":""},{"$f":"IF('DC Power Distribution (Desc)'!B72=\"\",\"\",\"NA\")","v":""}]
[{"$f":"IF('DC Power Distribution (Desc)'!B73=\"\",\"\",2029)","v":""},{"$f":"IF('DC Power Distribution (Desc)'!B73=\"\",\"\",'DC Power Distribution (Desc)'!B73)","v":""},{"$f":"IF('DC Power Distribution (Desc)'!D73=\"\",\"\",'DC Power Distribution (Desc)'!D73)","v":""},{"$f":"IF('DC Power Distribution (Desc)'!E73=\"\",\"\",INDEX([1]ELECTRIC_DEV_MANUF!$A$2:$A$1500,MATCH(1,([1]ELECTRIC_DEV_MANUF!$B$2:$B$1500='DC Power Distribution (Desc)'!$E73)*([1]ELECTRIC_DEV_MANUF!$D$2:$D$1500=\"DCPWRDIS\"),0),0))","v":""},{"$f":"IF('DC Power Distribution (Desc)'!F73=\"\",\"\",INDEX([1]ELECTRIC_DEV_MODEL!$A$2:$A$1500,MATCH(1,([1]ELECTRIC_DEV_MODEL!$C$2:$C$1500='DC Power Distribution (Desc)'!$E73)*([1]ELECTRIC_DEV_MODEL!$D$2:$D$1500='DC Power Distribution (Desc)'!$F73)*([1]ELECTRIC_DEV_MODEL!$F$2:$F$1500=\"DCPWRDIS\"),0),0))","v":""},{"$f":"IF('DC Power Distribution (Desc)'!G73=\"\",\"\",'DC Power Distribution (Desc)'!G73)","v":""},{"$f":"IF('DC Power Distribution (Desc)'!H73=\"\",\"\",INDEX([1]YES_NO!$A$2:$A$100,MATCH('DC Power Distribution (Desc)'!$H73,[1]!MASTER_YES_NO_DESC[#Data],0),0))","v":""},{"$f":"IF('DC Power Distribution (Desc)'!I73=\"\",\"\",'DC Power Distribution (Desc)'!I73)","v":""},{"$f":"IF('DC Power Distribution (Desc)'!J73=\"\",\"\",'DC Power Distribution (Desc)'!J73)","v":""},{"$f":"IF('DC Power Distribution (Desc)'!K73=\"\",\"\",INDEX([1]YES_NO!$A$2:$A$100,MATCH('DC Power Distribution (Desc)'!$K73,[1]!MASTER_YES_NO_DESC[#Data],0),0))","v":""},{"$f":"IF('DC Power Distribution (Desc)'!L73=\"\",\"\",INDEX([1]DEV_INPUT_VOLTAGE!$A$2:$A$100,MATCH('DC Power Distribution (Desc)'!$L73,[1]!MASTER_DEV_INPUT_VOLTAGE_DESC[#Data],0),0))","v":""},{"$f":"IF('DC Power Distribution (Desc)'!M73=\"\",\"\",INDEX([1]DEV_OUTPUT_VOLTAGE!$A$2:$A$100,MATCH('DC Power Distribution (Desc)'!$M73,[1]!MASTER_DEV_INPUT_VOLTAGE_DESC[#Data],0),0))","v":""},{"$f":"IF('DC Power Distribution (Desc)'!N73=\"\",\"\",'DC Power Distribution (Desc)'!N73)","v":""},{"$f":"IF('DC Power Distribution (Desc)'!O73=\"\",\"\",'DC Power Distribution (Desc)'!O73)","v":""},{"$f":"IF('DC Power Distribution (Desc)'!P73=\"\",\"\",'DC Power Distribution (Desc)'!P73)","v":""},{"$f":"IF('DC Power Distribution (Desc)'!B73=\"\",\"\",\"NA\")","v":""}]
[{"$f":"IF('DC Power Distribution (Desc)'!B74=\"\",\"\",2029)","v":""},{"$f":"IF('DC Power Distribution (Desc)'!B74=\"\",\"\",'DC Power Distribution (Desc)'!B74)","v":""},{"$f":"IF('DC Power Distribution (Desc)'!D74=\"\",\"\",'DC Power Distribution (Desc)'!D74)","v":""},{"$f":"IF('DC Power Distribution (Desc)'!E74=\"\",\"\",INDEX([1]ELECTRIC_DEV_MANUF!$A$2:$A$1500,MATCH(1,([1]ELECTRIC_DEV_MANUF!$B$2:$B$1500='DC Power Distribution (Desc)'!$E74)*([1]ELECTRIC_DEV_MANUF!$D$2:$D$1500=\"DCPWRDIS\"),0),0))","v":""},{"$f":"IF('DC Power Distribution (Desc)'!F74=\"\",\"\",INDEX([1]ELECTRIC_DEV_MODEL!$A$2:$A$1500,MATCH(1,([1]ELECTRIC_DEV_MODEL!$C$2:$C$1500='DC Power Distribution (Desc)'!$E74)*([1]ELECTRIC_DEV_MODEL!$D$2:$D$1500='DC Power Distribution (Desc)'!$F74)*([1]ELECTRIC_DEV_MODEL!$F$2:$F$1500=\"DCPWRDIS\"),0),0))","v":""},{"$f":"IF('DC Power Distribution (Desc)'!G74=\"\",\"\",'DC Power Distribution (Desc)'!G74)","v":""},{"$f":"IF('DC Power Distribution (Desc)'!H74=\"\",\"\",INDEX([1]YES_NO!$A$2:$A$100,MATCH('DC Power Distribution (Desc)'!$H74,[1]!MASTER_YES_NO_DESC[#Data],0),0))","v":""},{"$f":"IF('DC Power Distribution (Desc)'!I74=\"\",\"\",'DC Power Distribution (Desc)'!I74)","v":""},{"$f":"IF('DC Power Distribution (Desc)'!J74=\"\",\"\",'DC Power Distribution (Desc)'!J74)","v":""},{"$f":"IF('DC Power Distribution (Desc)'!K74=\"\",\"\",INDEX([1]YES_NO!$A$2:$A$100,MATCH('DC Power Distribution (Desc)'!$K74,[1]!MASTER_YES_NO_DESC[#Data],0),0))","v":""},{"$f":"IF('DC Power Distribution (Desc)'!L74=\"\",\"\",INDEX([1]DEV_INPUT_VOLTAGE!$A$2:$A$100,MATCH('DC Power Distribution (Desc)'!$L74,[1]!MASTER_DEV_INPUT_VOLTAGE_DESC[#Data],0),0))","v":""},{"$f":"IF('DC Power Distribution (Desc)'!M74=\"\",\"\",INDEX([1]DEV_OUTPUT_VOLTAGE!$A$2:$A$100,MATCH('DC Power Distribution (Desc)'!$M74,[1]!MASTER_DEV_INPUT_VOLTAGE_DESC[#Data],0),0))","v":""},{"$f":"IF('DC Power Distribution (Desc)'!N74=\"\",\"\",'DC Power Distribution (Desc)'!N74)","v":""},{"$f":"IF('DC Power Distribution (Desc)'!O74=\"\",\"\",'DC Power Distribution (Desc)'!O74)","v":""},{"$f":"IF('DC Power Distribution (Desc)'!P74=\"\",\"\",'DC Power Distribution (Desc)'!P74)","v":""},{"$f":"IF('DC Power Distribution (Desc)'!B74=\"\",\"\",\"NA\")","v":""}]
[{"$f":"IF('DC Power Distribution (Desc)'!B75=\"\",\"\",2029)","v":""},{"$f":"IF('DC Power Distribution (Desc)'!B75=\"\",\"\",'DC Power Distribution (Desc)'!B75)","v":""},{"$f":"IF('DC Power Distribution (Desc)'!D75=\"\",\"\",'DC Power Distribution (Desc)'!D75)","v":""},{"$f":"IF('DC Power Distribution (Desc)'!E75=\"\",\"\",INDEX([1]ELECTRIC_DEV_MANUF!$A$2:$A$1500,MATCH(1,([1]ELECTRIC_DEV_MANUF!$B$2:$B$1500='DC Power Distribution (Desc)'!$E75)*([1]ELECTRIC_DEV_MANUF!$D$2:$D$1500=\"DCPWRDIS\"),0),0))","v":""},{"$f":"IF('DC Power Distribution (Desc)'!F75=\"\",\"\",INDEX([1]ELECTRIC_DEV_MODEL!$A$2:$A$1500,MATCH(1,([1]ELECTRIC_DEV_MODEL!$C$2:$C$1500='DC Power Distribution (Desc)'!$E75)*([1]ELECTRIC_DEV_MODEL!$D$2:$D$1500='DC Power Distribution (Desc)'!$F75)*([1]ELECTRIC_DEV_MODEL!$F$2:$F$1500=\"DCPWRDIS\"),0),0))","v":""},{"$f":"IF('DC Power Distribution (Desc)'!G75=\"\",\"\",'DC Power Distribution (Desc)'!G75)","v":""},{"$f":"IF('DC Power Distribution (Desc)'!H75=\"\",\"\",INDEX([1]YES_NO!$A$2:$A$100,MATCH('DC Power Distribution (Desc)'!$H75,[1]!MASTER_YES_NO_DESC[#Data],0),0))","v":""},{"$f":"IF('DC Power Distribution (Desc)'!I75=\"\",\"\",'DC Power Distribution (Desc)'!I75)","v":""},{"$f":"IF('DC Power Distribution (Desc)'!J75=\"\",\"\",'DC Power Distribution (Desc)'!J75)","v":""},{"$f":"IF('DC Power Distribution (Desc)'!K75=\"\",\"\",INDEX([1]YES_NO!$A$2:$A$100,MATCH('DC Power Distribution (Desc)'!$K75,[1]!MASTER_YES_NO_DESC[#Data],0),0))","v":""},{"$f":"IF('DC Power Distribution (Desc)'!L75=\"\",\"\",INDEX([1]DEV_INPUT_VOLTAGE!$A$2:$A$100,MATCH('DC Power Distribution (Desc)'!$L75,[1]!MASTER_DEV_INPUT_VOLTAGE_DESC[#Data],0),0))","v":""},{"$f":"IF('DC Power Distribution (Desc)'!M75=\"\",\"\",INDEX([1]DEV_OUTPUT_VOLTAGE!$A$2:$A$100,MATCH('DC Power Distribution (Desc)'!$M75,[1]!MASTER_DEV_INPUT_VOLTAGE_DESC[#Data],0),0))","v":""},{"$f":"IF('DC Power Distribution (Desc)'!N75=\"\",\"\",'DC Power Distribution (Desc)'!N75)","v":""},{"$f":"IF('DC Power Distribution (Desc)'!O75=\"\",\"\",'DC Power Distribution (Desc)'!O75)","v":""},{"$f":"IF('DC Power Distribution (Desc)'!P75=\"\",\"\",'DC Power Distribution (Desc)'!P75)","v":""},{"$f":"IF('DC Power Distribution (Desc)'!B75=\"\",\"\",\"NA\")","v":""}]
[{"$f":"IF('DC Power Distribution (Desc)'!B76=\"\",\"\",2029)","v":""},{"$f":"IF('DC Power Distribution (Desc)'!B76=\"\",\"\",'DC Power Distribution (Desc)'!B76)","v":""},{"$f":"IF('DC Power Distribution (Desc)'!D76=\"\",\"\",'DC Power Distribution (Desc)'!D76)","v":""},{"$f":"IF('DC Power Distribution (Desc)'!E76=\"\",\"\",INDEX([1]ELECTRIC_DEV_MANUF!$A$2:$A$1500,MATCH(1,([1]ELECTRIC_DEV_MANUF!$B$2:$B$1500='DC Power Distribution (Desc)'!$E76)*([1]ELECTRIC_DEV_MANUF!$D$2:$D$1500=\"DCPWRDIS\"),0),0))","v":""},{"$f":"IF('DC Power Distribution (Desc)'!F76=\"\",\"\",INDEX([1]ELECTRIC_DEV_MODEL!$A$2:$A$1500,MATCH(1,([1]ELECTRIC_DEV_MODEL!$C$2:$C$1500='DC Power Distribution (Desc)'!$E76)*([1]ELECTRIC_DEV_MODEL!$D$2:$D$1500='DC Power Distribution (Desc)'!$F76)*([1]ELECTRIC_DEV_MODEL!$F$2:$F$1500=\"DCPWRDIS\"),0),0))","v":""},{"$f":"IF('DC Power Distribution (Desc)'!G76=\"\",\"\",'DC Power Distribution (Desc)'!G76)","v":""},{"$f":"IF('DC Power Distribution (Desc)'!H76=\"\",\"\",INDEX([1]YES_NO!$A$2:$A$100,MATCH('DC Power Distribution (Desc)'!$H76,[1]!MASTER_YES_NO_DESC[#Data],0),0))","v":""},{"$f":"IF('DC Power Distribution (Desc)'!I76=\"\",\"\",'DC Power Distribution (Desc)'!I76)","v":""},{"$f":"IF('DC Power Distribution (Desc)'!J76=\"\",\"\",'DC Power Distribution (Desc)'!J76)","v":""},{"$f":"IF('DC Power Distribution (Desc)'!K76=\"\",\"\",INDEX([1]YES_NO!$A$2:$A$100,MATCH('DC Power Distribution (Desc)'!$K76,[1]!MASTER_YES_NO_DESC[#Data],0),0))","v":""},{"$f":"IF('DC Power Distribution (Desc)'!L76=\"\",\"\",INDEX([1]DEV_INPUT_VOLTAGE!$A$2:$A$100,MATCH('DC Power Distribution (Desc)'!$L76,[1]!MASTER_DEV_INPUT_VOLTAGE_DESC[#Data],0),0))","v":""},{"$f":"IF('DC Power Distribution (Desc)'!M76=\"\",\"\",INDEX([1]DEV_OUTPUT_VOLTAGE!$A$2:$A$100,MATCH('DC Power Distribution (Desc)'!$M76,[1]!MASTER_DEV_INPUT_VOLTAGE_DESC[#Data],0),0))","v":""},{"$f":"IF('DC Power Distribution (Desc)'!N76=\"\",\"\",'DC Power Distribution (Desc)'!N76)","v":""},{"$f":"IF('DC Power Distribution (Desc)'!O76=\"\",\"\",'DC Power Distribution (Desc)'!O76)","v":""},{"$f":"IF('DC Power Distribution (Desc)'!P76=\"\",\"\",'DC Power Distribution (Desc)'!P76)","v":""},{"$f":"IF('DC Power Distribution (Desc)'!B76=\"\",\"\",\"NA\")","v":""}]
[{"$f":"IF('DC Power Distribution (Desc)'!B77=\"\",\"\",2029)","v":""},{"$f":"IF('DC Power Distribution (Desc)'!B77=\"\",\"\",'DC Power Distribution (Desc)'!B77)","v":""},{"$f":"IF('DC Power Distribution (Desc)'!D77=\"\",\"\",'DC Power Distribution (Desc)'!D77)","v":""},{"$f":"IF('DC Power Distribution (Desc)'!E77=\"\",\"\",INDEX([1]ELECTRIC_DEV_MANUF!$A$2:$A$1500,MATCH(1,([1]ELECTRIC_DEV_MANUF!$B$2:$B$1500='DC Power Distribution (Desc)'!$E77)*([1]ELECTRIC_DEV_MANUF!$D$2:$D$1500=\"DCPWRDIS\"),0),0))","v":""},{"$f":"IF('DC Power Distribution (Desc)'!F77=\"\",\"\",INDEX([1]ELECTRIC_DEV_MODEL!$A$2:$A$1500,MATCH(1,([1]ELECTRIC_DEV_MODEL!$C$2:$C$1500='DC Power Distribution (Desc)'!$E77)*([1]ELECTRIC_DEV_MODEL!$D$2:$D$1500='DC Power Distribution (Desc)'!$F77)*([1]ELECTRIC_DEV_MODEL!$F$2:$F$1500=\"DCPWRDIS\"),0),0))","v":""},{"$f":"IF('DC Power Distribution (Desc)'!G77=\"\",\"\",'DC Power Distribution (Desc)'!G77)","v":""},{"$f":"IF('DC Power Distribution (Desc)'!H77=\"\",\"\",INDEX([1]YES_NO!$A$2:$A$100,MATCH('DC Power Distribution (Desc)'!$H77,[1]!MASTER_YES_NO_DESC[#Data],0),0))","v":""},{"$f":"IF('DC Power Distribution (Desc)'!I77=\"\",\"\",'DC Power Distribution (Desc)'!I77)","v":""},{"$f":"IF('DC Power Distribution (Desc)'!J77=\"\",\"\",'DC Power Distribution (Desc)'!J77)","v":""},{"$f":"IF('DC Power Distribution (Desc)'!K77=\"\",\"\",INDEX([1]YES_NO!$A$2:$A$100,MATCH('DC Power Distribution (Desc)'!$K77,[1]!MASTER_YES_NO_DESC[#Data],0),0))","v":""},{"$f":"IF('DC Power Distribution (Desc)'!L77=\"\",\"\",INDEX([1]DEV_INPUT_VOLTAGE!$A$2:$A$100,MATCH('DC Power Distribution (Desc)'!$L77,[1]!MASTER_DEV_INPUT_VOLTAGE_DESC[#Data],0),0))","v":""},{"$f":"IF('DC Power Distribution (Desc)'!M77=\"\",\"\",INDEX([1]DEV_OUTPUT_VOLTAGE!$A$2:$A$100,MATCH('DC Power Distribution (Desc)'!$M77,[1]!MASTER_DEV_INPUT_VOLTAGE_DESC[#Data],0),0))","v":""},{"$f":"IF('DC Power Distribution (Desc)'!N77=\"\",\"\",'DC Power Distribution (Desc)'!N77)","v":""},{"$f":"IF('DC Power Distribution (Desc)'!O77=\"\",\"\",'DC Power Distribution (Desc)'!O77)","v":""},{"$f":"IF('DC Power Distribution (Desc)'!P77=\"\",\"\",'DC Power Distribution (Desc)'!P77)","v":""},{"$f":"IF('DC Power Distribution (Desc)'!B77=\"\",\"\",\"NA\")","v":""}]
[{"$f":"IF('DC Power Distribution (Desc)'!B78=\"\",\"\",2029)","v":""},{"$f":"IF('DC Power Distribution (Desc)'!B78=\"\",\"\",'DC Power Distribution (Desc)'!B78)","v":""},{"$f":"IF('DC Power Distribution (Desc)'!D78=\"\",\"\",'DC Power Distribution (Desc)'!D78)","v":""},{"$f":"IF('DC Power Distribution (Desc)'!E78=\"\",\"\",INDEX([1]ELECTRIC_DEV_MANUF!$A$2:$A$1500,MATCH(1,([1]ELECTRIC_DEV_MANUF!$B$2:$B$1500='DC Power Distribution (Desc)'!$E78)*([1]ELECTRIC_DEV_MANUF!$D$2:$D$1500=\"DCPWRDIS\"),0),0))","v":""},{"$f":"IF('DC Power Distribution (Desc)'!F78=\"\",\"\",INDEX([1]ELECTRIC_DEV_MODEL!$A$2:$A$1500,MATCH(1,([1]ELECTRIC_DEV_MODEL!$C$2:$C$1500='DC Power Distribution (Desc)'!$E78)*([1]ELECTRIC_DEV_MODEL!$D$2:$D$1500='DC Power Distribution (Desc)'!$F78)*([1]ELECTRIC_DEV_MODEL!$F$2:$F$1500=\"DCPWRDIS\"),0),0))","v":""},{"$f":"IF('DC Power Distribution (Desc)'!G78=\"\",\"\",'DC Power Distribution (Desc)'!G78)","v":""},{"$f":"IF('DC Power Distribution (Desc)'!H78=\"\",\"\",INDEX([1]YES_NO!$A$2:$A$100,MATCH('DC Power Distribution (Desc)'!$H78,[1]!MASTER_YES_NO_DESC[#Data],0),0))","v":""},{"$f":"IF('DC Power Distribution (Desc)'!I78=\"\",\"\",'DC Power Distribution (Desc)'!I78)","v":""},{"$f":"IF('DC Power Distribution (Desc)'!J78=\"\",\"\",'DC Power Distribution (Desc)'!J78)","v":""},{"$f":"IF('DC Power Distribution (Desc)'!K78=\"\",\"\",INDEX([1]YES_NO!$A$2:$A$100,MATCH('DC Power Distribution (Desc)'!$K78,[1]!MASTER_YES_NO_DESC[#Data],0),0))","v":""},{"$f":"IF('DC Power Distribution (Desc)'!L78=\"\",\"\",INDEX([1]DEV_INPUT_VOLTAGE!$A$2:$A$100,MATCH('DC Power Distribution (Desc)'!$L78,[1]!MASTER_DEV_INPUT_VOLTAGE_DESC[#Data],0),0))","v":""},{"$f":"IF('DC Power Distribution (Desc)'!M78=\"\",\"\",INDEX([1]DEV_OUTPUT_VOLTAGE!$A$2:$A$100,MATCH('DC Power Distribution (Desc)'!$M78,[1]!MASTER_DEV_INPUT_VOLTAGE_DESC[#Data],0),0))","v":""},{"$f":"IF('DC Power Distribution (Desc)'!N78=\"\",\"\",'DC Power Distribution (Desc)'!N78)","v":""},{"$f":"IF('DC Power Distribution (Desc)'!O78=\"\",\"\",'DC Power Distribution (Desc)'!O78)","v":""},{"$f":"IF('DC Power Distribution (Desc)'!P78=\"\",\"\",'DC Power Distribution (Desc)'!P78)","v":""},{"$f":"IF('DC Power Distribution (Desc)'!B78=\"\",\"\",\"NA\")","v":""}]
[{"$f":"IF('DC Power Distribution (Desc)'!B79=\"\",\"\",2029)","v":""},{"$f":"IF('DC Power Distribution (Desc)'!B79=\"\",\"\",'DC Power Distribution (Desc)'!B79)","v":""},{"$f":"IF('DC Power Distribution (Desc)'!D79=\"\",\"\",'DC Power Distribution (Desc)'!D79)","v":""},{"$f":"IF('DC Power Distribution (Desc)'!E79=\"\",\"\",INDEX([1]ELECTRIC_DEV_MANUF!$A$2:$A$1500,MATCH(1,([1]ELECTRIC_DEV_MANUF!$B$2:$B$1500='DC Power Distribution (Desc)'!$E79)*([1]ELECTRIC_DEV_MANUF!$D$2:$D$1500=\"DCPWRDIS\"),0),0))","v":""},{"$f":"IF('DC Power Distribution (Desc)'!F79=\"\",\"\",INDEX([1]ELECTRIC_DEV_MODEL!$A$2:$A$1500,MATCH(1,([1]ELECTRIC_DEV_MODEL!$C$2:$C$1500='DC Power Distribution (Desc)'!$E79)*([1]ELECTRIC_DEV_MODEL!$D$2:$D$1500='DC Power Distribution (Desc)'!$F79)*([1]ELECTRIC_DEV_MODEL!$F$2:$F$1500=\"DCPWRDIS\"),0),0))","v":""},{"$f":"IF('DC Power Distribution (Desc)'!G79=\"\",\"\",'DC Power Distribution (Desc)'!G79)","v":""},{"$f":"IF('DC Power Distribution (Desc)'!H79=\"\",\"\",INDEX([1]YES_NO!$A$2:$A$100,MATCH('DC Power Distribution (Desc)'!$H79,[1]!MASTER_YES_NO_DESC[#Data],0),0))","v":""},{"$f":"IF('DC Power Distribution (Desc)'!I79=\"\",\"\",'DC Power Distribution (Desc)'!I79)","v":""},{"$f":"IF('DC Power Distribution (Desc)'!J79=\"\",\"\",'DC Power Distribution (Desc)'!J79)","v":""},{"$f":"IF('DC Power Distribution (Desc)'!K79=\"\",\"\",INDEX([1]YES_NO!$A$2:$A$100,MATCH('DC Power Distribution (Desc)'!$K79,[1]!MASTER_YES_NO_DESC[#Data],0),0))","v":""},{"$f":"IF('DC Power Distribution (Desc)'!L79=\"\",\"\",INDEX([1]DEV_INPUT_VOLTAGE!$A$2:$A$100,MATCH('DC Power Distribution (Desc)'!$L79,[1]!MASTER_DEV_INPUT_VOLTAGE_DESC[#Data],0),0))","v":""},{"$f":"IF('DC Power Distribution (Desc)'!M79=\"\",\"\",INDEX([1]DEV_OUTPUT_VOLTAGE!$A$2:$A$100,MATCH('DC Power Distribution (Desc)'!$M79,[1]!MASTER_DEV_INPUT_VOLTAGE_DESC[#Data],0),0))","v":""},{"$f":"IF('DC Power Distribution (Desc)'!N79=\"\",\"\",'DC Power Distribution (Desc)'!N79)","v":""},{"$f":"IF('DC Power Distribution (Desc)'!O79=\"\",\"\",'DC Power Distribution (Desc)'!O79)","v":""},{"$f":"IF('DC Power Distribution (Desc)'!P79=\"\",\"\",'DC Power Distribution (Desc)'!P79)","v":""},{"$f":"IF('DC Power Distribution (Desc)'!B79=\"\",\"\",\"NA\")","v":""}]
[{"$f":"IF('DC Power Distribution (Desc)'!B80=\"\",\"\",2029)","v":""},{"$f":"IF('DC Power Distribution (Desc)'!B80=\"\",\"\",'DC Power Distribution (Desc)'!B80)","v":""},{"$f":"IF('DC Power Distribution (Desc)'!D80=\"\",\"\",'DC Power Distribution (Desc)'!D80)","v":""},{"$f":"IF('DC Power Distribution (Desc)'!E80=\"\",\"\",INDEX([1]ELECTRIC_DEV_MANUF!$A$2:$A$1500,MATCH(1,([1]ELECTRIC_DEV_MANUF!$B$2:$B$1500='DC Power Distribution (Desc)'!$E80)*([1]ELECTRIC_DEV_MANUF!$D$2:$D$1500=\"DCPWRDIS\"),0),0))","v":""},{"$f":"IF('DC Power Distribution (Desc)'!F80=\"\",\"\",INDEX([1]ELECTRIC_DEV_MODEL!$A$2:$A$1500,MATCH(1,([1]ELECTRIC_DEV_MODEL!$C$2:$C$1500='DC Power Distribution (Desc)'!$E80)*([1]ELECTRIC_DEV_MODEL!$D$2:$D$1500='DC Power Distribution (Desc)'!$F80)*([1]ELECTRIC_DEV_MODEL!$F$2:$F$1500=\"DCPWRDIS\"),0),0))","v":""},{"$f":"IF('DC Power Distribution (Desc)'!G80=\"\",\"\",'DC Power Distribution (Desc)'!G80)","v":""},{"$f":"IF('DC Power Distribution (Desc)'!H80=\"\",\"\",INDEX([1]YES_NO!$A$2:$A$100,MATCH('DC Power Distribution (Desc)'!$H80,[1]!MASTER_YES_NO_DESC[#Data],0),0))","v":""},{"$f":"IF('DC Power Distribution (Desc)'!I80=\"\",\"\",'DC Power Distribution (Desc)'!I80)","v":""},{"$f":"IF('DC Power Distribution (Desc)'!J80=\"\",\"\",'DC Power Distribution (Desc)'!J80)","v":""},{"$f":"IF('DC Power Distribution (Desc)'!K80=\"\",\"\",INDEX([1]YES_NO!$A$2:$A$100,MATCH('DC Power Distribution (Desc)'!$K80,[1]!MASTER_YES_NO_DESC[#Data],0),0))","v":""},{"$f":"IF('DC Power Distribution (Desc)'!L80=\"\",\"\",INDEX([1]DEV_INPUT_VOLTAGE!$A$2:$A$100,MATCH('DC Power Distribution (Desc)'!$L80,[1]!MASTER_DEV_INPUT_VOLTAGE_DESC[#Data],0),0))","v":""},{"$f":"IF('DC Power Distribution (Desc)'!M80=\"\",\"\",INDEX([1]DEV_OUTPUT_VOLTAGE!$A$2:$A$100,MATCH('DC Power Distribution (Desc)'!$M80,[1]!MASTER_DEV_INPUT_VOLTAGE_DESC[#Data],0),0))","v":""},{"$f":"IF('DC Power Distribution (Desc)'!N80=\"\",\"\",'DC Power Distribution (Desc)'!N80)","v":""},{"$f":"IF('DC Power Distribution (Desc)'!O80=\"\",\"\",'DC Power Distribution (Desc)'!O80)","v":""},{"$f":"IF('DC Power Distribution (Desc)'!P80=\"\",\"\",'DC Power Distribution (Desc)'!P80)","v":""},{"$f":"IF('DC Power Distribution (Desc)'!B80=\"\",\"\",\"NA\")","v":""}]
[{"$f":"IF('DC Power Distribution (Desc)'!B81=\"\",\"\",2029)","v":""},{"$f":"IF('DC Power Distribution (Desc)'!B81=\"\",\"\",'DC Power Distribution (Desc)'!B81)","v":""},{"$f":"IF('DC Power Distribution (Desc)'!D81=\"\",\"\",'DC Power Distribution (Desc)'!D81)","v":""},{"$f":"IF('DC Power Distribution (Desc)'!E81=\"\",\"\",INDEX([1]ELECTRIC_DEV_MANUF!$A$2:$A$1500,MATCH(1,([1]ELECTRIC_DEV_MANUF!$B$2:$B$1500='DC Power Distribution (Desc)'!$E81)*([1]ELECTRIC_DEV_MANUF!$D$2:$D$1500=\"DCPWRDIS\"),0),0))","v":""},{"$f":"IF('DC Power Distribution (Desc)'!F81=\"\",\"\",INDEX([1]ELECTRIC_DEV_MODEL!$A$2:$A$1500,MATCH(1,([1]ELECTRIC_DEV_MODEL!$C$2:$C$1500='DC Power Distribution (Desc)'!$E81)*([1]ELECTRIC_DEV_MODEL!$D$2:$D$1500='DC Power Distribution (Desc)'!$F81)*([1]ELECTRIC_DEV_MODEL!$F$2:$F$1500=\"DCPWRDIS\"),0),0))","v":""},{"$f":"IF('DC Power Distribution (Desc)'!G81=\"\",\"\",'DC Power Distribution (Desc)'!G81)","v":""},{"$f":"IF('DC Power Distribution (Desc)'!H81=\"\",\"\",INDEX([1]YES_NO!$A$2:$A$100,MATCH('DC Power Distribution (Desc)'!$H81,[1]!MASTER_YES_NO_DESC[#Data],0),0))","v":""},{"$f":"IF('DC Power Distribution (Desc)'!I81=\"\",\"\",'DC Power Distribution (Desc)'!I81)","v":""},{"$f":"IF('DC Power Distribution (Desc)'!J81=\"\",\"\",'DC Power Distribution (Desc)'!J81)","v":""},{"$f":"IF('DC Power Distribution (Desc)'!K81=\"\",\"\",INDEX([1]YES_NO!$A$2:$A$100,MATCH('DC Power Distribution (Desc)'!$K81,[1]!MASTER_YES_NO_DESC[#Data],0),0))","v":""},{"$f":"IF('DC Power Distribution (Desc)'!L81=\"\",\"\",INDEX([1]DEV_INPUT_VOLTAGE!$A$2:$A$100,MATCH('DC Power Distribution (Desc)'!$L81,[1]!MASTER_DEV_INPUT_VOLTAGE_DESC[#Data],0),0))","v":""},{"$f":"IF('DC Power Distribution (Desc)'!M81=\"\",\"\",INDEX([1]DEV_OUTPUT_VOLTAGE!$A$2:$A$100,MATCH('DC Power Distribution (Desc)'!$M81,[1]!MASTER_DEV_INPUT_VOLTAGE_DESC[#Data],0),0))","v":""},{"$f":"IF('DC Power Distribution (Desc)'!N81=\"\",\"\",'DC Power Distribution (Desc)'!N81)","v":""},{"$f":"IF('DC Power Distribution (Desc)'!O81=\"\",\"\",'DC Power Distribution (Desc)'!O81)","v":""},{"$f":"IF('DC Power Distribution (Desc)'!P81=\"\",\"\",'DC Power Distribution (Desc)'!P81)","v":""},{"$f":"IF('DC Power Distribution (Desc)'!B81=\"\",\"\",\"NA\")","v":""}]
[{"$f":"IF('DC Power Distribution (Desc)'!B82=\"\",\"\",2029)","v":""},{"$f":"IF('DC Power Distribution (Desc)'!B82=\"\",\"\",'DC Power Distribution (Desc)'!B82)","v":""},{"$f":"IF('DC Power Distribution (Desc)'!D82=\"\",\"\",'DC Power Distribution (Desc)'!D82)","v":""},{"$f":"IF('DC Power Distribution (Desc)'!E82=\"\",\"\",INDEX([1]ELECTRIC_DEV_MANUF!$A$2:$A$1500,MATCH(1,([1]ELECTRIC_DEV_MANUF!$B$2:$B$1500='DC Power Distribution (Desc)'!$E82)*([1]ELECTRIC_DEV_MANUF!$D$2:$D$1500=\"DCPWRDIS\"),0),0))","v":""},{"$f":"IF('DC Power Distribution (Desc)'!F82=\"\",\"\",INDEX([1]ELECTRIC_DEV_MODEL!$A$2:$A$1500,MATCH(1,([1]ELECTRIC_DEV_MODEL!$C$2:$C$1500='DC Power Distribution (Desc)'!$E82)*([1]ELECTRIC_DEV_MODEL!$D$2:$D$1500='DC Power Distribution (Desc)'!$F82)*([1]ELECTRIC_DEV_MODEL!$F$2:$F$1500=\"DCPWRDIS\"),0),0))","v":""},{"$f":"IF('DC Power Distribution (Desc)'!G82=\"\",\"\",'DC Power Distribution (Desc)'!G82)","v":""},{"$f":"IF('DC Power Distribution (Desc)'!H82=\"\",\"\",INDEX([1]YES_NO!$A$2:$A$100,MATCH('DC Power Distribution (Desc)'!$H82,[1]!MASTER_YES_NO_DESC[#Data],0),0))","v":""},{"$f":"IF('DC Power Distribution (Desc)'!I82=\"\",\"\",'DC Power Distribution (Desc)'!I82)","v":""},{"$f":"IF('DC Power Distribution (Desc)'!J82=\"\",\"\",'DC Power Distribution (Desc)'!J82)","v":""},{"$f":"IF('DC Power Distribution (Desc)'!K82=\"\",\"\",INDEX([1]YES_NO!$A$2:$A$100,MATCH('DC Power Distribution (Desc)'!$K82,[1]!MASTER_YES_NO_DESC[#Data],0),0))","v":""},{"$f":"IF('DC Power Distribution (Desc)'!L82=\"\",\"\",INDEX([1]DEV_INPUT_VOLTAGE!$A$2:$A$100,MATCH('DC Power Distribution (Desc)'!$L82,[1]!MASTER_DEV_INPUT_VOLTAGE_DESC[#Data],0),0))","v":""},{"$f":"IF('DC Power Distribution (Desc)'!M82=\"\",\"\",INDEX([1]DEV_OUTPUT_VOLTAGE!$A$2:$A$100,MATCH('DC Power Distribution (Desc)'!$M82,[1]!MASTER_DEV_INPUT_VOLTAGE_DESC[#Data],0),0))","v":""},{"$f":"IF('DC Power Distribution (Desc)'!N82=\"\",\"\",'DC Power Distribution (Desc)'!N82)","v":""},{"$f":"IF('DC Power Distribution (Desc)'!O82=\"\",\"\",'DC Power Distribution (Desc)'!O82)","v":""},{"$f":"IF('DC Power Distribution (Desc)'!P82=\"\",\"\",'DC Power Distribution (Desc)'!P82)","v":""},{"$f":"IF('DC Power Distribution (Desc)'!B82=\"\",\"\",\"NA\")","v":""}]
[{"$f":"IF('DC Power Distribution (Desc)'!B83=\"\",\"\",2029)","v":""},{"$f":"IF('DC Power Distribution (Desc)'!B83=\"\",\"\",'DC Power Distribution (Desc)'!B83)","v":""},{"$f":"IF('DC Power Distribution (Desc)'!D83=\"\",\"\",'DC Power Distribution (Desc)'!D83)","v":""},{"$f":"IF('DC Power Distribution (Desc)'!E83=\"\",\"\",INDEX([1]ELECTRIC_DEV_MANUF!$A$2:$A$1500,MATCH(1,([1]ELECTRIC_DEV_MANUF!$B$2:$B$1500='DC Power Distribution (Desc)'!$E83)*([1]ELECTRIC_DEV_MANUF!$D$2:$D$1500=\"DCPWRDIS\"),0),0))","v":""},{"$f":"IF('DC Power Distribution (Desc)'!F83=\"\",\"\",INDEX([1]ELECTRIC_DEV_MODEL!$A$2:$A$1500,MATCH(1,([1]ELECTRIC_DEV_MODEL!$C$2:$C$1500='DC Power Distribution (Desc)'!$E83)*([1]ELECTRIC_DEV_MODEL!$D$2:$D$1500='DC Power Distribution (Desc)'!$F83)*([1]ELECTRIC_DEV_MODEL!$F$2:$F$1500=\"DCPWRDIS\"),0),0))","v":""},{"$f":"IF('DC Power Distribution (Desc)'!G83=\"\",\"\",'DC Power Distribution (Desc)'!G83)","v":""},{"$f":"IF('DC Power Distribution (Desc)'!H83=\"\",\"\",INDEX([1]YES_NO!$A$2:$A$100,MATCH('DC Power Distribution (Desc)'!$H83,[1]!MASTER_YES_NO_DESC[#Data],0),0))","v":""},{"$f":"IF('DC Power Distribution (Desc)'!I83=\"\",\"\",'DC Power Distribution (Desc)'!I83)","v":""},{"$f":"IF('DC Power Distribution (Desc)'!J83=\"\",\"\",'DC Power Distribution (Desc)'!J83)","v":""},{"$f":"IF('DC Power Distribution (Desc)'!K83=\"\",\"\",INDEX([1]YES_NO!$A$2:$A$100,MATCH('DC Power Distribution (Desc)'!$K83,[1]!MASTER_YES_NO_DESC[#Data],0),0))","v":""},{"$f":"IF('DC Power Distribution (Desc)'!L83=\"\",\"\",INDEX([1]DEV_INPUT_VOLTAGE!$A$2:$A$100,MATCH('DC Power Distribution (Desc)'!$L83,[1]!MASTER_DEV_INPUT_VOLTAGE_DESC[#Data],0),0))","v":""},{"$f":"IF('DC Power Distribution (Desc)'!M83=\"\",\"\",INDEX([1]DEV_OUTPUT_VOLTAGE!$A$2:$A$100,MATCH('DC Power Distribution (Desc)'!$M83,[1]!MASTER_DEV_INPUT_VOLTAGE_DESC[#Data],0),0))","v":""},{"$f":"IF('DC Power Distribution (Desc)'!N83=\"\",\"\",'DC Power Distribution (Desc)'!N83)","v":""},{"$f":"IF('DC Power Distribution (Desc)'!O83=\"\",\"\",'DC Power Distribution (Desc)'!O83)","v":""},{"$f":"IF('DC Power Distribution (Desc)'!P83=\"\",\"\",'DC Power Distribution (Desc)'!P83)","v":""},{"$f":"IF('DC Power Distribution (Desc)'!B83=\"\",\"\",\"NA\")","v":""}]
[{"$f":"IF('DC Power Distribution (Desc)'!B84=\"\",\"\",2029)","v":""},{"$f":"IF('DC Power Distribution (Desc)'!B84=\"\",\"\",'DC Power Distribution (Desc)'!B84)","v":""},{"$f":"IF('DC Power Distribution (Desc)'!D84=\"\",\"\",'DC Power Distribution (Desc)'!D84)","v":""},{"$f":"IF('DC Power Distribution (Desc)'!E84=\"\",\"\",INDEX([1]ELECTRIC_DEV_MANUF!$A$2:$A$1500,MATCH(1,([1]ELECTRIC_DEV_MANUF!$B$2:$B$1500='DC Power Distribution (Desc)'!$E84)*([1]ELECTRIC_DEV_MANUF!$D$2:$D$1500=\"DCPWRDIS\"),0),0))","v":""},{"$f":"IF('DC Power Distribution (Desc)'!F84=\"\",\"\",INDEX([1]ELECTRIC_DEV_MODEL!$A$2:$A$1500,MATCH(1,([1]ELECTRIC_DEV_MODEL!$C$2:$C$1500='DC Power Distribution (Desc)'!$E84)*([1]ELECTRIC_DEV_MODEL!$D$2:$D$1500='DC Power Distribution (Desc)'!$F84)*([1]ELECTRIC_DEV_MODEL!$F$2:$F$1500=\"DCPWRDIS\"),0),0))","v":""},{"$f":"IF('DC Power Distribution (Desc)'!G84=\"\",\"\",'DC Power Distribution (Desc)'!G84)","v":""},{"$f":"IF('DC Power Distribution (Desc)'!H84=\"\",\"\",INDEX([1]YES_NO!$A$2:$A$100,MATCH('DC Power Distribution (Desc)'!$H84,[1]!MASTER_YES_NO_DESC[#Data],0),0))","v":""},{"$f":"IF('DC Power Distribution (Desc)'!I84=\"\",\"\",'DC Power Distribution (Desc)'!I84)","v":""},{"$f":"IF('DC Power Distribution (Desc)'!J84=\"\",\"\",'DC Power Distribution (Desc)'!J84)","v":""},{"$f":"IF('DC Power Distribution (Desc)'!K84=\"\",\"\",INDEX([1]YES_NO!$A$2:$A$100,MATCH('DC Power Distribution (Desc)'!$K84,[1]!MASTER_YES_NO_DESC[#Data],0),0))","v":""},{"$f":"IF('DC Power Distribution (Desc)'!L84=\"\",\"\",INDEX([1]DEV_INPUT_VOLTAGE!$A$2:$A$100,MATCH('DC Power Distribution (Desc)'!$L84,[1]!MASTER_DEV_INPUT_VOLTAGE_DESC[#Data],0),0))","v":""},{"$f":"IF('DC Power Distribution (Desc)'!M84=\"\",\"\",INDEX([1]DEV_OUTPUT_VOLTAGE!$A$2:$A$100,MATCH('DC Power Distribution (Desc)'!$M84,[1]!MASTER_DEV_INPUT_VOLTAGE_DESC[#Data],0),0))","v":""},{"$f":"IF('DC Power Distribution (Desc)'!N84=\"\",\"\",'DC Power Distribution (Desc)'!N84)","v":""},{"$f":"IF('DC Power Distribution (Desc)'!O84=\"\",\"\",'DC Power Distribution (Desc)'!O84)","v":""},{"$f":"IF('DC Power Distribution (Desc)'!P84=\"\",\"\",'DC Power Distribution (Desc)'!P84)","v":""},{"$f":"IF('DC Power Distribution (Desc)'!B84=\"\",\"\",\"NA\")","v":""}]
[{"$f":"IF('DC Power Distribution (Desc)'!B85=\"\",\"\",2029)","v":""},{"$f":"IF('DC Power Distribution (Desc)'!B85=\"\",\"\",'DC Power Distribution (Desc)'!B85)","v":""},{"$f":"IF('DC Power Distribution (Desc)'!D85=\"\",\"\",'DC Power Distribution (Desc)'!D85)","v":""},{"$f":"IF('DC Power Distribution (Desc)'!E85=\"\",\"\",INDEX([1]ELECTRIC_DEV_MANUF!$A$2:$A$1500,MATCH(1,([1]ELECTRIC_DEV_MANUF!$B$2:$B$1500='DC Power Distribution (Desc)'!$E85)*([1]ELECTRIC_DEV_MANUF!$D$2:$D$1500=\"DCPWRDIS\"),0),0))","v":""},{"$f":"IF('DC Power Distribution (Desc)'!F85=\"\",\"\",INDEX([1]ELECTRIC_DEV_MODEL!$A$2:$A$1500,MATCH(1,([1]ELECTRIC_DEV_MODEL!$C$2:$C$1500='DC Power Distribution (Desc)'!$E85)*([1]ELECTRIC_DEV_MODEL!$D$2:$D$1500='DC Power Distribution (Desc)'!$F85)*([1]ELECTRIC_DEV_MODEL!$F$2:$F$1500=\"DCPWRDIS\"),0),0))","v":""},{"$f":"IF('DC Power Distribution (Desc)'!G85=\"\",\"\",'DC Power Distribution (Desc)'!G85)","v":""},{"$f":"IF('DC Power Distribution (Desc)'!H85=\"\",\"\",INDEX([1]YES_NO!$A$2:$A$100,MATCH('DC Power Distribution (Desc)'!$H85,[1]!MASTER_YES_NO_DESC[#Data],0),0))","v":""},{"$f":"IF('DC Power Distribution (Desc)'!I85=\"\",\"\",'DC Power Distribution (Desc)'!I85)","v":""},{"$f":"IF('DC Power Distribution (Desc)'!J85=\"\",\"\",'DC Power Distribution (Desc)'!J85)","v":""},{"$f":"IF('DC Power Distribution (Desc)'!K85=\"\",\"\",INDEX([1]YES_NO!$A$2:$A$100,MATCH('DC Power Distribution (Desc)'!$K85,[1]!MASTER_YES_NO_DESC[#Data],0),0))","v":""},{"$f":"IF('DC Power Distribution (Desc)'!L85=\"\",\"\",INDEX([1]DEV_INPUT_VOLTAGE!$A$2:$A$100,MATCH('DC Power Distribution (Desc)'!$L85,[1]!MASTER_DEV_INPUT_VOLTAGE_DESC[#Data],0),0))","v":""},{"$f":"IF('DC Power Distribution (Desc)'!M85=\"\",\"\",INDEX([1]DEV_OUTPUT_VOLTAGE!$A$2:$A$100,MATCH('DC Power Distribution (Desc)'!$M85,[1]!MASTER_DEV_INPUT_VOLTAGE_DESC[#Data],0),0))","v":""},{"$f":"IF('DC Power Distribution (Desc)'!N85=\"\",\"\",'DC Power Distribution (Desc)'!N85)","v":""},{"$f":"IF('DC Power Distribution (Desc)'!O85=\"\",\"\",'DC Power Distribution (Desc)'!O85)","v":""},{"$f":"IF('DC Power Distribution (Desc)'!P85=\"\",\"\",'DC Power Distribution (Desc)'!P85)","v":""},{"$f":"IF('DC Power Distribution (Desc)'!B85=\"\",\"\",\"NA\")","v":""}]
[{"$f":"IF('DC Power Distribution (Desc)'!B86=\"\",\"\",2029)","v":""},{"$f":"IF('DC Power Distribution (Desc)'!B86=\"\",\"\",'DC Power Distribution (Desc)'!B86)","v":""},{"$f":"IF('DC Power Distribution (Desc)'!D86=\"\",\"\",'DC Power Distribution (Desc)'!D86)","v":""},{"$f":"IF('DC Power Distribution (Desc)'!E86=\"\",\"\",INDEX([1]ELECTRIC_DEV_MANUF!$A$2:$A$1500,MATCH(1,([1]ELECTRIC_DEV_MANUF!$B$2:$B$1500='DC Power Distribution (Desc)'!$E86)*([1]ELECTRIC_DEV_MANUF!$D$2:$D$1500=\"DCPWRDIS\"),0),0))","v":""},{"$f":"IF('DC Power Distribution (Desc)'!F86=\"\",\"\",INDEX([1]ELECTRIC_DEV_MODEL!$A$2:$A$1500,MATCH(1,([1]ELECTRIC_DEV_MODEL!$C$2:$C$1500='DC Power Distribution (Desc)'!$E86)*([1]ELECTRIC_DEV_MODEL!$D$2:$D$1500='DC Power Distribution (Desc)'!$F86)*([1]ELECTRIC_DEV_MODEL!$F$2:$F$1500=\"DCPWRDIS\"),0),0))","v":""},{"$f":"IF('DC Power Distribution (Desc)'!G86=\"\",\"\",'DC Power Distribution (Desc)'!G86)","v":""},{"$f":"IF('DC Power Distribution (Desc)'!H86=\"\",\"\",INDEX([1]YES_NO!$A$2:$A$100,MATCH('DC Power Distribution (Desc)'!$H86,[1]!MASTER_YES_NO_DESC[#Data],0),0))","v":""},{"$f":"IF('DC Power Distribution (Desc)'!I86=\"\",\"\",'DC Power Distribution (Desc)'!I86)","v":""},{"$f":"IF('DC Power Distribution (Desc)'!J86=\"\",\"\",'DC Power Distribution (Desc)'!J86)","v":""},{"$f":"IF('DC Power Distribution (Desc)'!K86=\"\",\"\",INDEX([1]YES_NO!$A$2:$A$100,MATCH('DC Power Distribution (Desc)'!$K86,[1]!MASTER_YES_NO_DESC[#Data],0),0))","v":""},{"$f":"IF('DC Power Distribution (Desc)'!L86=\"\",\"\",INDEX([1]DEV_INPUT_VOLTAGE!$A$2:$A$100,MATCH('DC Power Distribution (Desc)'!$L86,[1]!MASTER_DEV_INPUT_VOLTAGE_DESC[#Data],0),0))","v":""},{"$f":"IF('DC Power Distribution (Desc)'!M86=\"\",\"\",INDEX([1]DEV_OUTPUT_VOLTAGE!$A$2:$A$100,MATCH('DC Power Distribution (Desc)'!$M86,[1]!MASTER_DEV_INPUT_VOLTAGE_DESC[#Data],0),0))","v":""},{"$f":"IF('DC Power Distribution (Desc)'!N86=\"\",\"\",'DC Power Distribution (Desc)'!N86)","v":""},{"$f":"IF('DC Power Distribution (Desc)'!O86=\"\",\"\",'DC Power Distribution (Desc)'!O86)","v":""},{"$f":"IF('DC Power Distribution (Desc)'!P86=\"\",\"\",'DC Power Distribution (Desc)'!P86)","v":""},{"$f":"IF('DC Power Distribution (Desc)'!B86=\"\",\"\",\"NA\")","v":""}]
[{"$f":"IF('DC Power Distribution (Desc)'!B87=\"\",\"\",2029)","v":""},{"$f":"IF('DC Power Distribution (Desc)'!B87=\"\",\"\",'DC Power Distribution (Desc)'!B87)","v":""},{"$f":"IF('DC Power Distribution (Desc)'!D87=\"\",\"\",'DC Power Distribution (Desc)'!D87)","v":""},{"$f":"IF('DC Power Distribution (Desc)'!E87=\"\",\"\",INDEX([1]ELECTRIC_DEV_MANUF!$A$2:$A$1500,MATCH(1,([1]ELECTRIC_DEV_MANUF!$B$2:$B$1500='DC Power Distribution (Desc)'!$E87)*([1]ELECTRIC_DEV_MANUF!$D$2:$D$1500=\"DCPWRDIS\"),0),0))","v":""},{"$f":"IF('DC Power Distribution (Desc)'!F87=\"\",\"\",INDEX([1]ELECTRIC_DEV_MODEL!$A$2:$A$1500,MATCH(1,([1]ELECTRIC_DEV_MODEL!$C$2:$C$1500='DC Power Distribution (Desc)'!$E87)*([1]ELECTRIC_DEV_MODEL!$D$2:$D$1500='DC Power Distribution (Desc)'!$F87)*([1]ELECTRIC_DEV_MODEL!$F$2:$F$1500=\"DCPWRDIS\"),0),0))","v":""},{"$f":"IF('DC Power Distribution (Desc)'!G87=\"\",\"\",'DC Power Distribution (Desc)'!G87)","v":""},{"$f":"IF('DC Power Distribution (Desc)'!H87=\"\",\"\",INDEX([1]YES_NO!$A$2:$A$100,MATCH('DC Power Distribution (Desc)'!$H87,[1]!MASTER_YES_NO_DESC[#Data],0),0))","v":""},{"$f":"IF('DC Power Distribution (Desc)'!I87=\"\",\"\",'DC Power Distribution (Desc)'!I87)","v":""},{"$f":"IF('DC Power Distribution (Desc)'!J87=\"\",\"\",'DC Power Distribution (Desc)'!J87)","v":""},{"$f":"IF('DC Power Distribution (Desc)'!K87=\"\",\"\",INDEX([1]YES_NO!$A$2:$A$100,MATCH('DC Power Distribution (Desc)'!$K87,[1]!MASTER_YES_NO_DESC[#Data],0),0))","v":""},{"$f":"IF('DC Power Distribution (Desc)'!L87=\"\",\"\",INDEX([1]DEV_INPUT_VOLTAGE!$A$2:$A$100,MATCH('DC Power Distribution (Desc)'!$L87,[1]!MASTER_DEV_INPUT_VOLTAGE_DESC[#Data],0),0))","v":""},{"$f":"IF('DC Power Distribution (Desc)'!M87=\"\",\"\",INDEX([1]DEV_OUTPUT_VOLTAGE!$A$2:$A$100,MATCH('DC Power Distribution (Desc)'!$M87,[1]!MASTER_DEV_INPUT_VOLTAGE_DESC[#Data],0),0))","v":""},{"$f":"IF('DC Power Distribution (Desc)'!N87=\"\",\"\",'DC Power Distribution (Desc)'!N87)","v":""},{"$f":"IF('DC Power Distribution (Desc)'!O87=\"\",\"\",'DC Power Distribution (Desc)'!O87)","v":""},{"$f":"IF('DC Power Distribution (Desc)'!P87=\"\",\"\",'DC Power Distribution (Desc)'!P87)","v":""},{"$f":"IF('DC Power Distribution (Desc)'!B87=\"\",\"\",\"NA\")","v":""}]
[{"$f":"IF('DC Power Distribution (Desc)'!B88=\"\",\"\",2029)","v":""},{"$f":"IF('DC Power Distribution (Desc)'!B88=\"\",\"\",'DC Power Distribution (Desc)'!B88)","v":""},{"$f":"IF('DC Power Distribution (Desc)'!D88=\"\",\"\",'DC Power Distribution (Desc)'!D88)","v":""},{"$f":"IF('DC Power Distribution (Desc)'!E88=\"\",\"\",INDEX([1]ELECTRIC_DEV_MANUF!$A$2:$A$1500,MATCH(1,([1]ELECTRIC_DEV_MANUF!$B$2:$B$1500='DC Power Distribution (Desc)'!$E88)*([1]ELECTRIC_DEV_MANUF!$D$2:$D$1500=\"DCPWRDIS\"),0),0))","v":""},{"$f":"IF('DC Power Distribution (Desc)'!F88=\"\",\"\",INDEX([1]ELECTRIC_DEV_MODEL!$A$2:$A$1500,MATCH(1,([1]ELECTRIC_DEV_MODEL!$C$2:$C$1500='DC Power Distribution (Desc)'!$E88)*([1]ELECTRIC_DEV_MODEL!$D$2:$D$1500='DC Power Distribution (Desc)'!$F88)*([1]ELECTRIC_DEV_MODEL!$F$2:$F$1500=\"DCPWRDIS\"),0),0))","v":""},{"$f":"IF('DC Power Distribution (Desc)'!G88=\"\",\"\",'DC Power Distribution (Desc)'!G88)","v":""},{"$f":"IF('DC Power Distribution (Desc)'!H88=\"\",\"\",INDEX([1]YES_NO!$A$2:$A$100,MATCH('DC Power Distribution (Desc)'!$H88,[1]!MASTER_YES_NO_DESC[#Data],0),0))","v":""},{"$f":"IF('DC Power Distribution (Desc)'!I88=\"\",\"\",'DC Power Distribution (Desc)'!I88)","v":""},{"$f":"IF('DC Power Distribution (Desc)'!J88=\"\",\"\",'DC Power Distribution (Desc)'!J88)","v":""},{"$f":"IF('DC Power Distribution (Desc)'!K88=\"\",\"\",INDEX([1]YES_NO!$A$2:$A$100,MATCH('DC Power Distribution (Desc)'!$K88,[1]!MASTER_YES_NO_DESC[#Data],0),0))","v":""},{"$f":"IF('DC Power Distribution (Desc)'!L88=\"\",\"\",INDEX([1]DEV_INPUT_VOLTAGE!$A$2:$A$100,MATCH('DC Power Distribution (Desc)'!$L88,[1]!MASTER_DEV_INPUT_VOLTAGE_DESC[#Data],0),0))","v":""},{"$f":"IF('DC Power Distribution (Desc)'!M88=\"\",\"\",INDEX([1]DEV_OUTPUT_VOLTAGE!$A$2:$A$100,MATCH('DC Power Distribution (Desc)'!$M88,[1]!MASTER_DEV_INPUT_VOLTAGE_DESC[#Data],0),0))","v":""},{"$f":"IF('DC Power Distribution (Desc)'!N88=\"\",\"\",'DC Power Distribution (Desc)'!N88)","v":""},{"$f":"IF('DC Power Distribution (Desc)'!O88=\"\",\"\",'DC Power Distribution (Desc)'!O88)","v":""},{"$f":"IF('DC Power Distribution (Desc)'!P88=\"\",\"\",'DC Power Distribution (Desc)'!P88)","v":""},{"$f":"IF('DC Power Distribution (Desc)'!B88=\"\",\"\",\"NA\")","v":""}]
[{"$f":"IF('DC Power Distribution (Desc)'!B89=\"\",\"\",2029)","v":""},{"$f":"IF('DC Power Distribution (Desc)'!B89=\"\",\"\",'DC Power Distribution (Desc)'!B89)","v":""},{"$f":"IF('DC Power Distribution (Desc)'!D89=\"\",\"\",'DC Power Distribution (Desc)'!D89)","v":""},{"$f":"IF('DC Power Distribution (Desc)'!E89=\"\",\"\",INDEX([1]ELECTRIC_DEV_MANUF!$A$2:$A$1500,MATCH(1,([1]ELECTRIC_DEV_MANUF!$B$2:$B$1500='DC Power Distribution (Desc)'!$E89)*([1]ELECTRIC_DEV_MANUF!$D$2:$D$1500=\"DCPWRDIS\"),0),0))","v":""},{"$f":"IF('DC Power Distribution (Desc)'!F89=\"\",\"\",INDEX([1]ELECTRIC_DEV_MODEL!$A$2:$A$1500,MATCH(1,([1]ELECTRIC_DEV_MODEL!$C$2:$C$1500='DC Power Distribution (Desc)'!$E89)*([1]ELECTRIC_DEV_MODEL!$D$2:$D$1500='DC Power Distribution (Desc)'!$F89)*([1]ELECTRIC_DEV_MODEL!$F$2:$F$1500=\"DCPWRDIS\"),0),0))","v":""},{"$f":"IF('DC Power Distribution (Desc)'!G89=\"\",\"\",'DC Power Distribution (Desc)'!G89)","v":""},{"$f":"IF('DC Power Distribution (Desc)'!H89=\"\",\"\",INDEX([1]YES_NO!$A$2:$A$100,MATCH('DC Power Distribution (Desc)'!$H89,[1]!MASTER_YES_NO_DESC[#Data],0),0))","v":""},{"$f":"IF('DC Power Distribution (Desc)'!I89=\"\",\"\",'DC Power Distribution (Desc)'!I89)","v":""},{"$f":"IF('DC Power Distribution (Desc)'!J89=\"\",\"\",'DC Power Distribution (Desc)'!J89)","v":""},{"$f":"IF('DC Power Distribution (Desc)'!K89=\"\",\"\",INDEX([1]YES_NO!$A$2:$A$100,MATCH('DC Power Distribution (Desc)'!$K89,[1]!MASTER_YES_NO_DESC[#Data],0),0))","v":""},{"$f":"IF('DC Power Distribution (Desc)'!L89=\"\",\"\",INDEX([1]DEV_INPUT_VOLTAGE!$A$2:$A$100,MATCH('DC Power Distribution (Desc)'!$L89,[1]!MASTER_DEV_INPUT_VOLTAGE_DESC[#Data],0),0))","v":""},{"$f":"IF('DC Power Distribution (Desc)'!M89=\"\",\"\",INDEX([1]DEV_OUTPUT_VOLTAGE!$A$2:$A$100,MATCH('DC Power Distribution (Desc)'!$M89,[1]!MASTER_DEV_INPUT_VOLTAGE_DESC[#Data],0),0))","v":""},{"$f":"IF('DC Power Distribution (Desc)'!N89=\"\",\"\",'DC Power Distribution (Desc)'!N89)","v":""},{"$f":"IF('DC Power Distribution (Desc)'!O89=\"\",\"\",'DC Power Distribution (Desc)'!O89)","v":""},{"$f":"IF('DC Power Distribution (Desc)'!P89=\"\",\"\",'DC Power Distribution (Desc)'!P89)","v":""},{"$f":"IF('DC Power Distribution (Desc)'!B89=\"\",\"\",\"NA\")","v":""}]
[{"$f":"IF('DC Power Distribution (Desc)'!B90=\"\",\"\",2029)","v":""},{"$f":"IF('DC Power Distribution (Desc)'!B90=\"\",\"\",'DC Power Distribution (Desc)'!B90)","v":""},{"$f":"IF('DC Power Distribution (Desc)'!D90=\"\",\"\",'DC Power Distribution (Desc)'!D90)","v":""},{"$f":"IF('DC Power Distribution (Desc)'!E90=\"\",\"\",INDEX([1]ELECTRIC_DEV_MANUF!$A$2:$A$1500,MATCH(1,([1]ELECTRIC_DEV_MANUF!$B$2:$B$1500='DC Power Distribution (Desc)'!$E90)*([1]ELECTRIC_DEV_MANUF!$D$2:$D$1500=\"DCPWRDIS\"),0),0))","v":""},{"$f":"IF('DC Power Distribution (Desc)'!F90=\"\",\"\",INDEX([1]ELECTRIC_DEV_MODEL!$A$2:$A$1500,MATCH(1,([1]ELECTRIC_DEV_MODEL!$C$2:$C$1500='DC Power Distribution (Desc)'!$E90)*([1]ELECTRIC_DEV_MODEL!$D$2:$D$1500='DC Power Distribution (Desc)'!$F90)*([1]ELECTRIC_DEV_MODEL!$F$2:$F$1500=\"DCPWRDIS\"),0),0))","v":""},{"$f":"IF('DC Power Distribution (Desc)'!G90=\"\",\"\",'DC Power Distribution (Desc)'!G90)","v":""},{"$f":"IF('DC Power Distribution (Desc)'!H90=\"\",\"\",INDEX([1]YES_NO!$A$2:$A$100,MATCH('DC Power Distribution (Desc)'!$H90,[1]!MASTER_YES_NO_DESC[#Data],0),0))","v":""},{"$f":"IF('DC Power Distribution (Desc)'!I90=\"\",\"\",'DC Power Distribution (Desc)'!I90)","v":""},{"$f":"IF('DC Power Distribution (Desc)'!J90=\"\",\"\",'DC Power Distribution (Desc)'!J90)","v":""},{"$f":"IF('DC Power Distribution (Desc)'!K90=\"\",\"\",INDEX([1]YES_NO!$A$2:$A$100,MATCH('DC Power Distribution (Desc)'!$K90,[1]!MASTER_YES_NO_DESC[#Data],0),0))","v":""},{"$f":"IF('DC Power Distribution (Desc)'!L90=\"\",\"\",INDEX([1]DEV_INPUT_VOLTAGE!$A$2:$A$100,MATCH('DC Power Distribution (Desc)'!$L90,[1]!MASTER_DEV_INPUT_VOLTAGE_DESC[#Data],0),0))","v":""},{"$f":"IF('DC Power Distribution (Desc)'!M90=\"\",\"\",INDEX([1]DEV_OUTPUT_VOLTAGE!$A$2:$A$100,MATCH('DC Power Distribution (Desc)'!$M90,[1]!MASTER_DEV_INPUT_VOLTAGE_DESC[#Data],0),0))","v":""},{"$f":"IF('DC Power Distribution (Desc)'!N90=\"\",\"\",'DC Power Distribution (Desc)'!N90)","v":""},{"$f":"IF('DC Power Distribution (Desc)'!O90=\"\",\"\",'DC Power Distribution (Desc)'!O90)","v":""},{"$f":"IF('DC Power Distribution (Desc)'!P90=\"\",\"\",'DC Power Distribution (Desc)'!P90)","v":""},{"$f":"IF('DC Power Distribution (Desc)'!B90=\"\",\"\",\"NA\")","v":""}]
[{"$f":"IF('DC Power Distribution (Desc)'!B91=\"\",\"\",2029)","v":""},{"$f":"IF('DC Power Distribution (Desc)'!B91=\"\",\"\",'DC Power Distribution (Desc)'!B91)","v":""},{"$f":"IF('DC Power Distribution (Desc)'!D91=\"\",\"\",'DC Power Distribution (Desc)'!D91)","v":""},{"$f":"IF('DC Power Distribution (Desc)'!E91=\"\",\"\",INDEX([1]ELECTRIC_DEV_MANUF!$A$2:$A$1500,MATCH(1,([1]ELECTRIC_DEV_MANUF!$B$2:$B$1500='DC Power Distribution (Desc)'!$E91)*([1]ELECTRIC_DEV_MANUF!$D$2:$D$1500=\"DCPWRDIS\"),0),0))","v":""},{"$f":"IF('DC Power Distribution (Desc)'!F91=\"\",\"\",INDEX([1]ELECTRIC_DEV_MODEL!$A$2:$A$1500,MATCH(1,([1]ELECTRIC_DEV_MODEL!$C$2:$C$1500='DC Power Distribution (Desc)'!$E91)*([1]ELECTRIC_DEV_MODEL!$D$2:$D$1500='DC Power Distribution (Desc)'!$F91)*([1]ELECTRIC_DEV_MODEL!$F$2:$F$1500=\"DCPWRDIS\"),0),0))","v":""},{"$f":"IF('DC Power Distribution (Desc)'!G91=\"\",\"\",'DC Power Distribution (Desc)'!G91)","v":""},{"$f":"IF('DC Power Distribution (Desc)'!H91=\"\",\"\",INDEX([1]YES_NO!$A$2:$A$100,MATCH('DC Power Distribution (Desc)'!$H91,[1]!MASTER_YES_NO_DESC[#Data],0),0))","v":""},{"$f":"IF('DC Power Distribution (Desc)'!I91=\"\",\"\",'DC Power Distribution (Desc)'!I91)","v":""},{"$f":"IF('DC Power Distribution (Desc)'!J91=\"\",\"\",'DC Power Distribution (Desc)'!J91)","v":""},{"$f":"IF('DC Power Distribution (Desc)'!K91=\"\",\"\",INDEX([1]YES_NO!$A$2:$A$100,MATCH('DC Power Distribution (Desc)'!$K91,[1]!MASTER_YES_NO_DESC[#Data],0),0))","v":""},{"$f":"IF('DC Power Distribution (Desc)'!L91=\"\",\"\",INDEX([1]DEV_INPUT_VOLTAGE!$A$2:$A$100,MATCH('DC Power Distribution (Desc)'!$L91,[1]!MASTER_DEV_INPUT_VOLTAGE_DESC[#Data],0),0))","v":""},{"$f":"IF('DC Power Distribution (Desc)'!M91=\"\",\"\",INDEX([1]DEV_OUTPUT_VOLTAGE!$A$2:$A$100,MATCH('DC Power Distribution (Desc)'!$M91,[1]!MASTER_DEV_INPUT_VOLTAGE_DESC[#Data],0),0))","v":""},{"$f":"IF('DC Power Distribution (Desc)'!N91=\"\",\"\",'DC Power Distribution (Desc)'!N91)","v":""},{"$f":"IF('DC Power Distribution (Desc)'!O91=\"\",\"\",'DC Power Distribution (Desc)'!O91)","v":""},{"$f":"IF('DC Power Distribution (Desc)'!P91=\"\",\"\",'DC Power Distribution (Desc)'!P91)","v":""},{"$f":"IF('DC Power Distribution (Desc)'!B91=\"\",\"\",\"NA\")","v":""}]
[{"$f":"IF('DC Power Distribution (Desc)'!B92=\"\",\"\",2029)","v":""},{"$f":"IF('DC Power Distribution (Desc)'!B92=\"\",\"\",'DC Power Distribution (Desc)'!B92)","v":""},{"$f":"IF('DC Power Distribution (Desc)'!D92=\"\",\"\",'DC Power Distribution (Desc)'!D92)","v":""},{"$f":"IF('DC Power Distribution (Desc)'!E92=\"\",\"\",INDEX([1]ELECTRIC_DEV_MANUF!$A$2:$A$1500,MATCH(1,([1]ELECTRIC_DEV_MANUF!$B$2:$B$1500='DC Power Distribution (Desc)'!$E92)*([1]ELECTRIC_DEV_MANUF!$D$2:$D$1500=\"DCPWRDIS\"),0),0))","v":""},{"$f":"IF('DC Power Distribution (Desc)'!F92=\"\",\"\",INDEX([1]ELECTRIC_DEV_MODEL!$A$2:$A$1500,MATCH(1,([1]ELECTRIC_DEV_MODEL!$C$2:$C$1500='DC Power Distribution (Desc)'!$E92)*([1]ELECTRIC_DEV_MODEL!$D$2:$D$1500='DC Power Distribution (Desc)'!$F92)*([1]ELECTRIC_DEV_MODEL!$F$2:$F$1500=\"DCPWRDIS\"),0),0))","v":""},{"$f":"IF('DC Power Distribution (Desc)'!G92=\"\",\"\",'DC Power Distribution (Desc)'!G92)","v":""},{"$f":"IF('DC Power Distribution (Desc)'!H92=\"\",\"\",INDEX([1]YES_NO!$A$2:$A$100,MATCH('DC Power Distribution (Desc)'!$H92,[1]!MASTER_YES_NO_DESC[#Data],0),0))","v":""},{"$f":"IF('DC Power Distribution (Desc)'!I92=\"\",\"\",'DC Power Distribution (Desc)'!I92)","v":""},{"$f":"IF('DC Power Distribution (Desc)'!J92=\"\",\"\",'DC Power Distribution (Desc)'!J92)","v":""},{"$f":"IF('DC Power Distribution (Desc)'!K92=\"\",\"\",INDEX([1]YES_NO!$A$2:$A$100,MATCH('DC Power Distribution (Desc)'!$K92,[1]!MASTER_YES_NO_DESC[#Data],0),0))","v":""},{"$f":"IF('DC Power Distribution (Desc)'!L92=\"\",\"\",INDEX([1]DEV_INPUT_VOLTAGE!$A$2:$A$100,MATCH('DC Power Distribution (Desc)'!$L92,[1]!MASTER_DEV_INPUT_VOLTAGE_DESC[#Data],0),0))","v":""},{"$f":"IF('DC Power Distribution (Desc)'!M92=\"\",\"\",INDEX([1]DEV_OUTPUT_VOLTAGE!$A$2:$A$100,MATCH('DC Power Distribution (Desc)'!$M92,[1]!MASTER_DEV_INPUT_VOLTAGE_DESC[#Data],0),0))","v":""},{"$f":"IF('DC Power Distribution (Desc)'!N92=\"\",\"\",'DC Power Distribution (Desc)'!N92)","v":""},{"$f":"IF('DC Power Distribution (Desc)'!O92=\"\",\"\",'DC Power Distribution (Desc)'!O92)","v":""},{"$f":"IF('DC Power Distribution (Desc)'!P92=\"\",\"\",'DC Power Distribution (Desc)'!P92)","v":""},{"$f":"IF('DC Power Distribution (Desc)'!B92=\"\",\"\",\"NA\")","v":""}]
[{"$f":"IF('DC Power Distribution (Desc)'!B93=\"\",\"\",2029)","v":""},{"$f":"IF('DC Power Distribution (Desc)'!B93=\"\",\"\",'DC Power Distribution (Desc)'!B93)","v":""},{"$f":"IF('DC Power Distribution (Desc)'!D93=\"\",\"\",'DC Power Distribution (Desc)'!D93)","v":""},{"$f":"IF('DC Power Distribution (Desc)'!E93=\"\",\"\",INDEX([1]ELECTRIC_DEV_MANUF!$A$2:$A$1500,MATCH(1,([1]ELECTRIC_DEV_MANUF!$B$2:$B$1500='DC Power Distribution (Desc)'!$E93)*([1]ELECTRIC_DEV_MANUF!$D$2:$D$1500=\"DCPWRDIS\"),0),0))","v":""},{"$f":"IF('DC Power Distribution (Desc)'!F93=\"\",\"\",INDEX([1]ELECTRIC_DEV_MODEL!$A$2:$A$1500,MATCH(1,([1]ELECTRIC_DEV_MODEL!$C$2:$C$1500='DC Power Distribution (Desc)'!$E93)*([1]ELECTRIC_DEV_MODEL!$D$2:$D$1500='DC Power Distribution (Desc)'!$F93)*([1]ELECTRIC_DEV_MODEL!$F$2:$F$1500=\"DCPWRDIS\"),0),0))","v":""},{"$f":"IF('DC Power Distribution (Desc)'!G93=\"\",\"\",'DC Power Distribution (Desc)'!G93)","v":""},{"$f":"IF('DC Power Distribution (Desc)'!H93=\"\",\"\",INDEX([1]YES_NO!$A$2:$A$100,MATCH('DC Power Distribution (Desc)'!$H93,[1]!MASTER_YES_NO_DESC[#Data],0),0))","v":""},{"$f":"IF('DC Power Distribution (Desc)'!I93=\"\",\"\",'DC Power Distribution (Desc)'!I93)","v":""},{"$f":"IF('DC Power Distribution (Desc)'!J93=\"\",\"\",'DC Power Distribution (Desc)'!J93)","v":""},{"$f":"IF('DC Power Distribution (Desc)'!K93=\"\",\"\",INDEX([1]YES_NO!$A$2:$A$100,MATCH('DC Power Distribution (Desc)'!$K93,[1]!MASTER_YES_NO_DESC[#Data],0),0))","v":""},{"$f":"IF('DC Power Distribution (Desc)'!L93=\"\",\"\",INDEX([1]DEV_INPUT_VOLTAGE!$A$2:$A$100,MATCH('DC Power Distribution (Desc)'!$L93,[1]!MASTER_DEV_INPUT_VOLTAGE_DESC[#Data],0),0))","v":""},{"$f":"IF('DC Power Distribution (Desc)'!M93=\"\",\"\",INDEX([1]DEV_OUTPUT_VOLTAGE!$A$2:$A$100,MATCH('DC Power Distribution (Desc)'!$M93,[1]!MASTER_DEV_INPUT_VOLTAGE_DESC[#Data],0),0))","v":""},{"$f":"IF('DC Power Distribution (Desc)'!N93=\"\",\"\",'DC Power Distribution (Desc)'!N93)","v":""},{"$f":"IF('DC Power Distribution (Desc)'!O93=\"\",\"\",'DC Power Distribution (Desc)'!O93)","v":""},{"$f":"IF('DC Power Distribution (Desc)'!P93=\"\",\"\",'DC Power Distribution (Desc)'!P93)","v":""},{"$f":"IF('DC Power Distribution (Desc)'!B93=\"\",\"\",\"NA\")","v":""}]
[{"$f":"IF('DC Power Distribution (Desc)'!B94=\"\",\"\",2029)","v":""},{"$f":"IF('DC Power Distribution (Desc)'!B94=\"\",\"\",'DC Power Distribution (Desc)'!B94)","v":""},{"$f":"IF('DC Power Distribution (Desc)'!D94=\"\",\"\",'DC Power Distribution (Desc)'!D94)","v":""},{"$f":"IF('DC Power Distribution (Desc)'!E94=\"\",\"\",INDEX([1]ELECTRIC_DEV_MANUF!$A$2:$A$1500,MATCH(1,([1]ELECTRIC_DEV_MANUF!$B$2:$B$1500='DC Power Distribution (Desc)'!$E94)*([1]ELECTRIC_DEV_MANUF!$D$2:$D$1500=\"DCPWRDIS\"),0),0))","v":""},{"$f":"IF('DC Power Distribution (Desc)'!F94=\"\",\"\",INDEX([1]ELECTRIC_DEV_MODEL!$A$2:$A$1500,MATCH(1,([1]ELECTRIC_DEV_MODEL!$C$2:$C$1500='DC Power Distribution (Desc)'!$E94)*([1]ELECTRIC_DEV_MODEL!$D$2:$D$1500='DC Power Distribution (Desc)'!$F94)*([1]ELECTRIC_DEV_MODEL!$F$2:$F$1500=\"DCPWRDIS\"),0),0))","v":""},{"$f":"IF('DC Power Distribution (Desc)'!G94=\"\",\"\",'DC Power Distribution (Desc)'!G94)","v":""},{"$f":"IF('DC Power Distribution (Desc)'!H94=\"\",\"\",INDEX([1]YES_NO!$A$2:$A$100,MATCH('DC Power Distribution (Desc)'!$H94,[1]!MASTER_YES_NO_DESC[#Data],0),0))","v":""},{"$f":"IF('DC Power Distribution (Desc)'!I94=\"\",\"\",'DC Power Distribution (Desc)'!I94)","v":""},{"$f":"IF('DC Power Distribution (Desc)'!J94=\"\",\"\",'DC Power Distribution (Desc)'!J94)","v":""},{"$f":"IF('DC Power Distribution (Desc)'!K94=\"\",\"\",INDEX([1]YES_NO!$A$2:$A$100,MATCH('DC Power Distribution (Desc)'!$K94,[1]!MASTER_YES_NO_DESC[#Data],0),0))","v":""},{"$f":"IF('DC Power Distribution (Desc)'!L94=\"\",\"\",INDEX([1]DEV_INPUT_VOLTAGE!$A$2:$A$100,MATCH('DC Power Distribution (Desc)'!$L94,[1]!MASTER_DEV_INPUT_VOLTAGE_DESC[#Data],0),0))","v":""},{"$f":"IF('DC Power Distribution (Desc)'!M94=\"\",\"\",INDEX([1]DEV_OUTPUT_VOLTAGE!$A$2:$A$100,MATCH('DC Power Distribution (Desc)'!$M94,[1]!MASTER_DEV_INPUT_VOLTAGE_DESC[#Data],0),0))","v":""},{"$f":"IF('DC Power Distribution (Desc)'!N94=\"\",\"\",'DC Power Distribution (Desc)'!N94)","v":""},{"$f":"IF('DC Power Distribution (Desc)'!O94=\"\",\"\",'DC Power Distribution (Desc)'!O94)","v":""},{"$f":"IF('DC Power Distribution (Desc)'!P94=\"\",\"\",'DC Power Distribution (Desc)'!P94)","v":""},{"$f":"IF('DC Power Distribution (Desc)'!B94=\"\",\"\",\"NA\")","v":""}]
[{"$f":"IF('DC Power Distribution (Desc)'!B95=\"\",\"\",2029)","v":""},{"$f":"IF('DC Power Distribution (Desc)'!B95=\"\",\"\",'DC Power Distribution (Desc)'!B95)","v":""},{"$f":"IF('DC Power Distribution (Desc)'!D95=\"\",\"\",'DC Power Distribution (Desc)'!D95)","v":""},{"$f":"IF('DC Power Distribution (Desc)'!E95=\"\",\"\",INDEX([1]ELECTRIC_DEV_MANUF!$A$2:$A$1500,MATCH(1,([1]ELECTRIC_DEV_MANUF!$B$2:$B$1500='DC Power Distribution (Desc)'!$E95)*([1]ELECTRIC_DEV_MANUF!$D$2:$D$1500=\"DCPWRDIS\"),0),0))","v":""},{"$f":"IF('DC Power Distribution (Desc)'!F95=\"\",\"\",INDEX([1]ELECTRIC_DEV_MODEL!$A$2:$A$1500,MATCH(1,([1]ELECTRIC_DEV_MODEL!$C$2:$C$1500='DC Power Distribution (Desc)'!$E95)*([1]ELECTRIC_DEV_MODEL!$D$2:$D$1500='DC Power Distribution (Desc)'!$F95)*([1]ELECTRIC_DEV_MODEL!$F$2:$F$1500=\"DCPWRDIS\"),0),0))","v":""},{"$f":"IF('DC Power Distribution (Desc)'!G95=\"\",\"\",'DC Power Distribution (Desc)'!G95)","v":""},{"$f":"IF('DC Power Distribution (Desc)'!H95=\"\",\"\",INDEX([1]YES_NO!$A$2:$A$100,MATCH('DC Power Distribution (Desc)'!$H95,[1]!MASTER_YES_NO_DESC[#Data],0),0))","v":""},{"$f":"IF('DC Power Distribution (Desc)'!I95=\"\",\"\",'DC Power Distribution (Desc)'!I95)","v":""},{"$f":"IF('DC Power Distribution (Desc)'!J95=\"\",\"\",'DC Power Distribution (Desc)'!J95)","v":""},{"$f":"IF('DC Power Distribution (Desc)'!K95=\"\",\"\",INDEX([1]YES_NO!$A$2:$A$100,MATCH('DC Power Distribution (Desc)'!$K95,[1]!MASTER_YES_NO_DESC[#Data],0),0))","v":""},{"$f":"IF('DC Power Distribution (Desc)'!L95=\"\",\"\",INDEX([1]DEV_INPUT_VOLTAGE!$A$2:$A$100,MATCH('DC Power Distribution (Desc)'!$L95,[1]!MASTER_DEV_INPUT_VOLTAGE_DESC[#Data],0),0))","v":""},{"$f":"IF('DC Power Distribution (Desc)'!M95=\"\",\"\",INDEX([1]DEV_OUTPUT_VOLTAGE!$A$2:$A$100,MATCH('DC Power Distribution (Desc)'!$M95,[1]!MASTER_DEV_INPUT_VOLTAGE_DESC[#Data],0),0))","v":""},{"$f":"IF('DC Power Distribution (Desc)'!N95=\"\",\"\",'DC Power Distribution (Desc)'!N95)","v":""},{"$f":"IF('DC Power Distribution (Desc)'!O95=\"\",\"\",'DC Power Distribution (Desc)'!O95)","v":""},{"$f":"IF('DC Power Distribution (Desc)'!P95=\"\",\"\",'DC Power Distribution (Desc)'!P95)","v":""},{"$f":"IF('DC Power Distribution (Desc)'!B95=\"\",\"\",\"NA\")","v":""}]
[{"$f":"IF('DC Power Distribution (Desc)'!B96=\"\",\"\",2029)","v":""},{"$f":"IF('DC Power Distribution (Desc)'!B96=\"\",\"\",'DC Power Distribution (Desc)'!B96)","v":""},{"$f":"IF('DC Power Distribution (Desc)'!D96=\"\",\"\",'DC Power Distribution (Desc)'!D96)","v":""},{"$f":"IF('DC Power Distribution (Desc)'!E96=\"\",\"\",INDEX([1]ELECTRIC_DEV_MANUF!$A$2:$A$1500,MATCH(1,([1]ELECTRIC_DEV_MANUF!$B$2:$B$1500='DC Power Distribution (Desc)'!$E96)*([1]ELECTRIC_DEV_MANUF!$D$2:$D$1500=\"DCPWRDIS\"),0),0))","v":""},{"$f":"IF('DC Power Distribution (Desc)'!F96=\"\",\"\",INDEX([1]ELECTRIC_DEV_MODEL!$A$2:$A$1500,MATCH(1,([1]ELECTRIC_DEV_MODEL!$C$2:$C$1500='DC Power Distribution (Desc)'!$E96)*([1]ELECTRIC_DEV_MODEL!$D$2:$D$1500='DC Power Distribution (Desc)'!$F96)*([1]ELECTRIC_DEV_MODEL!$F$2:$F$1500=\"DCPWRDIS\"),0),0))","v":""},{"$f":"IF('DC Power Distribution (Desc)'!G96=\"\",\"\",'DC Power Distribution (Desc)'!G96)","v":""},{"$f":"IF('DC Power Distribution (Desc)'!H96=\"\",\"\",INDEX([1]YES_NO!$A$2:$A$100,MATCH('DC Power Distribution (Desc)'!$H96,[1]!MASTER_YES_NO_DESC[#Data],0),0))","v":""},{"$f":"IF('DC Power Distribution (Desc)'!I96=\"\",\"\",'DC Power Distribution (Desc)'!I96)","v":""},{"$f":"IF('DC Power Distribution (Desc)'!J96=\"\",\"\",'DC Power Distribution (Desc)'!J96)","v":""},{"$f":"IF('DC Power Distribution (Desc)'!K96=\"\",\"\",INDEX([1]YES_NO!$A$2:$A$100,MATCH('DC Power Distribution (Desc)'!$K96,[1]!MASTER_YES_NO_DESC[#Data],0),0))","v":""},{"$f":"IF('DC Power Distribution (Desc)'!L96=\"\",\"\",INDEX([1]DEV_INPUT_VOLTAGE!$A$2:$A$100,MATCH('DC Power Distribution (Desc)'!$L96,[1]!MASTER_DEV_INPUT_VOLTAGE_DESC[#Data],0),0))","v":""},{"$f":"IF('DC Power Distribution (Desc)'!M96=\"\",\"\",INDEX([1]DEV_OUTPUT_VOLTAGE!$A$2:$A$100,MATCH('DC Power Distribution (Desc)'!$M96,[1]!MASTER_DEV_INPUT_VOLTAGE_DESC[#Data],0),0))","v":""},{"$f":"IF('DC Power Distribution (Desc)'!N96=\"\",\"\",'DC Power Distribution (Desc)'!N96)","v":""},{"$f":"IF('DC Power Distribution (Desc)'!O96=\"\",\"\",'DC Power Distribution (Desc)'!O96)","v":""},{"$f":"IF('DC Power Distribution (Desc)'!P96=\"\",\"\",'DC Power Distribution (Desc)'!P96)","v":""},{"$f":"IF('DC Power Distribution (Desc)'!B96=\"\",\"\",\"NA\")","v":""}]
[{"$f":"IF('DC Power Distribution (Desc)'!B97=\"\",\"\",2029)","v":""},{"$f":"IF('DC Power Distribution (Desc)'!B97=\"\",\"\",'DC Power Distribution (Desc)'!B97)","v":""},{"$f":"IF('DC Power Distribution (Desc)'!D97=\"\",\"\",'DC Power Distribution (Desc)'!D97)","v":""},{"$f":"IF('DC Power Distribution (Desc)'!E97=\"\",\"\",INDEX([1]ELECTRIC_DEV_MANUF!$A$2:$A$1500,MATCH(1,([1]ELECTRIC_DEV_MANUF!$B$2:$B$1500='DC Power Distribution (Desc)'!$E97)*([1]ELECTRIC_DEV_MANUF!$D$2:$D$1500=\"DCPWRDIS\"),0),0))","v":""},{"$f":"IF('DC Power Distribution (Desc)'!F97=\"\",\"\",INDEX([1]ELECTRIC_DEV_MODEL!$A$2:$A$1500,MATCH(1,([1]ELECTRIC_DEV_MODEL!$C$2:$C$1500='DC Power Distribution (Desc)'!$E97)*([1]ELECTRIC_DEV_MODEL!$D$2:$D$1500='DC Power Distribution (Desc)'!$F97)*([1]ELECTRIC_DEV_MODEL!$F$2:$F$1500=\"DCPWRDIS\"),0),0))","v":""},{"$f":"IF('DC Power Distribution (Desc)'!G97=\"\",\"\",'DC Power Distribution (Desc)'!G97)","v":""},{"$f":"IF('DC Power Distribution (Desc)'!H97=\"\",\"\",INDEX([1]YES_NO!$A$2:$A$100,MATCH('DC Power Distribution (Desc)'!$H97,[1]!MASTER_YES_NO_DESC[#Data],0),0))","v":""},{"$f":"IF('DC Power Distribution (Desc)'!I97=\"\",\"\",'DC Power Distribution (Desc)'!I97)","v":""},{"$f":"IF('DC Power Distribution (Desc)'!J97=\"\",\"\",'DC Power Distribution (Desc)'!J97)","v":""},{"$f":"IF('DC Power Distribution (Desc)'!K97=\"\",\"\",INDEX([1]YES_NO!$A$2:$A$100,MATCH('DC Power Distribution (Desc)'!$K97,[1]!MASTER_YES_NO_DESC[#Data],0),0))","v":""},{"$f":"IF('DC Power Distribution (Desc)'!L97=\"\",\"\",INDEX([1]DEV_INPUT_VOLTAGE!$A$2:$A$100,MATCH('DC Power Distribution (Desc)'!$L97,[1]!MASTER_DEV_INPUT_VOLTAGE_DESC[#Data],0),0))","v":""},{"$f":"IF('DC Power Distribution (Desc)'!M97=\"\",\"\",INDEX([1]DEV_OUTPUT_VOLTAGE!$A$2:$A$100,MATCH('DC Power Distribution (Desc)'!$M97,[1]!MASTER_DEV_INPUT_VOLTAGE_DESC[#Data],0),0))","v":""},{"$f":"IF('DC Power Distribution (Desc)'!N97=\"\",\"\",'DC Power Distribution (Desc)'!N97)","v":""},{"$f":"IF('DC Power Distribution (Desc)'!O97=\"\",\"\",'DC Power Distribution (Desc)'!O97)","v":""},{"$f":"IF('DC Power Distribution (Desc)'!P97=\"\",\"\",'DC Power Distribution (Desc)'!P97)","v":""},{"$f":"IF('DC Power Distribution (Desc)'!B97=\"\",\"\",\"NA\")","v":""}]
[{"$f":"IF('DC Power Distribution (Desc)'!B98=\"\",\"\",2029)","v":""},{"$f":"IF('DC Power Distribution (Desc)'!B98=\"\",\"\",'DC Power Distribution (Desc)'!B98)","v":""},{"$f":"IF('DC Power Distribution (Desc)'!D98=\"\",\"\",'DC Power Distribution (Desc)'!D98)","v":""},{"$f":"IF('DC Power Distribution (Desc)'!E98=\"\",\"\",INDEX([1]ELECTRIC_DEV_MANUF!$A$2:$A$1500,MATCH(1,([1]ELECTRIC_DEV_MANUF!$B$2:$B$1500='DC Power Distribution (Desc)'!$E98)*([1]ELECTRIC_DEV_MANUF!$D$2:$D$1500=\"DCPWRDIS\"),0),0))","v":""},{"$f":"IF('DC Power Distribution (Desc)'!F98=\"\",\"\",INDEX([1]ELECTRIC_DEV_MODEL!$A$2:$A$1500,MATCH(1,([1]ELECTRIC_DEV_MODEL!$C$2:$C$1500='DC Power Distribution (Desc)'!$E98)*([1]ELECTRIC_DEV_MODEL!$D$2:$D$1500='DC Power Distribution (Desc)'!$F98)*([1]ELECTRIC_DEV_MODEL!$F$2:$F$1500=\"DCPWRDIS\"),0),0))","v":""},{"$f":"IF('DC Power Distribution (Desc)'!G98=\"\",\"\",'DC Power Distribution (Desc)'!G98)","v":""},{"$f":"IF('DC Power Distribution (Desc)'!H98=\"\",\"\",INDEX([1]YES_NO!$A$2:$A$100,MATCH('DC Power Distribution (Desc)'!$H98,[1]!MASTER_YES_NO_DESC[#Data],0),0))","v":""},{"$f":"IF('DC Power Distribution (Desc)'!I98=\"\",\"\",'DC Power Distribution (Desc)'!I98)","v":""},{"$f":"IF('DC Power Distribution (Desc)'!J98=\"\",\"\",'DC Power Distribution (Desc)'!J98)","v":""},{"$f":"IF('DC Power Distribution (Desc)'!K98=\"\",\"\",INDEX([1]YES_NO!$A$2:$A$100,MATCH('DC Power Distribution (Desc)'!$K98,[1]!MASTER_YES_NO_DESC[#Data],0),0))","v":""},{"$f":"IF('DC Power Distribution (Desc)'!L98=\"\",\"\",INDEX([1]DEV_INPUT_VOLTAGE!$A$2:$A$100,MATCH('DC Power Distribution (Desc)'!$L98,[1]!MASTER_DEV_INPUT_VOLTAGE_DESC[#Data],0),0))","v":""},{"$f":"IF('DC Power Distribution (Desc)'!M98=\"\",\"\",INDEX([1]DEV_OUTPUT_VOLTAGE!$A$2:$A$100,MATCH('DC Power Distribution (Desc)'!$M98,[1]!MASTER_DEV_INPUT_VOLTAGE_DESC[#Data],0),0))","v":""},{"$f":"IF('DC Power Distribution (Desc)'!N98=\"\",\"\",'DC Power Distribution (Desc)'!N98)","v":""},{"$f":"IF('DC Power Distribution (Desc)'!O98=\"\",\"\",'DC Power Distribution (Desc)'!O98)","v":""},{"$f":"IF('DC Power Distribution (Desc)'!P98=\"\",\"\",'DC Power Distribution (Desc)'!P98)","v":""},{"$f":"IF('DC Power Distribution (Desc)'!B98=\"\",\"\",\"NA\")","v":""}]
[{"$f":"IF('DC Power Distribution (Desc)'!B99=\"\",\"\",2029)","v":""},{"$f":"IF('DC Power Distribution (Desc)'!B99=\"\",\"\",'DC Power Distribution (Desc)'!B99)","v":""},{"$f":"IF('DC Power Distribution (Desc)'!D99=\"\",\"\",'DC Power Distribution (Desc)'!D99)","v":""},{"$f":"IF('DC Power Distribution (Desc)'!E99=\"\",\"\",INDEX([1]ELECTRIC_DEV_MANUF!$A$2:$A$1500,MATCH(1,([1]ELECTRIC_DEV_MANUF!$B$2:$B$1500='DC Power Distribution (Desc)'!$E99)*([1]ELECTRIC_DEV_MANUF!$D$2:$D$1500=\"DCPWRDIS\"),0),0))","v":""},{"$f":"IF('DC Power Distribution (Desc)'!F99=\"\",\"\",INDEX([1]ELECTRIC_DEV_MODEL!$A$2:$A$1500,MATCH(1,([1]ELECTRIC_DEV_MODEL!$C$2:$C$1500='DC Power Distribution (Desc)'!$E99)*([1]ELECTRIC_DEV_MODEL!$D$2:$D$1500='DC Power Distribution (Desc)'!$F99)*([1]ELECTRIC_DEV_MODEL!$F$2:$F$1500=\"DCPWRDIS\"),0),0))","v":""},{"$f":"IF('DC Power Distribution (Desc)'!G99=\"\",\"\",'DC Power Distribution (Desc)'!G99)","v":""},{"$f":"IF('DC Power Distribution (Desc)'!H99=\"\",\"\",INDEX([1]YES_NO!$A$2:$A$100,MATCH('DC Power Distribution (Desc)'!$H99,[1]!MASTER_YES_NO_DESC[#Data],0),0))","v":""},{"$f":"IF('DC Power Distribution (Desc)'!I99=\"\",\"\",'DC Power Distribution (Desc)'!I99)","v":""},{"$f":"IF('DC Power Distribution (Desc)'!J99=\"\",\"\",'DC Power Distribution (Desc)'!J99)","v":""},{"$f":"IF('DC Power Distribution (Desc)'!K99=\"\",\"\",INDEX([1]YES_NO!$A$2:$A$100,MATCH('DC Power Distribution (Desc)'!$K99,[1]!MASTER_YES_NO_DESC[#Data],0),0))","v":""},{"$f":"IF('DC Power Distribution (Desc)'!L99=\"\",\"\",INDEX([1]DEV_INPUT_VOLTAGE!$A$2:$A$100,MATCH('DC Power Distribution (Desc)'!$L99,[1]!MASTER_DEV_INPUT_VOLTAGE_DESC[#Data],0),0))","v":""},{"$f":"IF('DC Power Distribution (Desc)'!M99=\"\",\"\",INDEX([1]DEV_OUTPUT_VOLTAGE!$A$2:$A$100,MATCH('DC Power Distribution (Desc)'!$M99,[1]!MASTER_DEV_INPUT_VOLTAGE_DESC[#Data],0),0))","v":""},{"$f":"IF('DC Power Distribution (Desc)'!N99=\"\",\"\",'DC Power Distribution (Desc)'!N99)","v":""},{"$f":"IF('DC Power Distribution (Desc)'!O99=\"\",\"\",'DC Power Distribution (Desc)'!O99)","v":""},{"$f":"IF('DC Power Distribution (Desc)'!P99=\"\",\"\",'DC Power Distribution (Desc)'!P99)","v":""},{"$f":"IF('DC Power Distribution (Desc)'!B99=\"\",\"\",\"NA\")","v":""}]
[{"$f":"IF('DC Power Distribution (Desc)'!B100=\"\",\"\",2029)","v":""},{"$f":"IF('DC Power Distribution (Desc)'!B100=\"\",\"\",'DC Power Distribution (Desc)'!B100)","v":""},{"$f":"IF('DC Power Distribution (Desc)'!D100=\"\",\"\",'DC Power Distribution (Desc)'!D100)","v":""},{"$f":"IF('DC Power Distribution (Desc)'!E100=\"\",\"\",INDEX([1]ELECTRIC_DEV_MANUF!$A$2:$A$1500,MATCH(1,([1]ELECTRIC_DEV_MANUF!$B$2:$B$1500='DC Power Distribution (Desc)'!$E100)*([1]ELECTRIC_DEV_MANUF!$D$2:$D$1500=\"DCPWRDIS\"),0),0))","v":""},{"$f":"IF('DC Power Distribution (Desc)'!F100=\"\",\"\",INDEX([1]ELECTRIC_DEV_MODEL!$A$2:$A$1500,MATCH(1,([1]ELECTRIC_DEV_MODEL!$C$2:$C$1500='DC Power Distribution (Desc)'!$E100)*([1]ELECTRIC_DEV_MODEL!$D$2:$D$1500='DC Power Distribution (Desc)'!$F100)*([1]ELECTRIC_DEV_MODEL!$F$2:$F$1500=\"DCPWRDIS\"),0),0))","v":""},{"$f":"IF('DC Power Distribution (Desc)'!G100=\"\",\"\",'DC Power Distribution (Desc)'!G100)","v":""},{"$f":"IF('DC Power Distribution (Desc)'!H100=\"\",\"\",INDEX([1]YES_NO!$A$2:$A$100,MATCH('DC Power Distribution (Desc)'!$H100,[1]!MASTER_YES_NO_DESC[#Data],0),0))","v":""},{"$f":"IF('DC Power Distribution (Desc)'!I100=\"\",\"\",'DC Power Distribution (Desc)'!I100)","v":""},{"$f":"IF('DC Power Distribution (Desc)'!J100=\"\",\"\",'DC Power Distribution (Desc)'!J100)","v":""},{"$f":"IF('DC Power Distribution (Desc)'!K100=\"\",\"\",INDEX([1]YES_NO!$A$2:$A$100,MATCH('DC Power Distribution (Desc)'!$K100,[1]!MASTER_YES_NO_DESC[#Data],0),0))","v":""},{"$f":"IF('DC Power Distribution (Desc)'!L100=\"\",\"\",INDEX([1]DEV_INPUT_VOLTAGE!$A$2:$A$100,MATCH('DC Power Distribution (Desc)'!$L100,[1]!MASTER_DEV_INPUT_VOLTAGE_DESC[#Data],0),0))","v":""},{"$f":"IF('DC Power Distribution (Desc)'!M100=\"\",\"\",INDEX([1]DEV_OUTPUT_VOLTAGE!$A$2:$A$100,MATCH('DC Power Distribution (Desc)'!$M100,[1]!MASTER_DEV_INPUT_VOLTAGE_DESC[#Data],0),0))","v":""},{"$f":"IF('DC Power Distribution (Desc)'!N100=\"\",\"\",'DC Power Distribution (Desc)'!N100)","v":""},{"$f":"IF('DC Power Distribution (Desc)'!O100=\"\",\"\",'DC Power Distribution (Desc)'!O100)","v":""},{"$f":"IF('DC Power Distribution (Desc)'!P100=\"\",\"\",'DC Power Distribution (Desc)'!P100)","v":""},{"$f":"IF('DC Power Distribution (Desc)'!B100=\"\",\"\",\"NA\")","v":""}]
[{"$f":"IF('DC Power Distribution (Desc)'!B101=\"\",\"\",2029)","v":""},{"$f":"IF('DC Power Distribution (Desc)'!B101=\"\",\"\",'DC Power Distribution (Desc)'!B101)","v":""},{"$f":"IF('DC Power Distribution (Desc)'!D101=\"\",\"\",'DC Power Distribution (Desc)'!D101)","v":""},{"$f":"IF('DC Power Distribution (Desc)'!E101=\"\",\"\",INDEX([1]ELECTRIC_DEV_MANUF!$A$2:$A$1500,MATCH(1,([1]ELECTRIC_DEV_MANUF!$B$2:$B$1500='DC Power Distribution (Desc)'!$E101)*([1]ELECTRIC_DEV_MANUF!$D$2:$D$1500=\"DCPWRDIS\"),0),0))","v":""},{"$f":"IF('DC Power Distribution (Desc)'!F101=\"\",\"\",INDEX([1]ELECTRIC_DEV_MODEL!$A$2:$A$1500,MATCH(1,([1]ELECTRIC_DEV_MODEL!$C$2:$C$1500='DC Power Distribution (Desc)'!$E101)*([1]ELECTRIC_DEV_MODEL!$D$2:$D$1500='DC Power Distribution (Desc)'!$F101)*([1]ELECTRIC_DEV_MODEL!$F$2:$F$1500=\"DCPWRDIS\"),0),0))","v":""},{"$f":"IF('DC Power Distribution (Desc)'!G101=\"\",\"\",'DC Power Distribution (Desc)'!G101)","v":""},{"$f":"IF('DC Power Distribution (Desc)'!H101=\"\",\"\",INDEX([1]YES_NO!$A$2:$A$100,MATCH('DC Power Distribution (Desc)'!$H101,[1]!MASTER_YES_NO_DESC[#Data],0),0))","v":""},{"$f":"IF('DC Power Distribution (Desc)'!I101=\"\",\"\",'DC Power Distribution (Desc)'!I101)","v":""},{"$f":"IF('DC Power Distribution (Desc)'!J101=\"\",\"\",'DC Power Distribution (Desc)'!J101)","v":""},{"$f":"IF('DC Power Distribution (Desc)'!K101=\"\",\"\",INDEX([1]YES_NO!$A$2:$A$100,MATCH('DC Power Distribution (Desc)'!$K101,[1]!MASTER_YES_NO_DESC[#Data],0),0))","v":""},{"$f":"IF('DC Power Distribution (Desc)'!L101=\"\",\"\",INDEX([1]DEV_INPUT_VOLTAGE!$A$2:$A$100,MATCH('DC Power Distribution (Desc)'!$L101,[1]!MASTER_DEV_INPUT_VOLTAGE_DESC[#Data],0),0))","v":""},{"$f":"IF('DC Power Distribution (Desc)'!M101=\"\",\"\",INDEX([1]DEV_OUTPUT_VOLTAGE!$A$2:$A$100,MATCH('DC Power Distribution (Desc)'!$M101,[1]!MASTER_DEV_INPUT_VOLTAGE_DESC[#Data],0),0))","v":""},{"$f":"IF('DC Power Distribution (Desc)'!N101=\"\",\"\",'DC Power Distribution (Desc)'!N101)","v":""},{"$f":"IF('DC Power Distribution (Desc)'!O101=\"\",\"\",'DC Power Distribution (Desc)'!O101)","v":""},{"$f":"IF('DC Power Distribution (Desc)'!P101=\"\",\"\",'DC Power Distribution (Desc)'!P101)","v":""},{"$f":"IF('DC Power Distribution (Desc)'!B101=\"\",\"\",\"NA\")","v":""}]
[{"$f":"IF('DC Power Distribution (Desc)'!B102=\"\",\"\",2029)","v":""},{"$f":"IF('DC Power Distribution (Desc)'!B102=\"\",\"\",'DC Power Distribution (Desc)'!B102)","v":""},{"$f":"IF('DC Power Distribution (Desc)'!D102=\"\",\"\",'DC Power Distribution (Desc)'!D102)","v":""},{"$f":"IF('DC Power Distribution (Desc)'!E102=\"\",\"\",INDEX([1]ELECTRIC_DEV_MANUF!$A$2:$A$1500,MATCH(1,([1]ELECTRIC_DEV_MANUF!$B$2:$B$1500='DC Power Distribution (Desc)'!$E102)*([1]ELECTRIC_DEV_MANUF!$D$2:$D$1500=\"DCPWRDIS\"),0),0))","v":""},{"$f":"IF('DC Power Distribution (Desc)'!F102=\"\",\"\",INDEX([1]ELECTRIC_DEV_MODEL!$A$2:$A$1500,MATCH(1,([1]ELECTRIC_DEV_MODEL!$C$2:$C$1500='DC Power Distribution (Desc)'!$E102)*([1]ELECTRIC_DEV_MODEL!$D$2:$D$1500='DC Power Distribution (Desc)'!$F102)*([1]ELECTRIC_DEV_MODEL!$F$2:$F$1500=\"DCPWRDIS\"),0),0))","v":""},{"$f":"IF('DC Power Distribution (Desc)'!G102=\"\",\"\",'DC Power Distribution (Desc)'!G102)","v":""},{"$f":"IF('DC Power Distribution (Desc)'!H102=\"\",\"\",INDEX([1]YES_NO!$A$2:$A$100,MATCH('DC Power Distribution (Desc)'!$H102,[1]!MASTER_YES_NO_DESC[#Data],0),0))","v":""},{"$f":"IF('DC Power Distribution (Desc)'!I102=\"\",\"\",'DC Power Distribution (Desc)'!I102)","v":""},{"$f":"IF('DC Power Distribution (Desc)'!J102=\"\",\"\",'DC Power Distribution (Desc)'!J102)","v":""},{"$f":"IF('DC Power Distribution (Desc)'!K102=\"\",\"\",INDEX([1]YES_NO!$A$2:$A$100,MATCH('DC Power Distribution (Desc)'!$K102,[1]!MASTER_YES_NO_DESC[#Data],0),0))","v":""},{"$f":"IF('DC Power Distribution (Desc)'!L102=\"\",\"\",INDEX([1]DEV_INPUT_VOLTAGE!$A$2:$A$100,MATCH('DC Power Distribution (Desc)'!$L102,[1]!MASTER_DEV_INPUT_VOLTAGE_DESC[#Data],0),0))","v":""},{"$f":"IF('DC Power Distribution (Desc)'!M102=\"\",\"\",INDEX([1]DEV_OUTPUT_VOLTAGE!$A$2:$A$100,MATCH('DC Power Distribution (Desc)'!$M102,[1]!MASTER_DEV_INPUT_VOLTAGE_DESC[#Data],0),0))","v":""},{"$f":"IF('DC Power Distribution (Desc)'!N102=\"\",\"\",'DC Power Distribution (Desc)'!N102)","v":""},{"$f":"IF('DC Power Distribution (Desc)'!O102=\"\",\"\",'DC Power Distribution (Desc)'!O102)","v":""},{"$f":"IF('DC Power Distribution (Desc)'!P102=\"\",\"\",'DC Power Distribution (Desc)'!P102)","v":""},{"$f":"IF('DC Power Distribution (Desc)'!B102=\"\",\"\",\"NA\")","v":""}]
[{"$f":"IF('DC Power Distribution (Desc)'!B103=\"\",\"\",2029)","v":""},{"$f":"IF('DC Power Distribution (Desc)'!B103=\"\",\"\",'DC Power Distribution (Desc)'!B103)","v":""},{"$f":"IF('DC Power Distribution (Desc)'!D103=\"\",\"\",'DC Power Distribution (Desc)'!D103)","v":""},{"$f":"IF('DC Power Distribution (Desc)'!E103=\"\",\"\",INDEX([1]ELECTRIC_DEV_MANUF!$A$2:$A$1500,MATCH(1,([1]ELECTRIC_DEV_MANUF!$B$2:$B$1500='DC Power Distribution (Desc)'!$E103)*([1]ELECTRIC_DEV_MANUF!$D$2:$D$1500=\"DCPWRDIS\"),0),0))","v":""},{"$f":"IF('DC Power Distribution (Desc)'!F103=\"\",\"\",INDEX([1]ELECTRIC_DEV_MODEL!$A$2:$A$1500,MATCH(1,([1]ELECTRIC_DEV_MODEL!$C$2:$C$1500='DC Power Distribution (Desc)'!$E103)*([1]ELECTRIC_DEV_MODEL!$D$2:$D$1500='DC Power Distribution (Desc)'!$F103)*([1]ELECTRIC_DEV_MODEL!$F$2:$F$1500=\"DCPWRDIS\"),0),0))","v":""},{"$f":"IF('DC Power Distribution (Desc)'!G103=\"\",\"\",'DC Power Distribution (Desc)'!G103)","v":""},{"$f":"IF('DC Power Distribution (Desc)'!H103=\"\",\"\",INDEX([1]YES_NO!$A$2:$A$100,MATCH('DC Power Distribution (Desc)'!$H103,[1]!MASTER_YES_NO_DESC[#Data],0),0))","v":""},{"$f":"IF('DC Power Distribution (Desc)'!I103=\"\",\"\",'DC Power Distribution (Desc)'!I103)","v":""},{"$f":"IF('DC Power Distribution (Desc)'!J103=\"\",\"\",'DC Power Distribution (Desc)'!J103)","v":""},{"$f":"IF('DC Power Distribution (Desc)'!K103=\"\",\"\",INDEX([1]YES_NO!$A$2:$A$100,MATCH('DC Power Distribution (Desc)'!$K103,[1]!MASTER_YES_NO_DESC[#Data],0),0))","v":""},{"$f":"IF('DC Power Distribution (Desc)'!L103=\"\",\"\",INDEX([1]DEV_INPUT_VOLTAGE!$A$2:$A$100,MATCH('DC Power Distribution (Desc)'!$L103,[1]!MASTER_DEV_INPUT_VOLTAGE_DESC[#Data],0),0))","v":""},{"$f":"IF('DC Power Distribution (Desc)'!M103=\"\",\"\",INDEX([1]DEV_OUTPUT_VOLTAGE!$A$2:$A$100,MATCH('DC Power Distribution (Desc)'!$M103,[1]!MASTER_DEV_INPUT_VOLTAGE_DESC[#Data],0),0))","v":""},{"$f":"IF('DC Power Distribution (Desc)'!N103=\"\",\"\",'DC Power Distribution (Desc)'!N103)","v":""},{"$f":"IF('DC Power Distribution (Desc)'!O103=\"\",\"\",'DC Power Distribution (Desc)'!O103)","v":""},{"$f":"IF('DC Power Distribution (Desc)'!P103=\"\",\"\",'DC Power Distribution (Desc)'!P103)","v":""},{"$f":"IF('DC Power Distribution (Desc)'!B103=\"\",\"\",\"NA\")","v":""}]
[{"$f":"IF('DC Power Distribution (Desc)'!B104=\"\",\"\",2029)","v":""},{"$f":"IF('DC Power Distribution (Desc)'!B104=\"\",\"\",'DC Power Distribution (Desc)'!B104)","v":""},{"$f":"IF('DC Power Distribution (Desc)'!D104=\"\",\"\",'DC Power Distribution (Desc)'!D104)","v":""},{"$f":"IF('DC Power Distribution (Desc)'!E104=\"\",\"\",INDEX([1]ELECTRIC_DEV_MANUF!$A$2:$A$1500,MATCH(1,([1]ELECTRIC_DEV_MANUF!$B$2:$B$1500='DC Power Distribution (Desc)'!$E104)*([1]ELECTRIC_DEV_MANUF!$D$2:$D$1500=\"DCPWRDIS\"),0),0))","v":""},{"$f":"IF('DC Power Distribution (Desc)'!F104=\"\",\"\",INDEX([1]ELECTRIC_DEV_MODEL!$A$2:$A$1500,MATCH(1,([1]ELECTRIC_DEV_MODEL!$C$2:$C$1500='DC Power Distribution (Desc)'!$E104)*([1]ELECTRIC_DEV_MODEL!$D$2:$D$1500='DC Power Distribution (Desc)'!$F104)*([1]ELECTRIC_DEV_MODEL!$F$2:$F$1500=\"DCPWRDIS\"),0),0))","v":""},{"$f":"IF('DC Power Distribution (Desc)'!G104=\"\",\"\",'DC Power Distribution (Desc)'!G104)","v":""},{"$f":"IF('DC Power Distribution (Desc)'!H104=\"\",\"\",INDEX([1]YES_NO!$A$2:$A$100,MATCH('DC Power Distribution (Desc)'!$H104,[1]!MASTER_YES_NO_DESC[#Data],0),0))","v":""},{"$f":"IF('DC Power Distribution (Desc)'!I104=\"\",\"\",'DC Power Distribution (Desc)'!I104)","v":""},{"$f":"IF('DC Power Distribution (Desc)'!J104=\"\",\"\",'DC Power Distribution (Desc)'!J104)","v":""},{"$f":"IF('DC Power Distribution (Desc)'!K104=\"\",\"\",INDEX([1]YES_NO!$A$2:$A$100,MATCH('DC Power Distribution (Desc)'!$K104,[1]!MASTER_YES_NO_DESC[#Data],0),0))","v":""},{"$f":"IF('DC Power Distribution (Desc)'!L104=\"\",\"\",INDEX([1]DEV_INPUT_VOLTAGE!$A$2:$A$100,MATCH('DC Power Distribution (Desc)'!$L104,[1]!MASTER_DEV_INPUT_VOLTAGE_DESC[#Data],0),0))","v":""},{"$f":"IF('DC Power Distribution (Desc)'!M104=\"\",\"\",INDEX([1]DEV_OUTPUT_VOLTAGE!$A$2:$A$100,MATCH('DC Power Distribution (Desc)'!$M104,[1]!MASTER_DEV_INPUT_VOLTAGE_DESC[#Data],0),0))","v":""},{"$f":"IF('DC Power Distribution (Desc)'!N104=\"\",\"\",'DC Power Distribution (Desc)'!N104)","v":""},{"$f":"IF('DC Power Distribution (Desc)'!O104=\"\",\"\",'DC Power Distribution (Desc)'!O104)","v":""},{"$f":"IF('DC Power Distribution (Desc)'!P104=\"\",\"\",'DC Power Distribution (Desc)'!P104)","v":""},{"$f":"IF('DC Power Distribution (Desc)'!B104=\"\",\"\",\"NA\")","v":""}]
[{"$f":"IF('DC Power Distribution (Desc)'!B105=\"\",\"\",2029)","v":""},{"$f":"IF('DC Power Distribution (Desc)'!B105=\"\",\"\",'DC Power Distribution (Desc)'!B105)","v":""},{"$f":"IF('DC Power Distribution (Desc)'!D105=\"\",\"\",'DC Power Distribution (Desc)'!D105)","v":""},{"$f":"IF('DC Power Distribution (Desc)'!E105=\"\",\"\",INDEX([1]ELECTRIC_DEV_MANUF!$A$2:$A$1500,MATCH(1,([1]ELECTRIC_DEV_MANUF!$B$2:$B$1500='DC Power Distribution (Desc)'!$E105)*([1]ELECTRIC_DEV_MANUF!$D$2:$D$1500=\"DCPWRDIS\"),0),0))","v":""},{"$f":"IF('DC Power Distribution (Desc)'!F105=\"\",\"\",INDEX([1]ELECTRIC_DEV_MODEL!$A$2:$A$1500,MATCH(1,([1]ELECTRIC_DEV_MODEL!$C$2:$C$1500='DC Power Distribution (Desc)'!$E105)*([1]ELECTRIC_DEV_MODEL!$D$2:$D$1500='DC Power Distribution (Desc)'!$F105)*([1]ELECTRIC_DEV_MODEL!$F$2:$F$1500=\"DCPWRDIS\"),0),0))","v":""},{"$f":"IF('DC Power Distribution (Desc)'!G105=\"\",\"\",'DC Power Distribution (Desc)'!G105)","v":""},{"$f":"IF('DC Power Distribution (Desc)'!H105=\"\",\"\",INDEX([1]YES_NO!$A$2:$A$100,MATCH('DC Power Distribution (Desc)'!$H105,[1]!MASTER_YES_NO_DESC[#Data],0),0))","v":""},{"$f":"IF('DC Power Distribution (Desc)'!I105=\"\",\"\",'DC Power Distribution (Desc)'!I105)","v":""},{"$f":"IF('DC Power Distribution (Desc)'!J105=\"\",\"\",'DC Power Distribution (Desc)'!J105)","v":""},{"$f":"IF('DC Power Distribution (Desc)'!K105=\"\",\"\",INDEX([1]YES_NO!$A$2:$A$100,MATCH('DC Power Distribution (Desc)'!$K105,[1]!MASTER_YES_NO_DESC[#Data],0),0))","v":""},{"$f":"IF('DC Power Distribution (Desc)'!L105=\"\",\"\",INDEX([1]DEV_INPUT_VOLTAGE!$A$2:$A$100,MATCH('DC Power Distribution (Desc)'!$L105,[1]!MASTER_DEV_INPUT_VOLTAGE_DESC[#Data],0),0))","v":""},{"$f":"IF('DC Power Distribution (Desc)'!M105=\"\",\"\",INDEX([1]DEV_OUTPUT_VOLTAGE!$A$2:$A$100,MATCH('DC Power Distribution (Desc)'!$M105,[1]!MASTER_DEV_INPUT_VOLTAGE_DESC[#Data],0),0))","v":""},{"$f":"IF('DC Power Distribution (Desc)'!N105=\"\",\"\",'DC Power Distribution (Desc)'!N105)","v":""},{"$f":"IF('DC Power Distribution (Desc)'!O105=\"\",\"\",'DC Power Distribution (Desc)'!O105)","v":""},{"$f":"IF('DC Power Distribution (Desc)'!P105=\"\",\"\",'DC Power Distribution (Desc)'!P105)","v":""},{"$f":"IF('DC Power Distribution (Desc)'!B105=\"\",\"\",\"NA\")","v":""}]
[{"$f":"IF('DC Power Distribution (Desc)'!B106=\"\",\"\",2029)","v":""},{"$f":"IF('DC Power Distribution (Desc)'!B106=\"\",\"\",'DC Power Distribution (Desc)'!B106)","v":""},{"$f":"IF('DC Power Distribution (Desc)'!D106=\"\",\"\",'DC Power Distribution (Desc)'!D106)","v":""},{"$f":"IF('DC Power Distribution (Desc)'!E106=\"\",\"\",INDEX([1]ELECTRIC_DEV_MANUF!$A$2:$A$1500,MATCH(1,([1]ELECTRIC_DEV_MANUF!$B$2:$B$1500='DC Power Distribution (Desc)'!$E106)*([1]ELECTRIC_DEV_MANUF!$D$2:$D$1500=\"DCPWRDIS\"),0),0))","v":""},{"$f":"IF('DC Power Distribution (Desc)'!F106=\"\",\"\",INDEX([1]ELECTRIC_DEV_MODEL!$A$2:$A$1500,MATCH(1,([1]ELECTRIC_DEV_MODEL!$C$2:$C$1500='DC Power Distribution (Desc)'!$E106)*([1]ELECTRIC_DEV_MODEL!$D$2:$D$1500='DC Power Distribution (Desc)'!$F106)*([1]ELECTRIC_DEV_MODEL!$F$2:$F$1500=\"DCPWRDIS\"),0),0))","v":""},{"$f":"IF('DC Power Distribution (Desc)'!G106=\"\",\"\",'DC Power Distribution (Desc)'!G106)","v":""},{"$f":"IF('DC Power Distribution (Desc)'!H106=\"\",\"\",INDEX([1]YES_NO!$A$2:$A$100,MATCH('DC Power Distribution (Desc)'!$H106,[1]!MASTER_YES_NO_DESC[#Data],0),0))","v":""},{"$f":"IF('DC Power Distribution (Desc)'!I106=\"\",\"\",'DC Power Distribution (Desc)'!I106)","v":""},{"$f":"IF('DC Power Distribution (Desc)'!J106=\"\",\"\",'DC Power Distribution (Desc)'!J106)","v":""},{"$f":"IF('DC Power Distribution (Desc)'!K106=\"\",\"\",INDEX([1]YES_NO!$A$2:$A$100,MATCH('DC Power Distribution (Desc)'!$K106,[1]!MASTER_YES_NO_DESC[#Data],0),0))","v":""},{"$f":"IF('DC Power Distribution (Desc)'!L106=\"\",\"\",INDEX([1]DEV_INPUT_VOLTAGE!$A$2:$A$100,MATCH('DC Power Distribution (Desc)'!$L106,[1]!MASTER_DEV_INPUT_VOLTAGE_DESC[#Data],0),0))","v":""},{"$f":"IF('DC Power Distribution (Desc)'!M106=\"\",\"\",INDEX([1]DEV_OUTPUT_VOLTAGE!$A$2:$A$100,MATCH('DC Power Distribution (Desc)'!$M106,[1]!MASTER_DEV_INPUT_VOLTAGE_DESC[#Data],0),0))","v":""},{"$f":"IF('DC Power Distribution (Desc)'!N106=\"\",\"\",'DC Power Distribution (Desc)'!N106)","v":""},{"$f":"IF('DC Power Distribution (Desc)'!O106=\"\",\"\",'DC Power Distribution (Desc)'!O106)","v":""},{"$f":"IF('DC Power Distribution (Desc)'!P106=\"\",\"\",'DC Power Distribution (Desc)'!P106)","v":""},{"$f":"IF('DC Power Distribution (Desc)'!B106=\"\",\"\",\"NA\")","v":""}]
[{"$f":"IF('DC Power Distribution (Desc)'!B107=\"\",\"\",2029)","v":""},{"$f":"IF('DC Power Distribution (Desc)'!B107=\"\",\"\",'DC Power Distribution (Desc)'!B107)","v":""},{"$f":"IF('DC Power Distribution (Desc)'!D107=\"\",\"\",'DC Power Distribution (Desc)'!D107)","v":""},{"$f":"IF('DC Power Distribution (Desc)'!E107=\"\",\"\",INDEX([1]ELECTRIC_DEV_MANUF!$A$2:$A$1500,MATCH(1,([1]ELECTRIC_DEV_MANUF!$B$2:$B$1500='DC Power Distribution (Desc)'!$E107)*([1]ELECTRIC_DEV_MANUF!$D$2:$D$1500=\"DCPWRDIS\"),0),0))","v":""},{"$f":"IF('DC Power Distribution (Desc)'!F107=\"\",\"\",INDEX([1]ELECTRIC_DEV_MODEL!$A$2:$A$1500,MATCH(1,([1]ELECTRIC_DEV_MODEL!$C$2:$C$1500='DC Power Distribution (Desc)'!$E107)*([1]ELECTRIC_DEV_MODEL!$D$2:$D$1500='DC Power Distribution (Desc)'!$F107)*([1]ELECTRIC_DEV_MODEL!$F$2:$F$1500=\"DCPWRDIS\"),0),0))","v":""},{"$f":"IF('DC Power Distribution (Desc)'!G107=\"\",\"\",'DC Power Distribution (Desc)'!G107)","v":""},{"$f":"IF('DC Power Distribution (Desc)'!H107=\"\",\"\",INDEX([1]YES_NO!$A$2:$A$100,MATCH('DC Power Distribution (Desc)'!$H107,[1]!MASTER_YES_NO_DESC[#Data],0),0))","v":""},{"$f":"IF('DC Power Distribution (Desc)'!I107=\"\",\"\",'DC Power Distribution (Desc)'!I107)","v":""},{"$f":"IF('DC Power Distribution (Desc)'!J107=\"\",\"\",'DC Power Distribution (Desc)'!J107)","v":""},{"$f":"IF('DC Power Distribution (Desc)'!K107=\"\",\"\",INDEX([1]YES_NO!$A$2:$A$100,MATCH('DC Power Distribution (Desc)'!$K107,[1]!MASTER_YES_NO_DESC[#Data],0),0))","v":""},{"$f":"IF('DC Power Distribution (Desc)'!L107=\"\",\"\",INDEX([1]DEV_INPUT_VOLTAGE!$A$2:$A$100,MATCH('DC Power Distribution (Desc)'!$L107,[1]!MASTER_DEV_INPUT_VOLTAGE_DESC[#Data],0),0))","v":""},{"$f":"IF('DC Power Distribution (Desc)'!M107=\"\",\"\",INDEX([1]DEV_OUTPUT_VOLTAGE!$A$2:$A$100,MATCH('DC Power Distribution (Desc)'!$M107,[1]!MASTER_DEV_INPUT_VOLTAGE_DESC[#Data],0),0))","v":""},{"$f":"IF('DC Power Distribution (Desc)'!N107=\"\",\"\",'DC Power Distribution (Desc)'!N107)","v":""},{"$f":"IF('DC Power Distribution (Desc)'!O107=\"\",\"\",'DC Power Distribution (Desc)'!O107)","v":""},{"$f":"IF('DC Power Distribution (Desc)'!P107=\"\",\"\",'DC Power Distribution (Desc)'!P107)","v":""},{"$f":"IF('DC Power Distribution (Desc)'!B107=\"\",\"\",\"NA\")","v":""}]
[{"$f":"IF('DC Power Distribution (Desc)'!B108=\"\",\"\",2029)","v":""},{"$f":"IF('DC Power Distribution (Desc)'!B108=\"\",\"\",'DC Power Distribution (Desc)'!B108)","v":""},{"$f":"IF('DC Power Distribution (Desc)'!D108=\"\",\"\",'DC Power Distribution (Desc)'!D108)","v":""},{"$f":"IF('DC Power Distribution (Desc)'!E108=\"\",\"\",INDEX([1]ELECTRIC_DEV_MANUF!$A$2:$A$1500,MATCH(1,([1]ELECTRIC_DEV_MANUF!$B$2:$B$1500='DC Power Distribution (Desc)'!$E108)*([1]ELECTRIC_DEV_MANUF!$D$2:$D$1500=\"DCPWRDIS\"),0),0))","v":""},{"$f":"IF('DC Power Distribution (Desc)'!F108=\"\",\"\",INDEX([1]ELECTRIC_DEV_MODEL!$A$2:$A$1500,MATCH(1,([1]ELECTRIC_DEV_MODEL!$C$2:$C$1500='DC Power Distribution (Desc)'!$E108)*([1]ELECTRIC_DEV_MODEL!$D$2:$D$1500='DC Power Distribution (Desc)'!$F108)*([1]ELECTRIC_DEV_MODEL!$F$2:$F$1500=\"DCPWRDIS\"),0),0))","v":""},{"$f":"IF('DC Power Distribution (Desc)'!G108=\"\",\"\",'DC Power Distribution (Desc)'!G108)","v":""},{"$f":"IF('DC Power Distribution (Desc)'!H108=\"\",\"\",INDEX([1]YES_NO!$A$2:$A$100,MATCH('DC Power Distribution (Desc)'!$H108,[1]!MASTER_YES_NO_DESC[#Data],0),0))","v":""},{"$f":"IF('DC Power Distribution (Desc)'!I108=\"\",\"\",'DC Power Distribution (Desc)'!I108)","v":""},{"$f":"IF('DC Power Distribution (Desc)'!J108=\"\",\"\",'DC Power Distribution (Desc)'!J108)","v":""},{"$f":"IF('DC Power Distribution (Desc)'!K108=\"\",\"\",INDEX([1]YES_NO!$A$2:$A$100,MATCH('DC Power Distribution (Desc)'!$K108,[1]!MASTER_YES_NO_DESC[#Data],0),0))","v":""},{"$f":"IF('DC Power Distribution (Desc)'!L108=\"\",\"\",INDEX([1]DEV_INPUT_VOLTAGE!$A$2:$A$100,MATCH('DC Power Distribution (Desc)'!$L108,[1]!MASTER_DEV_INPUT_VOLTAGE_DESC[#Data],0),0))","v":""},{"$f":"IF('DC Power Distribution (Desc)'!M108=\"\",\"\",INDEX([1]DEV_OUTPUT_VOLTAGE!$A$2:$A$100,MATCH('DC Power Distribution (Desc)'!$M108,[1]!MASTER_DEV_INPUT_VOLTAGE_DESC[#Data],0),0))","v":""},{"$f":"IF('DC Power Distribution (Desc)'!N108=\"\",\"\",'DC Power Distribution (Desc)'!N108)","v":""},{"$f":"IF('DC Power Distribution (Desc)'!O108=\"\",\"\",'DC Power Distribution (Desc)'!O108)","v":""},{"$f":"IF('DC Power Distribution (Desc)'!P108=\"\",\"\",'DC Power Distribution (Desc)'!P108)","v":""},{"$f":"IF('DC Power Distribution (Desc)'!B108=\"\",\"\",\"NA\")","v":""}]
[{"$f":"IF('DC Power Distribution (Desc)'!B109=\"\",\"\",2029)","v":""},{"$f":"IF('DC Power Distribution (Desc)'!B109=\"\",\"\",'DC Power Distribution (Desc)'!B109)","v":""},{"$f":"IF('DC Power Distribution (Desc)'!D109=\"\",\"\",'DC Power Distribution (Desc)'!D109)","v":""},{"$f":"IF('DC Power Distribution (Desc)'!E109=\"\",\"\",INDEX([1]ELECTRIC_DEV_MANUF!$A$2:$A$1500,MATCH(1,([1]ELECTRIC_DEV_MANUF!$B$2:$B$1500='DC Power Distribution (Desc)'!$E109)*([1]ELECTRIC_DEV_MANUF!$D$2:$D$1500=\"DCPWRDIS\"),0),0))","v":""},{"$f":"IF('DC Power Distribution (Desc)'!F109=\"\",\"\",INDEX([1]ELECTRIC_DEV_MODEL!$A$2:$A$1500,MATCH(1,([1]ELECTRIC_DEV_MODEL!$C$2:$C$1500='DC Power Distribution (Desc)'!$E109)*([1]ELECTRIC_DEV_MODEL!$D$2:$D$1500='DC Power Distribution (Desc)'!$F109)*([1]ELECTRIC_DEV_MODEL!$F$2:$F$1500=\"DCPWRDIS\"),0),0))","v":""},{"$f":"IF('DC Power Distribution (Desc)'!G109=\"\",\"\",'DC Power Distribution (Desc)'!G109)","v":""},{"$f":"IF('DC Power Distribution (Desc)'!H109=\"\",\"\",INDEX([1]YES_NO!$A$2:$A$100,MATCH('DC Power Distribution (Desc)'!$H109,[1]!MASTER_YES_NO_DESC[#Data],0),0))","v":""},{"$f":"IF('DC Power Distribution (Desc)'!I109=\"\",\"\",'DC Power Distribution (Desc)'!I109)","v":""},{"$f":"IF('DC Power Distribution (Desc)'!J109=\"\",\"\",'DC Power Distribution (Desc)'!J109)","v":""},{"$f":"IF('DC Power Distribution (Desc)'!K109=\"\",\"\",INDEX([1]YES_NO!$A$2:$A$100,MATCH('DC Power Distribution (Desc)'!$K109,[1]!MASTER_YES_NO_DESC[#Data],0),0))","v":""},{"$f":"IF('DC Power Distribution (Desc)'!L109=\"\",\"\",INDEX([1]DEV_INPUT_VOLTAGE!$A$2:$A$100,MATCH('DC Power Distribution (Desc)'!$L109,[1]!MASTER_DEV_INPUT_VOLTAGE_DESC[#Data],0),0))","v":""},{"$f":"IF('DC Power Distribution (Desc)'!M109=\"\",\"\",INDEX([1]DEV_OUTPUT_VOLTAGE!$A$2:$A$100,MATCH('DC Power Distribution (Desc)'!$M109,[1]!MASTER_DEV_INPUT_VOLTAGE_DESC[#Data],0),0))","v":""},{"$f":"IF('DC Power Distribution (Desc)'!N109=\"\",\"\",'DC Power Distribution (Desc)'!N109)","v":""},{"$f":"IF('DC Power Distribution (Desc)'!O109=\"\",\"\",'DC Power Distribution (Desc)'!O109)","v":""},{"$f":"IF('DC Power Distribution (Desc)'!P109=\"\",\"\",'DC Power Distribution (Desc)'!P109)","v":""},{"$f":"IF('DC Power Distribution (Desc)'!B109=\"\",\"\",\"NA\")","v":""}]
[{"$f":"IF('DC Power Distribution (Desc)'!B110=\"\",\"\",2029)","v":""},{"$f":"IF('DC Power Distribution (Desc)'!B110=\"\",\"\",'DC Power Distribution (Desc)'!B110)","v":""},{"$f":"IF('DC Power Distribution (Desc)'!D110=\"\",\"\",'DC Power Distribution (Desc)'!D110)","v":""},{"$f":"IF('DC Power Distribution (Desc)'!E110=\"\",\"\",INDEX([1]ELECTRIC_DEV_MANUF!$A$2:$A$1500,MATCH(1,([1]ELECTRIC_DEV_MANUF!$B$2:$B$1500='DC Power Distribution (Desc)'!$E110)*([1]ELECTRIC_DEV_MANUF!$D$2:$D$1500=\"DCPWRDIS\"),0),0))","v":""},{"$f":"IF('DC Power Distribution (Desc)'!F110=\"\",\"\",INDEX([1]ELECTRIC_DEV_MODEL!$A$2:$A$1500,MATCH(1,([1]ELECTRIC_DEV_MODEL!$C$2:$C$1500='DC Power Distribution (Desc)'!$E110)*([1]ELECTRIC_DEV_MODEL!$D$2:$D$1500='DC Power Distribution (Desc)'!$F110)*([1]ELECTRIC_DEV_MODEL!$F$2:$F$1500=\"DCPWRDIS\"),0),0))","v":""},{"$f":"IF('DC Power Distribution (Desc)'!G110=\"\",\"\",'DC Power Distribution (Desc)'!G110)","v":""},{"$f":"IF('DC Power Distribution (Desc)'!H110=\"\",\"\",INDEX([1]YES_NO!$A$2:$A$100,MATCH('DC Power Distribution (Desc)'!$H110,[1]!MASTER_YES_NO_DESC[#Data],0),0))","v":""},{"$f":"IF('DC Power Distribution (Desc)'!I110=\"\",\"\",'DC Power Distribution (Desc)'!I110)","v":""},{"$f":"IF('DC Power Distribution (Desc)'!J110=\"\",\"\",'DC Power Distribution (Desc)'!J110)","v":""},{"$f":"IF('DC Power Distribution (Desc)'!K110=\"\",\"\",INDEX([1]YES_NO!$A$2:$A$100,MATCH('DC Power Distribution (Desc)'!$K110,[1]!MASTER_YES_NO_DESC[#Data],0),0))","v":""},{"$f":"IF('DC Power Distribution (Desc)'!L110=\"\",\"\",INDEX([1]DEV_INPUT_VOLTAGE!$A$2:$A$100,MATCH('DC Power Distribution (Desc)'!$L110,[1]!MASTER_DEV_INPUT_VOLTAGE_DESC[#Data],0),0))","v":""},{"$f":"IF('DC Power Distribution (Desc)'!M110=\"\",\"\",INDEX([1]DEV_OUTPUT_VOLTAGE!$A$2:$A$100,MATCH('DC Power Distribution (Desc)'!$M110,[1]!MASTER_DEV_INPUT_VOLTAGE_DESC[#Data],0),0))","v":""},{"$f":"IF('DC Power Distribution (Desc)'!N110=\"\",\"\",'DC Power Distribution (Desc)'!N110)","v":""},{"$f":"IF('DC Power Distribution (Desc)'!O110=\"\",\"\",'DC Power Distribution (Desc)'!O110)","v":""},{"$f":"IF('DC Power Distribution (Desc)'!P110=\"\",\"\",'DC Power Distribution (Desc)'!P110)","v":""},{"$f":"IF('DC Power Distribution (Desc)'!B110=\"\",\"\",\"NA\")","v":""}]
[{"$f":"IF('DC Power Distribution (Desc)'!B111=\"\",\"\",2029)","v":""},{"$f":"IF('DC Power Distribution (Desc)'!B111=\"\",\"\",'DC Power Distribution (Desc)'!B111)","v":""},{"$f":"IF('DC Power Distribution (Desc)'!D111=\"\",\"\",'DC Power Distribution (Desc)'!D111)","v":""},{"$f":"IF('DC Power Distribution (Desc)'!E111=\"\",\"\",INDEX([1]ELECTRIC_DEV_MANUF!$A$2:$A$1500,MATCH(1,([1]ELECTRIC_DEV_MANUF!$B$2:$B$1500='DC Power Distribution (Desc)'!$E111)*([1]ELECTRIC_DEV_MANUF!$D$2:$D$1500=\"DCPWRDIS\"),0),0))","v":""},{"$f":"IF('DC Power Distribution (Desc)'!F111=\"\",\"\",INDEX([1]ELECTRIC_DEV_MODEL!$A$2:$A$1500,MATCH(1,([1]ELECTRIC_DEV_MODEL!$C$2:$C$1500='DC Power Distribution (Desc)'!$E111)*([1]ELECTRIC_DEV_MODEL!$D$2:$D$1500='DC Power Distribution (Desc)'!$F111)*([1]ELECTRIC_DEV_MODEL!$F$2:$F$1500=\"DCPWRDIS\"),0),0))","v":""},{"$f":"IF('DC Power Distribution (Desc)'!G111=\"\",\"\",'DC Power Distribution (Desc)'!G111)","v":""},{"$f":"IF('DC Power Distribution (Desc)'!H111=\"\",\"\",INDEX([1]YES_NO!$A$2:$A$100,MATCH('DC Power Distribution (Desc)'!$H111,[1]!MASTER_YES_NO_DESC[#Data],0),0))","v":""},{"$f":"IF('DC Power Distribution (Desc)'!I111=\"\",\"\",'DC Power Distribution (Desc)'!I111)","v":""},{"$f":"IF('DC Power Distribution (Desc)'!J111=\"\",\"\",'DC Power Distribution (Desc)'!J111)","v":""},{"$f":"IF('DC Power Distribution (Desc)'!K111=\"\",\"\",INDEX([1]YES_NO!$A$2:$A$100,MATCH('DC Power Distribution (Desc)'!$K111,[1]!MASTER_YES_NO_DESC[#Data],0),0))","v":""},{"$f":"IF('DC Power Distribution (Desc)'!L111=\"\",\"\",INDEX([1]DEV_INPUT_VOLTAGE!$A$2:$A$100,MATCH('DC Power Distribution (Desc)'!$L111,[1]!MASTER_DEV_INPUT_VOLTAGE_DESC[#Data],0),0))","v":""},{"$f":"IF('DC Power Distribution (Desc)'!M111=\"\",\"\",INDEX([1]DEV_OUTPUT_VOLTAGE!$A$2:$A$100,MATCH('DC Power Distribution (Desc)'!$M111,[1]!MASTER_DEV_INPUT_VOLTAGE_DESC[#Data],0),0))","v":""},{"$f":"IF('DC Power Distribution (Desc)'!N111=\"\",\"\",'DC Power Distribution (Desc)'!N111)","v":""},{"$f":"IF('DC Power Distribution (Desc)'!O111=\"\",\"\",'DC Power Distribution (Desc)'!O111)","v":""},{"$f":"IF('DC Power Distribution (Desc)'!P111=\"\",\"\",'DC Power Distribution (Desc)'!P111)","v":""},{"$f":"IF('DC Power Distribution (Desc)'!B111=\"\",\"\",\"NA\")","v":""}]
[{"$f":"IF('DC Power Distribution (Desc)'!B112=\"\",\"\",2029)","v":""},{"$f":"IF('DC Power Distribution (Desc)'!B112=\"\",\"\",'DC Power Distribution (Desc)'!B112)","v":""},{"$f":"IF('DC Power Distribution (Desc)'!D112=\"\",\"\",'DC Power Distribution (Desc)'!D112)","v":""},{"$f":"IF('DC Power Distribution (Desc)'!E112=\"\",\"\",INDEX([1]ELECTRIC_DEV_MANUF!$A$2:$A$1500,MATCH(1,([1]ELECTRIC_DEV_MANUF!$B$2:$B$1500='DC Power Distribution (Desc)'!$E112)*([1]ELECTRIC_DEV_MANUF!$D$2:$D$1500=\"DCPWRDIS\"),0),0))","v":""},{"$f":"IF('DC Power Distribution (Desc)'!F112=\"\",\"\",INDEX([1]ELECTRIC_DEV_MODEL!$A$2:$A$1500,MATCH(1,([1]ELECTRIC_DEV_MODEL!$C$2:$C$1500='DC Power Distribution (Desc)'!$E112)*([1]ELECTRIC_DEV_MODEL!$D$2:$D$1500='DC Power Distribution (Desc)'!$F112)*([1]ELECTRIC_DEV_MODEL!$F$2:$F$1500=\"DCPWRDIS\"),0),0))","v":""},{"$f":"IF('DC Power Distribution (Desc)'!G112=\"\",\"\",'DC Power Distribution (Desc)'!G112)","v":""},{"$f":"IF('DC Power Distribution (Desc)'!H112=\"\",\"\",INDEX([1]YES_NO!$A$2:$A$100,MATCH('DC Power Distribution (Desc)'!$H112,[1]!MASTER_YES_NO_DESC[#Data],0),0))","v":""},{"$f":"IF('DC Power Distribution (Desc)'!I112=\"\",\"\",'DC Power Distribution (Desc)'!I112)","v":""},{"$f":"IF('DC Power Distribution (Desc)'!J112=\"\",\"\",'DC Power Distribution (Desc)'!J112)","v":""},{"$f":"IF('DC Power Distribution (Desc)'!K112=\"\",\"\",INDEX([1]YES_NO!$A$2:$A$100,MATCH('DC Power Distribution (Desc)'!$K112,[1]!MASTER_YES_NO_DESC[#Data],0),0))","v":""},{"$f":"IF('DC Power Distribution (Desc)'!L112=\"\",\"\",INDEX([1]DEV_INPUT_VOLTAGE!$A$2:$A$100,MATCH('DC Power Distribution (Desc)'!$L112,[1]!MASTER_DEV_INPUT_VOLTAGE_DESC[#Data],0),0))","v":""},{"$f":"IF('DC Power Distribution (Desc)'!M112=\"\",\"\",INDEX([1]DEV_OUTPUT_VOLTAGE!$A$2:$A$100,MATCH('DC Power Distribution (Desc)'!$M112,[1]!MASTER_DEV_INPUT_VOLTAGE_DESC[#Data],0),0))","v":""},{"$f":"IF('DC Power Distribution (Desc)'!N112=\"\",\"\",'DC Power Distribution (Desc)'!N112)","v":""},{"$f":"IF('DC Power Distribution (Desc)'!O112=\"\",\"\",'DC Power Distribution (Desc)'!O112)","v":""},{"$f":"IF('DC Power Distribution (Desc)'!P112=\"\",\"\",'DC Power Distribution (Desc)'!P112)","v":""},{"$f":"IF('DC Power Distribution (Desc)'!B112=\"\",\"\",\"NA\")","v":""}]
[{"$f":"IF('DC Power Distribution (Desc)'!B113=\"\",\"\",2029)","v":""},{"$f":"IF('DC Power Distribution (Desc)'!B113=\"\",\"\",'DC Power Distribution (Desc)'!B113)","v":""},{"$f":"IF('DC Power Distribution (Desc)'!D113=\"\",\"\",'DC Power Distribution (Desc)'!D113)","v":""},{"$f":"IF('DC Power Distribution (Desc)'!E113=\"\",\"\",INDEX([1]ELECTRIC_DEV_MANUF!$A$2:$A$1500,MATCH(1,([1]ELECTRIC_DEV_MANUF!$B$2:$B$1500='DC Power Distribution (Desc)'!$E113)*([1]ELECTRIC_DEV_MANUF!$D$2:$D$1500=\"DCPWRDIS\"),0),0))","v":""},{"$f":"IF('DC Power Distribution (Desc)'!F113=\"\",\"\",INDEX([1]ELECTRIC_DEV_MODEL!$A$2:$A$1500,MATCH(1,([1]ELECTRIC_DEV_MODEL!$C$2:$C$1500='DC Power Distribution (Desc)'!$E113)*([1]ELECTRIC_DEV_MODEL!$D$2:$D$1500='DC Power Distribution (Desc)'!$F113)*([1]ELECTRIC_DEV_MODEL!$F$2:$F$1500=\"DCPWRDIS\"),0),0))","v":""},{"$f":"IF('DC Power Distribution (Desc)'!G113=\"\",\"\",'DC Power Distribution (Desc)'!G113)","v":""},{"$f":"IF('DC Power Distribution (Desc)'!H113=\"\",\"\",INDEX([1]YES_NO!$A$2:$A$100,MATCH('DC Power Distribution (Desc)'!$H113,[1]!MASTER_YES_NO_DESC[#Data],0),0))","v":""},{"$f":"IF('DC Power Distribution (Desc)'!I113=\"\",\"\",'DC Power Distribution (Desc)'!I113)","v":""},{"$f":"IF('DC Power Distribution (Desc)'!J113=\"\",\"\",'DC Power Distribution (Desc)'!J113)","v":""},{"$f":"IF('DC Power Distribution (Desc)'!K113=\"\",\"\",INDEX([1]YES_NO!$A$2:$A$100,MATCH('DC Power Distribution (Desc)'!$K113,[1]!MASTER_YES_NO_DESC[#Data],0),0))","v":""},{"$f":"IF('DC Power Distribution (Desc)'!L113=\"\",\"\",INDEX([1]DEV_INPUT_VOLTAGE!$A$2:$A$100,MATCH('DC Power Distribution (Desc)'!$L113,[1]!MASTER_DEV_INPUT_VOLTAGE_DESC[#Data],0),0))","v":""},{"$f":"IF('DC Power Distribution (Desc)'!M113=\"\",\"\",INDEX([1]DEV_OUTPUT_VOLTAGE!$A$2:$A$100,MATCH('DC Power Distribution (Desc)'!$M113,[1]!MASTER_DEV_INPUT_VOLTAGE_DESC[#Data],0),0))","v":""},{"$f":"IF('DC Power Distribution (Desc)'!N113=\"\",\"\",'DC Power Distribution (Desc)'!N113)","v":""},{"$f":"IF('DC Power Distribution (Desc)'!O113=\"\",\"\",'DC Power Distribution (Desc)'!O113)","v":""},{"$f":"IF('DC Power Distribution (Desc)'!P113=\"\",\"\",'DC Power Distribution (Desc)'!P113)","v":""},{"$f":"IF('DC Power Distribution (Desc)'!B113=\"\",\"\",\"NA\")","v":""}]
[{"$f":"IF('DC Power Distribution (Desc)'!B114=\"\",\"\",2029)","v":""},{"$f":"IF('DC Power Distribution (Desc)'!B114=\"\",\"\",'DC Power Distribution (Desc)'!B114)","v":""},{"$f":"IF('DC Power Distribution (Desc)'!D114=\"\",\"\",'DC Power Distribution (Desc)'!D114)","v":""},{"$f":"IF('DC Power Distribution (Desc)'!E114=\"\",\"\",INDEX([1]ELECTRIC_DEV_MANUF!$A$2:$A$1500,MATCH(1,([1]ELECTRIC_DEV_MANUF!$B$2:$B$1500='DC Power Distribution (Desc)'!$E114)*([1]ELECTRIC_DEV_MANUF!$D$2:$D$1500=\"DCPWRDIS\"),0),0))","v":""},{"$f":"IF('DC Power Distribution (Desc)'!F114=\"\",\"\",INDEX([1]ELECTRIC_DEV_MODEL!$A$2:$A$1500,MATCH(1,([1]ELECTRIC_DEV_MODEL!$C$2:$C$1500='DC Power Distribution (Desc)'!$E114)*([1]ELECTRIC_DEV_MODEL!$D$2:$D$1500='DC Power Distribution (Desc)'!$F114)*([1]ELECTRIC_DEV_MODEL!$F$2:$F$1500=\"DCPWRDIS\"),0),0))","v":""},{"$f":"IF('DC Power Distribution (Desc)'!G114=\"\",\"\",'DC Power Distribution (Desc)'!G114)","v":""},{"$f":"IF('DC Power Distribution (Desc)'!H114=\"\",\"\",INDEX([1]YES_NO!$A$2:$A$100,MATCH('DC Power Distribution (Desc)'!$H114,[1]!MASTER_YES_NO_DESC[#Data],0),0))","v":""},{"$f":"IF('DC Power Distribution (Desc)'!I114=\"\",\"\",'DC Power Distribution (Desc)'!I114)","v":""},{"$f":"IF('DC Power Distribution (Desc)'!J114=\"\",\"\",'DC Power Distribution (Desc)'!J114)","v":""},{"$f":"IF('DC Power Distribution (Desc)'!K114=\"\",\"\",INDEX([1]YES_NO!$A$2:$A$100,MATCH('DC Power Distribution (Desc)'!$K114,[1]!MASTER_YES_NO_DESC[#Data],0),0))","v":""},{"$f":"IF('DC Power Distribution (Desc)'!L114=\"\",\"\",INDEX([1]DEV_INPUT_VOLTAGE!$A$2:$A$100,MATCH('DC Power Distribution (Desc)'!$L114,[1]!MASTER_DEV_INPUT_VOLTAGE_DESC[#Data],0),0))","v":""},{"$f":"IF('DC Power Distribution (Desc)'!M114=\"\",\"\",INDEX([1]DEV_OUTPUT_VOLTAGE!$A$2:$A$100,MATCH('DC Power Distribution (Desc)'!$M114,[1]!MASTER_DEV_INPUT_VOLTAGE_DESC[#Data],0),0))","v":""},{"$f":"IF('DC Power Distribution (Desc)'!N114=\"\",\"\",'DC Power Distribution (Desc)'!N114)","v":""},{"$f":"IF('DC Power Distribution (Desc)'!O114=\"\",\"\",'DC Power Distribution (Desc)'!O114)","v":""},{"$f":"IF('DC Power Distribution (Desc)'!P114=\"\",\"\",'DC Power Distribution (Desc)'!P114)","v":""},{"$f":"IF('DC Power Distribution (Desc)'!B114=\"\",\"\",\"NA\")","v":""}]
[{"$f":"IF('DC Power Distribution (Desc)'!B115=\"\",\"\",2029)","v":""},{"$f":"IF('DC Power Distribution (Desc)'!B115=\"\",\"\",'DC Power Distribution (Desc)'!B115)","v":""},{"$f":"IF('DC Power Distribution (Desc)'!D115=\"\",\"\",'DC Power Distribution (Desc)'!D115)","v":""},{"$f":"IF('DC Power Distribution (Desc)'!E115=\"\",\"\",INDEX([1]ELECTRIC_DEV_MANUF!$A$2:$A$1500,MATCH(1,([1]ELECTRIC_DEV_MANUF!$B$2:$B$1500='DC Power Distribution (Desc)'!$E115)*([1]ELECTRIC_DEV_MANUF!$D$2:$D$1500=\"DCPWRDIS\"),0),0))","v":""},{"$f":"IF('DC Power Distribution (Desc)'!F115=\"\",\"\",INDEX([1]ELECTRIC_DEV_MODEL!$A$2:$A$1500,MATCH(1,([1]ELECTRIC_DEV_MODEL!$C$2:$C$1500='DC Power Distribution (Desc)'!$E115)*([1]ELECTRIC_DEV_MODEL!$D$2:$D$1500='DC Power Distribution (Desc)'!$F115)*([1]ELECTRIC_DEV_MODEL!$F$2:$F$1500=\"DCPWRDIS\"),0),0))","v":""},{"$f":"IF('DC Power Distribution (Desc)'!G115=\"\",\"\",'DC Power Distribution (Desc)'!G115)","v":""},{"$f":"IF('DC Power Distribution (Desc)'!H115=\"\",\"\",INDEX([1]YES_NO!$A$2:$A$100,MATCH('DC Power Distribution (Desc)'!$H115,[1]!MASTER_YES_NO_DESC[#Data],0),0))","v":""},{"$f":"IF('DC Power Distribution (Desc)'!I115=\"\",\"\",'DC Power Distribution (Desc)'!I115)","v":""},{"$f":"IF('DC Power Distribution (Desc)'!J115=\"\",\"\",'DC Power Distribution (Desc)'!J115)","v":""},{"$f":"IF('DC Power Distribution (Desc)'!K115=\"\",\"\",INDEX([1]YES_NO!$A$2:$A$100,MATCH('DC Power Distribution (Desc)'!$K115,[1]!MASTER_YES_NO_DESC[#Data],0),0))","v":""},{"$f":"IF('DC Power Distribution (Desc)'!L115=\"\",\"\",INDEX([1]DEV_INPUT_VOLTAGE!$A$2:$A$100,MATCH('DC Power Distribution (Desc)'!$L115,[1]!MASTER_DEV_INPUT_VOLTAGE_DESC[#Data],0),0))","v":""},{"$f":"IF('DC Power Distribution (Desc)'!M115=\"\",\"\",INDEX([1]DEV_OUTPUT_VOLTAGE!$A$2:$A$100,MATCH('DC Power Distribution (Desc)'!$M115,[1]!MASTER_DEV_INPUT_VOLTAGE_DESC[#Data],0),0))","v":""},{"$f":"IF('DC Power Distribution (Desc)'!N115=\"\",\"\",'DC Power Distribution (Desc)'!N115)","v":""},{"$f":"IF('DC Power Distribution (Desc)'!O115=\"\",\"\",'DC Power Distribution (Desc)'!O115)","v":""},{"$f":"IF('DC Power Distribution (Desc)'!P115=\"\",\"\",'DC Power Distribution (Desc)'!P115)","v":""},{"$f":"IF('DC Power Distribution (Desc)'!B115=\"\",\"\",\"NA\")","v":""}]
[{"$f":"IF('DC Power Distribution (Desc)'!B116=\"\",\"\",2029)","v":""},{"$f":"IF('DC Power Distribution (Desc)'!B116=\"\",\"\",'DC Power Distribution (Desc)'!B116)","v":""},{"$f":"IF('DC Power Distribution (Desc)'!D116=\"\",\"\",'DC Power Distribution (Desc)'!D116)","v":""},{"$f":"IF('DC Power Distribution (Desc)'!E116=\"\",\"\",INDEX([1]ELECTRIC_DEV_MANUF!$A$2:$A$1500,MATCH(1,([1]ELECTRIC_DEV_MANUF!$B$2:$B$1500='DC Power Distribution (Desc)'!$E116)*([1]ELECTRIC_DEV_MANUF!$D$2:$D$1500=\"DCPWRDIS\"),0),0))","v":""},{"$f":"IF('DC Power Distribution (Desc)'!F116=\"\",\"\",INDEX([1]ELECTRIC_DEV_MODEL!$A$2:$A$1500,MATCH(1,([1]ELECTRIC_DEV_MODEL!$C$2:$C$1500='DC Power Distribution (Desc)'!$E116)*([1]ELECTRIC_DEV_MODEL!$D$2:$D$1500='DC Power Distribution (Desc)'!$F116)*([1]ELECTRIC_DEV_MODEL!$F$2:$F$1500=\"DCPWRDIS\"),0),0))","v":""},{"$f":"IF('DC Power Distribution (Desc)'!G116=\"\",\"\",'DC Power Distribution (Desc)'!G116)","v":""},{"$f":"IF('DC Power Distribution (Desc)'!H116=\"\",\"\",INDEX([1]YES_NO!$A$2:$A$100,MATCH('DC Power Distribution (Desc)'!$H116,[1]!MASTER_YES_NO_DESC[#Data],0),0))","v":""},{"$f":"IF('DC Power Distribution (Desc)'!I116=\"\",\"\",'DC Power Distribution (Desc)'!I116)","v":""},{"$f":"IF('DC Power Distribution (Desc)'!J116=\"\",\"\",'DC Power Distribution (Desc)'!J116)","v":""},{"$f":"IF('DC Power Distribution (Desc)'!K116=\"\",\"\",INDEX([1]YES_NO!$A$2:$A$100,MATCH('DC Power Distribution (Desc)'!$K116,[1]!MASTER_YES_NO_DESC[#Data],0),0))","v":""},{"$f":"IF('DC Power Distribution (Desc)'!L116=\"\",\"\",INDEX([1]DEV_INPUT_VOLTAGE!$A$2:$A$100,MATCH('DC Power Distribution (Desc)'!$L116,[1]!MASTER_DEV_INPUT_VOLTAGE_DESC[#Data],0),0))","v":""},{"$f":"IF('DC Power Distribution (Desc)'!M116=\"\",\"\",INDEX([1]DEV_OUTPUT_VOLTAGE!$A$2:$A$100,MATCH('DC Power Distribution (Desc)'!$M116,[1]!MASTER_DEV_INPUT_VOLTAGE_DESC[#Data],0),0))","v":""},{"$f":"IF('DC Power Distribution (Desc)'!N116=\"\",\"\",'DC Power Distribution (Desc)'!N116)","v":""},{"$f":"IF('DC Power Distribution (Desc)'!O116=\"\",\"\",'DC Power Distribution (Desc)'!O116)","v":""},{"$f":"IF('DC Power Distribution (Desc)'!P116=\"\",\"\",'DC Power Distribution (Desc)'!P116)","v":""},{"$f":"IF('DC Power Distribution (Desc)'!B116=\"\",\"\",\"NA\")","v":""}]
[{"$f":"IF('DC Power Distribution (Desc)'!B117=\"\",\"\",2029)","v":""},{"$f":"IF('DC Power Distribution (Desc)'!B117=\"\",\"\",'DC Power Distribution (Desc)'!B117)","v":""},{"$f":"IF('DC Power Distribution (Desc)'!D117=\"\",\"\",'DC Power Distribution (Desc)'!D117)","v":""},{"$f":"IF('DC Power Distribution (Desc)'!E117=\"\",\"\",INDEX([1]ELECTRIC_DEV_MANUF!$A$2:$A$1500,MATCH(1,([1]ELECTRIC_DEV_MANUF!$B$2:$B$1500='DC Power Distribution (Desc)'!$E117)*([1]ELECTRIC_DEV_MANUF!$D$2:$D$1500=\"DCPWRDIS\"),0),0))","v":""},{"$f":"IF('DC Power Distribution (Desc)'!F117=\"\",\"\",INDEX([1]ELECTRIC_DEV_MODEL!$A$2:$A$1500,MATCH(1,([1]ELECTRIC_DEV_MODEL!$C$2:$C$1500='DC Power Distribution (Desc)'!$E117)*([1]ELECTRIC_DEV_MODEL!$D$2:$D$1500='DC Power Distribution (Desc)'!$F117)*([1]ELECTRIC_DEV_MODEL!$F$2:$F$1500=\"DCPWRDIS\"),0),0))","v":""},{"$f":"IF('DC Power Distribution (Desc)'!G117=\"\",\"\",'DC Power Distribution (Desc)'!G117)","v":""},{"$f":"IF('DC Power Distribution (Desc)'!H117=\"\",\"\",INDEX([1]YES_NO!$A$2:$A$100,MATCH('DC Power Distribution (Desc)'!$H117,[1]!MASTER_YES_NO_DESC[#Data],0),0))","v":""},{"$f":"IF('DC Power Distribution (Desc)'!I117=\"\",\"\",'DC Power Distribution (Desc)'!I117)","v":""},{"$f":"IF('DC Power Distribution (Desc)'!J117=\"\",\"\",'DC Power Distribution (Desc)'!J117)","v":""},{"$f":"IF('DC Power Distribution (Desc)'!K117=\"\",\"\",INDEX([1]YES_NO!$A$2:$A$100,MATCH('DC Power Distribution (Desc)'!$K117,[1]!MASTER_YES_NO_DESC[#Data],0),0))","v":""},{"$f":"IF('DC Power Distribution (Desc)'!L117=\"\",\"\",INDEX([1]DEV_INPUT_VOLTAGE!$A$2:$A$100,MATCH('DC Power Distribution (Desc)'!$L117,[1]!MASTER_DEV_INPUT_VOLTAGE_DESC[#Data],0),0))","v":""},{"$f":"IF('DC Power Distribution (Desc)'!M117=\"\",\"\",INDEX([1]DEV_OUTPUT_VOLTAGE!$A$2:$A$100,MATCH('DC Power Distribution (Desc)'!$M117,[1]!MASTER_DEV_INPUT_VOLTAGE_DESC[#Data],0),0))","v":""},{"$f":"IF('DC Power Distribution (Desc)'!N117=\"\",\"\",'DC Power Distribution (Desc)'!N117)","v":""},{"$f":"IF('DC Power Distribution (Desc)'!O117=\"\",\"\",'DC Power Distribution (Desc)'!O117)","v":""},{"$f":"IF('DC Power Distribution (Desc)'!P117=\"\",\"\",'DC Power Distribution (Desc)'!P117)","v":""},{"$f":"IF('DC Power Distribution (Desc)'!B117=\"\",\"\",\"NA\")","v":""}]
[{"$f":"IF('DC Power Distribution (Desc)'!B118=\"\",\"\",2029)","v":""},{"$f":"IF('DC Power Distribution (Desc)'!B118=\"\",\"\",'DC Power Distribution (Desc)'!B118)","v":""},{"$f":"IF('DC Power Distribution (Desc)'!D118=\"\",\"\",'DC Power Distribution (Desc)'!D118)","v":""},{"$f":"IF('DC Power Distribution (Desc)'!E118=\"\",\"\",INDEX([1]ELECTRIC_DEV_MANUF!$A$2:$A$1500,MATCH(1,([1]ELECTRIC_DEV_MANUF!$B$2:$B$1500='DC Power Distribution (Desc)'!$E118)*([1]ELECTRIC_DEV_MANUF!$D$2:$D$1500=\"DCPWRDIS\"),0),0))","v":""},{"$f":"IF('DC Power Distribution (Desc)'!F118=\"\",\"\",INDEX([1]ELECTRIC_DEV_MODEL!$A$2:$A$1500,MATCH(1,([1]ELECTRIC_DEV_MODEL!$C$2:$C$1500='DC Power Distribution (Desc)'!$E118)*([1]ELECTRIC_DEV_MODEL!$D$2:$D$1500='DC Power Distribution (Desc)'!$F118)*([1]ELECTRIC_DEV_MODEL!$F$2:$F$1500=\"DCPWRDIS\"),0),0))","v":""},{"$f":"IF('DC Power Distribution (Desc)'!G118=\"\",\"\",'DC Power Distribution (Desc)'!G118)","v":""},{"$f":"IF('DC Power Distribution (Desc)'!H118=\"\",\"\",INDEX([1]YES_NO!$A$2:$A$100,MATCH('DC Power Distribution (Desc)'!$H118,[1]!MASTER_YES_NO_DESC[#Data],0),0))","v":""},{"$f":"IF('DC Power Distribution (Desc)'!I118=\"\",\"\",'DC Power Distribution (Desc)'!I118)","v":""},{"$f":"IF('DC Power Distribution (Desc)'!J118=\"\",\"\",'DC Power Distribution (Desc)'!J118)","v":""},{"$f":"IF('DC Power Distribution (Desc)'!K118=\"\",\"\",INDEX([1]YES_NO!$A$2:$A$100,MATCH('DC Power Distribution (Desc)'!$K118,[1]!MASTER_YES_NO_DESC[#Data],0),0))","v":""},{"$f":"IF('DC Power Distribution (Desc)'!L118=\"\",\"\",INDEX([1]DEV_INPUT_VOLTAGE!$A$2:$A$100,MATCH('DC Power Distribution (Desc)'!$L118,[1]!MASTER_DEV_INPUT_VOLTAGE_DESC[#Data],0),0))","v":""},{"$f":"IF('DC Power Distribution (Desc)'!M118=\"\",\"\",INDEX([1]DEV_OUTPUT_VOLTAGE!$A$2:$A$100,MATCH('DC Power Distribution (Desc)'!$M118,[1]!MASTER_DEV_INPUT_VOLTAGE_DESC[#Data],0),0))","v":""},{"$f":"IF('DC Power Distribution (Desc)'!N118=\"\",\"\",'DC Power Distribution (Desc)'!N118)","v":""},{"$f":"IF('DC Power Distribution (Desc)'!O118=\"\",\"\",'DC Power Distribution (Desc)'!O118)","v":""},{"$f":"IF('DC Power Distribution (Desc)'!P118=\"\",\"\",'DC Power Distribution (Desc)'!P118)","v":""},{"$f":"IF('DC Power Distribution (Desc)'!B118=\"\",\"\",\"NA\")","v":""}]
[{"$f":"IF('DC Power Distribution (Desc)'!B119=\"\",\"\",2029)","v":""},{"$f":"IF('DC Power Distribution (Desc)'!B119=\"\",\"\",'DC Power Distribution (Desc)'!B119)","v":""},{"$f":"IF('DC Power Distribution (Desc)'!D119=\"\",\"\",'DC Power Distribution (Desc)'!D119)","v":""},{"$f":"IF('DC Power Distribution (Desc)'!E119=\"\",\"\",INDEX([1]ELECTRIC_DEV_MANUF!$A$2:$A$1500,MATCH(1,([1]ELECTRIC_DEV_MANUF!$B$2:$B$1500='DC Power Distribution (Desc)'!$E119)*([1]ELECTRIC_DEV_MANUF!$D$2:$D$1500=\"DCPWRDIS\"),0),0))","v":""},{"$f":"IF('DC Power Distribution (Desc)'!F119=\"\",\"\",INDEX([1]ELECTRIC_DEV_MODEL!$A$2:$A$1500,MATCH(1,([1]ELECTRIC_DEV_MODEL!$C$2:$C$1500='DC Power Distribution (Desc)'!$E119)*([1]ELECTRIC_DEV_MODEL!$D$2:$D$1500='DC Power Distribution (Desc)'!$F119)*([1]ELECTRIC_DEV_MODEL!$F$2:$F$1500=\"DCPWRDIS\"),0),0))","v":""},{"$f":"IF('DC Power Distribution (Desc)'!G119=\"\",\"\",'DC Power Distribution (Desc)'!G119)","v":""},{"$f":"IF('DC Power Distribution (Desc)'!H119=\"\",\"\",INDEX([1]YES_NO!$A$2:$A$100,MATCH('DC Power Distribution (Desc)'!$H119,[1]!MASTER_YES_NO_DESC[#Data],0),0))","v":""},{"$f":"IF('DC Power Distribution (Desc)'!I119=\"\",\"\",'DC Power Distribution (Desc)'!I119)","v":""},{"$f":"IF('DC Power Distribution (Desc)'!J119=\"\",\"\",'DC Power Distribution (Desc)'!J119)","v":""},{"$f":"IF('DC Power Distribution (Desc)'!K119=\"\",\"\",INDEX([1]YES_NO!$A$2:$A$100,MATCH('DC Power Distribution (Desc)'!$K119,[1]!MASTER_YES_NO_DESC[#Data],0),0))","v":""},{"$f":"IF('DC Power Distribution (Desc)'!L119=\"\",\"\",INDEX([1]DEV_INPUT_VOLTAGE!$A$2:$A$100,MATCH('DC Power Distribution (Desc)'!$L119,[1]!MASTER_DEV_INPUT_VOLTAGE_DESC[#Data],0),0))","v":""},{"$f":"IF('DC Power Distribution (Desc)'!M119=\"\",\"\",INDEX([1]DEV_OUTPUT_VOLTAGE!$A$2:$A$100,MATCH('DC Power Distribution (Desc)'!$M119,[1]!MASTER_DEV_INPUT_VOLTAGE_DESC[#Data],0),0))","v":""},{"$f":"IF('DC Power Distribution (Desc)'!N119=\"\",\"\",'DC Power Distribution (Desc)'!N119)","v":""},{"$f":"IF('DC Power Distribution (Desc)'!O119=\"\",\"\",'DC Power Distribution (Desc)'!O119)","v":""},{"$f":"IF('DC Power Distribution (Desc)'!P119=\"\",\"\",'DC Power Distribution (Desc)'!P119)","v":""},{"$f":"IF('DC Power Distribution (Desc)'!B119=\"\",\"\",\"NA\")","v":""}]
[{"$f":"IF('DC Power Distribution (Desc)'!B120=\"\",\"\",2029)","v":""},{"$f":"IF('DC Power Distribution (Desc)'!B120=\"\",\"\",'DC Power Distribution (Desc)'!B120)","v":""},{"$f":"IF('DC Power Distribution (Desc)'!D120=\"\",\"\",'DC Power Distribution (Desc)'!D120)","v":""},{"$f":"IF('DC Power Distribution (Desc)'!E120=\"\",\"\",INDEX([1]ELECTRIC_DEV_MANUF!$A$2:$A$1500,MATCH(1,([1]ELECTRIC_DEV_MANUF!$B$2:$B$1500='DC Power Distribution (Desc)'!$E120)*([1]ELECTRIC_DEV_MANUF!$D$2:$D$1500=\"DCPWRDIS\"),0),0))","v":""},{"$f":"IF('DC Power Distribution (Desc)'!F120=\"\",\"\",INDEX([1]ELECTRIC_DEV_MODEL!$A$2:$A$1500,MATCH(1,([1]ELECTRIC_DEV_MODEL!$C$2:$C$1500='DC Power Distribution (Desc)'!$E120)*([1]ELECTRIC_DEV_MODEL!$D$2:$D$1500='DC Power Distribution (Desc)'!$F120)*([1]ELECTRIC_DEV_MODEL!$F$2:$F$1500=\"DCPWRDIS\"),0),0))","v":""},{"$f":"IF('DC Power Distribution (Desc)'!G120=\"\",\"\",'DC Power Distribution (Desc)'!G120)","v":""},{"$f":"IF('DC Power Distribution (Desc)'!H120=\"\",\"\",INDEX([1]YES_NO!$A$2:$A$100,MATCH('DC Power Distribution (Desc)'!$H120,[1]!MASTER_YES_NO_DESC[#Data],0),0))","v":""},{"$f":"IF('DC Power Distribution (Desc)'!I120=\"\",\"\",'DC Power Distribution (Desc)'!I120)","v":""},{"$f":"IF('DC Power Distribution (Desc)'!J120=\"\",\"\",'DC Power Distribution (Desc)'!J120)","v":""},{"$f":"IF('DC Power Distribution (Desc)'!K120=\"\",\"\",INDEX([1]YES_NO!$A$2:$A$100,MATCH('DC Power Distribution (Desc)'!$K120,[1]!MASTER_YES_NO_DESC[#Data],0),0))","v":""},{"$f":"IF('DC Power Distribution (Desc)'!L120=\"\",\"\",INDEX([1]DEV_INPUT_VOLTAGE!$A$2:$A$100,MATCH('DC Power Distribution (Desc)'!$L120,[1]!MASTER_DEV_INPUT_VOLTAGE_DESC[#Data],0),0))","v":""},{"$f":"IF('DC Power Distribution (Desc)'!M120=\"\",\"\",INDEX([1]DEV_OUTPUT_VOLTAGE!$A$2:$A$100,MATCH('DC Power Distribution (Desc)'!$M120,[1]!MASTER_DEV_INPUT_VOLTAGE_DESC[#Data],0),0))","v":""},{"$f":"IF('DC Power Distribution (Desc)'!N120=\"\",\"\",'DC Power Distribution (Desc)'!N120)","v":""},{"$f":"IF('DC Power Distribution (Desc)'!O120=\"\",\"\",'DC Power Distribution (Desc)'!O120)","v":""},{"$f":"IF('DC Power Distribution (Desc)'!P120=\"\",\"\",'DC Power Distribution (Desc)'!P120)","v":""},{"$f":"IF('DC Power Distribution (Desc)'!B120=\"\",\"\",\"NA\")","v":""}]
[{"$f":"IF('DC Power Distribution (Desc)'!B121=\"\",\"\",2029)","v":""},{"$f":"IF('DC Power Distribution (Desc)'!B121=\"\",\"\",'DC Power Distribution (Desc)'!B121)","v":""},{"$f":"IF('DC Power Distribution (Desc)'!D121=\"\",\"\",'DC Power Distribution (Desc)'!D121)","v":""},{"$f":"IF('DC Power Distribution (Desc)'!E121=\"\",\"\",INDEX([1]ELECTRIC_DEV_MANUF!$A$2:$A$1500,MATCH(1,([1]ELECTRIC_DEV_MANUF!$B$2:$B$1500='DC Power Distribution (Desc)'!$E121)*([1]ELECTRIC_DEV_MANUF!$D$2:$D$1500=\"DCPWRDIS\"),0),0))","v":""},{"$f":"IF('DC Power Distribution (Desc)'!F121=\"\",\"\",INDEX([1]ELECTRIC_DEV_MODEL!$A$2:$A$1500,MATCH(1,([1]ELECTRIC_DEV_MODEL!$C$2:$C$1500='DC Power Distribution (Desc)'!$E121)*([1]ELECTRIC_DEV_MODEL!$D$2:$D$1500='DC Power Distribution (Desc)'!$F121)*([1]ELECTRIC_DEV_MODEL!$F$2:$F$1500=\"DCPWRDIS\"),0),0))","v":""},{"$f":"IF('DC Power Distribution (Desc)'!G121=\"\",\"\",'DC Power Distribution (Desc)'!G121)","v":""},{"$f":"IF('DC Power Distribution (Desc)'!H121=\"\",\"\",INDEX([1]YES_NO!$A$2:$A$100,MATCH('DC Power Distribution (Desc)'!$H121,[1]!MASTER_YES_NO_DESC[#Data],0),0))","v":""},{"$f":"IF('DC Power Distribution (Desc)'!I121=\"\",\"\",'DC Power Distribution (Desc)'!I121)","v":""},{"$f":"IF('DC Power Distribution (Desc)'!J121=\"\",\"\",'DC Power Distribution (Desc)'!J121)","v":""},{"$f":"IF('DC Power Distribution (Desc)'!K121=\"\",\"\",INDEX([1]YES_NO!$A$2:$A$100,MATCH('DC Power Distribution (Desc)'!$K121,[1]!MASTER_YES_NO_DESC[#Data],0),0))","v":""},{"$f":"IF('DC Power Distribution (Desc)'!L121=\"\",\"\",INDEX([1]DEV_INPUT_VOLTAGE!$A$2:$A$100,MATCH('DC Power Distribution (Desc)'!$L121,[1]!MASTER_DEV_INPUT_VOLTAGE_DESC[#Data],0),0))","v":""},{"$f":"IF('DC Power Distribution (Desc)'!M121=\"\",\"\",INDEX([1]DEV_OUTPUT_VOLTAGE!$A$2:$A$100,MATCH('DC Power Distribution (Desc)'!$M121,[1]!MASTER_DEV_INPUT_VOLTAGE_DESC[#Data],0),0))","v":""},{"$f":"IF('DC Power Distribution (Desc)'!N121=\"\",\"\",'DC Power Distribution (Desc)'!N121)","v":""},{"$f":"IF('DC Power Distribution (Desc)'!O121=\"\",\"\",'DC Power Distribution (Desc)'!O121)","v":""},{"$f":"IF('DC Power Distribution (Desc)'!P121=\"\",\"\",'DC Power Distribution (Desc)'!P121)","v":""},{"$f":"IF('DC Power Distribution (Desc)'!B121=\"\",\"\",\"NA\")","v":""}]
[{"$f":"IF('DC Power Distribution (Desc)'!B122=\"\",\"\",2029)","v":""},{"$f":"IF('DC Power Distribution (Desc)'!B122=\"\",\"\",'DC Power Distribution (Desc)'!B122)","v":""},{"$f":"IF('DC Power Distribution (Desc)'!D122=\"\",\"\",'DC Power Distribution (Desc)'!D122)","v":""},{"$f":"IF('DC Power Distribution (Desc)'!E122=\"\",\"\",INDEX([1]ELECTRIC_DEV_MANUF!$A$2:$A$1500,MATCH(1,([1]ELECTRIC_DEV_MANUF!$B$2:$B$1500='DC Power Distribution (Desc)'!$E122)*([1]ELECTRIC_DEV_MANUF!$D$2:$D$1500=\"DCPWRDIS\"),0),0))","v":""},{"$f":"IF('DC Power Distribution (Desc)'!F122=\"\",\"\",INDEX([1]ELECTRIC_DEV_MODEL!$A$2:$A$1500,MATCH(1,([1]ELECTRIC_DEV_MODEL!$C$2:$C$1500='DC Power Distribution (Desc)'!$E122)*([1]ELECTRIC_DEV_MODEL!$D$2:$D$1500='DC Power Distribution (Desc)'!$F122)*([1]ELECTRIC_DEV_MODEL!$F$2:$F$1500=\"DCPWRDIS\"),0),0))","v":""},{"$f":"IF('DC Power Distribution (Desc)'!G122=\"\",\"\",'DC Power Distribution (Desc)'!G122)","v":""},{"$f":"IF('DC Power Distribution (Desc)'!H122=\"\",\"\",INDEX([1]YES_NO!$A$2:$A$100,MATCH('DC Power Distribution (Desc)'!$H122,[1]!MASTER_YES_NO_DESC[#Data],0),0))","v":""},{"$f":"IF('DC Power Distribution (Desc)'!I122=\"\",\"\",'DC Power Distribution (Desc)'!I122)","v":""},{"$f":"IF('DC Power Distribution (Desc)'!J122=\"\",\"\",'DC Power Distribution (Desc)'!J122)","v":""},{"$f":"IF('DC Power Distribution (Desc)'!K122=\"\",\"\",INDEX([1]YES_NO!$A$2:$A$100,MATCH('DC Power Distribution (Desc)'!$K122,[1]!MASTER_YES_NO_DESC[#Data],0),0))","v":""},{"$f":"IF('DC Power Distribution (Desc)'!L122=\"\",\"\",INDEX([1]DEV_INPUT_VOLTAGE!$A$2:$A$100,MATCH('DC Power Distribution (Desc)'!$L122,[1]!MASTER_DEV_INPUT_VOLTAGE_DESC[#Data],0),0))","v":""},{"$f":"IF('DC Power Distribution (Desc)'!M122=\"\",\"\",INDEX([1]DEV_OUTPUT_VOLTAGE!$A$2:$A$100,MATCH('DC Power Distribution (Desc)'!$M122,[1]!MASTER_DEV_INPUT_VOLTAGE_DESC[#Data],0),0))","v":""},{"$f":"IF('DC Power Distribution (Desc)'!N122=\"\",\"\",'DC Power Distribution (Desc)'!N122)","v":""},{"$f":"IF('DC Power Distribution (Desc)'!O122=\"\",\"\",'DC Power Distribution (Desc)'!O122)","v":""},{"$f":"IF('DC Power Distribution (Desc)'!P122=\"\",\"\",'DC Power Distribution (Desc)'!P122)","v":""},{"$f":"IF('DC Power Distribution (Desc)'!B122=\"\",\"\",\"NA\")","v":""}]
[{"$f":"IF('DC Power Distribution (Desc)'!B123=\"\",\"\",2029)","v":""},{"$f":"IF('DC Power Distribution (Desc)'!B123=\"\",\"\",'DC Power Distribution (Desc)'!B123)","v":""},{"$f":"IF('DC Power Distribution (Desc)'!D123=\"\",\"\",'DC Power Distribution (Desc)'!D123)","v":""},{"$f":"IF('DC Power Distribution (Desc)'!E123=\"\",\"\",INDEX([1]ELECTRIC_DEV_MANUF!$A$2:$A$1500,MATCH(1,([1]ELECTRIC_DEV_MANUF!$B$2:$B$1500='DC Power Distribution (Desc)'!$E123)*([1]ELECTRIC_DEV_MANUF!$D$2:$D$1500=\"DCPWRDIS\"),0),0))","v":""},{"$f":"IF('DC Power Distribution (Desc)'!F123=\"\",\"\",INDEX([1]ELECTRIC_DEV_MODEL!$A$2:$A$1500,MATCH(1,([1]ELECTRIC_DEV_MODEL!$C$2:$C$1500='DC Power Distribution (Desc)'!$E123)*([1]ELECTRIC_DEV_MODEL!$D$2:$D$1500='DC Power Distribution (Desc)'!$F123)*([1]ELECTRIC_DEV_MODEL!$F$2:$F$1500=\"DCPWRDIS\"),0),0))","v":""},{"$f":"IF('DC Power Distribution (Desc)'!G123=\"\",\"\",'DC Power Distribution (Desc)'!G123)","v":""},{"$f":"IF('DC Power Distribution (Desc)'!H123=\"\",\"\",INDEX([1]YES_NO!$A$2:$A$100,MATCH('DC Power Distribution (Desc)'!$H123,[1]!MASTER_YES_NO_DESC[#Data],0),0))","v":""},{"$f":"IF('DC Power Distribution (Desc)'!I123=\"\",\"\",'DC Power Distribution (Desc)'!I123)","v":""},{"$f":"IF('DC Power Distribution (Desc)'!J123=\"\",\"\",'DC Power Distribution (Desc)'!J123)","v":""},{"$f":"IF('DC Power Distribution (Desc)'!K123=\"\",\"\",INDEX([1]YES_NO!$A$2:$A$100,MATCH('DC Power Distribution (Desc)'!$K123,[1]!MASTER_YES_NO_DESC[#Data],0),0))","v":""},{"$f":"IF('DC Power Distribution (Desc)'!L123=\"\",\"\",INDEX([1]DEV_INPUT_VOLTAGE!$A$2:$A$100,MATCH('DC Power Distribution (Desc)'!$L123,[1]!MASTER_DEV_INPUT_VOLTAGE_DESC[#Data],0),0))","v":""},{"$f":"IF('DC Power Distribution (Desc)'!M123=\"\",\"\",INDEX([1]DEV_OUTPUT_VOLTAGE!$A$2:$A$100,MATCH('DC Power Distribution (Desc)'!$M123,[1]!MASTER_DEV_INPUT_VOLTAGE_DESC[#Data],0),0))","v":""},{"$f":"IF('DC Power Distribution (Desc)'!N123=\"\",\"\",'DC Power Distribution (Desc)'!N123)","v":""},{"$f":"IF('DC Power Distribution (Desc)'!O123=\"\",\"\",'DC Power Distribution (Desc)'!O123)","v":""},{"$f":"IF('DC Power Distribution (Desc)'!P123=\"\",\"\",'DC Power Distribution (Desc)'!P123)","v":""},{"$f":"IF('DC Power Distribution (Desc)'!B123=\"\",\"\",\"NA\")","v":""}]
[{"$f":"IF('DC Power Distribution (Desc)'!B124=\"\",\"\",2029)","v":""},{"$f":"IF('DC Power Distribution (Desc)'!B124=\"\",\"\",'DC Power Distribution (Desc)'!B124)","v":""},{"$f":"IF('DC Power Distribution (Desc)'!D124=\"\",\"\",'DC Power Distribution (Desc)'!D124)","v":""},{"$f":"IF('DC Power Distribution (Desc)'!E124=\"\",\"\",INDEX([1]ELECTRIC_DEV_MANUF!$A$2:$A$1500,MATCH(1,([1]ELECTRIC_DEV_MANUF!$B$2:$B$1500='DC Power Distribution (Desc)'!$E124)*([1]ELECTRIC_DEV_MANUF!$D$2:$D$1500=\"DCPWRDIS\"),0),0))","v":""},{"$f":"IF('DC Power Distribution (Desc)'!F124=\"\",\"\",INDEX([1]ELECTRIC_DEV_MODEL!$A$2:$A$1500,MATCH(1,([1]ELECTRIC_DEV_MODEL!$C$2:$C$1500='DC Power Distribution (Desc)'!$E124)*([1]ELECTRIC_DEV_MODEL!$D$2:$D$1500='DC Power Distribution (Desc)'!$F124)*([1]ELECTRIC_DEV_MODEL!$F$2:$F$1500=\"DCPWRDIS\"),0),0))","v":""},{"$f":"IF('DC Power Distribution (Desc)'!G124=\"\",\"\",'DC Power Distribution (Desc)'!G124)","v":""},{"$f":"IF('DC Power Distribution (Desc)'!H124=\"\",\"\",INDEX([1]YES_NO!$A$2:$A$100,MATCH('DC Power Distribution (Desc)'!$H124,[1]!MASTER_YES_NO_DESC[#Data],0),0))","v":""},{"$f":"IF('DC Power Distribution (Desc)'!I124=\"\",\"\",'DC Power Distribution (Desc)'!I124)","v":""},{"$f":"IF('DC Power Distribution (Desc)'!J124=\"\",\"\",'DC Power Distribution (Desc)'!J124)","v":""},{"$f":"IF('DC Power Distribution (Desc)'!K124=\"\",\"\",INDEX([1]YES_NO!$A$2:$A$100,MATCH('DC Power Distribution (Desc)'!$K124,[1]!MASTER_YES_NO_DESC[#Data],0),0))","v":""},{"$f":"IF('DC Power Distribution (Desc)'!L124=\"\",\"\",INDEX([1]DEV_INPUT_VOLTAGE!$A$2:$A$100,MATCH('DC Power Distribution (Desc)'!$L124,[1]!MASTER_DEV_INPUT_VOLTAGE_DESC[#Data],0),0))","v":""},{"$f":"IF('DC Power Distribution (Desc)'!M124=\"\",\"\",INDEX([1]DEV_OUTPUT_VOLTAGE!$A$2:$A$100,MATCH('DC Power Distribution (Desc)'!$M124,[1]!MASTER_DEV_INPUT_VOLTAGE_DESC[#Data],0),0))","v":""},{"$f":"IF('DC Power Distribution (Desc)'!N124=\"\",\"\",'DC Power Distribution (Desc)'!N124)","v":""},{"$f":"IF('DC Power Distribution (Desc)'!O124=\"\",\"\",'DC Power Distribution (Desc)'!O124)","v":""},{"$f":"IF('DC Power Distribution (Desc)'!P124=\"\",\"\",'DC Power Distribution (Desc)'!P124)","v":""},{"$f":"IF('DC Power Distribution (Desc)'!B124=\"\",\"\",\"NA\")","v":""}]
[{"$f":"IF('DC Power Distribution (Desc)'!B125=\"\",\"\",2029)","v":""},{"$f":"IF('DC Power Distribution (Desc)'!B125=\"\",\"\",'DC Power Distribution (Desc)'!B125)","v":""},{"$f":"IF('DC Power Distribution (Desc)'!D125=\"\",\"\",'DC Power Distribution (Desc)'!D125)","v":""},{"$f":"IF('DC Power Distribution (Desc)'!E125=\"\",\"\",INDEX([1]ELECTRIC_DEV_MANUF!$A$2:$A$1500,MATCH(1,([1]ELECTRIC_DEV_MANUF!$B$2:$B$1500='DC Power Distribution (Desc)'!$E125)*([1]ELECTRIC_DEV_MANUF!$D$2:$D$1500=\"DCPWRDIS\"),0),0))","v":""},{"$f":"IF('DC Power Distribution (Desc)'!F125=\"\",\"\",INDEX([1]ELECTRIC_DEV_MODEL!$A$2:$A$1500,MATCH(1,([1]ELECTRIC_DEV_MODEL!$C$2:$C$1500='DC Power Distribution (Desc)'!$E125)*([1]ELECTRIC_DEV_MODEL!$D$2:$D$1500='DC Power Distribution (Desc)'!$F125)*([1]ELECTRIC_DEV_MODEL!$F$2:$F$1500=\"DCPWRDIS\"),0),0))","v":""},{"$f":"IF('DC Power Distribution (Desc)'!G125=\"\",\"\",'DC Power Distribution (Desc)'!G125)","v":""},{"$f":"IF('DC Power Distribution (Desc)'!H125=\"\",\"\",INDEX([1]YES_NO!$A$2:$A$100,MATCH('DC Power Distribution (Desc)'!$H125,[1]!MASTER_YES_NO_DESC[#Data],0),0))","v":""},{"$f":"IF('DC Power Distribution (Desc)'!I125=\"\",\"\",'DC Power Distribution (Desc)'!I125)","v":""},{"$f":"IF('DC Power Distribution (Desc)'!J125=\"\",\"\",'DC Power Distribution (Desc)'!J125)","v":""},{"$f":"IF('DC Power Distribution (Desc)'!K125=\"\",\"\",INDEX([1]YES_NO!$A$2:$A$100,MATCH('DC Power Distribution (Desc)'!$K125,[1]!MASTER_YES_NO_DESC[#Data],0),0))","v":""},{"$f":"IF('DC Power Distribution (Desc)'!L125=\"\",\"\",INDEX([1]DEV_INPUT_VOLTAGE!$A$2:$A$100,MATCH('DC Power Distribution (Desc)'!$L125,[1]!MASTER_DEV_INPUT_VOLTAGE_DESC[#Data],0),0))","v":""},{"$f":"IF('DC Power Distribution (Desc)'!M125=\"\",\"\",INDEX([1]DEV_OUTPUT_VOLTAGE!$A$2:$A$100,MATCH('DC Power Distribution (Desc)'!$M125,[1]!MASTER_DEV_INPUT_VOLTAGE_DESC[#Data],0),0))","v":""},{"$f":"IF('DC Power Distribution (Desc)'!N125=\"\",\"\",'DC Power Distribution (Desc)'!N125)","v":""},{"$f":"IF('DC Power Distribution (Desc)'!O125=\"\",\"\",'DC Power Distribution (Desc)'!O125)","v":""},{"$f":"IF('DC Power Distribution (Desc)'!P125=\"\",\"\",'DC Power Distribution (Desc)'!P125)","v":""},{"$f":"IF('DC Power Distribution (Desc)'!B125=\"\",\"\",\"NA\")","v":""}]
[{"$f":"IF('DC Power Distribution (Desc)'!B126=\"\",\"\",2029)","v":""},{"$f":"IF('DC Power Distribution (Desc)'!B126=\"\",\"\",'DC Power Distribution (Desc)'!B126)","v":""},{"$f":"IF('DC Power Distribution (Desc)'!D126=\"\",\"\",'DC Power Distribution (Desc)'!D126)","v":""},{"$f":"IF('DC Power Distribution (Desc)'!E126=\"\",\"\",INDEX([1]ELECTRIC_DEV_MANUF!$A$2:$A$1500,MATCH(1,([1]ELECTRIC_DEV_MANUF!$B$2:$B$1500='DC Power Distribution (Desc)'!$E126)*([1]ELECTRIC_DEV_MANUF!$D$2:$D$1500=\"DCPWRDIS\"),0),0))","v":""},{"$f":"IF('DC Power Distribution (Desc)'!F126=\"\",\"\",INDEX([1]ELECTRIC_DEV_MODEL!$A$2:$A$1500,MATCH(1,([1]ELECTRIC_DEV_MODEL!$C$2:$C$1500='DC Power Distribution (Desc)'!$E126)*([1]ELECTRIC_DEV_MODEL!$D$2:$D$1500='DC Power Distribution (Desc)'!$F126)*([1]ELECTRIC_DEV_MODEL!$F$2:$F$1500=\"DCPWRDIS\"),0),0))","v":""},{"$f":"IF('DC Power Distribution (Desc)'!G126=\"\",\"\",'DC Power Distribution (Desc)'!G126)","v":""},{"$f":"IF('DC Power Distribution (Desc)'!H126=\"\",\"\",INDEX([1]YES_NO!$A$2:$A$100,MATCH('DC Power Distribution (Desc)'!$H126,[1]!MASTER_YES_NO_DESC[#Data],0),0))","v":""},{"$f":"IF('DC Power Distribution (Desc)'!I126=\"\",\"\",'DC Power Distribution (Desc)'!I126)","v":""},{"$f":"IF('DC Power Distribution (Desc)'!J126=\"\",\"\",'DC Power Distribution (Desc)'!J126)","v":""},{"$f":"IF('DC Power Distribution (Desc)'!K126=\"\",\"\",INDEX([1]YES_NO!$A$2:$A$100,MATCH('DC Power Distribution (Desc)'!$K126,[1]!MASTER_YES_NO_DESC[#Data],0),0))","v":""},{"$f":"IF('DC Power Distribution (Desc)'!L126=\"\",\"\",INDEX([1]DEV_INPUT_VOLTAGE!$A$2:$A$100,MATCH('DC Power Distribution (Desc)'!$L126,[1]!MASTER_DEV_INPUT_VOLTAGE_DESC[#Data],0),0))","v":""},{"$f":"IF('DC Power Distribution (Desc)'!M126=\"\",\"\",INDEX([1]DEV_OUTPUT_VOLTAGE!$A$2:$A$100,MATCH('DC Power Distribution (Desc)'!$M126,[1]!MASTER_DEV_INPUT_VOLTAGE_DESC[#Data],0),0))","v":""},{"$f":"IF('DC Power Distribution (Desc)'!N126=\"\",\"\",'DC Power Distribution (Desc)'!N126)","v":""},{"$f":"IF('DC Power Distribution (Desc)'!O126=\"\",\"\",'DC Power Distribution (Desc)'!O126)","v":""},{"$f":"IF('DC Power Distribution (Desc)'!P126=\"\",\"\",'DC Power Distribution (Desc)'!P126)","v":""},{"$f":"IF('DC Power Distribution (Desc)'!B126=\"\",\"\",\"NA\")","v":""}]
[{"$f":"IF('DC Power Distribution (Desc)'!B127=\"\",\"\",2029)","v":""},{"$f":"IF('DC Power Distribution (Desc)'!B127=\"\",\"\",'DC Power Distribution (Desc)'!B127)","v":""},{"$f":"IF('DC Power Distribution (Desc)'!D127=\"\",\"\",'DC Power Distribution (Desc)'!D127)","v":""},{"$f":"IF('DC Power Distribution (Desc)'!E127=\"\",\"\",INDEX([1]ELECTRIC_DEV_MANUF!$A$2:$A$1500,MATCH(1,([1]ELECTRIC_DEV_MANUF!$B$2:$B$1500='DC Power Distribution (Desc)'!$E127)*([1]ELECTRIC_DEV_MANUF!$D$2:$D$1500=\"DCPWRDIS\"),0),0))","v":""},{"$f":"IF('DC Power Distribution (Desc)'!F127=\"\",\"\",INDEX([1]ELECTRIC_DEV_MODEL!$A$2:$A$1500,MATCH(1,([1]ELECTRIC_DEV_MODEL!$C$2:$C$1500='DC Power Distribution (Desc)'!$E127)*([1]ELECTRIC_DEV_MODEL!$D$2:$D$1500='DC Power Distribution (Desc)'!$F127)*([1]ELECTRIC_DEV_MODEL!$F$2:$F$1500=\"DCPWRDIS\"),0),0))","v":""},{"$f":"IF('DC Power Distribution (Desc)'!G127=\"\",\"\",'DC Power Distribution (Desc)'!G127)","v":""},{"$f":"IF('DC Power Distribution (Desc)'!H127=\"\",\"\",INDEX([1]YES_NO!$A$2:$A$100,MATCH('DC Power Distribution (Desc)'!$H127,[1]!MASTER_YES_NO_DESC[#Data],0),0))","v":""},{"$f":"IF('DC Power Distribution (Desc)'!I127=\"\",\"\",'DC Power Distribution (Desc)'!I127)","v":""},{"$f":"IF('DC Power Distribution (Desc)'!J127=\"\",\"\",'DC Power Distribution (Desc)'!J127)","v":""},{"$f":"IF('DC Power Distribution (Desc)'!K127=\"\",\"\",INDEX([1]YES_NO!$A$2:$A$100,MATCH('DC Power Distribution (Desc)'!$K127,[1]!MASTER_YES_NO_DESC[#Data],0),0))","v":""},{"$f":"IF('DC Power Distribution (Desc)'!L127=\"\",\"\",INDEX([1]DEV_INPUT_VOLTAGE!$A$2:$A$100,MATCH('DC Power Distribution (Desc)'!$L127,[1]!MASTER_DEV_INPUT_VOLTAGE_DESC[#Data],0),0))","v":""},{"$f":"IF('DC Power Distribution (Desc)'!M127=\"\",\"\",INDEX([1]DEV_OUTPUT_VOLTAGE!$A$2:$A$100,MATCH('DC Power Distribution (Desc)'!$M127,[1]!MASTER_DEV_INPUT_VOLTAGE_DESC[#Data],0),0))","v":""},{"$f":"IF('DC Power Distribution (Desc)'!N127=\"\",\"\",'DC Power Distribution (Desc)'!N127)","v":""},{"$f":"IF('DC Power Distribution (Desc)'!O127=\"\",\"\",'DC Power Distribution (Desc)'!O127)","v":""},{"$f":"IF('DC Power Distribution (Desc)'!P127=\"\",\"\",'DC Power Distribution (Desc)'!P127)","v":""},{"$f":"IF('DC Power Distribution (Desc)'!B127=\"\",\"\",\"NA\")","v":""}]
[{"$f":"IF('DC Power Distribution (Desc)'!B128=\"\",\"\",2029)","v":""},{"$f":"IF('DC Power Distribution (Desc)'!B128=\"\",\"\",'DC Power Distribution (Desc)'!B128)","v":""},{"$f":"IF('DC Power Distribution (Desc)'!D128=\"\",\"\",'DC Power Distribution (Desc)'!D128)","v":""},{"$f":"IF('DC Power Distribution (Desc)'!E128=\"\",\"\",INDEX([1]ELECTRIC_DEV_MANUF!$A$2:$A$1500,MATCH(1,([1]ELECTRIC_DEV_MANUF!$B$2:$B$1500='DC Power Distribution (Desc)'!$E128)*([1]ELECTRIC_DEV_MANUF!$D$2:$D$1500=\"DCPWRDIS\"),0),0))","v":""},{"$f":"IF('DC Power Distribution (Desc)'!F128=\"\",\"\",INDEX([1]ELECTRIC_DEV_MODEL!$A$2:$A$1500,MATCH(1,([1]ELECTRIC_DEV_MODEL!$C$2:$C$1500='DC Power Distribution (Desc)'!$E128)*([1]ELECTRIC_DEV_MODEL!$D$2:$D$1500='DC Power Distribution (Desc)'!$F128)*([1]ELECTRIC_DEV_MODEL!$F$2:$F$1500=\"DCPWRDIS\"),0),0))","v":""},{"$f":"IF('DC Power Distribution (Desc)'!G128=\"\",\"\",'DC Power Distribution (Desc)'!G128)","v":""},{"$f":"IF('DC Power Distribution (Desc)'!H128=\"\",\"\",INDEX([1]YES_NO!$A$2:$A$100,MATCH('DC Power Distribution (Desc)'!$H128,[1]!MASTER_YES_NO_DESC[#Data],0),0))","v":""},{"$f":"IF('DC Power Distribution (Desc)'!I128=\"\",\"\",'DC Power Distribution (Desc)'!I128)","v":""},{"$f":"IF('DC Power Distribution (Desc)'!J128=\"\",\"\",'DC Power Distribution (Desc)'!J128)","v":""},{"$f":"IF('DC Power Distribution (Desc)'!K128=\"\",\"\",INDEX([1]YES_NO!$A$2:$A$100,MATCH('DC Power Distribution (Desc)'!$K128,[1]!MASTER_YES_NO_DESC[#Data],0),0))","v":""},{"$f":"IF('DC Power Distribution (Desc)'!L128=\"\",\"\",INDEX([1]DEV_INPUT_VOLTAGE!$A$2:$A$100,MATCH('DC Power Distribution (Desc)'!$L128,[1]!MASTER_DEV_INPUT_VOLTAGE_DESC[#Data],0),0))","v":""},{"$f":"IF('DC Power Distribution (Desc)'!M128=\"\",\"\",INDEX([1]DEV_OUTPUT_VOLTAGE!$A$2:$A$100,MATCH('DC Power Distribution (Desc)'!$M128,[1]!MASTER_DEV_INPUT_VOLTAGE_DESC[#Data],0),0))","v":""},{"$f":"IF('DC Power Distribution (Desc)'!N128=\"\",\"\",'DC Power Distribution (Desc)'!N128)","v":""},{"$f":"IF('DC Power Distribution (Desc)'!O128=\"\",\"\",'DC Power Distribution (Desc)'!O128)","v":""},{"$f":"IF('DC Power Distribution (Desc)'!P128=\"\",\"\",'DC Power Distribution (Desc)'!P128)","v":""},{"$f":"IF('DC Power Distribution (Desc)'!B128=\"\",\"\",\"NA\")","v":""}]
[{"$f":"IF('DC Power Distribution (Desc)'!B129=\"\",\"\",2029)","v":""},{"$f":"IF('DC Power Distribution (Desc)'!B129=\"\",\"\",'DC Power Distribution (Desc)'!B129)","v":""},{"$f":"IF('DC Power Distribution (Desc)'!D129=\"\",\"\",'DC Power Distribution (Desc)'!D129)","v":""},{"$f":"IF('DC Power Distribution (Desc)'!E129=\"\",\"\",INDEX([1]ELECTRIC_DEV_MANUF!$A$2:$A$1500,MATCH(1,([1]ELECTRIC_DEV_MANUF!$B$2:$B$1500='DC Power Distribution (Desc)'!$E129)*([1]ELECTRIC_DEV_MANUF!$D$2:$D$1500=\"DCPWRDIS\"),0),0))","v":""},{"$f":"IF('DC Power Distribution (Desc)'!F129=\"\",\"\",INDEX([1]ELECTRIC_DEV_MODEL!$A$2:$A$1500,MATCH(1,([1]ELECTRIC_DEV_MODEL!$C$2:$C$1500='DC Power Distribution (Desc)'!$E129)*([1]ELECTRIC_DEV_MODEL!$D$2:$D$1500='DC Power Distribution (Desc)'!$F129)*([1]ELECTRIC_DEV_MODEL!$F$2:$F$1500=\"DCPWRDIS\"),0),0))","v":""},{"$f":"IF('DC Power Distribution (Desc)'!G129=\"\",\"\",'DC Power Distribution (Desc)'!G129)","v":""},{"$f":"IF('DC Power Distribution (Desc)'!H129=\"\",\"\",INDEX([1]YES_NO!$A$2:$A$100,MATCH('DC Power Distribution (Desc)'!$H129,[1]!MASTER_YES_NO_DESC[#Data],0),0))","v":""},{"$f":"IF('DC Power Distribution (Desc)'!I129=\"\",\"\",'DC Power Distribution (Desc)'!I129)","v":""},{"$f":"IF('DC Power Distribution (Desc)'!J129=\"\",\"\",'DC Power Distribution (Desc)'!J129)","v":""},{"$f":"IF('DC Power Distribution (Desc)'!K129=\"\",\"\",INDEX([1]YES_NO!$A$2:$A$100,MATCH('DC Power Distribution (Desc)'!$K129,[1]!MASTER_YES_NO_DESC[#Data],0),0))","v":""},{"$f":"IF('DC Power Distribution (Desc)'!L129=\"\",\"\",INDEX([1]DEV_INPUT_VOLTAGE!$A$2:$A$100,MATCH('DC Power Distribution (Desc)'!$L129,[1]!MASTER_DEV_INPUT_VOLTAGE_DESC[#Data],0),0))","v":""},{"$f":"IF('DC Power Distribution (Desc)'!M129=\"\",\"\",INDEX([1]DEV_OUTPUT_VOLTAGE!$A$2:$A$100,MATCH('DC Power Distribution (Desc)'!$M129,[1]!MASTER_DEV_INPUT_VOLTAGE_DESC[#Data],0),0))","v":""},{"$f":"IF('DC Power Distribution (Desc)'!N129=\"\",\"\",'DC Power Distribution (Desc)'!N129)","v":""},{"$f":"IF('DC Power Distribution (Desc)'!O129=\"\",\"\",'DC Power Distribution (Desc)'!O129)","v":""},{"$f":"IF('DC Power Distribution (Desc)'!P129=\"\",\"\",'DC Power Distribution (Desc)'!P129)","v":""},{"$f":"IF('DC Power Distribution (Desc)'!B129=\"\",\"\",\"NA\")","v":""}]
[{"$f":"IF('DC Power Distribution (Desc)'!B130=\"\",\"\",2029)","v":""},{"$f":"IF('DC Power Distribution (Desc)'!B130=\"\",\"\",'DC Power Distribution (Desc)'!B130)","v":""},{"$f":"IF('DC Power Distribution (Desc)'!D130=\"\",\"\",'DC Power Distribution (Desc)'!D130)","v":""},{"$f":"IF('DC Power Distribution (Desc)'!E130=\"\",\"\",INDEX([1]ELECTRIC_DEV_MANUF!$A$2:$A$1500,MATCH(1,([1]ELECTRIC_DEV_MANUF!$B$2:$B$1500='DC Power Distribution (Desc)'!$E130)*([1]ELECTRIC_DEV_MANUF!$D$2:$D$1500=\"DCPWRDIS\"),0),0))","v":""},{"$f":"IF('DC Power Distribution (Desc)'!F130=\"\",\"\",INDEX([1]ELECTRIC_DEV_MODEL!$A$2:$A$1500,MATCH(1,([1]ELECTRIC_DEV_MODEL!$C$2:$C$1500='DC Power Distribution (Desc)'!$E130)*([1]ELECTRIC_DEV_MODEL!$D$2:$D$1500='DC Power Distribution (Desc)'!$F130)*([1]ELECTRIC_DEV_MODEL!$F$2:$F$1500=\"DCPWRDIS\"),0),0))","v":""},{"$f":"IF('DC Power Distribution (Desc)'!G130=\"\",\"\",'DC Power Distribution (Desc)'!G130)","v":""},{"$f":"IF('DC Power Distribution (Desc)'!H130=\"\",\"\",INDEX([1]YES_NO!$A$2:$A$100,MATCH('DC Power Distribution (Desc)'!$H130,[1]!MASTER_YES_NO_DESC[#Data],0),0))","v":""},{"$f":"IF('DC Power Distribution (Desc)'!I130=\"\",\"\",'DC Power Distribution (Desc)'!I130)","v":""},{"$f":"IF('DC Power Distribution (Desc)'!J130=\"\",\"\",'DC Power Distribution (Desc)'!J130)","v":""},{"$f":"IF('DC Power Distribution (Desc)'!K130=\"\",\"\",INDEX([1]YES_NO!$A$2:$A$100,MATCH('DC Power Distribution (Desc)'!$K130,[1]!MASTER_YES_NO_DESC[#Data],0),0))","v":""},{"$f":"IF('DC Power Distribution (Desc)'!L130=\"\",\"\",INDEX([1]DEV_INPUT_VOLTAGE!$A$2:$A$100,MATCH('DC Power Distribution (Desc)'!$L130,[1]!MASTER_DEV_INPUT_VOLTAGE_DESC[#Data],0),0))","v":""},{"$f":"IF('DC Power Distribution (Desc)'!M130=\"\",\"\",INDEX([1]DEV_OUTPUT_VOLTAGE!$A$2:$A$100,MATCH('DC Power Distribution (Desc)'!$M130,[1]!MASTER_DEV_INPUT_VOLTAGE_DESC[#Data],0),0))","v":""},{"$f":"IF('DC Power Distribution (Desc)'!N130=\"\",\"\",'DC Power Distribution (Desc)'!N130)","v":""},{"$f":"IF('DC Power Distribution (Desc)'!O130=\"\",\"\",'DC Power Distribution (Desc)'!O130)","v":""},{"$f":"IF('DC Power Distribution (Desc)'!P130=\"\",\"\",'DC Power Distribution (Desc)'!P130)","v":""},{"$f":"IF('DC Power Distribution (Desc)'!B130=\"\",\"\",\"NA\")","v":""}]
[{"$f":"IF('DC Power Distribution (Desc)'!B131=\"\",\"\",2029)","v":""},{"$f":"IF('DC Power Distribution (Desc)'!B131=\"\",\"\",'DC Power Distribution (Desc)'!B131)","v":""},{"$f":"IF('DC Power Distribution (Desc)'!D131=\"\",\"\",'DC Power Distribution (Desc)'!D131)","v":""},{"$f":"IF('DC Power Distribution (Desc)'!E131=\"\",\"\",INDEX([1]ELECTRIC_DEV_MANUF!$A$2:$A$1500,MATCH(1,([1]ELECTRIC_DEV_MANUF!$B$2:$B$1500='DC Power Distribution (Desc)'!$E131)*([1]ELECTRIC_DEV_MANUF!$D$2:$D$1500=\"DCPWRDIS\"),0),0))","v":""},{"$f":"IF('DC Power Distribution (Desc)'!F131=\"\",\"\",INDEX([1]ELECTRIC_DEV_MODEL!$A$2:$A$1500,MATCH(1,([1]ELECTRIC_DEV_MODEL!$C$2:$C$1500='DC Power Distribution (Desc)'!$E131)*([1]ELECTRIC_DEV_MODEL!$D$2:$D$1500='DC Power Distribution (Desc)'!$F131)*([1]ELECTRIC_DEV_MODEL!$F$2:$F$1500=\"DCPWRDIS\"),0),0))","v":""},{"$f":"IF('DC Power Distribution (Desc)'!G131=\"\",\"\",'DC Power Distribution (Desc)'!G131)","v":""},{"$f":"IF('DC Power Distribution (Desc)'!H131=\"\",\"\",INDEX([1]YES_NO!$A$2:$A$100,MATCH('DC Power Distribution (Desc)'!$H131,[1]!MASTER_YES_NO_DESC[#Data],0),0))","v":""},{"$f":"IF('DC Power Distribution (Desc)'!I131=\"\",\"\",'DC Power Distribution (Desc)'!I131)","v":""},{"$f":"IF('DC Power Distribution (Desc)'!J131=\"\",\"\",'DC Power Distribution (Desc)'!J131)","v":""},{"$f":"IF('DC Power Distribution (Desc)'!K131=\"\",\"\",INDEX([1]YES_NO!$A$2:$A$100,MATCH('DC Power Distribution (Desc)'!$K131,[1]!MASTER_YES_NO_DESC[#Data],0),0))","v":""},{"$f":"IF('DC Power Distribution (Desc)'!L131=\"\",\"\",INDEX([1]DEV_INPUT_VOLTAGE!$A$2:$A$100,MATCH('DC Power Distribution (Desc)'!$L131,[1]!MASTER_DEV_INPUT_VOLTAGE_DESC[#Data],0),0))","v":""},{"$f":"IF('DC Power Distribution (Desc)'!M131=\"\",\"\",INDEX([1]DEV_OUTPUT_VOLTAGE!$A$2:$A$100,MATCH('DC Power Distribution (Desc)'!$M131,[1]!MASTER_DEV_INPUT_VOLTAGE_DESC[#Data],0),0))","v":""},{"$f":"IF('DC Power Distribution (Desc)'!N131=\"\",\"\",'DC Power Distribution (Desc)'!N131)","v":""},{"$f":"IF('DC Power Distribution (Desc)'!O131=\"\",\"\",'DC Power Distribution (Desc)'!O131)","v":""},{"$f":"IF('DC Power Distribution (Desc)'!P131=\"\",\"\",'DC Power Distribution (Desc)'!P131)","v":""},{"$f":"IF('DC Power Distribution (Desc)'!B131=\"\",\"\",\"NA\")","v":""}]
[{"$f":"IF('DC Power Distribution (Desc)'!B132=\"\",\"\",2029)","v":""},{"$f":"IF('DC Power Distribution (Desc)'!B132=\"\",\"\",'DC Power Distribution (Desc)'!B132)","v":""},{"$f":"IF('DC Power Distribution (Desc)'!D132=\"\",\"\",'DC Power Distribution (Desc)'!D132)","v":""},{"$f":"IF('DC Power Distribution (Desc)'!E132=\"\",\"\",INDEX([1]ELECTRIC_DEV_MANUF!$A$2:$A$1500,MATCH(1,([1]ELECTRIC_DEV_MANUF!$B$2:$B$1500='DC Power Distribution (Desc)'!$E132)*([1]ELECTRIC_DEV_MANUF!$D$2:$D$1500=\"DCPWRDIS\"),0),0))","v":""},{"$f":"IF('DC Power Distribution (Desc)'!F132=\"\",\"\",INDEX([1]ELECTRIC_DEV_MODEL!$A$2:$A$1500,MATCH(1,([1]ELECTRIC_DEV_MODEL!$C$2:$C$1500='DC Power Distribution (Desc)'!$E132)*([1]ELECTRIC_DEV_MODEL!$D$2:$D$1500='DC Power Distribution (Desc)'!$F132)*([1]ELECTRIC_DEV_MODEL!$F$2:$F$1500=\"DCPWRDIS\"),0),0))","v":""},{"$f":"IF('DC Power Distribution (Desc)'!G132=\"\",\"\",'DC Power Distribution (Desc)'!G132)","v":""},{"$f":"IF('DC Power Distribution (Desc)'!H132=\"\",\"\",INDEX([1]YES_NO!$A$2:$A$100,MATCH('DC Power Distribution (Desc)'!$H132,[1]!MASTER_YES_NO_DESC[#Data],0),0))","v":""},{"$f":"IF('DC Power Distribution (Desc)'!I132=\"\",\"\",'DC Power Distribution (Desc)'!I132)","v":""},{"$f":"IF('DC Power Distribution (Desc)'!J132=\"\",\"\",'DC Power Distribution (Desc)'!J132)","v":""},{"$f":"IF('DC Power Distribution (Desc)'!K132=\"\",\"\",INDEX([1]YES_NO!$A$2:$A$100,MATCH('DC Power Distribution (Desc)'!$K132,[1]!MASTER_YES_NO_DESC[#Data],0),0))","v":""},{"$f":"IF('DC Power Distribution (Desc)'!L132=\"\",\"\",INDEX([1]DEV_INPUT_VOLTAGE!$A$2:$A$100,MATCH('DC Power Distribution (Desc)'!$L132,[1]!MASTER_DEV_INPUT_VOLTAGE_DESC[#Data],0),0))","v":""},{"$f":"IF('DC Power Distribution (Desc)'!M132=\"\",\"\",INDEX([1]DEV_OUTPUT_VOLTAGE!$A$2:$A$100,MATCH('DC Power Distribution (Desc)'!$M132,[1]!MASTER_DEV_INPUT_VOLTAGE_DESC[#Data],0),0))","v":""},{"$f":"IF('DC Power Distribution (Desc)'!N132=\"\",\"\",'DC Power Distribution (Desc)'!N132)","v":""},{"$f":"IF('DC Power Distribution (Desc)'!O132=\"\",\"\",'DC Power Distribution (Desc)'!O132)","v":""},{"$f":"IF('DC Power Distribution (Desc)'!P132=\"\",\"\",'DC Power Distribution (Desc)'!P132)","v":""},{"$f":"IF('DC Power Distribution (Desc)'!B132=\"\",\"\",\"NA\")","v":""}]
[{"$f":"IF('DC Power Distribution (Desc)'!B133=\"\",\"\",2029)","v":""},{"$f":"IF('DC Power Distribution (Desc)'!B133=\"\",\"\",'DC Power Distribution (Desc)'!B133)","v":""},{"$f":"IF('DC Power Distribution (Desc)'!D133=\"\",\"\",'DC Power Distribution (Desc)'!D133)","v":""},{"$f":"IF('DC Power Distribution (Desc)'!E133=\"\",\"\",INDEX([1]ELECTRIC_DEV_MANUF!$A$2:$A$1500,MATCH(1,([1]ELECTRIC_DEV_MANUF!$B$2:$B$1500='DC Power Distribution (Desc)'!$E133)*([1]ELECTRIC_DEV_MANUF!$D$2:$D$1500=\"DCPWRDIS\"),0),0))","v":""},{"$f":"IF('DC Power Distribution (Desc)'!F133=\"\",\"\",INDEX([1]ELECTRIC_DEV_MODEL!$A$2:$A$1500,MATCH(1,([1]ELECTRIC_DEV_MODEL!$C$2:$C$1500='DC Power Distribution (Desc)'!$E133)*([1]ELECTRIC_DEV_MODEL!$D$2:$D$1500='DC Power Distribution (Desc)'!$F133)*([1]ELECTRIC_DEV_MODEL!$F$2:$F$1500=\"DCPWRDIS\"),0),0))","v":""},{"$f":"IF('DC Power Distribution (Desc)'!G133=\"\",\"\",'DC Power Distribution (Desc)'!G133)","v":""},{"$f":"IF('DC Power Distribution (Desc)'!H133=\"\",\"\",INDEX([1]YES_NO!$A$2:$A$100,MATCH('DC Power Distribution (Desc)'!$H133,[1]!MASTER_YES_NO_DESC[#Data],0),0))","v":""},{"$f":"IF('DC Power Distribution (Desc)'!I133=\"\",\"\",'DC Power Distribution (Desc)'!I133)","v":""},{"$f":"IF('DC Power Distribution (Desc)'!J133=\"\",\"\",'DC Power Distribution (Desc)'!J133)","v":""},{"$f":"IF('DC Power Distribution (Desc)'!K133=\"\",\"\",INDEX([1]YES_NO!$A$2:$A$100,MATCH('DC Power Distribution (Desc)'!$K133,[1]!MASTER_YES_NO_DESC[#Data],0),0))","v":""},{"$f":"IF('DC Power Distribution (Desc)'!L133=\"\",\"\",INDEX([1]DEV_INPUT_VOLTAGE!$A$2:$A$100,MATCH('DC Power Distribution (Desc)'!$L133,[1]!MASTER_DEV_INPUT_VOLTAGE_DESC[#Data],0),0))","v":""},{"$f":"IF('DC Power Distribution (Desc)'!M133=\"\",\"\",INDEX([1]DEV_OUTPUT_VOLTAGE!$A$2:$A$100,MATCH('DC Power Distribution (Desc)'!$M133,[1]!MASTER_DEV_INPUT_VOLTAGE_DESC[#Data],0),0))","v":""},{"$f":"IF('DC Power Distribution (Desc)'!N133=\"\",\"\",'DC Power Distribution (Desc)'!N133)","v":""},{"$f":"IF('DC Power Distribution (Desc)'!O133=\"\",\"\",'DC Power Distribution (Desc)'!O133)","v":""},{"$f":"IF('DC Power Distribution (Desc)'!P133=\"\",\"\",'DC Power Distribution (Desc)'!P133)","v":""},{"$f":"IF('DC Power Distribution (Desc)'!B133=\"\",\"\",\"NA\")","v":""}]
[{"$f":"IF('DC Power Distribution (Desc)'!B134=\"\",\"\",2029)","v":""},{"$f":"IF('DC Power Distribution (Desc)'!B134=\"\",\"\",'DC Power Distribution (Desc)'!B134)","v":""},{"$f":"IF('DC Power Distribution (Desc)'!D134=\"\",\"\",'DC Power Distribution (Desc)'!D134)","v":""},{"$f":"IF('DC Power Distribution (Desc)'!E134=\"\",\"\",INDEX([1]ELECTRIC_DEV_MANUF!$A$2:$A$1500,MATCH(1,([1]ELECTRIC_DEV_MANUF!$B$2:$B$1500='DC Power Distribution (Desc)'!$E134)*([1]ELECTRIC_DEV_MANUF!$D$2:$D$1500=\"DCPWRDIS\"),0),0))","v":""},{"$f":"IF('DC Power Distribution (Desc)'!F134=\"\",\"\",INDEX([1]ELECTRIC_DEV_MODEL!$A$2:$A$1500,MATCH(1,([1]ELECTRIC_DEV_MODEL!$C$2:$C$1500='DC Power Distribution (Desc)'!$E134)*([1]ELECTRIC_DEV_MODEL!$D$2:$D$1500='DC Power Distribution (Desc)'!$F134)*([1]ELECTRIC_DEV_MODEL!$F$2:$F$1500=\"DCPWRDIS\"),0),0))","v":""},{"$f":"IF('DC Power Distribution (Desc)'!G134=\"\",\"\",'DC Power Distribution (Desc)'!G134)","v":""},{"$f":"IF('DC Power Distribution (Desc)'!H134=\"\",\"\",INDEX([1]YES_NO!$A$2:$A$100,MATCH('DC Power Distribution (Desc)'!$H134,[1]!MASTER_YES_NO_DESC[#Data],0),0))","v":""},{"$f":"IF('DC Power Distribution (Desc)'!I134=\"\",\"\",'DC Power Distribution (Desc)'!I134)","v":""},{"$f":"IF('DC Power Distribution (Desc)'!J134=\"\",\"\",'DC Power Distribution (Desc)'!J134)","v":""},{"$f":"IF('DC Power Distribution (Desc)'!K134=\"\",\"\",INDEX([1]YES_NO!$A$2:$A$100,MATCH('DC Power Distribution (Desc)'!$K134,[1]!MASTER_YES_NO_DESC[#Data],0),0))","v":""},{"$f":"IF('DC Power Distribution (Desc)'!L134=\"\",\"\",INDEX([1]DEV_INPUT_VOLTAGE!$A$2:$A$100,MATCH('DC Power Distribution (Desc)'!$L134,[1]!MASTER_DEV_INPUT_VOLTAGE_DESC[#Data],0),0))","v":""},{"$f":"IF('DC Power Distribution (Desc)'!M134=\"\",\"\",INDEX([1]DEV_OUTPUT_VOLTAGE!$A$2:$A$100,MATCH('DC Power Distribution (Desc)'!$M134,[1]!MASTER_DEV_INPUT_VOLTAGE_DESC[#Data],0),0))","v":""},{"$f":"IF('DC Power Distribution (Desc)'!N134=\"\",\"\",'DC Power Distribution (Desc)'!N134)","v":""},{"$f":"IF('DC Power Distribution (Desc)'!O134=\"\",\"\",'DC Power Distribution (Desc)'!O134)","v":""},{"$f":"IF('DC Power Distribution (Desc)'!P134=\"\",\"\",'DC Power Distribution (Desc)'!P134)","v":""},{"$f":"IF('DC Power Distribution (Desc)'!B134=\"\",\"\",\"NA\")","v":""}]
[{"$f":"IF('DC Power Distribution (Desc)'!B135=\"\",\"\",2029)","v":""},{"$f":"IF('DC Power Distribution (Desc)'!B135=\"\",\"\",'DC Power Distribution (Desc)'!B135)","v":""},{"$f":"IF('DC Power Distribution (Desc)'!D135=\"\",\"\",'DC Power Distribution (Desc)'!D135)","v":""},{"$f":"IF('DC Power Distribution (Desc)'!E135=\"\",\"\",INDEX([1]ELECTRIC_DEV_MANUF!$A$2:$A$1500,MATCH(1,([1]ELECTRIC_DEV_MANUF!$B$2:$B$1500='DC Power Distribution (Desc)'!$E135)*([1]ELECTRIC_DEV_MANUF!$D$2:$D$1500=\"DCPWRDIS\"),0),0))","v":""},{"$f":"IF('DC Power Distribution (Desc)'!F135=\"\",\"\",INDEX([1]ELECTRIC_DEV_MODEL!$A$2:$A$1500,MATCH(1,([1]ELECTRIC_DEV_MODEL!$C$2:$C$1500='DC Power Distribution (Desc)'!$E135)*([1]ELECTRIC_DEV_MODEL!$D$2:$D$1500='DC Power Distribution (Desc)'!$F135)*([1]ELECTRIC_DEV_MODEL!$F$2:$F$1500=\"DCPWRDIS\"),0),0))","v":""},{"$f":"IF('DC Power Distribution (Desc)'!G135=\"\",\"\",'DC Power Distribution (Desc)'!G135)","v":""},{"$f":"IF('DC Power Distribution (Desc)'!H135=\"\",\"\",INDEX([1]YES_NO!$A$2:$A$100,MATCH('DC Power Distribution (Desc)'!$H135,[1]!MASTER_YES_NO_DESC[#Data],0),0))","v":""},{"$f":"IF('DC Power Distribution (Desc)'!I135=\"\",\"\",'DC Power Distribution (Desc)'!I135)","v":""},{"$f":"IF('DC Power Distribution (Desc)'!J135=\"\",\"\",'DC Power Distribution (Desc)'!J135)","v":""},{"$f":"IF('DC Power Distribution (Desc)'!K135=\"\",\"\",INDEX([1]YES_NO!$A$2:$A$100,MATCH('DC Power Distribution (Desc)'!$K135,[1]!MASTER_YES_NO_DESC[#Data],0),0))","v":""},{"$f":"IF('DC Power Distribution (Desc)'!L135=\"\",\"\",INDEX([1]DEV_INPUT_VOLTAGE!$A$2:$A$100,MATCH('DC Power Distribution (Desc)'!$L135,[1]!MASTER_DEV_INPUT_VOLTAGE_DESC[#Data],0),0))","v":""},{"$f":"IF('DC Power Distribution (Desc)'!M135=\"\",\"\",INDEX([1]DEV_OUTPUT_VOLTAGE!$A$2:$A$100,MATCH('DC Power Distribution (Desc)'!$M135,[1]!MASTER_DEV_INPUT_VOLTAGE_DESC[#Data],0),0))","v":""},{"$f":"IF('DC Power Distribution (Desc)'!N135=\"\",\"\",'DC Power Distribution (Desc)'!N135)","v":""},{"$f":"IF('DC Power Distribution (Desc)'!O135=\"\",\"\",'DC Power Distribution (Desc)'!O135)","v":""},{"$f":"IF('DC Power Distribution (Desc)'!P135=\"\",\"\",'DC Power Distribution (Desc)'!P135)","v":""},{"$f":"IF('DC Power Distribution (Desc)'!B135=\"\",\"\",\"NA\")","v":""}]
[{"$f":"IF('DC Power Distribution (Desc)'!B136=\"\",\"\",2029)","v":""},{"$f":"IF('DC Power Distribution (Desc)'!B136=\"\",\"\",'DC Power Distribution (Desc)'!B136)","v":""},{"$f":"IF('DC Power Distribution (Desc)'!D136=\"\",\"\",'DC Power Distribution (Desc)'!D136)","v":""},{"$f":"IF('DC Power Distribution (Desc)'!E136=\"\",\"\",INDEX([1]ELECTRIC_DEV_MANUF!$A$2:$A$1500,MATCH(1,([1]ELECTRIC_DEV_MANUF!$B$2:$B$1500='DC Power Distribution (Desc)'!$E136)*([1]ELECTRIC_DEV_MANUF!$D$2:$D$1500=\"DCPWRDIS\"),0),0))","v":""},{"$f":"IF('DC Power Distribution (Desc)'!F136=\"\",\"\",INDEX([1]ELECTRIC_DEV_MODEL!$A$2:$A$1500,MATCH(1,([1]ELECTRIC_DEV_MODEL!$C$2:$C$1500='DC Power Distribution (Desc)'!$E136)*([1]ELECTRIC_DEV_MODEL!$D$2:$D$1500='DC Power Distribution (Desc)'!$F136)*([1]ELECTRIC_DEV_MODEL!$F$2:$F$1500=\"DCPWRDIS\"),0),0))","v":""},{"$f":"IF('DC Power Distribution (Desc)'!G136=\"\",\"\",'DC Power Distribution (Desc)'!G136)","v":""},{"$f":"IF('DC Power Distribution (Desc)'!H136=\"\",\"\",INDEX([1]YES_NO!$A$2:$A$100,MATCH('DC Power Distribution (Desc)'!$H136,[1]!MASTER_YES_NO_DESC[#Data],0),0))","v":""},{"$f":"IF('DC Power Distribution (Desc)'!I136=\"\",\"\",'DC Power Distribution (Desc)'!I136)","v":""},{"$f":"IF('DC Power Distribution (Desc)'!J136=\"\",\"\",'DC Power Distribution (Desc)'!J136)","v":""},{"$f":"IF('DC Power Distribution (Desc)'!K136=\"\",\"\",INDEX([1]YES_NO!$A$2:$A$100,MATCH('DC Power Distribution (Desc)'!$K136,[1]!MASTER_YES_NO_DESC[#Data],0),0))","v":""},{"$f":"IF('DC Power Distribution (Desc)'!L136=\"\",\"\",INDEX([1]DEV_INPUT_VOLTAGE!$A$2:$A$100,MATCH('DC Power Distribution (Desc)'!$L136,[1]!MASTER_DEV_INPUT_VOLTAGE_DESC[#Data],0),0))","v":""},{"$f":"IF('DC Power Distribution (Desc)'!M136=\"\",\"\",INDEX([1]DEV_OUTPUT_VOLTAGE!$A$2:$A$100,MATCH('DC Power Distribution (Desc)'!$M136,[1]!MASTER_DEV_INPUT_VOLTAGE_DESC[#Data],0),0))","v":""},{"$f":"IF('DC Power Distribution (Desc)'!N136=\"\",\"\",'DC Power Distribution (Desc)'!N136)","v":""},{"$f":"IF('DC Power Distribution (Desc)'!O136=\"\",\"\",'DC Power Distribution (Desc)'!O136)","v":""},{"$f":"IF('DC Power Distribution (Desc)'!P136=\"\",\"\",'DC Power Distribution (Desc)'!P136)","v":""},{"$f":"IF('DC Power Distribution (Desc)'!B136=\"\",\"\",\"NA\")","v":""}]
[{"$f":"IF('DC Power Distribution (Desc)'!B137=\"\",\"\",2029)","v":""},{"$f":"IF('DC Power Distribution (Desc)'!B137=\"\",\"\",'DC Power Distribution (Desc)'!B137)","v":""},{"$f":"IF('DC Power Distribution (Desc)'!D137=\"\",\"\",'DC Power Distribution (Desc)'!D137)","v":""},{"$f":"IF('DC Power Distribution (Desc)'!E137=\"\",\"\",INDEX([1]ELECTRIC_DEV_MANUF!$A$2:$A$1500,MATCH(1,([1]ELECTRIC_DEV_MANUF!$B$2:$B$1500='DC Power Distribution (Desc)'!$E137)*([1]ELECTRIC_DEV_MANUF!$D$2:$D$1500=\"DCPWRDIS\"),0),0))","v":""},{"$f":"IF('DC Power Distribution (Desc)'!F137=\"\",\"\",INDEX([1]ELECTRIC_DEV_MODEL!$A$2:$A$1500,MATCH(1,([1]ELECTRIC_DEV_MODEL!$C$2:$C$1500='DC Power Distribution (Desc)'!$E137)*([1]ELECTRIC_DEV_MODEL!$D$2:$D$1500='DC Power Distribution (Desc)'!$F137)*([1]ELECTRIC_DEV_MODEL!$F$2:$F$1500=\"DCPWRDIS\"),0),0))","v":""},{"$f":"IF('DC Power Distribution (Desc)'!G137=\"\",\"\",'DC Power Distribution (Desc)'!G137)","v":""},{"$f":"IF('DC Power Distribution (Desc)'!H137=\"\",\"\",INDEX([1]YES_NO!$A$2:$A$100,MATCH('DC Power Distribution (Desc)'!$H137,[1]!MASTER_YES_NO_DESC[#Data],0),0))","v":""},{"$f":"IF('DC Power Distribution (Desc)'!I137=\"\",\"\",'DC Power Distribution (Desc)'!I137)","v":""},{"$f":"IF('DC Power Distribution (Desc)'!J137=\"\",\"\",'DC Power Distribution (Desc)'!J137)","v":""},{"$f":"IF('DC Power Distribution (Desc)'!K137=\"\",\"\",INDEX([1]YES_NO!$A$2:$A$100,MATCH('DC Power Distribution (Desc)'!$K137,[1]!MASTER_YES_NO_DESC[#Data],0),0))","v":""},{"$f":"IF('DC Power Distribution (Desc)'!L137=\"\",\"\",INDEX([1]DEV_INPUT_VOLTAGE!$A$2:$A$100,MATCH('DC Power Distribution (Desc)'!$L137,[1]!MASTER_DEV_INPUT_VOLTAGE_DESC[#Data],0),0))","v":""},{"$f":"IF('DC Power Distribution (Desc)'!M137=\"\",\"\",INDEX([1]DEV_OUTPUT_VOLTAGE!$A$2:$A$100,MATCH('DC Power Distribution (Desc)'!$M137,[1]!MASTER_DEV_INPUT_VOLTAGE_DESC[#Data],0),0))","v":""},{"$f":"IF('DC Power Distribution (Desc)'!N137=\"\",\"\",'DC Power Distribution (Desc)'!N137)","v":""},{"$f":"IF('DC Power Distribution (Desc)'!O137=\"\",\"\",'DC Power Distribution (Desc)'!O137)","v":""},{"$f":"IF('DC Power Distribution (Desc)'!P137=\"\",\"\",'DC Power Distribution (Desc)'!P137)","v":""},{"$f":"IF('DC Power Distribution (Desc)'!B137=\"\",\"\",\"NA\")","v":""}]
[{"$f":"IF('DC Power Distribution (Desc)'!B138=\"\",\"\",2029)","v":""},{"$f":"IF('DC Power Distribution (Desc)'!B138=\"\",\"\",'DC Power Distribution (Desc)'!B138)","v":""},{"$f":"IF('DC Power Distribution (Desc)'!D138=\"\",\"\",'DC Power Distribution (Desc)'!D138)","v":""},{"$f":"IF('DC Power Distribution (Desc)'!E138=\"\",\"\",INDEX([1]ELECTRIC_DEV_MANUF!$A$2:$A$1500,MATCH(1,([1]ELECTRIC_DEV_MANUF!$B$2:$B$1500='DC Power Distribution (Desc)'!$E138)*([1]ELECTRIC_DEV_MANUF!$D$2:$D$1500=\"DCPWRDIS\"),0),0))","v":""},{"$f":"IF('DC Power Distribution (Desc)'!F138=\"\",\"\",INDEX([1]ELECTRIC_DEV_MODEL!$A$2:$A$1500,MATCH(1,([1]ELECTRIC_DEV_MODEL!$C$2:$C$1500='DC Power Distribution (Desc)'!$E138)*([1]ELECTRIC_DEV_MODEL!$D$2:$D$1500='DC Power Distribution (Desc)'!$F138)*([1]ELECTRIC_DEV_MODEL!$F$2:$F$1500=\"DCPWRDIS\"),0),0))","v":""},{"$f":"IF('DC Power Distribution (Desc)'!G138=\"\",\"\",'DC Power Distribution (Desc)'!G138)","v":""},{"$f":"IF('DC Power Distribution (Desc)'!H138=\"\",\"\",INDEX([1]YES_NO!$A$2:$A$100,MATCH('DC Power Distribution (Desc)'!$H138,[1]!MASTER_YES_NO_DESC[#Data],0),0))","v":""},{"$f":"IF('DC Power Distribution (Desc)'!I138=\"\",\"\",'DC Power Distribution (Desc)'!I138)","v":""},{"$f":"IF('DC Power Distribution (Desc)'!J138=\"\",\"\",'DC Power Distribution (Desc)'!J138)","v":""},{"$f":"IF('DC Power Distribution (Desc)'!K138=\"\",\"\",INDEX([1]YES_NO!$A$2:$A$100,MATCH('DC Power Distribution (Desc)'!$K138,[1]!MASTER_YES_NO_DESC[#Data],0),0))","v":""},{"$f":"IF('DC Power Distribution (Desc)'!L138=\"\",\"\",INDEX([1]DEV_INPUT_VOLTAGE!$A$2:$A$100,MATCH('DC Power Distribution (Desc)'!$L138,[1]!MASTER_DEV_INPUT_VOLTAGE_DESC[#Data],0),0))","v":""},{"$f":"IF('DC Power Distribution (Desc)'!M138=\"\",\"\",INDEX([1]DEV_OUTPUT_VOLTAGE!$A$2:$A$100,MATCH('DC Power Distribution (Desc)'!$M138,[1]!MASTER_DEV_INPUT_VOLTAGE_DESC[#Data],0),0))","v":""},{"$f":"IF('DC Power Distribution (Desc)'!N138=\"\",\"\",'DC Power Distribution (Desc)'!N138)","v":""},{"$f":"IF('DC Power Distribution (Desc)'!O138=\"\",\"\",'DC Power Distribution (Desc)'!O138)","v":""},{"$f":"IF('DC Power Distribution (Desc)'!P138=\"\",\"\",'DC Power Distribution (Desc)'!P138)","v":""},{"$f":"IF('DC Power Distribution (Desc)'!B138=\"\",\"\",\"NA\")","v":""}]
[{"$f":"IF('DC Power Distribution (Desc)'!B139=\"\",\"\",2029)","v":""},{"$f":"IF('DC Power Distribution (Desc)'!B139=\"\",\"\",'DC Power Distribution (Desc)'!B139)","v":""},{"$f":"IF('DC Power Distribution (Desc)'!D139=\"\",\"\",'DC Power Distribution (Desc)'!D139)","v":""},{"$f":"IF('DC Power Distribution (Desc)'!E139=\"\",\"\",INDEX([1]ELECTRIC_DEV_MANUF!$A$2:$A$1500,MATCH(1,([1]ELECTRIC_DEV_MANUF!$B$2:$B$1500='DC Power Distribution (Desc)'!$E139)*([1]ELECTRIC_DEV_MANUF!$D$2:$D$1500=\"DCPWRDIS\"),0),0))","v":""},{"$f":"IF('DC Power Distribution (Desc)'!F139=\"\",\"\",INDEX([1]ELECTRIC_DEV_MODEL!$A$2:$A$1500,MATCH(1,([1]ELECTRIC_DEV_MODEL!$C$2:$C$1500='DC Power Distribution (Desc)'!$E139)*([1]ELECTRIC_DEV_MODEL!$D$2:$D$1500='DC Power Distribution (Desc)'!$F139)*([1]ELECTRIC_DEV_MODEL!$F$2:$F$1500=\"DCPWRDIS\"),0),0))","v":""},{"$f":"IF('DC Power Distribution (Desc)'!G139=\"\",\"\",'DC Power Distribution (Desc)'!G139)","v":""},{"$f":"IF('DC Power Distribution (Desc)'!H139=\"\",\"\",INDEX([1]YES_NO!$A$2:$A$100,MATCH('DC Power Distribution (Desc)'!$H139,[1]!MASTER_YES_NO_DESC[#Data],0),0))","v":""},{"$f":"IF('DC Power Distribution (Desc)'!I139=\"\",\"\",'DC Power Distribution (Desc)'!I139)","v":""},{"$f":"IF('DC Power Distribution (Desc)'!J139=\"\",\"\",'DC Power Distribution (Desc)'!J139)","v":""},{"$f":"IF('DC Power Distribution (Desc)'!K139=\"\",\"\",INDEX([1]YES_NO!$A$2:$A$100,MATCH('DC Power Distribution (Desc)'!$K139,[1]!MASTER_YES_NO_DESC[#Data],0),0))","v":""},{"$f":"IF('DC Power Distribution (Desc)'!L139=\"\",\"\",INDEX([1]DEV_INPUT_VOLTAGE!$A$2:$A$100,MATCH('DC Power Distribution (Desc)'!$L139,[1]!MASTER_DEV_INPUT_VOLTAGE_DESC[#Data],0),0))","v":""},{"$f":"IF('DC Power Distribution (Desc)'!M139=\"\",\"\",INDEX([1]DEV_OUTPUT_VOLTAGE!$A$2:$A$100,MATCH('DC Power Distribution (Desc)'!$M139,[1]!MASTER_DEV_INPUT_VOLTAGE_DESC[#Data],0),0))","v":""},{"$f":"IF('DC Power Distribution (Desc)'!N139=\"\",\"\",'DC Power Distribution (Desc)'!N139)","v":""},{"$f":"IF('DC Power Distribution (Desc)'!O139=\"\",\"\",'DC Power Distribution (Desc)'!O139)","v":""},{"$f":"IF('DC Power Distribution (Desc)'!P139=\"\",\"\",'DC Power Distribution (Desc)'!P139)","v":""},{"$f":"IF('DC Power Distribution (Desc)'!B139=\"\",\"\",\"NA\")","v":""}]
[{"$f":"IF('DC Power Distribution (Desc)'!B140=\"\",\"\",2029)","v":""},{"$f":"IF('DC Power Distribution (Desc)'!B140=\"\",\"\",'DC Power Distribution (Desc)'!B140)","v":""},{"$f":"IF('DC Power Distribution (Desc)'!D140=\"\",\"\",'DC Power Distribution (Desc)'!D140)","v":""},{"$f":"IF('DC Power Distribution (Desc)'!E140=\"\",\"\",INDEX([1]ELECTRIC_DEV_MANUF!$A$2:$A$1500,MATCH(1,([1]ELECTRIC_DEV_MANUF!$B$2:$B$1500='DC Power Distribution (Desc)'!$E140)*([1]ELECTRIC_DEV_MANUF!$D$2:$D$1500=\"DCPWRDIS\"),0),0))","v":""},{"$f":"IF('DC Power Distribution (Desc)'!F140=\"\",\"\",INDEX([1]ELECTRIC_DEV_MODEL!$A$2:$A$1500,MATCH(1,([1]ELECTRIC_DEV_MODEL!$C$2:$C$1500='DC Power Distribution (Desc)'!$E140)*([1]ELECTRIC_DEV_MODEL!$D$2:$D$1500='DC Power Distribution (Desc)'!$F140)*([1]ELECTRIC_DEV_MODEL!$F$2:$F$1500=\"DCPWRDIS\"),0),0))","v":""},{"$f":"IF('DC Power Distribution (Desc)'!G140=\"\",\"\",'DC Power Distribution (Desc)'!G140)","v":""},{"$f":"IF('DC Power Distribution (Desc)'!H140=\"\",\"\",INDEX([1]YES_NO!$A$2:$A$100,MATCH('DC Power Distribution (Desc)'!$H140,[1]!MASTER_YES_NO_DESC[#Data],0),0))","v":""},{"$f":"IF('DC Power Distribution (Desc)'!I140=\"\",\"\",'DC Power Distribution (Desc)'!I140)","v":""},{"$f":"IF('DC Power Distribution (Desc)'!J140=\"\",\"\",'DC Power Distribution (Desc)'!J140)","v":""},{"$f":"IF('DC Power Distribution (Desc)'!K140=\"\",\"\",INDEX([1]YES_NO!$A$2:$A$100,MATCH('DC Power Distribution (Desc)'!$K140,[1]!MASTER_YES_NO_DESC[#Data],0),0))","v":""},{"$f":"IF('DC Power Distribution (Desc)'!L140=\"\",\"\",INDEX([1]DEV_INPUT_VOLTAGE!$A$2:$A$100,MATCH('DC Power Distribution (Desc)'!$L140,[1]!MASTER_DEV_INPUT_VOLTAGE_DESC[#Data],0),0))","v":""},{"$f":"IF('DC Power Distribution (Desc)'!M140=\"\",\"\",INDEX([1]DEV_OUTPUT_VOLTAGE!$A$2:$A$100,MATCH('DC Power Distribution (Desc)'!$M140,[1]!MASTER_DEV_INPUT_VOLTAGE_DESC[#Data],0),0))","v":""},{"$f":"IF('DC Power Distribution (Desc)'!N140=\"\",\"\",'DC Power Distribution (Desc)'!N140)","v":""},{"$f":"IF('DC Power Distribution (Desc)'!O140=\"\",\"\",'DC Power Distribution (Desc)'!O140)","v":""},{"$f":"IF('DC Power Distribution (Desc)'!P140=\"\",\"\",'DC Power Distribution (Desc)'!P140)","v":""},{"$f":"IF('DC Power Distribution (Desc)'!B140=\"\",\"\",\"NA\")","v":""}]
[{"$f":"IF('DC Power Distribution (Desc)'!B141=\"\",\"\",2029)","v":""},{"$f":"IF('DC Power Distribution (Desc)'!B141=\"\",\"\",'DC Power Distribution (Desc)'!B141)","v":""},{"$f":"IF('DC Power Distribution (Desc)'!D141=\"\",\"\",'DC Power Distribution (Desc)'!D141)","v":""},{"$f":"IF('DC Power Distribution (Desc)'!E141=\"\",\"\",INDEX([1]ELECTRIC_DEV_MANUF!$A$2:$A$1500,MATCH(1,([1]ELECTRIC_DEV_MANUF!$B$2:$B$1500='DC Power Distribution (Desc)'!$E141)*([1]ELECTRIC_DEV_MANUF!$D$2:$D$1500=\"DCPWRDIS\"),0),0))","v":""},{"$f":"IF('DC Power Distribution (Desc)'!F141=\"\",\"\",INDEX([1]ELECTRIC_DEV_MODEL!$A$2:$A$1500,MATCH(1,([1]ELECTRIC_DEV_MODEL!$C$2:$C$1500='DC Power Distribution (Desc)'!$E141)*([1]ELECTRIC_DEV_MODEL!$D$2:$D$1500='DC Power Distribution (Desc)'!$F141)*([1]ELECTRIC_DEV_MODEL!$F$2:$F$1500=\"DCPWRDIS\"),0),0))","v":""},{"$f":"IF('DC Power Distribution (Desc)'!G141=\"\",\"\",'DC Power Distribution (Desc)'!G141)","v":""},{"$f":"IF('DC Power Distribution (Desc)'!H141=\"\",\"\",INDEX([1]YES_NO!$A$2:$A$100,MATCH('DC Power Distribution (Desc)'!$H141,[1]!MASTER_YES_NO_DESC[#Data],0),0))","v":""},{"$f":"IF('DC Power Distribution (Desc)'!I141=\"\",\"\",'DC Power Distribution (Desc)'!I141)","v":""},{"$f":"IF('DC Power Distribution (Desc)'!J141=\"\",\"\",'DC Power Distribution (Desc)'!J141)","v":""},{"$f":"IF('DC Power Distribution (Desc)'!K141=\"\",\"\",INDEX([1]YES_NO!$A$2:$A$100,MATCH('DC Power Distribution (Desc)'!$K141,[1]!MASTER_YES_NO_DESC[#Data],0),0))","v":""},{"$f":"IF('DC Power Distribution (Desc)'!L141=\"\",\"\",INDEX([1]DEV_INPUT_VOLTAGE!$A$2:$A$100,MATCH('DC Power Distribution (Desc)'!$L141,[1]!MASTER_DEV_INPUT_VOLTAGE_DESC[#Data],0),0))","v":""},{"$f":"IF('DC Power Distribution (Desc)'!M141=\"\",\"\",INDEX([1]DEV_OUTPUT_VOLTAGE!$A$2:$A$100,MATCH('DC Power Distribution (Desc)'!$M141,[1]!MASTER_DEV_INPUT_VOLTAGE_DESC[#Data],0),0))","v":""},{"$f":"IF('DC Power Distribution (Desc)'!N141=\"\",\"\",'DC Power Distribution (Desc)'!N141)","v":""},{"$f":"IF('DC Power Distribution (Desc)'!O141=\"\",\"\",'DC Power Distribution (Desc)'!O141)","v":""},{"$f":"IF('DC Power Distribution (Desc)'!P141=\"\",\"\",'DC Power Distribution (Desc)'!P141)","v":""},{"$f":"IF('DC Power Distribution (Desc)'!B141=\"\",\"\",\"NA\")","v":""}]
[{"$f":"IF('DC Power Distribution (Desc)'!B142=\"\",\"\",2029)","v":""},{"$f":"IF('DC Power Distribution (Desc)'!B142=\"\",\"\",'DC Power Distribution (Desc)'!B142)","v":""},{"$f":"IF('DC Power Distribution (Desc)'!D142=\"\",\"\",'DC Power Distribution (Desc)'!D142)","v":""},{"$f":"IF('DC Power Distribution (Desc)'!E142=\"\",\"\",INDEX([1]ELECTRIC_DEV_MANUF!$A$2:$A$1500,MATCH(1,([1]ELECTRIC_DEV_MANUF!$B$2:$B$1500='DC Power Distribution (Desc)'!$E142)*([1]ELECTRIC_DEV_MANUF!$D$2:$D$1500=\"DCPWRDIS\"),0),0))","v":""},{"$f":"IF('DC Power Distribution (Desc)'!F142=\"\",\"\",INDEX([1]ELECTRIC_DEV_MODEL!$A$2:$A$1500,MATCH(1,([1]ELECTRIC_DEV_MODEL!$C$2:$C$1500='DC Power Distribution (Desc)'!$E142)*([1]ELECTRIC_DEV_MODEL!$D$2:$D$1500='DC Power Distribution (Desc)'!$F142)*([1]ELECTRIC_DEV_MODEL!$F$2:$F$1500=\"DCPWRDIS\"),0),0))","v":""},{"$f":"IF('DC Power Distribution (Desc)'!G142=\"\",\"\",'DC Power Distribution (Desc)'!G142)","v":""},{"$f":"IF('DC Power Distribution (Desc)'!H142=\"\",\"\",INDEX([1]YES_NO!$A$2:$A$100,MATCH('DC Power Distribution (Desc)'!$H142,[1]!MASTER_YES_NO_DESC[#Data],0),0))","v":""},{"$f":"IF('DC Power Distribution (Desc)'!I142=\"\",\"\",'DC Power Distribution (Desc)'!I142)","v":""},{"$f":"IF('DC Power Distribution (Desc)'!J142=\"\",\"\",'DC Power Distribution (Desc)'!J142)","v":""},{"$f":"IF('DC Power Distribution (Desc)'!K142=\"\",\"\",INDEX([1]YES_NO!$A$2:$A$100,MATCH('DC Power Distribution (Desc)'!$K142,[1]!MASTER_YES_NO_DESC[#Data],0),0))","v":""},{"$f":"IF('DC Power Distribution (Desc)'!L142=\"\",\"\",INDEX([1]DEV_INPUT_VOLTAGE!$A$2:$A$100,MATCH('DC Power Distribution (Desc)'!$L142,[1]!MASTER_DEV_INPUT_VOLTAGE_DESC[#Data],0),0))","v":""},{"$f":"IF('DC Power Distribution (Desc)'!M142=\"\",\"\",INDEX([1]DEV_OUTPUT_VOLTAGE!$A$2:$A$100,MATCH('DC Power Distribution (Desc)'!$M142,[1]!MASTER_DEV_INPUT_VOLTAGE_DESC[#Data],0),0))","v":""},{"$f":"IF('DC Power Distribution (Desc)'!N142=\"\",\"\",'DC Power Distribution (Desc)'!N142)","v":""},{"$f":"IF('DC Power Distribution (Desc)'!O142=\"\",\"\",'DC Power Distribution (Desc)'!O142)","v":""},{"$f":"IF('DC Power Distribution (Desc)'!P142=\"\",\"\",'DC Power Distribution (Desc)'!P142)","v":""},{"$f":"IF('DC Power Distribution (Desc)'!B142=\"\",\"\",\"NA\")","v":""}]
[{"$f":"IF('DC Power Distribution (Desc)'!B143=\"\",\"\",2029)","v":""},{"$f":"IF('DC Power Distribution (Desc)'!B143=\"\",\"\",'DC Power Distribution (Desc)'!B143)","v":""},{"$f":"IF('DC Power Distribution (Desc)'!D143=\"\",\"\",'DC Power Distribution (Desc)'!D143)","v":""},{"$f":"IF('DC Power Distribution (Desc)'!E143=\"\",\"\",INDEX([1]ELECTRIC_DEV_MANUF!$A$2:$A$1500,MATCH(1,([1]ELECTRIC_DEV_MANUF!$B$2:$B$1500='DC Power Distribution (Desc)'!$E143)*([1]ELECTRIC_DEV_MANUF!$D$2:$D$1500=\"DCPWRDIS\"),0),0))","v":""},{"$f":"IF('DC Power Distribution (Desc)'!F143=\"\",\"\",INDEX([1]ELECTRIC_DEV_MODEL!$A$2:$A$1500,MATCH(1,([1]ELECTRIC_DEV_MODEL!$C$2:$C$1500='DC Power Distribution (Desc)'!$E143)*([1]ELECTRIC_DEV_MODEL!$D$2:$D$1500='DC Power Distribution (Desc)'!$F143)*([1]ELECTRIC_DEV_MODEL!$F$2:$F$1500=\"DCPWRDIS\"),0),0))","v":""},{"$f":"IF('DC Power Distribution (Desc)'!G143=\"\",\"\",'DC Power Distribution (Desc)'!G143)","v":""},{"$f":"IF('DC Power Distribution (Desc)'!H143=\"\",\"\",INDEX([1]YES_NO!$A$2:$A$100,MATCH('DC Power Distribution (Desc)'!$H143,[1]!MASTER_YES_NO_DESC[#Data],0),0))","v":""},{"$f":"IF('DC Power Distribution (Desc)'!I143=\"\",\"\",'DC Power Distribution (Desc)'!I143)","v":""},{"$f":"IF('DC Power Distribution (Desc)'!J143=\"\",\"\",'DC Power Distribution (Desc)'!J143)","v":""},{"$f":"IF('DC Power Distribution (Desc)'!K143=\"\",\"\",INDEX([1]YES_NO!$A$2:$A$100,MATCH('DC Power Distribution (Desc)'!$K143,[1]!MASTER_YES_NO_DESC[#Data],0),0))","v":""},{"$f":"IF('DC Power Distribution (Desc)'!L143=\"\",\"\",INDEX([1]DEV_INPUT_VOLTAGE!$A$2:$A$100,MATCH('DC Power Distribution (Desc)'!$L143,[1]!MASTER_DEV_INPUT_VOLTAGE_DESC[#Data],0),0))","v":""},{"$f":"IF('DC Power Distribution (Desc)'!M143=\"\",\"\",INDEX([1]DEV_OUTPUT_VOLTAGE!$A$2:$A$100,MATCH('DC Power Distribution (Desc)'!$M143,[1]!MASTER_DEV_INPUT_VOLTAGE_DESC[#Data],0),0))","v":""},{"$f":"IF('DC Power Distribution (Desc)'!N143=\"\",\"\",'DC Power Distribution (Desc)'!N143)","v":""},{"$f":"IF('DC Power Distribution (Desc)'!O143=\"\",\"\",'DC Power Distribution (Desc)'!O143)","v":""},{"$f":"IF('DC Power Distribution (Desc)'!P143=\"\",\"\",'DC Power Distribution (Desc)'!P143)","v":""},{"$f":"IF('DC Power Distribution (Desc)'!B143=\"\",\"\",\"NA\")","v":""}]
[{"$f":"IF('DC Power Distribution (Desc)'!B144=\"\",\"\",2029)","v":""},{"$f":"IF('DC Power Distribution (Desc)'!B144=\"\",\"\",'DC Power Distribution (Desc)'!B144)","v":""},{"$f":"IF('DC Power Distribution (Desc)'!D144=\"\",\"\",'DC Power Distribution (Desc)'!D144)","v":""},{"$f":"IF('DC Power Distribution (Desc)'!E144=\"\",\"\",INDEX([1]ELECTRIC_DEV_MANUF!$A$2:$A$1500,MATCH(1,([1]ELECTRIC_DEV_MANUF!$B$2:$B$1500='DC Power Distribution (Desc)'!$E144)*([1]ELECTRIC_DEV_MANUF!$D$2:$D$1500=\"DCPWRDIS\"),0),0))","v":""},{"$f":"IF('DC Power Distribution (Desc)'!F144=\"\",\"\",INDEX([1]ELECTRIC_DEV_MODEL!$A$2:$A$1500,MATCH(1,([1]ELECTRIC_DEV_MODEL!$C$2:$C$1500='DC Power Distribution (Desc)'!$E144)*([1]ELECTRIC_DEV_MODEL!$D$2:$D$1500='DC Power Distribution (Desc)'!$F144)*([1]ELECTRIC_DEV_MODEL!$F$2:$F$1500=\"DCPWRDIS\"),0),0))","v":""},{"$f":"IF('DC Power Distribution (Desc)'!G144=\"\",\"\",'DC Power Distribution (Desc)'!G144)","v":""},{"$f":"IF('DC Power Distribution (Desc)'!H144=\"\",\"\",INDEX([1]YES_NO!$A$2:$A$100,MATCH('DC Power Distribution (Desc)'!$H144,[1]!MASTER_YES_NO_DESC[#Data],0),0))","v":""},{"$f":"IF('DC Power Distribution (Desc)'!I144=\"\",\"\",'DC Power Distribution (Desc)'!I144)","v":""},{"$f":"IF('DC Power Distribution (Desc)'!J144=\"\",\"\",'DC Power Distribution (Desc)'!J144)","v":""},{"$f":"IF('DC Power Distribution (Desc)'!K144=\"\",\"\",INDEX([1]YES_NO!$A$2:$A$100,MATCH('DC Power Distribution (Desc)'!$K144,[1]!MASTER_YES_NO_DESC[#Data],0),0))","v":""},{"$f":"IF('DC Power Distribution (Desc)'!L144=\"\",\"\",INDEX([1]DEV_INPUT_VOLTAGE!$A$2:$A$100,MATCH('DC Power Distribution (Desc)'!$L144,[1]!MASTER_DEV_INPUT_VOLTAGE_DESC[#Data],0),0))","v":""},{"$f":"IF('DC Power Distribution (Desc)'!M144=\"\",\"\",INDEX([1]DEV_OUTPUT_VOLTAGE!$A$2:$A$100,MATCH('DC Power Distribution (Desc)'!$M144,[1]!MASTER_DEV_INPUT_VOLTAGE_DESC[#Data],0),0))","v":""},{"$f":"IF('DC Power Distribution (Desc)'!N144=\"\",\"\",'DC Power Distribution (Desc)'!N144)","v":""},{"$f":"IF('DC Power Distribution (Desc)'!O144=\"\",\"\",'DC Power Distribution (Desc)'!O144)","v":""},{"$f":"IF('DC Power Distribution (Desc)'!P144=\"\",\"\",'DC Power Distribution (Desc)'!P144)","v":""},{"$f":"IF('DC Power Distribution (Desc)'!B144=\"\",\"\",\"NA\")","v":""}]
[{"$f":"IF('DC Power Distribution (Desc)'!B145=\"\",\"\",2029)","v":""},{"$f":"IF('DC Power Distribution (Desc)'!B145=\"\",\"\",'DC Power Distribution (Desc)'!B145)","v":""},{"$f":"IF('DC Power Distribution (Desc)'!D145=\"\",\"\",'DC Power Distribution (Desc)'!D145)","v":""},{"$f":"IF('DC Power Distribution (Desc)'!E145=\"\",\"\",INDEX([1]ELECTRIC_DEV_MANUF!$A$2:$A$1500,MATCH(1,([1]ELECTRIC_DEV_MANUF!$B$2:$B$1500='DC Power Distribution (Desc)'!$E145)*([1]ELECTRIC_DEV_MANUF!$D$2:$D$1500=\"DCPWRDIS\"),0),0))","v":""},{"$f":"IF('DC Power Distribution (Desc)'!F145=\"\",\"\",INDEX([1]ELECTRIC_DEV_MODEL!$A$2:$A$1500,MATCH(1,([1]ELECTRIC_DEV_MODEL!$C$2:$C$1500='DC Power Distribution (Desc)'!$E145)*([1]ELECTRIC_DEV_MODEL!$D$2:$D$1500='DC Power Distribution (Desc)'!$F145)*([1]ELECTRIC_DEV_MODEL!$F$2:$F$1500=\"DCPWRDIS\"),0),0))","v":""},{"$f":"IF('DC Power Distribution (Desc)'!G145=\"\",\"\",'DC Power Distribution (Desc)'!G145)","v":""},{"$f":"IF('DC Power Distribution (Desc)'!H145=\"\",\"\",INDEX([1]YES_NO!$A$2:$A$100,MATCH('DC Power Distribution (Desc)'!$H145,[1]!MASTER_YES_NO_DESC[#Data],0),0))","v":""},{"$f":"IF('DC Power Distribution (Desc)'!I145=\"\",\"\",'DC Power Distribution (Desc)'!I145)","v":""},{"$f":"IF('DC Power Distribution (Desc)'!J145=\"\",\"\",'DC Power Distribution (Desc)'!J145)","v":""},{"$f":"IF('DC Power Distribution (Desc)'!K145=\"\",\"\",INDEX([1]YES_NO!$A$2:$A$100,MATCH('DC Power Distribution (Desc)'!$K145,[1]!MASTER_YES_NO_DESC[#Data],0),0))","v":""},{"$f":"IF('DC Power Distribution (Desc)'!L145=\"\",\"\",INDEX([1]DEV_INPUT_VOLTAGE!$A$2:$A$100,MATCH('DC Power Distribution (Desc)'!$L145,[1]!MASTER_DEV_INPUT_VOLTAGE_DESC[#Data],0),0))","v":""},{"$f":"IF('DC Power Distribution (Desc)'!M145=\"\",\"\",INDEX([1]DEV_OUTPUT_VOLTAGE!$A$2:$A$100,MATCH('DC Power Distribution (Desc)'!$M145,[1]!MASTER_DEV_INPUT_VOLTAGE_DESC[#Data],0),0))","v":""},{"$f":"IF('DC Power Distribution (Desc)'!N145=\"\",\"\",'DC Power Distribution (Desc)'!N145)","v":""},{"$f":"IF('DC Power Distribution (Desc)'!O145=\"\",\"\",'DC Power Distribution (Desc)'!O145)","v":""},{"$f":"IF('DC Power Distribution (Desc)'!P145=\"\",\"\",'DC Power Distribution (Desc)'!P145)","v":""},{"$f":"IF('DC Power Distribution (Desc)'!B145=\"\",\"\",\"NA\")","v":""}]
[{"$f":"IF('DC Power Distribution (Desc)'!B146=\"\",\"\",2029)","v":""},{"$f":"IF('DC Power Distribution (Desc)'!B146=\"\",\"\",'DC Power Distribution (Desc)'!B146)","v":""},{"$f":"IF('DC Power Distribution (Desc)'!D146=\"\",\"\",'DC Power Distribution (Desc)'!D146)","v":""},{"$f":"IF('DC Power Distribution (Desc)'!E146=\"\",\"\",INDEX([1]ELECTRIC_DEV_MANUF!$A$2:$A$1500,MATCH(1,([1]ELECTRIC_DEV_MANUF!$B$2:$B$1500='DC Power Distribution (Desc)'!$E146)*([1]ELECTRIC_DEV_MANUF!$D$2:$D$1500=\"DCPWRDIS\"),0),0))","v":""},{"$f":"IF('DC Power Distribution (Desc)'!F146=\"\",\"\",INDEX([1]ELECTRIC_DEV_MODEL!$A$2:$A$1500,MATCH(1,([1]ELECTRIC_DEV_MODEL!$C$2:$C$1500='DC Power Distribution (Desc)'!$E146)*([1]ELECTRIC_DEV_MODEL!$D$2:$D$1500='DC Power Distribution (Desc)'!$F146)*([1]ELECTRIC_DEV_MODEL!$F$2:$F$1500=\"DCPWRDIS\"),0),0))","v":""},{"$f":"IF('DC Power Distribution (Desc)'!G146=\"\",\"\",'DC Power Distribution (Desc)'!G146)","v":""},{"$f":"IF('DC Power Distribution (Desc)'!H146=\"\",\"\",INDEX([1]YES_NO!$A$2:$A$100,MATCH('DC Power Distribution (Desc)'!$H146,[1]!MASTER_YES_NO_DESC[#Data],0),0))","v":""},{"$f":"IF('DC Power Distribution (Desc)'!I146=\"\",\"\",'DC Power Distribution (Desc)'!I146)","v":""},{"$f":"IF('DC Power Distribution (Desc)'!J146=\"\",\"\",'DC Power Distribution (Desc)'!J146)","v":""},{"$f":"IF('DC Power Distribution (Desc)'!K146=\"\",\"\",INDEX([1]YES_NO!$A$2:$A$100,MATCH('DC Power Distribution (Desc)'!$K146,[1]!MASTER_YES_NO_DESC[#Data],0),0))","v":""},{"$f":"IF('DC Power Distribution (Desc)'!L146=\"\",\"\",INDEX([1]DEV_INPUT_VOLTAGE!$A$2:$A$100,MATCH('DC Power Distribution (Desc)'!$L146,[1]!MASTER_DEV_INPUT_VOLTAGE_DESC[#Data],0),0))","v":""},{"$f":"IF('DC Power Distribution (Desc)'!M146=\"\",\"\",INDEX([1]DEV_OUTPUT_VOLTAGE!$A$2:$A$100,MATCH('DC Power Distribution (Desc)'!$M146,[1]!MASTER_DEV_INPUT_VOLTAGE_DESC[#Data],0),0))","v":""},{"$f":"IF('DC Power Distribution (Desc)'!N146=\"\",\"\",'DC Power Distribution (Desc)'!N146)","v":""},{"$f":"IF('DC Power Distribution (Desc)'!O146=\"\",\"\",'DC Power Distribution (Desc)'!O146)","v":""},{"$f":"IF('DC Power Distribution (Desc)'!P146=\"\",\"\",'DC Power Distribution (Desc)'!P146)","v":""},{"$f":"IF('DC Power Distribution (Desc)'!B146=\"\",\"\",\"NA\")","v":""}]
[{"$f":"IF('DC Power Distribution (Desc)'!B147=\"\",\"\",2029)","v":""},{"$f":"IF('DC Power Distribution (Desc)'!B147=\"\",\"\",'DC Power Distribution (Desc)'!B147)","v":""},{"$f":"IF('DC Power Distribution (Desc)'!D147=\"\",\"\",'DC Power Distribution (Desc)'!D147)","v":""},{"$f":"IF('DC Power Distribution (Desc)'!E147=\"\",\"\",INDEX([1]ELECTRIC_DEV_MANUF!$A$2:$A$1500,MATCH(1,([1]ELECTRIC_DEV_MANUF!$B$2:$B$1500='DC Power Distribution (Desc)'!$E147)*([1]ELECTRIC_DEV_MANUF!$D$2:$D$1500=\"DCPWRDIS\"),0),0))","v":""},{"$f":"IF('DC Power Distribution (Desc)'!F147=\"\",\"\",INDEX([1]ELECTRIC_DEV_MODEL!$A$2:$A$1500,MATCH(1,([1]ELECTRIC_DEV_MODEL!$C$2:$C$1500='DC Power Distribution (Desc)'!$E147)*([1]ELECTRIC_DEV_MODEL!$D$2:$D$1500='DC Power Distribution (Desc)'!$F147)*([1]ELECTRIC_DEV_MODEL!$F$2:$F$1500=\"DCPWRDIS\"),0),0))","v":""},{"$f":"IF('DC Power Distribution (Desc)'!G147=\"\",\"\",'DC Power Distribution (Desc)'!G147)","v":""},{"$f":"IF('DC Power Distribution (Desc)'!H147=\"\",\"\",INDEX([1]YES_NO!$A$2:$A$100,MATCH('DC Power Distribution (Desc)'!$H147,[1]!MASTER_YES_NO_DESC[#Data],0),0))","v":""},{"$f":"IF('DC Power Distribution (Desc)'!I147=\"\",\"\",'DC Power Distribution (Desc)'!I147)","v":""},{"$f":"IF('DC Power Distribution (Desc)'!J147=\"\",\"\",'DC Power Distribution (Desc)'!J147)","v":""},{"$f":"IF('DC Power Distribution (Desc)'!K147=\"\",\"\",INDEX([1]YES_NO!$A$2:$A$100,MATCH('DC Power Distribution (Desc)'!$K147,[1]!MASTER_YES_NO_DESC[#Data],0),0))","v":""},{"$f":"IF('DC Power Distribution (Desc)'!L147=\"\",\"\",INDEX([1]DEV_INPUT_VOLTAGE!$A$2:$A$100,MATCH('DC Power Distribution (Desc)'!$L147,[1]!MASTER_DEV_INPUT_VOLTAGE_DESC[#Data],0),0))","v":""},{"$f":"IF('DC Power Distribution (Desc)'!M147=\"\",\"\",INDEX([1]DEV_OUTPUT_VOLTAGE!$A$2:$A$100,MATCH('DC Power Distribution (Desc)'!$M147,[1]!MASTER_DEV_INPUT_VOLTAGE_DESC[#Data],0),0))","v":""},{"$f":"IF('DC Power Distribution (Desc)'!N147=\"\",\"\",'DC Power Distribution (Desc)'!N147)","v":""},{"$f":"IF('DC Power Distribution (Desc)'!O147=\"\",\"\",'DC Power Distribution (Desc)'!O147)","v":""},{"$f":"IF('DC Power Distribution (Desc)'!P147=\"\",\"\",'DC Power Distribution (Desc)'!P147)","v":""},{"$f":"IF('DC Power Distribution (Desc)'!B147=\"\",\"\",\"NA\")","v":""}]
[{"$f":"IF('DC Power Distribution (Desc)'!B148=\"\",\"\",2029)","v":""},{"$f":"IF('DC Power Distribution (Desc)'!B148=\"\",\"\",'DC Power Distribution (Desc)'!B148)","v":""},{"$f":"IF('DC Power Distribution (Desc)'!D148=\"\",\"\",'DC Power Distribution (Desc)'!D148)","v":""},{"$f":"IF('DC Power Distribution (Desc)'!E148=\"\",\"\",INDEX([1]ELECTRIC_DEV_MANUF!$A$2:$A$1500,MATCH(1,([1]ELECTRIC_DEV_MANUF!$B$2:$B$1500='DC Power Distribution (Desc)'!$E148)*([1]ELECTRIC_DEV_MANUF!$D$2:$D$1500=\"DCPWRDIS\"),0),0))","v":""},{"$f":"IF('DC Power Distribution (Desc)'!F148=\"\",\"\",INDEX([1]ELECTRIC_DEV_MODEL!$A$2:$A$1500,MATCH(1,([1]ELECTRIC_DEV_MODEL!$C$2:$C$1500='DC Power Distribution (Desc)'!$E148)*([1]ELECTRIC_DEV_MODEL!$D$2:$D$1500='DC Power Distribution (Desc)'!$F148)*([1]ELECTRIC_DEV_MODEL!$F$2:$F$1500=\"DCPWRDIS\"),0),0))","v":""},{"$f":"IF('DC Power Distribution (Desc)'!G148=\"\",\"\",'DC Power Distribution (Desc)'!G148)","v":""},{"$f":"IF('DC Power Distribution (Desc)'!H148=\"\",\"\",INDEX([1]YES_NO!$A$2:$A$100,MATCH('DC Power Distribution (Desc)'!$H148,[1]!MASTER_YES_NO_DESC[#Data],0),0))","v":""},{"$f":"IF('DC Power Distribution (Desc)'!I148=\"\",\"\",'DC Power Distribution (Desc)'!I148)","v":""},{"$f":"IF('DC Power Distribution (Desc)'!J148=\"\",\"\",'DC Power Distribution (Desc)'!J148)","v":""},{"$f":"IF('DC Power Distribution (Desc)'!K148=\"\",\"\",INDEX([1]YES_NO!$A$2:$A$100,MATCH('DC Power Distribution (Desc)'!$K148,[1]!MASTER_YES_NO_DESC[#Data],0),0))","v":""},{"$f":"IF('DC Power Distribution (Desc)'!L148=\"\",\"\",INDEX([1]DEV_INPUT_VOLTAGE!$A$2:$A$100,MATCH('DC Power Distribution (Desc)'!$L148,[1]!MASTER_DEV_INPUT_VOLTAGE_DESC[#Data],0),0))","v":""},{"$f":"IF('DC Power Distribution (Desc)'!M148=\"\",\"\",INDEX([1]DEV_OUTPUT_VOLTAGE!$A$2:$A$100,MATCH('DC Power Distribution (Desc)'!$M148,[1]!MASTER_DEV_INPUT_VOLTAGE_DESC[#Data],0),0))","v":""},{"$f":"IF('DC Power Distribution (Desc)'!N148=\"\",\"\",'DC Power Distribution (Desc)'!N148)","v":""},{"$f":"IF('DC Power Distribution (Desc)'!O148=\"\",\"\",'DC Power Distribution (Desc)'!O148)","v":""},{"$f":"IF('DC Power Distribution (Desc)'!P148=\"\",\"\",'DC Power Distribution (Desc)'!P148)","v":""},{"$f":"IF('DC Power Distribution (Desc)'!B148=\"\",\"\",\"NA\")","v":""}]
[{"$f":"IF('DC Power Distribution (Desc)'!B149=\"\",\"\",2029)","v":""},{"$f":"IF('DC Power Distribution (Desc)'!B149=\"\",\"\",'DC Power Distribution (Desc)'!B149)","v":""},{"$f":"IF('DC Power Distribution (Desc)'!D149=\"\",\"\",'DC Power Distribution (Desc)'!D149)","v":""},{"$f":"IF('DC Power Distribution (Desc)'!E149=\"\",\"\",INDEX([1]ELECTRIC_DEV_MANUF!$A$2:$A$1500,MATCH(1,([1]ELECTRIC_DEV_MANUF!$B$2:$B$1500='DC Power Distribution (Desc)'!$E149)*([1]ELECTRIC_DEV_MANUF!$D$2:$D$1500=\"DCPWRDIS\"),0),0))","v":""},{"$f":"IF('DC Power Distribution (Desc)'!F149=\"\",\"\",INDEX([1]ELECTRIC_DEV_MODEL!$A$2:$A$1500,MATCH(1,([1]ELECTRIC_DEV_MODEL!$C$2:$C$1500='DC Power Distribution (Desc)'!$E149)*([1]ELECTRIC_DEV_MODEL!$D$2:$D$1500='DC Power Distribution (Desc)'!$F149)*([1]ELECTRIC_DEV_MODEL!$F$2:$F$1500=\"DCPWRDIS\"),0),0))","v":""},{"$f":"IF('DC Power Distribution (Desc)'!G149=\"\",\"\",'DC Power Distribution (Desc)'!G149)","v":""},{"$f":"IF('DC Power Distribution (Desc)'!H149=\"\",\"\",INDEX([1]YES_NO!$A$2:$A$100,MATCH('DC Power Distribution (Desc)'!$H149,[1]!MASTER_YES_NO_DESC[#Data],0),0))","v":""},{"$f":"IF('DC Power Distribution (Desc)'!I149=\"\",\"\",'DC Power Distribution (Desc)'!I149)","v":""},{"$f":"IF('DC Power Distribution (Desc)'!J149=\"\",\"\",'DC Power Distribution (Desc)'!J149)","v":""},{"$f":"IF('DC Power Distribution (Desc)'!K149=\"\",\"\",INDEX([1]YES_NO!$A$2:$A$100,MATCH('DC Power Distribution (Desc)'!$K149,[1]!MASTER_YES_NO_DESC[#Data],0),0))","v":""},{"$f":"IF('DC Power Distribution (Desc)'!L149=\"\",\"\",INDEX([1]DEV_INPUT_VOLTAGE!$A$2:$A$100,MATCH('DC Power Distribution (Desc)'!$L149,[1]!MASTER_DEV_INPUT_VOLTAGE_DESC[#Data],0),0))","v":""},{"$f":"IF('DC Power Distribution (Desc)'!M149=\"\",\"\",INDEX([1]DEV_OUTPUT_VOLTAGE!$A$2:$A$100,MATCH('DC Power Distribution (Desc)'!$M149,[1]!MASTER_DEV_INPUT_VOLTAGE_DESC[#Data],0),0))","v":""},{"$f":"IF('DC Power Distribution (Desc)'!N149=\"\",\"\",'DC Power Distribution (Desc)'!N149)","v":""},{"$f":"IF('DC Power Distribution (Desc)'!O149=\"\",\"\",'DC Power Distribution (Desc)'!O149)","v":""},{"$f":"IF('DC Power Distribution (Desc)'!P149=\"\",\"\",'DC Power Distribution (Desc)'!P149)","v":""},{"$f":"IF('DC Power Distribution (Desc)'!B149=\"\",\"\",\"NA\")","v":""}]
[{"$f":"IF('DC Power Distribution (Desc)'!B150=\"\",\"\",2029)","v":""},{"$f":"IF('DC Power Distribution (Desc)'!B150=\"\",\"\",'DC Power Distribution (Desc)'!B150)","v":""},{"$f":"IF('DC Power Distribution (Desc)'!D150=\"\",\"\",'DC Power Distribution (Desc)'!D150)","v":""},{"$f":"IF('DC Power Distribution (Desc)'!E150=\"\",\"\",INDEX([1]ELECTRIC_DEV_MANUF!$A$2:$A$1500,MATCH(1,([1]ELECTRIC_DEV_MANUF!$B$2:$B$1500='DC Power Distribution (Desc)'!$E150)*([1]ELECTRIC_DEV_MANUF!$D$2:$D$1500=\"DCPWRDIS\"),0),0))","v":""},{"$f":"IF('DC Power Distribution (Desc)'!F150=\"\",\"\",INDEX([1]ELECTRIC_DEV_MODEL!$A$2:$A$1500,MATCH(1,([1]ELECTRIC_DEV_MODEL!$C$2:$C$1500='DC Power Distribution (Desc)'!$E150)*([1]ELECTRIC_DEV_MODEL!$D$2:$D$1500='DC Power Distribution (Desc)'!$F150)*([1]ELECTRIC_DEV_MODEL!$F$2:$F$1500=\"DCPWRDIS\"),0),0))","v":""},{"$f":"IF('DC Power Distribution (Desc)'!G150=\"\",\"\",'DC Power Distribution (Desc)'!G150)","v":""},{"$f":"IF('DC Power Distribution (Desc)'!H150=\"\",\"\",INDEX([1]YES_NO!$A$2:$A$100,MATCH('DC Power Distribution (Desc)'!$H150,[1]!MASTER_YES_NO_DESC[#Data],0),0))","v":""},{"$f":"IF('DC Power Distribution (Desc)'!I150=\"\",\"\",'DC Power Distribution (Desc)'!I150)","v":""},{"$f":"IF('DC Power Distribution (Desc)'!J150=\"\",\"\",'DC Power Distribution (Desc)'!J150)","v":""},{"$f":"IF('DC Power Distribution (Desc)'!K150=\"\",\"\",INDEX([1]YES_NO!$A$2:$A$100,MATCH('DC Power Distribution (Desc)'!$K150,[1]!MASTER_YES_NO_DESC[#Data],0),0))","v":""},{"$f":"IF('DC Power Distribution (Desc)'!L150=\"\",\"\",INDEX([1]DEV_INPUT_VOLTAGE!$A$2:$A$100,MATCH('DC Power Distribution (Desc)'!$L150,[1]!MASTER_DEV_INPUT_VOLTAGE_DESC[#Data],0),0))","v":""},{"$f":"IF('DC Power Distribution (Desc)'!M150=\"\",\"\",INDEX([1]DEV_OUTPUT_VOLTAGE!$A$2:$A$100,MATCH('DC Power Distribution (Desc)'!$M150,[1]!MASTER_DEV_INPUT_VOLTAGE_DESC[#Data],0),0))","v":""},{"$f":"IF('DC Power Distribution (Desc)'!N150=\"\",\"\",'DC Power Distribution (Desc)'!N150)","v":""},{"$f":"IF('DC Power Distribution (Desc)'!O150=\"\",\"\",'DC Power Distribution (Desc)'!O150)","v":""},{"$f":"IF('DC Power Distribution (Desc)'!P150=\"\",\"\",'DC Power Distribution (Desc)'!P150)","v":""},{"$f":"IF('DC Power Distribution (Desc)'!B150=\"\",\"\",\"NA\")","v":""}]
[{"$f":"IF('DC Power Distribution (Desc)'!B151=\"\",\"\",2029)","v":""},{"$f":"IF('DC Power Distribution (Desc)'!B151=\"\",\"\",'DC Power Distribution (Desc)'!B151)","v":""},{"$f":"IF('DC Power Distribution (Desc)'!D151=\"\",\"\",'DC Power Distribution (Desc)'!D151)","v":""},{"$f":"IF('DC Power Distribution (Desc)'!E151=\"\",\"\",INDEX([1]ELECTRIC_DEV_MANUF!$A$2:$A$1500,MATCH(1,([1]ELECTRIC_DEV_MANUF!$B$2:$B$1500='DC Power Distribution (Desc)'!$E151)*([1]ELECTRIC_DEV_MANUF!$D$2:$D$1500=\"DCPWRDIS\"),0),0))","v":""},{"$f":"IF('DC Power Distribution (Desc)'!F151=\"\",\"\",INDEX([1]ELECTRIC_DEV_MODEL!$A$2:$A$1500,MATCH(1,([1]ELECTRIC_DEV_MODEL!$C$2:$C$1500='DC Power Distribution (Desc)'!$E151)*([1]ELECTRIC_DEV_MODEL!$D$2:$D$1500='DC Power Distribution (Desc)'!$F151)*([1]ELECTRIC_DEV_MODEL!$F$2:$F$1500=\"DCPWRDIS\"),0),0))","v":""},{"$f":"IF('DC Power Distribution (Desc)'!G151=\"\",\"\",'DC Power Distribution (Desc)'!G151)","v":""},{"$f":"IF('DC Power Distribution (Desc)'!H151=\"\",\"\",INDEX([1]YES_NO!$A$2:$A$100,MATCH('DC Power Distribution (Desc)'!$H151,[1]!MASTER_YES_NO_DESC[#Data],0),0))","v":""},{"$f":"IF('DC Power Distribution (Desc)'!I151=\"\",\"\",'DC Power Distribution (Desc)'!I151)","v":""},{"$f":"IF('DC Power Distribution (Desc)'!J151=\"\",\"\",'DC Power Distribution (Desc)'!J151)","v":""},{"$f":"IF('DC Power Distribution (Desc)'!K151=\"\",\"\",INDEX([1]YES_NO!$A$2:$A$100,MATCH('DC Power Distribution (Desc)'!$K151,[1]!MASTER_YES_NO_DESC[#Data],0),0))","v":""},{"$f":"IF('DC Power Distribution (Desc)'!L151=\"\",\"\",INDEX([1]DEV_INPUT_VOLTAGE!$A$2:$A$100,MATCH('DC Power Distribution (Desc)'!$L151,[1]!MASTER_DEV_INPUT_VOLTAGE_DESC[#Data],0),0))","v":""},{"$f":"IF('DC Power Distribution (Desc)'!M151=\"\",\"\",INDEX([1]DEV_OUTPUT_VOLTAGE!$A$2:$A$100,MATCH('DC Power Distribution (Desc)'!$M151,[1]!MASTER_DEV_INPUT_VOLTAGE_DESC[#Data],0),0))","v":""},{"$f":"IF('DC Power Distribution (Desc)'!N151=\"\",\"\",'DC Power Distribution (Desc)'!N151)","v":""},{"$f":"IF('DC Power Distribution (Desc)'!O151=\"\",\"\",'DC Power Distribution (Desc)'!O151)","v":""},{"$f":"IF('DC Power Distribution (Desc)'!P151=\"\",\"\",'DC Power Distribution (Desc)'!P151)","v":""},{"$f":"IF('DC Power Distribution (Desc)'!B151=\"\",\"\",\"NA\")","v":""}]
[{"$f":"IF('DC Power Distribution (Desc)'!B152=\"\",\"\",2029)","v":""},{"$f":"IF('DC Power Distribution (Desc)'!B152=\"\",\"\",'DC Power Distribution (Desc)'!B152)","v":""},{"$f":"IF('DC Power Distribution (Desc)'!D152=\"\",\"\",'DC Power Distribution (Desc)'!D152)","v":""},{"$f":"IF('DC Power Distribution (Desc)'!E152=\"\",\"\",INDEX([1]ELECTRIC_DEV_MANUF!$A$2:$A$1500,MATCH(1,([1]ELECTRIC_DEV_MANUF!$B$2:$B$1500='DC Power Distribution (Desc)'!$E152)*([1]ELECTRIC_DEV_MANUF!$D$2:$D$1500=\"DCPWRDIS\"),0),0))","v":""},{"$f":"IF('DC Power Distribution (Desc)'!F152=\"\",\"\",INDEX([1]ELECTRIC_DEV_MODEL!$A$2:$A$1500,MATCH(1,([1]ELECTRIC_DEV_MODEL!$C$2:$C$1500='DC Power Distribution (Desc)'!$E152)*([1]ELECTRIC_DEV_MODEL!$D$2:$D$1500='DC Power Distribution (Desc)'!$F152)*([1]ELECTRIC_DEV_MODEL!$F$2:$F$1500=\"DCPWRDIS\"),0),0))","v":""},{"$f":"IF('DC Power Distribution (Desc)'!G152=\"\",\"\",'DC Power Distribution (Desc)'!G152)","v":""},{"$f":"IF('DC Power Distribution (Desc)'!H152=\"\",\"\",INDEX([1]YES_NO!$A$2:$A$100,MATCH('DC Power Distribution (Desc)'!$H152,[1]!MASTER_YES_NO_DESC[#Data],0),0))","v":""},{"$f":"IF('DC Power Distribution (Desc)'!I152=\"\",\"\",'DC Power Distribution (Desc)'!I152)","v":""},{"$f":"IF('DC Power Distribution (Desc)'!J152=\"\",\"\",'DC Power Distribution (Desc)'!J152)","v":""},{"$f":"IF('DC Power Distribution (Desc)'!K152=\"\",\"\",INDEX([1]YES_NO!$A$2:$A$100,MATCH('DC Power Distribution (Desc)'!$K152,[1]!MASTER_YES_NO_DESC[#Data],0),0))","v":""},{"$f":"IF('DC Power Distribution (Desc)'!L152=\"\",\"\",INDEX([1]DEV_INPUT_VOLTAGE!$A$2:$A$100,MATCH('DC Power Distribution (Desc)'!$L152,[1]!MASTER_DEV_INPUT_VOLTAGE_DESC[#Data],0),0))","v":""},{"$f":"IF('DC Power Distribution (Desc)'!M152=\"\",\"\",INDEX([1]DEV_OUTPUT_VOLTAGE!$A$2:$A$100,MATCH('DC Power Distribution (Desc)'!$M152,[1]!MASTER_DEV_INPUT_VOLTAGE_DESC[#Data],0),0))","v":""},{"$f":"IF('DC Power Distribution (Desc)'!N152=\"\",\"\",'DC Power Distribution (Desc)'!N152)","v":""},{"$f":"IF('DC Power Distribution (Desc)'!O152=\"\",\"\",'DC Power Distribution (Desc)'!O152)","v":""},{"$f":"IF('DC Power Distribution (Desc)'!P152=\"\",\"\",'DC Power Distribution (Desc)'!P152)","v":""},{"$f":"IF('DC Power Distribution (Desc)'!B152=\"\",\"\",\"NA\")","v":""}]
[{"$f":"IF('DC Power Distribution (Desc)'!B153=\"\",\"\",2029)","v":""},{"$f":"IF('DC Power Distribution (Desc)'!B153=\"\",\"\",'DC Power Distribution (Desc)'!B153)","v":""},{"$f":"IF('DC Power Distribution (Desc)'!D153=\"\",\"\",'DC Power Distribution (Desc)'!D153)","v":""},{"$f":"IF('DC Power Distribution (Desc)'!E153=\"\",\"\",INDEX([1]ELECTRIC_DEV_MANUF!$A$2:$A$1500,MATCH(1,([1]ELECTRIC_DEV_MANUF!$B$2:$B$1500='DC Power Distribution (Desc)'!$E153)*([1]ELECTRIC_DEV_MANUF!$D$2:$D$1500=\"DCPWRDIS\"),0),0))","v":""},{"$f":"IF('DC Power Distribution (Desc)'!F153=\"\",\"\",INDEX([1]ELECTRIC_DEV_MODEL!$A$2:$A$1500,MATCH(1,([1]ELECTRIC_DEV_MODEL!$C$2:$C$1500='DC Power Distribution (Desc)'!$E153)*([1]ELECTRIC_DEV_MODEL!$D$2:$D$1500='DC Power Distribution (Desc)'!$F153)*([1]ELECTRIC_DEV_MODEL!$F$2:$F$1500=\"DCPWRDIS\"),0),0))","v":""},{"$f":"IF('DC Power Distribution (Desc)'!G153=\"\",\"\",'DC Power Distribution (Desc)'!G153)","v":""},{"$f":"IF('DC Power Distribution (Desc)'!H153=\"\",\"\",INDEX([1]YES_NO!$A$2:$A$100,MATCH('DC Power Distribution (Desc)'!$H153,[1]!MASTER_YES_NO_DESC[#Data],0),0))","v":""},{"$f":"IF('DC Power Distribution (Desc)'!I153=\"\",\"\",'DC Power Distribution (Desc)'!I153)","v":""},{"$f":"IF('DC Power Distribution (Desc)'!J153=\"\",\"\",'DC Power Distribution (Desc)'!J153)","v":""},{"$f":"IF('DC Power Distribution (Desc)'!K153=\"\",\"\",INDEX([1]YES_NO!$A$2:$A$100,MATCH('DC Power Distribution (Desc)'!$K153,[1]!MASTER_YES_NO_DESC[#Data],0),0))","v":""},{"$f":"IF('DC Power Distribution (Desc)'!L153=\"\",\"\",INDEX([1]DEV_INPUT_VOLTAGE!$A$2:$A$100,MATCH('DC Power Distribution (Desc)'!$L153,[1]!MASTER_DEV_INPUT_VOLTAGE_DESC[#Data],0),0))","v":""},{"$f":"IF('DC Power Distribution (Desc)'!M153=\"\",\"\",INDEX([1]DEV_OUTPUT_VOLTAGE!$A$2:$A$100,MATCH('DC Power Distribution (Desc)'!$M153,[1]!MASTER_DEV_INPUT_VOLTAGE_DESC[#Data],0),0))","v":""},{"$f":"IF('DC Power Distribution (Desc)'!N153=\"\",\"\",'DC Power Distribution (Desc)'!N153)","v":""},{"$f":"IF('DC Power Distribution (Desc)'!O153=\"\",\"\",'DC Power Distribution (Desc)'!O153)","v":""},{"$f":"IF('DC Power Distribution (Desc)'!P153=\"\",\"\",'DC Power Distribution (Desc)'!P153)","v":""},{"$f":"IF('DC Power Distribution (Desc)'!B153=\"\",\"\",\"NA\")","v":""}]
[{"$f":"IF('DC Power Distribution (Desc)'!B154=\"\",\"\",2029)","v":""},{"$f":"IF('DC Power Distribution (Desc)'!B154=\"\",\"\",'DC Power Distribution (Desc)'!B154)","v":""},{"$f":"IF('DC Power Distribution (Desc)'!D154=\"\",\"\",'DC Power Distribution (Desc)'!D154)","v":""},{"$f":"IF('DC Power Distribution (Desc)'!E154=\"\",\"\",INDEX([1]ELECTRIC_DEV_MANUF!$A$2:$A$1500,MATCH(1,([1]ELECTRIC_DEV_MANUF!$B$2:$B$1500='DC Power Distribution (Desc)'!$E154)*([1]ELECTRIC_DEV_MANUF!$D$2:$D$1500=\"DCPWRDIS\"),0),0))","v":""},{"$f":"IF('DC Power Distribution (Desc)'!F154=\"\",\"\",INDEX([1]ELECTRIC_DEV_MODEL!$A$2:$A$1500,MATCH(1,([1]ELECTRIC_DEV_MODEL!$C$2:$C$1500='DC Power Distribution (Desc)'!$E154)*([1]ELECTRIC_DEV_MODEL!$D$2:$D$1500='DC Power Distribution (Desc)'!$F154)*([1]ELECTRIC_DEV_MODEL!$F$2:$F$1500=\"DCPWRDIS\"),0),0))","v":""},{"$f":"IF('DC Power Distribution (Desc)'!G154=\"\",\"\",'DC Power Distribution (Desc)'!G154)","v":""},{"$f":"IF('DC Power Distribution (Desc)'!H154=\"\",\"\",INDEX([1]YES_NO!$A$2:$A$100,MATCH('DC Power Distribution (Desc)'!$H154,[1]!MASTER_YES_NO_DESC[#Data],0),0))","v":""},{"$f":"IF('DC Power Distribution (Desc)'!I154=\"\",\"\",'DC Power Distribution (Desc)'!I154)","v":""},{"$f":"IF('DC Power Distribution (Desc)'!J154=\"\",\"\",'DC Power Distribution (Desc)'!J154)","v":""},{"$f":"IF('DC Power Distribution (Desc)'!K154=\"\",\"\",INDEX([1]YES_NO!$A$2:$A$100,MATCH('DC Power Distribution (Desc)'!$K154,[1]!MASTER_YES_NO_DESC[#Data],0),0))","v":""},{"$f":"IF('DC Power Distribution (Desc)'!L154=\"\",\"\",INDEX([1]DEV_INPUT_VOLTAGE!$A$2:$A$100,MATCH('DC Power Distribution (Desc)'!$L154,[1]!MASTER_DEV_INPUT_VOLTAGE_DESC[#Data],0),0))","v":""},{"$f":"IF('DC Power Distribution (Desc)'!M154=\"\",\"\",INDEX([1]DEV_OUTPUT_VOLTAGE!$A$2:$A$100,MATCH('DC Power Distribution (Desc)'!$M154,[1]!MASTER_DEV_INPUT_VOLTAGE_DESC[#Data],0),0))","v":""},{"$f":"IF('DC Power Distribution (Desc)'!N154=\"\",\"\",'DC Power Distribution (Desc)'!N154)","v":""},{"$f":"IF('DC Power Distribution (Desc)'!O154=\"\",\"\",'DC Power Distribution (Desc)'!O154)","v":""},{"$f":"IF('DC Power Distribution (Desc)'!P154=\"\",\"\",'DC Power Distribution (Desc)'!P154)","v":""},{"$f":"IF('DC Power Distribution (Desc)'!B154=\"\",\"\",\"NA\")","v":""}]
[{"$f":"IF('DC Power Distribution (Desc)'!B155=\"\",\"\",2029)","v":""},{"$f":"IF('DC Power Distribution (Desc)'!B155=\"\",\"\",'DC Power Distribution (Desc)'!B155)","v":""},{"$f":"IF('DC Power Distribution (Desc)'!D155=\"\",\"\",'DC Power Distribution (Desc)'!D155)","v":""},{"$f":"IF('DC Power Distribution (Desc)'!E155=\"\",\"\",INDEX([1]ELECTRIC_DEV_MANUF!$A$2:$A$1500,MATCH(1,([1]ELECTRIC_DEV_MANUF!$B$2:$B$1500='DC Power Distribution (Desc)'!$E155)*([1]ELECTRIC_DEV_MANUF!$D$2:$D$1500=\"DCPWRDIS\"),0),0))","v":""},{"$f":"IF('DC Power Distribution (Desc)'!F155=\"\",\"\",INDEX([1]ELECTRIC_DEV_MODEL!$A$2:$A$1500,MATCH(1,([1]ELECTRIC_DEV_MODEL!$C$2:$C$1500='DC Power Distribution (Desc)'!$E155)*([1]ELECTRIC_DEV_MODEL!$D$2:$D$1500='DC Power Distribution (Desc)'!$F155)*([1]ELECTRIC_DEV_MODEL!$F$2:$F$1500=\"DCPWRDIS\"),0),0))","v":""},{"$f":"IF('DC Power Distribution (Desc)'!G155=\"\",\"\",'DC Power Distribution (Desc)'!G155)","v":""},{"$f":"IF('DC Power Distribution (Desc)'!H155=\"\",\"\",INDEX([1]YES_NO!$A$2:$A$100,MATCH('DC Power Distribution (Desc)'!$H155,[1]!MASTER_YES_NO_DESC[#Data],0),0))","v":""},{"$f":"IF('DC Power Distribution (Desc)'!I155=\"\",\"\",'DC Power Distribution (Desc)'!I155)","v":""},{"$f":"IF('DC Power Distribution (Desc)'!J155=\"\",\"\",'DC Power Distribution (Desc)'!J155)","v":""},{"$f":"IF('DC Power Distribution (Desc)'!K155=\"\",\"\",INDEX([1]YES_NO!$A$2:$A$100,MATCH('DC Power Distribution (Desc)'!$K155,[1]!MASTER_YES_NO_DESC[#Data],0),0))","v":""},{"$f":"IF('DC Power Distribution (Desc)'!L155=\"\",\"\",INDEX([1]DEV_INPUT_VOLTAGE!$A$2:$A$100,MATCH('DC Power Distribution (Desc)'!$L155,[1]!MASTER_DEV_INPUT_VOLTAGE_DESC[#Data],0),0))","v":""},{"$f":"IF('DC Power Distribution (Desc)'!M155=\"\",\"\",INDEX([1]DEV_OUTPUT_VOLTAGE!$A$2:$A$100,MATCH('DC Power Distribution (Desc)'!$M155,[1]!MASTER_DEV_INPUT_VOLTAGE_DESC[#Data],0),0))","v":""},{"$f":"IF('DC Power Distribution (Desc)'!N155=\"\",\"\",'DC Power Distribution (Desc)'!N155)","v":""},{"$f":"IF('DC Power Distribution (Desc)'!O155=\"\",\"\",'DC Power Distribution (Desc)'!O155)","v":""},{"$f":"IF('DC Power Distribution (Desc)'!P155=\"\",\"\",'DC Power Distribution (Desc)'!P155)","v":""},{"$f":"IF('DC Power Distribution (Desc)'!B155=\"\",\"\",\"NA\")","v":""}]
[{"$f":"IF('DC Power Distribution (Desc)'!B156=\"\",\"\",2029)","v":""},{"$f":"IF('DC Power Distribution (Desc)'!B156=\"\",\"\",'DC Power Distribution (Desc)'!B156)","v":""},{"$f":"IF('DC Power Distribution (Desc)'!D156=\"\",\"\",'DC Power Distribution (Desc)'!D156)","v":""},{"$f":"IF('DC Power Distribution (Desc)'!E156=\"\",\"\",INDEX([1]ELECTRIC_DEV_MANUF!$A$2:$A$1500,MATCH(1,([1]ELECTRIC_DEV_MANUF!$B$2:$B$1500='DC Power Distribution (Desc)'!$E156)*([1]ELECTRIC_DEV_MANUF!$D$2:$D$1500=\"DCPWRDIS\"),0),0))","v":""},{"$f":"IF('DC Power Distribution (Desc)'!F156=\"\",\"\",INDEX([1]ELECTRIC_DEV_MODEL!$A$2:$A$1500,MATCH(1,([1]ELECTRIC_DEV_MODEL!$C$2:$C$1500='DC Power Distribution (Desc)'!$E156)*([1]ELECTRIC_DEV_MODEL!$D$2:$D$1500='DC Power Distribution (Desc)'!$F156)*([1]ELECTRIC_DEV_MODEL!$F$2:$F$1500=\"DCPWRDIS\"),0),0))","v":""},{"$f":"IF('DC Power Distribution (Desc)'!G156=\"\",\"\",'DC Power Distribution (Desc)'!G156)","v":""},{"$f":"IF('DC Power Distribution (Desc)'!H156=\"\",\"\",INDEX([1]YES_NO!$A$2:$A$100,MATCH('DC Power Distribution (Desc)'!$H156,[1]!MASTER_YES_NO_DESC[#Data],0),0))","v":""},{"$f":"IF('DC Power Distribution (Desc)'!I156=\"\",\"\",'DC Power Distribution (Desc)'!I156)","v":""},{"$f":"IF('DC Power Distribution (Desc)'!J156=\"\",\"\",'DC Power Distribution (Desc)'!J156)","v":""},{"$f":"IF('DC Power Distribution (Desc)'!K156=\"\",\"\",INDEX([1]YES_NO!$A$2:$A$100,MATCH('DC Power Distribution (Desc)'!$K156,[1]!MASTER_YES_NO_DESC[#Data],0),0))","v":""},{"$f":"IF('DC Power Distribution (Desc)'!L156=\"\",\"\",INDEX([1]DEV_INPUT_VOLTAGE!$A$2:$A$100,MATCH('DC Power Distribution (Desc)'!$L156,[1]!MASTER_DEV_INPUT_VOLTAGE_DESC[#Data],0),0))","v":""},{"$f":"IF('DC Power Distribution (Desc)'!M156=\"\",\"\",INDEX([1]DEV_OUTPUT_VOLTAGE!$A$2:$A$100,MATCH('DC Power Distribution (Desc)'!$M156,[1]!MASTER_DEV_INPUT_VOLTAGE_DESC[#Data],0),0))","v":""},{"$f":"IF('DC Power Distribution (Desc)'!N156=\"\",\"\",'DC Power Distribution (Desc)'!N156)","v":""},{"$f":"IF('DC Power Distribution (Desc)'!O156=\"\",\"\",'DC Power Distribution (Desc)'!O156)","v":""},{"$f":"IF('DC Power Distribution (Desc)'!P156=\"\",\"\",'DC Power Distribution (Desc)'!P156)","v":""},{"$f":"IF('DC Power Distribution (Desc)'!B156=\"\",\"\",\"NA\")","v":""}]
[{"$f":"IF('DC Power Distribution (Desc)'!B157=\"\",\"\",2029)","v":""},{"$f":"IF('DC Power Distribution (Desc)'!B157=\"\",\"\",'DC Power Distribution (Desc)'!B157)","v":""},{"$f":"IF('DC Power Distribution (Desc)'!D157=\"\",\"\",'DC Power Distribution (Desc)'!D157)","v":""},{"$f":"IF('DC Power Distribution (Desc)'!E157=\"\",\"\",INDEX([1]ELECTRIC_DEV_MANUF!$A$2:$A$1500,MATCH(1,([1]ELECTRIC_DEV_MANUF!$B$2:$B$1500='DC Power Distribution (Desc)'!$E157)*([1]ELECTRIC_DEV_MANUF!$D$2:$D$1500=\"DCPWRDIS\"),0),0))","v":""},{"$f":"IF('DC Power Distribution (Desc)'!F157=\"\",\"\",INDEX([1]ELECTRIC_DEV_MODEL!$A$2:$A$1500,MATCH(1,([1]ELECTRIC_DEV_MODEL!$C$2:$C$1500='DC Power Distribution (Desc)'!$E157)*([1]ELECTRIC_DEV_MODEL!$D$2:$D$1500='DC Power Distribution (Desc)'!$F157)*([1]ELECTRIC_DEV_MODEL!$F$2:$F$1500=\"DCPWRDIS\"),0),0))","v":""},{"$f":"IF('DC Power Distribution (Desc)'!G157=\"\",\"\",'DC Power Distribution (Desc)'!G157)","v":""},{"$f":"IF('DC Power Distribution (Desc)'!H157=\"\",\"\",INDEX([1]YES_NO!$A$2:$A$100,MATCH('DC Power Distribution (Desc)'!$H157,[1]!MASTER_YES_NO_DESC[#Data],0),0))","v":""},{"$f":"IF('DC Power Distribution (Desc)'!I157=\"\",\"\",'DC Power Distribution (Desc)'!I157)","v":""},{"$f":"IF('DC Power Distribution (Desc)'!J157=\"\",\"\",'DC Power Distribution (Desc)'!J157)","v":""},{"$f":"IF('DC Power Distribution (Desc)'!K157=\"\",\"\",INDEX([1]YES_NO!$A$2:$A$100,MATCH('DC Power Distribution (Desc)'!$K157,[1]!MASTER_YES_NO_DESC[#Data],0),0))","v":""},{"$f":"IF('DC Power Distribution (Desc)'!L157=\"\",\"\",INDEX([1]DEV_INPUT_VOLTAGE!$A$2:$A$100,MATCH('DC Power Distribution (Desc)'!$L157,[1]!MASTER_DEV_INPUT_VOLTAGE_DESC[#Data],0),0))","v":""},{"$f":"IF('DC Power Distribution (Desc)'!M157=\"\",\"\",INDEX([1]DEV_OUTPUT_VOLTAGE!$A$2:$A$100,MATCH('DC Power Distribution (Desc)'!$M157,[1]!MASTER_DEV_INPUT_VOLTAGE_DESC[#Data],0),0))","v":""},{"$f":"IF('DC Power Distribution (Desc)'!N157=\"\",\"\",'DC Power Distribution (Desc)'!N157)","v":""},{"$f":"IF('DC Power Distribution (Desc)'!O157=\"\",\"\",'DC Power Distribution (Desc)'!O157)","v":""},{"$f":"IF('DC Power Distribution (Desc)'!P157=\"\",\"\",'DC Power Distribution (Desc)'!P157)","v":""},{"$f":"IF('DC Power Distribution (Desc)'!B157=\"\",\"\",\"NA\")","v":""}]
[{"$f":"IF('DC Power Distribution (Desc)'!B158=\"\",\"\",2029)","v":""},{"$f":"IF('DC Power Distribution (Desc)'!B158=\"\",\"\",'DC Power Distribution (Desc)'!B158)","v":""},{"$f":"IF('DC Power Distribution (Desc)'!D158=\"\",\"\",'DC Power Distribution (Desc)'!D158)","v":""},{"$f":"IF('DC Power Distribution (Desc)'!E158=\"\",\"\",INDEX([1]ELECTRIC_DEV_MANUF!$A$2:$A$1500,MATCH(1,([1]ELECTRIC_DEV_MANUF!$B$2:$B$1500='DC Power Distribution (Desc)'!$E158)*([1]ELECTRIC_DEV_MANUF!$D$2:$D$1500=\"DCPWRDIS\"),0),0))","v":""},{"$f":"IF('DC Power Distribution (Desc)'!F158=\"\",\"\",INDEX([1]ELECTRIC_DEV_MODEL!$A$2:$A$1500,MATCH(1,([1]ELECTRIC_DEV_MODEL!$C$2:$C$1500='DC Power Distribution (Desc)'!$E158)*([1]ELECTRIC_DEV_MODEL!$D$2:$D$1500='DC Power Distribution (Desc)'!$F158)*([1]ELECTRIC_DEV_MODEL!$F$2:$F$1500=\"DCPWRDIS\"),0),0))","v":""},{"$f":"IF('DC Power Distribution (Desc)'!G158=\"\",\"\",'DC Power Distribution (Desc)'!G158)","v":""},{"$f":"IF('DC Power Distribution (Desc)'!H158=\"\",\"\",INDEX([1]YES_NO!$A$2:$A$100,MATCH('DC Power Distribution (Desc)'!$H158,[1]!MASTER_YES_NO_DESC[#Data],0),0))","v":""},{"$f":"IF('DC Power Distribution (Desc)'!I158=\"\",\"\",'DC Power Distribution (Desc)'!I158)","v":""},{"$f":"IF('DC Power Distribution (Desc)'!J158=\"\",\"\",'DC Power Distribution (Desc)'!J158)","v":""},{"$f":"IF('DC Power Distribution (Desc)'!K158=\"\",\"\",INDEX([1]YES_NO!$A$2:$A$100,MATCH('DC Power Distribution (Desc)'!$K158,[1]!MASTER_YES_NO_DESC[#Data],0),0))","v":""},{"$f":"IF('DC Power Distribution (Desc)'!L158=\"\",\"\",INDEX([1]DEV_INPUT_VOLTAGE!$A$2:$A$100,MATCH('DC Power Distribution (Desc)'!$L158,[1]!MASTER_DEV_INPUT_VOLTAGE_DESC[#Data],0),0))","v":""},{"$f":"IF('DC Power Distribution (Desc)'!M158=\"\",\"\",INDEX([1]DEV_OUTPUT_VOLTAGE!$A$2:$A$100,MATCH('DC Power Distribution (Desc)'!$M158,[1]!MASTER_DEV_INPUT_VOLTAGE_DESC[#Data],0),0))","v":""},{"$f":"IF('DC Power Distribution (Desc)'!N158=\"\",\"\",'DC Power Distribution (Desc)'!N158)","v":""},{"$f":"IF('DC Power Distribution (Desc)'!O158=\"\",\"\",'DC Power Distribution (Desc)'!O158)","v":""},{"$f":"IF('DC Power Distribution (Desc)'!P158=\"\",\"\",'DC Power Distribution (Desc)'!P158)","v":""},{"$f":"IF('DC Power Distribution (Desc)'!B158=\"\",\"\",\"NA\")","v":""}]
[{"$f":"IF('DC Power Distribution (Desc)'!B159=\"\",\"\",2029)","v":""},{"$f":"IF('DC Power Distribution (Desc)'!B159=\"\",\"\",'DC Power Distribution (Desc)'!B159)","v":""},{"$f":"IF('DC Power Distribution (Desc)'!D159=\"\",\"\",'DC Power Distribution (Desc)'!D159)","v":""},{"$f":"IF('DC Power Distribution (Desc)'!E159=\"\",\"\",INDEX([1]ELECTRIC_DEV_MANUF!$A$2:$A$1500,MATCH(1,([1]ELECTRIC_DEV_MANUF!$B$2:$B$1500='DC Power Distribution (Desc)'!$E159)*([1]ELECTRIC_DEV_MANUF!$D$2:$D$1500=\"DCPWRDIS\"),0),0))","v":""},{"$f":"IF('DC Power Distribution (Desc)'!F159=\"\",\"\",INDEX([1]ELECTRIC_DEV_MODEL!$A$2:$A$1500,MATCH(1,([1]ELECTRIC_DEV_MODEL!$C$2:$C$1500='DC Power Distribution (Desc)'!$E159)*([1]ELECTRIC_DEV_MODEL!$D$2:$D$1500='DC Power Distribution (Desc)'!$F159)*([1]ELECTRIC_DEV_MODEL!$F$2:$F$1500=\"DCPWRDIS\"),0),0))","v":""},{"$f":"IF('DC Power Distribution (Desc)'!G159=\"\",\"\",'DC Power Distribution (Desc)'!G159)","v":""},{"$f":"IF('DC Power Distribution (Desc)'!H159=\"\",\"\",INDEX([1]YES_NO!$A$2:$A$100,MATCH('DC Power Distribution (Desc)'!$H159,[1]!MASTER_YES_NO_DESC[#Data],0),0))","v":""},{"$f":"IF('DC Power Distribution (Desc)'!I159=\"\",\"\",'DC Power Distribution (Desc)'!I159)","v":""},{"$f":"IF('DC Power Distribution (Desc)'!J159=\"\",\"\",'DC Power Distribution (Desc)'!J159)","v":""},{"$f":"IF('DC Power Distribution (Desc)'!K159=\"\",\"\",INDEX([1]YES_NO!$A$2:$A$100,MATCH('DC Power Distribution (Desc)'!$K159,[1]!MASTER_YES_NO_DESC[#Data],0),0))","v":""},{"$f":"IF('DC Power Distribution (Desc)'!L159=\"\",\"\",INDEX([1]DEV_INPUT_VOLTAGE!$A$2:$A$100,MATCH('DC Power Distribution (Desc)'!$L159,[1]!MASTER_DEV_INPUT_VOLTAGE_DESC[#Data],0),0))","v":""},{"$f":"IF('DC Power Distribution (Desc)'!M159=\"\",\"\",INDEX([1]DEV_OUTPUT_VOLTAGE!$A$2:$A$100,MATCH('DC Power Distribution (Desc)'!$M159,[1]!MASTER_DEV_INPUT_VOLTAGE_DESC[#Data],0),0))","v":""},{"$f":"IF('DC Power Distribution (Desc)'!N159=\"\",\"\",'DC Power Distribution (Desc)'!N159)","v":""},{"$f":"IF('DC Power Distribution (Desc)'!O159=\"\",\"\",'DC Power Distribution (Desc)'!O159)","v":""},{"$f":"IF('DC Power Distribution (Desc)'!P159=\"\",\"\",'DC Power Distribution (Desc)'!P159)","v":""},{"$f":"IF('DC Power Distribution (Desc)'!B159=\"\",\"\",\"NA\")","v":""}]
[{"$f":"IF('DC Power Distribution (Desc)'!B160=\"\",\"\",2029)","v":""},{"$f":"IF('DC Power Distribution (Desc)'!B160=\"\",\"\",'DC Power Distribution (Desc)'!B160)","v":""},{"$f":"IF('DC Power Distribution (Desc)'!D160=\"\",\"\",'DC Power Distribution (Desc)'!D160)","v":""},{"$f":"IF('DC Power Distribution (Desc)'!E160=\"\",\"\",INDEX([1]ELECTRIC_DEV_MANUF!$A$2:$A$1500,MATCH(1,([1]ELECTRIC_DEV_MANUF!$B$2:$B$1500='DC Power Distribution (Desc)'!$E160)*([1]ELECTRIC_DEV_MANUF!$D$2:$D$1500=\"DCPWRDIS\"),0),0))","v":""},{"$f":"IF('DC Power Distribution (Desc)'!F160=\"\",\"\",INDEX([1]ELECTRIC_DEV_MODEL!$A$2:$A$1500,MATCH(1,([1]ELECTRIC_DEV_MODEL!$C$2:$C$1500='DC Power Distribution (Desc)'!$E160)*([1]ELECTRIC_DEV_MODEL!$D$2:$D$1500='DC Power Distribution (Desc)'!$F160)*([1]ELECTRIC_DEV_MODEL!$F$2:$F$1500=\"DCPWRDIS\"),0),0))","v":""},{"$f":"IF('DC Power Distribution (Desc)'!G160=\"\",\"\",'DC Power Distribution (Desc)'!G160)","v":""},{"$f":"IF('DC Power Distribution (Desc)'!H160=\"\",\"\",INDEX([1]YES_NO!$A$2:$A$100,MATCH('DC Power Distribution (Desc)'!$H160,[1]!MASTER_YES_NO_DESC[#Data],0),0))","v":""},{"$f":"IF('DC Power Distribution (Desc)'!I160=\"\",\"\",'DC Power Distribution (Desc)'!I160)","v":""},{"$f":"IF('DC Power Distribution (Desc)'!J160=\"\",\"\",'DC Power Distribution (Desc)'!J160)","v":""},{"$f":"IF('DC Power Distribution (Desc)'!K160=\"\",\"\",INDEX([1]YES_NO!$A$2:$A$100,MATCH('DC Power Distribution (Desc)'!$K160,[1]!MASTER_YES_NO_DESC[#Data],0),0))","v":""},{"$f":"IF('DC Power Distribution (Desc)'!L160=\"\",\"\",INDEX([1]DEV_INPUT_VOLTAGE!$A$2:$A$100,MATCH('DC Power Distribution (Desc)'!$L160,[1]!MASTER_DEV_INPUT_VOLTAGE_DESC[#Data],0),0))","v":""},{"$f":"IF('DC Power Distribution (Desc)'!M160=\"\",\"\",INDEX([1]DEV_OUTPUT_VOLTAGE!$A$2:$A$100,MATCH('DC Power Distribution (Desc)'!$M160,[1]!MASTER_DEV_INPUT_VOLTAGE_DESC[#Data],0),0))","v":""},{"$f":"IF('DC Power Distribution (Desc)'!N160=\"\",\"\",'DC Power Distribution (Desc)'!N160)","v":""},{"$f":"IF('DC Power Distribution (Desc)'!O160=\"\",\"\",'DC Power Distribution (Desc)'!O160)","v":""},{"$f":"IF('DC Power Distribution (Desc)'!P160=\"\",\"\",'DC Power Distribution (Desc)'!P160)","v":""},{"$f":"IF('DC Power Distribution (Desc)'!B160=\"\",\"\",\"NA\")","v":""}]
[{"$f":"IF('DC Power Distribution (Desc)'!B161=\"\",\"\",2029)","v":""},{"$f":"IF('DC Power Distribution (Desc)'!B161=\"\",\"\",'DC Power Distribution (Desc)'!B161)","v":""},{"$f":"IF('DC Power Distribution (Desc)'!D161=\"\",\"\",'DC Power Distribution (Desc)'!D161)","v":""},{"$f":"IF('DC Power Distribution (Desc)'!E161=\"\",\"\",INDEX([1]ELECTRIC_DEV_MANUF!$A$2:$A$1500,MATCH(1,([1]ELECTRIC_DEV_MANUF!$B$2:$B$1500='DC Power Distribution (Desc)'!$E161)*([1]ELECTRIC_DEV_MANUF!$D$2:$D$1500=\"DCPWRDIS\"),0),0))","v":""},{"$f":"IF('DC Power Distribution (Desc)'!F161=\"\",\"\",INDEX([1]ELECTRIC_DEV_MODEL!$A$2:$A$1500,MATCH(1,([1]ELECTRIC_DEV_MODEL!$C$2:$C$1500='DC Power Distribution (Desc)'!$E161)*([1]ELECTRIC_DEV_MODEL!$D$2:$D$1500='DC Power Distribution (Desc)'!$F161)*([1]ELECTRIC_DEV_MODEL!$F$2:$F$1500=\"DCPWRDIS\"),0),0))","v":""},{"$f":"IF('DC Power Distribution (Desc)'!G161=\"\",\"\",'DC Power Distribution (Desc)'!G161)","v":""},{"$f":"IF('DC Power Distribution (Desc)'!H161=\"\",\"\",INDEX([1]YES_NO!$A$2:$A$100,MATCH('DC Power Distribution (Desc)'!$H161,[1]!MASTER_YES_NO_DESC[#Data],0),0))","v":""},{"$f":"IF('DC Power Distribution (Desc)'!I161=\"\",\"\",'DC Power Distribution (Desc)'!I161)","v":""},{"$f":"IF('DC Power Distribution (Desc)'!J161=\"\",\"\",'DC Power Distribution (Desc)'!J161)","v":""},{"$f":"IF('DC Power Distribution (Desc)'!K161=\"\",\"\",INDEX([1]YES_NO!$A$2:$A$100,MATCH('DC Power Distribution (Desc)'!$K161,[1]!MASTER_YES_NO_DESC[#Data],0),0))","v":""},{"$f":"IF('DC Power Distribution (Desc)'!L161=\"\",\"\",INDEX([1]DEV_INPUT_VOLTAGE!$A$2:$A$100,MATCH('DC Power Distribution (Desc)'!$L161,[1]!MASTER_DEV_INPUT_VOLTAGE_DESC[#Data],0),0))","v":""},{"$f":"IF('DC Power Distribution (Desc)'!M161=\"\",\"\",INDEX([1]DEV_OUTPUT_VOLTAGE!$A$2:$A$100,MATCH('DC Power Distribution (Desc)'!$M161,[1]!MASTER_DEV_INPUT_VOLTAGE_DESC[#Data],0),0))","v":""},{"$f":"IF('DC Power Distribution (Desc)'!N161=\"\",\"\",'DC Power Distribution (Desc)'!N161)","v":""},{"$f":"IF('DC Power Distribution (Desc)'!O161=\"\",\"\",'DC Power Distribution (Desc)'!O161)","v":""},{"$f":"IF('DC Power Distribution (Desc)'!P161=\"\",\"\",'DC Power Distribution (Desc)'!P161)","v":""},{"$f":"IF('DC Power Distribution (Desc)'!B161=\"\",\"\",\"NA\")","v":""}]
[{"$f":"IF('DC Power Distribution (Desc)'!B162=\"\",\"\",2029)","v":""},{"$f":"IF('DC Power Distribution (Desc)'!B162=\"\",\"\",'DC Power Distribution (Desc)'!B162)","v":""},{"$f":"IF('DC Power Distribution (Desc)'!D162=\"\",\"\",'DC Power Distribution (Desc)'!D162)","v":""},{"$f":"IF('DC Power Distribution (Desc)'!E162=\"\",\"\",INDEX([1]ELECTRIC_DEV_MANUF!$A$2:$A$1500,MATCH(1,([1]ELECTRIC_DEV_MANUF!$B$2:$B$1500='DC Power Distribution (Desc)'!$E162)*([1]ELECTRIC_DEV_MANUF!$D$2:$D$1500=\"DCPWRDIS\"),0),0))","v":""},{"$f":"IF('DC Power Distribution (Desc)'!F162=\"\",\"\",INDEX([1]ELECTRIC_DEV_MODEL!$A$2:$A$1500,MATCH(1,([1]ELECTRIC_DEV_MODEL!$C$2:$C$1500='DC Power Distribution (Desc)'!$E162)*([1]ELECTRIC_DEV_MODEL!$D$2:$D$1500='DC Power Distribution (Desc)'!$F162)*([1]ELECTRIC_DEV_MODEL!$F$2:$F$1500=\"DCPWRDIS\"),0),0))","v":""},{"$f":"IF('DC Power Distribution (Desc)'!G162=\"\",\"\",'DC Power Distribution (Desc)'!G162)","v":""},{"$f":"IF('DC Power Distribution (Desc)'!H162=\"\",\"\",INDEX([1]YES_NO!$A$2:$A$100,MATCH('DC Power Distribution (Desc)'!$H162,[1]!MASTER_YES_NO_DESC[#Data],0),0))","v":""},{"$f":"IF('DC Power Distribution (Desc)'!I162=\"\",\"\",'DC Power Distribution (Desc)'!I162)","v":""},{"$f":"IF('DC Power Distribution (Desc)'!J162=\"\",\"\",'DC Power Distribution (Desc)'!J162)","v":""},{"$f":"IF('DC Power Distribution (Desc)'!K162=\"\",\"\",INDEX([1]YES_NO!$A$2:$A$100,MATCH('DC Power Distribution (Desc)'!$K162,[1]!MASTER_YES_NO_DESC[#Data],0),0))","v":""},{"$f":"IF('DC Power Distribution (Desc)'!L162=\"\",\"\",INDEX([1]DEV_INPUT_VOLTAGE!$A$2:$A$100,MATCH('DC Power Distribution (Desc)'!$L162,[1]!MASTER_DEV_INPUT_VOLTAGE_DESC[#Data],0),0))","v":""},{"$f":"IF('DC Power Distribution (Desc)'!M162=\"\",\"\",INDEX([1]DEV_OUTPUT_VOLTAGE!$A$2:$A$100,MATCH('DC Power Distribution (Desc)'!$M162,[1]!MASTER_DEV_INPUT_VOLTAGE_DESC[#Data],0),0))","v":""},{"$f":"IF('DC Power Distribution (Desc)'!N162=\"\",\"\",'DC Power Distribution (Desc)'!N162)","v":""},{"$f":"IF('DC Power Distribution (Desc)'!O162=\"\",\"\",'DC Power Distribution (Desc)'!O162)","v":""},{"$f":"IF('DC Power Distribution (Desc)'!P162=\"\",\"\",'DC Power Distribution (Desc)'!P162)","v":""},{"$f":"IF('DC Power Distribution (Desc)'!B162=\"\",\"\",\"NA\")","v":""}]
[{"$f":"IF('DC Power Distribution (Desc)'!B163=\"\",\"\",2029)","v":""},{"$f":"IF('DC Power Distribution (Desc)'!B163=\"\",\"\",'DC Power Distribution (Desc)'!B163)","v":""},{"$f":"IF('DC Power Distribution (Desc)'!D163=\"\",\"\",'DC Power Distribution (Desc)'!D163)","v":""},{"$f":"IF('DC Power Distribution (Desc)'!E163=\"\",\"\",INDEX([1]ELECTRIC_DEV_MANUF!$A$2:$A$1500,MATCH(1,([1]ELECTRIC_DEV_MANUF!$B$2:$B$1500='DC Power Distribution (Desc)'!$E163)*([1]ELECTRIC_DEV_MANUF!$D$2:$D$1500=\"DCPWRDIS\"),0),0))","v":""},{"$f":"IF('DC Power Distribution (Desc)'!F163=\"\",\"\",INDEX([1]ELECTRIC_DEV_MODEL!$A$2:$A$1500,MATCH(1,([1]ELECTRIC_DEV_MODEL!$C$2:$C$1500='DC Power Distribution (Desc)'!$E163)*([1]ELECTRIC_DEV_MODEL!$D$2:$D$1500='DC Power Distribution (Desc)'!$F163)*([1]ELECTRIC_DEV_MODEL!$F$2:$F$1500=\"DCPWRDIS\"),0),0))","v":""},{"$f":"IF('DC Power Distribution (Desc)'!G163=\"\",\"\",'DC Power Distribution (Desc)'!G163)","v":""},{"$f":"IF('DC Power Distribution (Desc)'!H163=\"\",\"\",INDEX([1]YES_NO!$A$2:$A$100,MATCH('DC Power Distribution (Desc)'!$H163,[1]!MASTER_YES_NO_DESC[#Data],0),0))","v":""},{"$f":"IF('DC Power Distribution (Desc)'!I163=\"\",\"\",'DC Power Distribution (Desc)'!I163)","v":""},{"$f":"IF('DC Power Distribution (Desc)'!J163=\"\",\"\",'DC Power Distribution (Desc)'!J163)","v":""},{"$f":"IF('DC Power Distribution (Desc)'!K163=\"\",\"\",INDEX([1]YES_NO!$A$2:$A$100,MATCH('DC Power Distribution (Desc)'!$K163,[1]!MASTER_YES_NO_DESC[#Data],0),0))","v":""},{"$f":"IF('DC Power Distribution (Desc)'!L163=\"\",\"\",INDEX([1]DEV_INPUT_VOLTAGE!$A$2:$A$100,MATCH('DC Power Distribution (Desc)'!$L163,[1]!MASTER_DEV_INPUT_VOLTAGE_DESC[#Data],0),0))","v":""},{"$f":"IF('DC Power Distribution (Desc)'!M163=\"\",\"\",INDEX([1]DEV_OUTPUT_VOLTAGE!$A$2:$A$100,MATCH('DC Power Distribution (Desc)'!$M163,[1]!MASTER_DEV_INPUT_VOLTAGE_DESC[#Data],0),0))","v":""},{"$f":"IF('DC Power Distribution (Desc)'!N163=\"\",\"\",'DC Power Distribution (Desc)'!N163)","v":""},{"$f":"IF('DC Power Distribution (Desc)'!O163=\"\",\"\",'DC Power Distribution (Desc)'!O163)","v":""},{"$f":"IF('DC Power Distribution (Desc)'!P163=\"\",\"\",'DC Power Distribution (Desc)'!P163)","v":""},{"$f":"IF('DC Power Distribution (Desc)'!B163=\"\",\"\",\"NA\")","v":""}]
[{"$f":"IF('DC Power Distribution (Desc)'!B164=\"\",\"\",2029)","v":""},{"$f":"IF('DC Power Distribution (Desc)'!B164=\"\",\"\",'DC Power Distribution (Desc)'!B164)","v":""},{"$f":"IF('DC Power Distribution (Desc)'!D164=\"\",\"\",'DC Power Distribution (Desc)'!D164)","v":""},{"$f":"IF('DC Power Distribution (Desc)'!E164=\"\",\"\",INDEX([1]ELECTRIC_DEV_MANUF!$A$2:$A$1500,MATCH(1,([1]ELECTRIC_DEV_MANUF!$B$2:$B$1500='DC Power Distribution (Desc)'!$E164)*([1]ELECTRIC_DEV_MANUF!$D$2:$D$1500=\"DCPWRDIS\"),0),0))","v":""},{"$f":"IF('DC Power Distribution (Desc)'!F164=\"\",\"\",INDEX([1]ELECTRIC_DEV_MODEL!$A$2:$A$1500,MATCH(1,([1]ELECTRIC_DEV_MODEL!$C$2:$C$1500='DC Power Distribution (Desc)'!$E164)*([1]ELECTRIC_DEV_MODEL!$D$2:$D$1500='DC Power Distribution (Desc)'!$F164)*([1]ELECTRIC_DEV_MODEL!$F$2:$F$1500=\"DCPWRDIS\"),0),0))","v":""},{"$f":"IF('DC Power Distribution (Desc)'!G164=\"\",\"\",'DC Power Distribution (Desc)'!G164)","v":""},{"$f":"IF('DC Power Distribution (Desc)'!H164=\"\",\"\",INDEX([1]YES_NO!$A$2:$A$100,MATCH('DC Power Distribution (Desc)'!$H164,[1]!MASTER_YES_NO_DESC[#Data],0),0))","v":""},{"$f":"IF('DC Power Distribution (Desc)'!I164=\"\",\"\",'DC Power Distribution (Desc)'!I164)","v":""},{"$f":"IF('DC Power Distribution (Desc)'!J164=\"\",\"\",'DC Power Distribution (Desc)'!J164)","v":""},{"$f":"IF('DC Power Distribution (Desc)'!K164=\"\",\"\",INDEX([1]YES_NO!$A$2:$A$100,MATCH('DC Power Distribution (Desc)'!$K164,[1]!MASTER_YES_NO_DESC[#Data],0),0))","v":""},{"$f":"IF('DC Power Distribution (Desc)'!L164=\"\",\"\",INDEX([1]DEV_INPUT_VOLTAGE!$A$2:$A$100,MATCH('DC Power Distribution (Desc)'!$L164,[1]!MASTER_DEV_INPUT_VOLTAGE_DESC[#Data],0),0))","v":""},{"$f":"IF('DC Power Distribution (Desc)'!M164=\"\",\"\",INDEX([1]DEV_OUTPUT_VOLTAGE!$A$2:$A$100,MATCH('DC Power Distribution (Desc)'!$M164,[1]!MASTER_DEV_INPUT_VOLTAGE_DESC[#Data],0),0))","v":""},{"$f":"IF('DC Power Distribution (Desc)'!N164=\"\",\"\",'DC Power Distribution (Desc)'!N164)","v":""},{"$f":"IF('DC Power Distribution (Desc)'!O164=\"\",\"\",'DC Power Distribution (Desc)'!O164)","v":""},{"$f":"IF('DC Power Distribution (Desc)'!P164=\"\",\"\",'DC Power Distribution (Desc)'!P164)","v":""},{"$f":"IF('DC Power Distribution (Desc)'!B164=\"\",\"\",\"NA\")","v":""}]
[{"$f":"IF('DC Power Distribution (Desc)'!B165=\"\",\"\",2029)","v":""},{"$f":"IF('DC Power Distribution (Desc)'!B165=\"\",\"\",'DC Power Distribution (Desc)'!B165)","v":""},{"$f":"IF('DC Power Distribution (Desc)'!D165=\"\",\"\",'DC Power Distribution (Desc)'!D165)","v":""},{"$f":"IF('DC Power Distribution (Desc)'!E165=\"\",\"\",INDEX([1]ELECTRIC_DEV_MANUF!$A$2:$A$1500,MATCH(1,([1]ELECTRIC_DEV_MANUF!$B$2:$B$1500='DC Power Distribution (Desc)'!$E165)*([1]ELECTRIC_DEV_MANUF!$D$2:$D$1500=\"DCPWRDIS\"),0),0))","v":""},{"$f":"IF('DC Power Distribution (Desc)'!F165=\"\",\"\",INDEX([1]ELECTRIC_DEV_MODEL!$A$2:$A$1500,MATCH(1,([1]ELECTRIC_DEV_MODEL!$C$2:$C$1500='DC Power Distribution (Desc)'!$E165)*([1]ELECTRIC_DEV_MODEL!$D$2:$D$1500='DC Power Distribution (Desc)'!$F165)*([1]ELECTRIC_DEV_MODEL!$F$2:$F$1500=\"DCPWRDIS\"),0),0))","v":""},{"$f":"IF('DC Power Distribution (Desc)'!G165=\"\",\"\",'DC Power Distribution (Desc)'!G165)","v":""},{"$f":"IF('DC Power Distribution (Desc)'!H165=\"\",\"\",INDEX([1]YES_NO!$A$2:$A$100,MATCH('DC Power Distribution (Desc)'!$H165,[1]!MASTER_YES_NO_DESC[#Data],0),0))","v":""},{"$f":"IF('DC Power Distribution (Desc)'!I165=\"\",\"\",'DC Power Distribution (Desc)'!I165)","v":""},{"$f":"IF('DC Power Distribution (Desc)'!J165=\"\",\"\",'DC Power Distribution (Desc)'!J165)","v":""},{"$f":"IF('DC Power Distribution (Desc)'!K165=\"\",\"\",INDEX([1]YES_NO!$A$2:$A$100,MATCH('DC Power Distribution (Desc)'!$K165,[1]!MASTER_YES_NO_DESC[#Data],0),0))","v":""},{"$f":"IF('DC Power Distribution (Desc)'!L165=\"\",\"\",INDEX([1]DEV_INPUT_VOLTAGE!$A$2:$A$100,MATCH('DC Power Distribution (Desc)'!$L165,[1]!MASTER_DEV_INPUT_VOLTAGE_DESC[#Data],0),0))","v":""},{"$f":"IF('DC Power Distribution (Desc)'!M165=\"\",\"\",INDEX([1]DEV_OUTPUT_VOLTAGE!$A$2:$A$100,MATCH('DC Power Distribution (Desc)'!$M165,[1]!MASTER_DEV_INPUT_VOLTAGE_DESC[#Data],0),0))","v":""},{"$f":"IF('DC Power Distribution (Desc)'!N165=\"\",\"\",'DC Power Distribution (Desc)'!N165)","v":""},{"$f":"IF('DC Power Distribution (Desc)'!O165=\"\",\"\",'DC Power Distribution (Desc)'!O165)","v":""},{"$f":"IF('DC Power Distribution (Desc)'!P165=\"\",\"\",'DC Power Distribution (Desc)'!P165)","v":""},{"$f":"IF('DC Power Distribution (Desc)'!B165=\"\",\"\",\"NA\")","v":""}]
[{"$f":"IF('DC Power Distribution (Desc)'!B166=\"\",\"\",2029)","v":""},{"$f":"IF('DC Power Distribution (Desc)'!B166=\"\",\"\",'DC Power Distribution (Desc)'!B166)","v":""},{"$f":"IF('DC Power Distribution (Desc)'!D166=\"\",\"\",'DC Power Distribution (Desc)'!D166)","v":""},{"$f":"IF('DC Power Distribution (Desc)'!E166=\"\",\"\",INDEX([1]ELECTRIC_DEV_MANUF!$A$2:$A$1500,MATCH(1,([1]ELECTRIC_DEV_MANUF!$B$2:$B$1500='DC Power Distribution (Desc)'!$E166)*([1]ELECTRIC_DEV_MANUF!$D$2:$D$1500=\"DCPWRDIS\"),0),0))","v":""},{"$f":"IF('DC Power Distribution (Desc)'!F166=\"\",\"\",INDEX([1]ELECTRIC_DEV_MODEL!$A$2:$A$1500,MATCH(1,([1]ELECTRIC_DEV_MODEL!$C$2:$C$1500='DC Power Distribution (Desc)'!$E166)*([1]ELECTRIC_DEV_MODEL!$D$2:$D$1500='DC Power Distribution (Desc)'!$F166)*([1]ELECTRIC_DEV_MODEL!$F$2:$F$1500=\"DCPWRDIS\"),0),0))","v":""},{"$f":"IF('DC Power Distribution (Desc)'!G166=\"\",\"\",'DC Power Distribution (Desc)'!G166)","v":""},{"$f":"IF('DC Power Distribution (Desc)'!H166=\"\",\"\",INDEX([1]YES_NO!$A$2:$A$100,MATCH('DC Power Distribution (Desc)'!$H166,[1]!MASTER_YES_NO_DESC[#Data],0),0))","v":""},{"$f":"IF('DC Power Distribution (Desc)'!I166=\"\",\"\",'DC Power Distribution (Desc)'!I166)","v":""},{"$f":"IF('DC Power Distribution (Desc)'!J166=\"\",\"\",'DC Power Distribution (Desc)'!J166)","v":""},{"$f":"IF('DC Power Distribution (Desc)'!K166=\"\",\"\",INDEX([1]YES_NO!$A$2:$A$100,MATCH('DC Power Distribution (Desc)'!$K166,[1]!MASTER_YES_NO_DESC[#Data],0),0))","v":""},{"$f":"IF('DC Power Distribution (Desc)'!L166=\"\",\"\",INDEX([1]DEV_INPUT_VOLTAGE!$A$2:$A$100,MATCH('DC Power Distribution (Desc)'!$L166,[1]!MASTER_DEV_INPUT_VOLTAGE_DESC[#Data],0),0))","v":""},{"$f":"IF('DC Power Distribution (Desc)'!M166=\"\",\"\",INDEX([1]DEV_OUTPUT_VOLTAGE!$A$2:$A$100,MATCH('DC Power Distribution (Desc)'!$M166,[1]!MASTER_DEV_INPUT_VOLTAGE_DESC[#Data],0),0))","v":""},{"$f":"IF('DC Power Distribution (Desc)'!N166=\"\",\"\",'DC Power Distribution (Desc)'!N166)","v":""},{"$f":"IF('DC Power Distribution (Desc)'!O166=\"\",\"\",'DC Power Distribution (Desc)'!O166)","v":""},{"$f":"IF('DC Power Distribution (Desc)'!P166=\"\",\"\",'DC Power Distribution (Desc)'!P166)","v":""},{"$f":"IF('DC Power Distribution (Desc)'!B166=\"\",\"\",\"NA\")","v":""}]
[{"$f":"IF('DC Power Distribution (Desc)'!B167=\"\",\"\",2029)","v":""},{"$f":"IF('DC Power Distribution (Desc)'!B167=\"\",\"\",'DC Power Distribution (Desc)'!B167)","v":""},{"$f":"IF('DC Power Distribution (Desc)'!D167=\"\",\"\",'DC Power Distribution (Desc)'!D167)","v":""},{"$f":"IF('DC Power Distribution (Desc)'!E167=\"\",\"\",INDEX([1]ELECTRIC_DEV_MANUF!$A$2:$A$1500,MATCH(1,([1]ELECTRIC_DEV_MANUF!$B$2:$B$1500='DC Power Distribution (Desc)'!$E167)*([1]ELECTRIC_DEV_MANUF!$D$2:$D$1500=\"DCPWRDIS\"),0),0))","v":""},{"$f":"IF('DC Power Distribution (Desc)'!F167=\"\",\"\",INDEX([1]ELECTRIC_DEV_MODEL!$A$2:$A$1500,MATCH(1,([1]ELECTRIC_DEV_MODEL!$C$2:$C$1500='DC Power Distribution (Desc)'!$E167)*([1]ELECTRIC_DEV_MODEL!$D$2:$D$1500='DC Power Distribution (Desc)'!$F167)*([1]ELECTRIC_DEV_MODEL!$F$2:$F$1500=\"DCPWRDIS\"),0),0))","v":""},{"$f":"IF('DC Power Distribution (Desc)'!G167=\"\",\"\",'DC Power Distribution (Desc)'!G167)","v":""},{"$f":"IF('DC Power Distribution (Desc)'!H167=\"\",\"\",INDEX([1]YES_NO!$A$2:$A$100,MATCH('DC Power Distribution (Desc)'!$H167,[1]!MASTER_YES_NO_DESC[#Data],0),0))","v":""},{"$f":"IF('DC Power Distribution (Desc)'!I167=\"\",\"\",'DC Power Distribution (Desc)'!I167)","v":""},{"$f":"IF('DC Power Distribution (Desc)'!J167=\"\",\"\",'DC Power Distribution (Desc)'!J167)","v":""},{"$f":"IF('DC Power Distribution (Desc)'!K167=\"\",\"\",INDEX([1]YES_NO!$A$2:$A$100,MATCH('DC Power Distribution (Desc)'!$K167,[1]!MASTER_YES_NO_DESC[#Data],0),0))","v":""},{"$f":"IF('DC Power Distribution (Desc)'!L167=\"\",\"\",INDEX([1]DEV_INPUT_VOLTAGE!$A$2:$A$100,MATCH('DC Power Distribution (Desc)'!$L167,[1]!MASTER_DEV_INPUT_VOLTAGE_DESC[#Data],0),0))","v":""},{"$f":"IF('DC Power Distribution (Desc)'!M167=\"\",\"\",INDEX([1]DEV_OUTPUT_VOLTAGE!$A$2:$A$100,MATCH('DC Power Distribution (Desc)'!$M167,[1]!MASTER_DEV_INPUT_VOLTAGE_DESC[#Data],0),0))","v":""},{"$f":"IF('DC Power Distribution (Desc)'!N167=\"\",\"\",'DC Power Distribution (Desc)'!N167)","v":""},{"$f":"IF('DC Power Distribution (Desc)'!O167=\"\",\"\",'DC Power Distribution (Desc)'!O167)","v":""},{"$f":"IF('DC Power Distribution (Desc)'!P167=\"\",\"\",'DC Power Distribution (Desc)'!P167)","v":""},{"$f":"IF('DC Power Distribution (Desc)'!B167=\"\",\"\",\"NA\")","v":""}]
[{"$f":"IF('DC Power Distribution (Desc)'!B168=\"\",\"\",2029)","v":""},{"$f":"IF('DC Power Distribution (Desc)'!B168=\"\",\"\",'DC Power Distribution (Desc)'!B168)","v":""},{"$f":"IF('DC Power Distribution (Desc)'!D168=\"\",\"\",'DC Power Distribution (Desc)'!D168)","v":""},{"$f":"IF('DC Power Distribution (Desc)'!E168=\"\",\"\",INDEX([1]ELECTRIC_DEV_MANUF!$A$2:$A$1500,MATCH(1,([1]ELECTRIC_DEV_MANUF!$B$2:$B$1500='DC Power Distribution (Desc)'!$E168)*([1]ELECTRIC_DEV_MANUF!$D$2:$D$1500=\"DCPWRDIS\"),0),0))","v":""},{"$f":"IF('DC Power Distribution (Desc)'!F168=\"\",\"\",INDEX([1]ELECTRIC_DEV_MODEL!$A$2:$A$1500,MATCH(1,([1]ELECTRIC_DEV_MODEL!$C$2:$C$1500='DC Power Distribution (Desc)'!$E168)*([1]ELECTRIC_DEV_MODEL!$D$2:$D$1500='DC Power Distribution (Desc)'!$F168)*([1]ELECTRIC_DEV_MODEL!$F$2:$F$1500=\"DCPWRDIS\"),0),0))","v":""},{"$f":"IF('DC Power Distribution (Desc)'!G168=\"\",\"\",'DC Power Distribution (Desc)'!G168)","v":""},{"$f":"IF('DC Power Distribution (Desc)'!H168=\"\",\"\",INDEX([1]YES_NO!$A$2:$A$100,MATCH('DC Power Distribution (Desc)'!$H168,[1]!MASTER_YES_NO_DESC[#Data],0),0))","v":""},{"$f":"IF('DC Power Distribution (Desc)'!I168=\"\",\"\",'DC Power Distribution (Desc)'!I168)","v":""},{"$f":"IF('DC Power Distribution (Desc)'!J168=\"\",\"\",'DC Power Distribution (Desc)'!J168)","v":""},{"$f":"IF('DC Power Distribution (Desc)'!K168=\"\",\"\",INDEX([1]YES_NO!$A$2:$A$100,MATCH('DC Power Distribution (Desc)'!$K168,[1]!MASTER_YES_NO_DESC[#Data],0),0))","v":""},{"$f":"IF('DC Power Distribution (Desc)'!L168=\"\",\"\",INDEX([1]DEV_INPUT_VOLTAGE!$A$2:$A$100,MATCH('DC Power Distribution (Desc)'!$L168,[1]!MASTER_DEV_INPUT_VOLTAGE_DESC[#Data],0),0))","v":""},{"$f":"IF('DC Power Distribution (Desc)'!M168=\"\",\"\",INDEX([1]DEV_OUTPUT_VOLTAGE!$A$2:$A$100,MATCH('DC Power Distribution (Desc)'!$M168,[1]!MASTER_DEV_INPUT_VOLTAGE_DESC[#Data],0),0))","v":""},{"$f":"IF('DC Power Distribution (Desc)'!N168=\"\",\"\",'DC Power Distribution (Desc)'!N168)","v":""},{"$f":"IF('DC Power Distribution (Desc)'!O168=\"\",\"\",'DC Power Distribution (Desc)'!O168)","v":""},{"$f":"IF('DC Power Distribution (Desc)'!P168=\"\",\"\",'DC Power Distribution (Desc)'!P168)","v":""},{"$f":"IF('DC Power Distribution (Desc)'!B168=\"\",\"\",\"NA\")","v":""}]
[{"$f":"IF('DC Power Distribution (Desc)'!B169=\"\",\"\",2029)","v":""},{"$f":"IF('DC Power Distribution (Desc)'!B169=\"\",\"\",'DC Power Distribution (Desc)'!B169)","v":""},{"$f":"IF('DC Power Distribution (Desc)'!D169=\"\",\"\",'DC Power Distribution (Desc)'!D169)","v":""},{"$f":"IF('DC Power Distribution (Desc)'!E169=\"\",\"\",INDEX([1]ELECTRIC_DEV_MANUF!$A$2:$A$1500,MATCH(1,([1]ELECTRIC_DEV_MANUF!$B$2:$B$1500='DC Power Distribution (Desc)'!$E169)*([1]ELECTRIC_DEV_MANUF!$D$2:$D$1500=\"DCPWRDIS\"),0),0))","v":""},{"$f":"IF('DC Power Distribution (Desc)'!F169=\"\",\"\",INDEX([1]ELECTRIC_DEV_MODEL!$A$2:$A$1500,MATCH(1,([1]ELECTRIC_DEV_MODEL!$C$2:$C$1500='DC Power Distribution (Desc)'!$E169)*([1]ELECTRIC_DEV_MODEL!$D$2:$D$1500='DC Power Distribution (Desc)'!$F169)*([1]ELECTRIC_DEV_MODEL!$F$2:$F$1500=\"DCPWRDIS\"),0),0))","v":""},{"$f":"IF('DC Power Distribution (Desc)'!G169=\"\",\"\",'DC Power Distribution (Desc)'!G169)","v":""},{"$f":"IF('DC Power Distribution (Desc)'!H169=\"\",\"\",INDEX([1]YES_NO!$A$2:$A$100,MATCH('DC Power Distribution (Desc)'!$H169,[1]!MASTER_YES_NO_DESC[#Data],0),0))","v":""},{"$f":"IF('DC Power Distribution (Desc)'!I169=\"\",\"\",'DC Power Distribution (Desc)'!I169)","v":""},{"$f":"IF('DC Power Distribution (Desc)'!J169=\"\",\"\",'DC Power Distribution (Desc)'!J169)","v":""},{"$f":"IF('DC Power Distribution (Desc)'!K169=\"\",\"\",INDEX([1]YES_NO!$A$2:$A$100,MATCH('DC Power Distribution (Desc)'!$K169,[1]!MASTER_YES_NO_DESC[#Data],0),0))","v":""},{"$f":"IF('DC Power Distribution (Desc)'!L169=\"\",\"\",INDEX([1]DEV_INPUT_VOLTAGE!$A$2:$A$100,MATCH('DC Power Distribution (Desc)'!$L169,[1]!MASTER_DEV_INPUT_VOLTAGE_DESC[#Data],0),0))","v":""},{"$f":"IF('DC Power Distribution (Desc)'!M169=\"\",\"\",INDEX([1]DEV_OUTPUT_VOLTAGE!$A$2:$A$100,MATCH('DC Power Distribution (Desc)'!$M169,[1]!MASTER_DEV_INPUT_VOLTAGE_DESC[#Data],0),0))","v":""},{"$f":"IF('DC Power Distribution (Desc)'!N169=\"\",\"\",'DC Power Distribution (Desc)'!N169)","v":""},{"$f":"IF('DC Power Distribution (Desc)'!O169=\"\",\"\",'DC Power Distribution (Desc)'!O169)","v":""},{"$f":"IF('DC Power Distribution (Desc)'!P169=\"\",\"\",'DC Power Distribution (Desc)'!P169)","v":""},{"$f":"IF('DC Power Distribution (Desc)'!B169=\"\",\"\",\"NA\")","v":""}]
[{"$f":"IF('DC Power Distribution (Desc)'!B170=\"\",\"\",2029)","v":""},{"$f":"IF('DC Power Distribution (Desc)'!B170=\"\",\"\",'DC Power Distribution (Desc)'!B170)","v":""},{"$f":"IF('DC Power Distribution (Desc)'!D170=\"\",\"\",'DC Power Distribution (Desc)'!D170)","v":""},{"$f":"IF('DC Power Distribution (Desc)'!E170=\"\",\"\",INDEX([1]ELECTRIC_DEV_MANUF!$A$2:$A$1500,MATCH(1,([1]ELECTRIC_DEV_MANUF!$B$2:$B$1500='DC Power Distribution (Desc)'!$E170)*([1]ELECTRIC_DEV_MANUF!$D$2:$D$1500=\"DCPWRDIS\"),0),0))","v":""},{"$f":"IF('DC Power Distribution (Desc)'!F170=\"\",\"\",INDEX([1]ELECTRIC_DEV_MODEL!$A$2:$A$1500,MATCH(1,([1]ELECTRIC_DEV_MODEL!$C$2:$C$1500='DC Power Distribution (Desc)'!$E170)*([1]ELECTRIC_DEV_MODEL!$D$2:$D$1500='DC Power Distribution (Desc)'!$F170)*([1]ELECTRIC_DEV_MODEL!$F$2:$F$1500=\"DCPWRDIS\"),0),0))","v":""},{"$f":"IF('DC Power Distribution (Desc)'!G170=\"\",\"\",'DC Power Distribution (Desc)'!G170)","v":""},{"$f":"IF('DC Power Distribution (Desc)'!H170=\"\",\"\",INDEX([1]YES_NO!$A$2:$A$100,MATCH('DC Power Distribution (Desc)'!$H170,[1]!MASTER_YES_NO_DESC[#Data],0),0))","v":""},{"$f":"IF('DC Power Distribution (Desc)'!I170=\"\",\"\",'DC Power Distribution (Desc)'!I170)","v":""},{"$f":"IF('DC Power Distribution (Desc)'!J170=\"\",\"\",'DC Power Distribution (Desc)'!J170)","v":""},{"$f":"IF('DC Power Distribution (Desc)'!K170=\"\",\"\",INDEX([1]YES_NO!$A$2:$A$100,MATCH('DC Power Distribution (Desc)'!$K170,[1]!MASTER_YES_NO_DESC[#Data],0),0))","v":""},{"$f":"IF('DC Power Distribution (Desc)'!L170=\"\",\"\",INDEX([1]DEV_INPUT_VOLTAGE!$A$2:$A$100,MATCH('DC Power Distribution (Desc)'!$L170,[1]!MASTER_DEV_INPUT_VOLTAGE_DESC[#Data],0),0))","v":""},{"$f":"IF('DC Power Distribution (Desc)'!M170=\"\",\"\",INDEX([1]DEV_OUTPUT_VOLTAGE!$A$2:$A$100,MATCH('DC Power Distribution (Desc)'!$M170,[1]!MASTER_DEV_INPUT_VOLTAGE_DESC[#Data],0),0))","v":""},{"$f":"IF('DC Power Distribution (Desc)'!N170=\"\",\"\",'DC Power Distribution (Desc)'!N170)","v":""},{"$f":"IF('DC Power Distribution (Desc)'!O170=\"\",\"\",'DC Power Distribution (Desc)'!O170)","v":""},{"$f":"IF('DC Power Distribution (Desc)'!P170=\"\",\"\",'DC Power Distribution (Desc)'!P170)","v":""},{"$f":"IF('DC Power Distribution (Desc)'!B170=\"\",\"\",\"NA\")","v":""}]
[{"$f":"IF('DC Power Distribution (Desc)'!B171=\"\",\"\",2029)","v":""},{"$f":"IF('DC Power Distribution (Desc)'!B171=\"\",\"\",'DC Power Distribution (Desc)'!B171)","v":""},{"$f":"IF('DC Power Distribution (Desc)'!D171=\"\",\"\",'DC Power Distribution (Desc)'!D171)","v":""},{"$f":"IF('DC Power Distribution (Desc)'!E171=\"\",\"\",INDEX([1]ELECTRIC_DEV_MANUF!$A$2:$A$1500,MATCH(1,([1]ELECTRIC_DEV_MANUF!$B$2:$B$1500='DC Power Distribution (Desc)'!$E171)*([1]ELECTRIC_DEV_MANUF!$D$2:$D$1500=\"DCPWRDIS\"),0),0))","v":""},{"$f":"IF('DC Power Distribution (Desc)'!F171=\"\",\"\",INDEX([1]ELECTRIC_DEV_MODEL!$A$2:$A$1500,MATCH(1,([1]ELECTRIC_DEV_MODEL!$C$2:$C$1500='DC Power Distribution (Desc)'!$E171)*([1]ELECTRIC_DEV_MODEL!$D$2:$D$1500='DC Power Distribution (Desc)'!$F171)*([1]ELECTRIC_DEV_MODEL!$F$2:$F$1500=\"DCPWRDIS\"),0),0))","v":""},{"$f":"IF('DC Power Distribution (Desc)'!G171=\"\",\"\",'DC Power Distribution (Desc)'!G171)","v":""},{"$f":"IF('DC Power Distribution (Desc)'!H171=\"\",\"\",INDEX([1]YES_NO!$A$2:$A$100,MATCH('DC Power Distribution (Desc)'!$H171,[1]!MASTER_YES_NO_DESC[#Data],0),0))","v":""},{"$f":"IF('DC Power Distribution (Desc)'!I171=\"\",\"\",'DC Power Distribution (Desc)'!I171)","v":""},{"$f":"IF('DC Power Distribution (Desc)'!J171=\"\",\"\",'DC Power Distribution (Desc)'!J171)","v":""},{"$f":"IF('DC Power Distribution (Desc)'!K171=\"\",\"\",INDEX([1]YES_NO!$A$2:$A$100,MATCH('DC Power Distribution (Desc)'!$K171,[1]!MASTER_YES_NO_DESC[#Data],0),0))","v":""},{"$f":"IF('DC Power Distribution (Desc)'!L171=\"\",\"\",INDEX([1]DEV_INPUT_VOLTAGE!$A$2:$A$100,MATCH('DC Power Distribution (Desc)'!$L171,[1]!MASTER_DEV_INPUT_VOLTAGE_DESC[#Data],0),0))","v":""},{"$f":"IF('DC Power Distribution (Desc)'!M171=\"\",\"\",INDEX([1]DEV_OUTPUT_VOLTAGE!$A$2:$A$100,MATCH('DC Power Distribution (Desc)'!$M171,[1]!MASTER_DEV_INPUT_VOLTAGE_DESC[#Data],0),0))","v":""},{"$f":"IF('DC Power Distribution (Desc)'!N171=\"\",\"\",'DC Power Distribution (Desc)'!N171)","v":""},{"$f":"IF('DC Power Distribution (Desc)'!O171=\"\",\"\",'DC Power Distribution (Desc)'!O171)","v":""},{"$f":"IF('DC Power Distribution (Desc)'!P171=\"\",\"\",'DC Power Distribution (Desc)'!P171)","v":""},{"$f":"IF('DC Power Distribution (Desc)'!B171=\"\",\"\",\"NA\")","v":""}]
[{"$f":"IF('DC Power Distribution (Desc)'!B172=\"\",\"\",2029)","v":""},{"$f":"IF('DC Power Distribution (Desc)'!B172=\"\",\"\",'DC Power Distribution (Desc)'!B172)","v":""},{"$f":"IF('DC Power Distribution (Desc)'!D172=\"\",\"\",'DC Power Distribution (Desc)'!D172)","v":""},{"$f":"IF('DC Power Distribution (Desc)'!E172=\"\",\"\",INDEX([1]ELECTRIC_DEV_MANUF!$A$2:$A$1500,MATCH(1,([1]ELECTRIC_DEV_MANUF!$B$2:$B$1500='DC Power Distribution (Desc)'!$E172)*([1]ELECTRIC_DEV_MANUF!$D$2:$D$1500=\"DCPWRDIS\"),0),0))","v":""},{"$f":"IF('DC Power Distribution (Desc)'!F172=\"\",\"\",INDEX([1]ELECTRIC_DEV_MODEL!$A$2:$A$1500,MATCH(1,([1]ELECTRIC_DEV_MODEL!$C$2:$C$1500='DC Power Distribution (Desc)'!$E172)*([1]ELECTRIC_DEV_MODEL!$D$2:$D$1500='DC Power Distribution (Desc)'!$F172)*([1]ELECTRIC_DEV_MODEL!$F$2:$F$1500=\"DCPWRDIS\"),0),0))","v":""},{"$f":"IF('DC Power Distribution (Desc)'!G172=\"\",\"\",'DC Power Distribution (Desc)'!G172)","v":""},{"$f":"IF('DC Power Distribution (Desc)'!H172=\"\",\"\",INDEX([1]YES_NO!$A$2:$A$100,MATCH('DC Power Distribution (Desc)'!$H172,[1]!MASTER_YES_NO_DESC[#Data],0),0))","v":""},{"$f":"IF('DC Power Distribution (Desc)'!I172=\"\",\"\",'DC Power Distribution (Desc)'!I172)","v":""},{"$f":"IF('DC Power Distribution (Desc)'!J172=\"\",\"\",'DC Power Distribution (Desc)'!J172)","v":""},{"$f":"IF('DC Power Distribution (Desc)'!K172=\"\",\"\",INDEX([1]YES_NO!$A$2:$A$100,MATCH('DC Power Distribution (Desc)'!$K172,[1]!MASTER_YES_NO_DESC[#Data],0),0))","v":""},{"$f":"IF('DC Power Distribution (Desc)'!L172=\"\",\"\",INDEX([1]DEV_INPUT_VOLTAGE!$A$2:$A$100,MATCH('DC Power Distribution (Desc)'!$L172,[1]!MASTER_DEV_INPUT_VOLTAGE_DESC[#Data],0),0))","v":""},{"$f":"IF('DC Power Distribution (Desc)'!M172=\"\",\"\",INDEX([1]DEV_OUTPUT_VOLTAGE!$A$2:$A$100,MATCH('DC Power Distribution (Desc)'!$M172,[1]!MASTER_DEV_INPUT_VOLTAGE_DESC[#Data],0),0))","v":""},{"$f":"IF('DC Power Distribution (Desc)'!N172=\"\",\"\",'DC Power Distribution (Desc)'!N172)","v":""},{"$f":"IF('DC Power Distribution (Desc)'!O172=\"\",\"\",'DC Power Distribution (Desc)'!O172)","v":""},{"$f":"IF('DC Power Distribution (Desc)'!P172=\"\",\"\",'DC Power Distribution (Desc)'!P172)","v":""},{"$f":"IF('DC Power Distribution (Desc)'!B172=\"\",\"\",\"NA\")","v":""}]
[{"$f":"IF('DC Power Distribution (Desc)'!B173=\"\",\"\",2029)","v":""},{"$f":"IF('DC Power Distribution (Desc)'!B173=\"\",\"\",'DC Power Distribution (Desc)'!B173)","v":""},{"$f":"IF('DC Power Distribution (Desc)'!D173=\"\",\"\",'DC Power Distribution (Desc)'!D173)","v":""},{"$f":"IF('DC Power Distribution (Desc)'!E173=\"\",\"\",INDEX([1]ELECTRIC_DEV_MANUF!$A$2:$A$1500,MATCH(1,([1]ELECTRIC_DEV_MANUF!$B$2:$B$1500='DC Power Distribution (Desc)'!$E173)*([1]ELECTRIC_DEV_MANUF!$D$2:$D$1500=\"DCPWRDIS\"),0),0))","v":""},{"$f":"IF('DC Power Distribution (Desc)'!F173=\"\",\"\",INDEX([1]ELECTRIC_DEV_MODEL!$A$2:$A$1500,MATCH(1,([1]ELECTRIC_DEV_MODEL!$C$2:$C$1500='DC Power Distribution (Desc)'!$E173)*([1]ELECTRIC_DEV_MODEL!$D$2:$D$1500='DC Power Distribution (Desc)'!$F173)*([1]ELECTRIC_DEV_MODEL!$F$2:$F$1500=\"DCPWRDIS\"),0),0))","v":""},{"$f":"IF('DC Power Distribution (Desc)'!G173=\"\",\"\",'DC Power Distribution (Desc)'!G173)","v":""},{"$f":"IF('DC Power Distribution (Desc)'!H173=\"\",\"\",INDEX([1]YES_NO!$A$2:$A$100,MATCH('DC Power Distribution (Desc)'!$H173,[1]!MASTER_YES_NO_DESC[#Data],0),0))","v":""},{"$f":"IF('DC Power Distribution (Desc)'!I173=\"\",\"\",'DC Power Distribution (Desc)'!I173)","v":""},{"$f":"IF('DC Power Distribution (Desc)'!J173=\"\",\"\",'DC Power Distribution (Desc)'!J173)","v":""},{"$f":"IF('DC Power Distribution (Desc)'!K173=\"\",\"\",INDEX([1]YES_NO!$A$2:$A$100,MATCH('DC Power Distribution (Desc)'!$K173,[1]!MASTER_YES_NO_DESC[#Data],0),0))","v":""},{"$f":"IF('DC Power Distribution (Desc)'!L173=\"\",\"\",INDEX([1]DEV_INPUT_VOLTAGE!$A$2:$A$100,MATCH('DC Power Distribution (Desc)'!$L173,[1]!MASTER_DEV_INPUT_VOLTAGE_DESC[#Data],0),0))","v":""},{"$f":"IF('DC Power Distribution (Desc)'!M173=\"\",\"\",INDEX([1]DEV_OUTPUT_VOLTAGE!$A$2:$A$100,MATCH('DC Power Distribution (Desc)'!$M173,[1]!MASTER_DEV_INPUT_VOLTAGE_DESC[#Data],0),0))","v":""},{"$f":"IF('DC Power Distribution (Desc)'!N173=\"\",\"\",'DC Power Distribution (Desc)'!N173)","v":""},{"$f":"IF('DC Power Distribution (Desc)'!O173=\"\",\"\",'DC Power Distribution (Desc)'!O173)","v":""},{"$f":"IF('DC Power Distribution (Desc)'!P173=\"\",\"\",'DC Power Distribution (Desc)'!P173)","v":""},{"$f":"IF('DC Power Distribution (Desc)'!B173=\"\",\"\",\"NA\")","v":""}]
[{"$f":"IF('DC Power Distribution (Desc)'!B174=\"\",\"\",2029)","v":""},{"$f":"IF('DC Power Distribution (Desc)'!B174=\"\",\"\",'DC Power Distribution (Desc)'!B174)","v":""},{"$f":"IF('DC Power Distribution (Desc)'!D174=\"\",\"\",'DC Power Distribution (Desc)'!D174)","v":""},{"$f":"IF('DC Power Distribution (Desc)'!E174=\"\",\"\",INDEX([1]ELECTRIC_DEV_MANUF!$A$2:$A$1500,MATCH(1,([1]ELECTRIC_DEV_MANUF!$B$2:$B$1500='DC Power Distribution (Desc)'!$E174)*([1]ELECTRIC_DEV_MANUF!$D$2:$D$1500=\"DCPWRDIS\"),0),0))","v":""},{"$f":"IF('DC Power Distribution (Desc)'!F174=\"\",\"\",INDEX([1]ELECTRIC_DEV_MODEL!$A$2:$A$1500,MATCH(1,([1]ELECTRIC_DEV_MODEL!$C$2:$C$1500='DC Power Distribution (Desc)'!$E174)*([1]ELECTRIC_DEV_MODEL!$D$2:$D$1500='DC Power Distribution (Desc)'!$F174)*([1]ELECTRIC_DEV_MODEL!$F$2:$F$1500=\"DCPWRDIS\"),0),0))","v":""},{"$f":"IF('DC Power Distribution (Desc)'!G174=\"\",\"\",'DC Power Distribution (Desc)'!G174)","v":""},{"$f":"IF('DC Power Distribution (Desc)'!H174=\"\",\"\",INDEX([1]YES_NO!$A$2:$A$100,MATCH('DC Power Distribution (Desc)'!$H174,[1]!MASTER_YES_NO_DESC[#Data],0),0))","v":""},{"$f":"IF('DC Power Distribution (Desc)'!I174=\"\",\"\",'DC Power Distribution (Desc)'!I174)","v":""},{"$f":"IF('DC Power Distribution (Desc)'!J174=\"\",\"\",'DC Power Distribution (Desc)'!J174)","v":""},{"$f":"IF('DC Power Distribution (Desc)'!K174=\"\",\"\",INDEX([1]YES_NO!$A$2:$A$100,MATCH('DC Power Distribution (Desc)'!$K174,[1]!MASTER_YES_NO_DESC[#Data],0),0))","v":""},{"$f":"IF('DC Power Distribution (Desc)'!L174=\"\",\"\",INDEX([1]DEV_INPUT_VOLTAGE!$A$2:$A$100,MATCH('DC Power Distribution (Desc)'!$L174,[1]!MASTER_DEV_INPUT_VOLTAGE_DESC[#Data],0),0))","v":""},{"$f":"IF('DC Power Distribution (Desc)'!M174=\"\",\"\",INDEX([1]DEV_OUTPUT_VOLTAGE!$A$2:$A$100,MATCH('DC Power Distribution (Desc)'!$M174,[1]!MASTER_DEV_INPUT_VOLTAGE_DESC[#Data],0),0))","v":""},{"$f":"IF('DC Power Distribution (Desc)'!N174=\"\",\"\",'DC Power Distribution (Desc)'!N174)","v":""},{"$f":"IF('DC Power Distribution (Desc)'!O174=\"\",\"\",'DC Power Distribution (Desc)'!O174)","v":""},{"$f":"IF('DC Power Distribution (Desc)'!P174=\"\",\"\",'DC Power Distribution (Desc)'!P174)","v":""},{"$f":"IF('DC Power Distribution (Desc)'!B174=\"\",\"\",\"NA\")","v":""}]
[{"$f":"IF('DC Power Distribution (Desc)'!B175=\"\",\"\",2029)","v":""},{"$f":"IF('DC Power Distribution (Desc)'!B175=\"\",\"\",'DC Power Distribution (Desc)'!B175)","v":""},{"$f":"IF('DC Power Distribution (Desc)'!D175=\"\",\"\",'DC Power Distribution (Desc)'!D175)","v":""},{"$f":"IF('DC Power Distribution (Desc)'!E175=\"\",\"\",INDEX([1]ELECTRIC_DEV_MANUF!$A$2:$A$1500,MATCH(1,([1]ELECTRIC_DEV_MANUF!$B$2:$B$1500='DC Power Distribution (Desc)'!$E175)*([1]ELECTRIC_DEV_MANUF!$D$2:$D$1500=\"DCPWRDIS\"),0),0))","v":""},{"$f":"IF('DC Power Distribution (Desc)'!F175=\"\",\"\",INDEX([1]ELECTRIC_DEV_MODEL!$A$2:$A$1500,MATCH(1,([1]ELECTRIC_DEV_MODEL!$C$2:$C$1500='DC Power Distribution (Desc)'!$E175)*([1]ELECTRIC_DEV_MODEL!$D$2:$D$1500='DC Power Distribution (Desc)'!$F175)*([1]ELECTRIC_DEV_MODEL!$F$2:$F$1500=\"DCPWRDIS\"),0),0))","v":""},{"$f":"IF('DC Power Distribution (Desc)'!G175=\"\",\"\",'DC Power Distribution (Desc)'!G175)","v":""},{"$f":"IF('DC Power Distribution (Desc)'!H175=\"\",\"\",INDEX([1]YES_NO!$A$2:$A$100,MATCH('DC Power Distribution (Desc)'!$H175,[1]!MASTER_YES_NO_DESC[#Data],0),0))","v":""},{"$f":"IF('DC Power Distribution (Desc)'!I175=\"\",\"\",'DC Power Distribution (Desc)'!I175)","v":""},{"$f":"IF('DC Power Distribution (Desc)'!J175=\"\",\"\",'DC Power Distribution (Desc)'!J175)","v":""},{"$f":"IF('DC Power Distribution (Desc)'!K175=\"\",\"\",INDEX([1]YES_NO!$A$2:$A$100,MATCH('DC Power Distribution (Desc)'!$K175,[1]!MASTER_YES_NO_DESC[#Data],0),0))","v":""},{"$f":"IF('DC Power Distribution (Desc)'!L175=\"\",\"\",INDEX([1]DEV_INPUT_VOLTAGE!$A$2:$A$100,MATCH('DC Power Distribution (Desc)'!$L175,[1]!MASTER_DEV_INPUT_VOLTAGE_DESC[#Data],0),0))","v":""},{"$f":"IF('DC Power Distribution (Desc)'!M175=\"\",\"\",INDEX([1]DEV_OUTPUT_VOLTAGE!$A$2:$A$100,MATCH('DC Power Distribution (Desc)'!$M175,[1]!MASTER_DEV_INPUT_VOLTAGE_DESC[#Data],0),0))","v":""},{"$f":"IF('DC Power Distribution (Desc)'!N175=\"\",\"\",'DC Power Distribution (Desc)'!N175)","v":""},{"$f":"IF('DC Power Distribution (Desc)'!O175=\"\",\"\",'DC Power Distribution (Desc)'!O175)","v":""},{"$f":"IF('DC Power Distribution (Desc)'!P175=\"\",\"\",'DC Power Distribution (Desc)'!P175)","v":""},{"$f":"IF('DC Power Distribution (Desc)'!B175=\"\",\"\",\"NA\")","v":""}]
[{"$f":"IF('DC Power Distribution (Desc)'!B176=\"\",\"\",2029)","v":""},{"$f":"IF('DC Power Distribution (Desc)'!B176=\"\",\"\",'DC Power Distribution (Desc)'!B176)","v":""},{"$f":"IF('DC Power Distribution (Desc)'!D176=\"\",\"\",'DC Power Distribution (Desc)'!D176)","v":""},{"$f":"IF('DC Power Distribution (Desc)'!E176=\"\",\"\",INDEX([1]ELECTRIC_DEV_MANUF!$A$2:$A$1500,MATCH(1,([1]ELECTRIC_DEV_MANUF!$B$2:$B$1500='DC Power Distribution (Desc)'!$E176)*([1]ELECTRIC_DEV_MANUF!$D$2:$D$1500=\"DCPWRDIS\"),0),0))","v":""},{"$f":"IF('DC Power Distribution (Desc)'!F176=\"\",\"\",INDEX([1]ELECTRIC_DEV_MODEL!$A$2:$A$1500,MATCH(1,([1]ELECTRIC_DEV_MODEL!$C$2:$C$1500='DC Power Distribution (Desc)'!$E176)*([1]ELECTRIC_DEV_MODEL!$D$2:$D$1500='DC Power Distribution (Desc)'!$F176)*([1]ELECTRIC_DEV_MODEL!$F$2:$F$1500=\"DCPWRDIS\"),0),0))","v":""},{"$f":"IF('DC Power Distribution (Desc)'!G176=\"\",\"\",'DC Power Distribution (Desc)'!G176)","v":""},{"$f":"IF('DC Power Distribution (Desc)'!H176=\"\",\"\",INDEX([1]YES_NO!$A$2:$A$100,MATCH('DC Power Distribution (Desc)'!$H176,[1]!MASTER_YES_NO_DESC[#Data],0),0))","v":""},{"$f":"IF('DC Power Distribution (Desc)'!I176=\"\",\"\",'DC Power Distribution (Desc)'!I176)","v":""},{"$f":"IF('DC Power Distribution (Desc)'!J176=\"\",\"\",'DC Power Distribution (Desc)'!J176)","v":""},{"$f":"IF('DC Power Distribution (Desc)'!K176=\"\",\"\",INDEX([1]YES_NO!$A$2:$A$100,MATCH('DC Power Distribution (Desc)'!$K176,[1]!MASTER_YES_NO_DESC[#Data],0),0))","v":""},{"$f":"IF('DC Power Distribution (Desc)'!L176=\"\",\"\",INDEX([1]DEV_INPUT_VOLTAGE!$A$2:$A$100,MATCH('DC Power Distribution (Desc)'!$L176,[1]!MASTER_DEV_INPUT_VOLTAGE_DESC[#Data],0),0))","v":""},{"$f":"IF('DC Power Distribution (Desc)'!M176=\"\",\"\",INDEX([1]DEV_OUTPUT_VOLTAGE!$A$2:$A$100,MATCH('DC Power Distribution (Desc)'!$M176,[1]!MASTER_DEV_INPUT_VOLTAGE_DESC[#Data],0),0))","v":""},{"$f":"IF('DC Power Distribution (Desc)'!N176=\"\",\"\",'DC Power Distribution (Desc)'!N176)","v":""},{"$f":"IF('DC Power Distribution (Desc)'!O176=\"\",\"\",'DC Power Distribution (Desc)'!O176)","v":""},{"$f":"IF('DC Power Distribution (Desc)'!P176=\"\",\"\",'DC Power Distribution (Desc)'!P176)","v":""},{"$f":"IF('DC Power Distribution (Desc)'!B176=\"\",\"\",\"NA\")","v":""}]
[{"$f":"IF('DC Power Distribution (Desc)'!B177=\"\",\"\",2029)","v":""},{"$f":"IF('DC Power Distribution (Desc)'!B177=\"\",\"\",'DC Power Distribution (Desc)'!B177)","v":""},{"$f":"IF('DC Power Distribution (Desc)'!D177=\"\",\"\",'DC Power Distribution (Desc)'!D177)","v":""},{"$f":"IF('DC Power Distribution (Desc)'!E177=\"\",\"\",INDEX([1]ELECTRIC_DEV_MANUF!$A$2:$A$1500,MATCH(1,([1]ELECTRIC_DEV_MANUF!$B$2:$B$1500='DC Power Distribution (Desc)'!$E177)*([1]ELECTRIC_DEV_MANUF!$D$2:$D$1500=\"DCPWRDIS\"),0),0))","v":""},{"$f":"IF('DC Power Distribution (Desc)'!F177=\"\",\"\",INDEX([1]ELECTRIC_DEV_MODEL!$A$2:$A$1500,MATCH(1,([1]ELECTRIC_DEV_MODEL!$C$2:$C$1500='DC Power Distribution (Desc)'!$E177)*([1]ELECTRIC_DEV_MODEL!$D$2:$D$1500='DC Power Distribution (Desc)'!$F177)*([1]ELECTRIC_DEV_MODEL!$F$2:$F$1500=\"DCPWRDIS\"),0),0))","v":""},{"$f":"IF('DC Power Distribution (Desc)'!G177=\"\",\"\",'DC Power Distribution (Desc)'!G177)","v":""},{"$f":"IF('DC Power Distribution (Desc)'!H177=\"\",\"\",INDEX([1]YES_NO!$A$2:$A$100,MATCH('DC Power Distribution (Desc)'!$H177,[1]!MASTER_YES_NO_DESC[#Data],0),0))","v":""},{"$f":"IF('DC Power Distribution (Desc)'!I177=\"\",\"\",'DC Power Distribution (Desc)'!I177)","v":""},{"$f":"IF('DC Power Distribution (Desc)'!J177=\"\",\"\",'DC Power Distribution (Desc)'!J177)","v":""},{"$f":"IF('DC Power Distribution (Desc)'!K177=\"\",\"\",INDEX([1]YES_NO!$A$2:$A$100,MATCH('DC Power Distribution (Desc)'!$K177,[1]!MASTER_YES_NO_DESC[#Data],0),0))","v":""},{"$f":"IF('DC Power Distribution (Desc)'!L177=\"\",\"\",INDEX([1]DEV_INPUT_VOLTAGE!$A$2:$A$100,MATCH('DC Power Distribution (Desc)'!$L177,[1]!MASTER_DEV_INPUT_VOLTAGE_DESC[#Data],0),0))","v":""},{"$f":"IF('DC Power Distribution (Desc)'!M177=\"\",\"\",INDEX([1]DEV_OUTPUT_VOLTAGE!$A$2:$A$100,MATCH('DC Power Distribution (Desc)'!$M177,[1]!MASTER_DEV_INPUT_VOLTAGE_DESC[#Data],0),0))","v":""},{"$f":"IF('DC Power Distribution (Desc)'!N177=\"\",\"\",'DC Power Distribution (Desc)'!N177)","v":""},{"$f":"IF('DC Power Distribution (Desc)'!O177=\"\",\"\",'DC Power Distribution (Desc)'!O177)","v":""},{"$f":"IF('DC Power Distribution (Desc)'!P177=\"\",\"\",'DC Power Distribution (Desc)'!P177)","v":""},{"$f":"IF('DC Power Distribution (Desc)'!B177=\"\",\"\",\"NA\")","v":""}]
[{"$f":"IF('DC Power Distribution (Desc)'!B178=\"\",\"\",2029)","v":""},{"$f":"IF('DC Power Distribution (Desc)'!B178=\"\",\"\",'DC Power Distribution (Desc)'!B178)","v":""},{"$f":"IF('DC Power Distribution (Desc)'!D178=\"\",\"\",'DC Power Distribution (Desc)'!D178)","v":""},{"$f":"IF('DC Power Distribution (Desc)'!E178=\"\",\"\",INDEX([1]ELECTRIC_DEV_MANUF!$A$2:$A$1500,MATCH(1,([1]ELECTRIC_DEV_MANUF!$B$2:$B$1500='DC Power Distribution (Desc)'!$E178)*([1]ELECTRIC_DEV_MANUF!$D$2:$D$1500=\"DCPWRDIS\"),0),0))","v":""},{"$f":"IF('DC Power Distribution (Desc)'!F178=\"\",\"\",INDEX([1]ELECTRIC_DEV_MODEL!$A$2:$A$1500,MATCH(1,([1]ELECTRIC_DEV_MODEL!$C$2:$C$1500='DC Power Distribution (Desc)'!$E178)*([1]ELECTRIC_DEV_MODEL!$D$2:$D$1500='DC Power Distribution (Desc)'!$F178)*([1]ELECTRIC_DEV_MODEL!$F$2:$F$1500=\"DCPWRDIS\"),0),0))","v":""},{"$f":"IF('DC Power Distribution (Desc)'!G178=\"\",\"\",'DC Power Distribution (Desc)'!G178)","v":""},{"$f":"IF('DC Power Distribution (Desc)'!H178=\"\",\"\",INDEX([1]YES_NO!$A$2:$A$100,MATCH('DC Power Distribution (Desc)'!$H178,[1]!MASTER_YES_NO_DESC[#Data],0),0))","v":""},{"$f":"IF('DC Power Distribution (Desc)'!I178=\"\",\"\",'DC Power Distribution (Desc)'!I178)","v":""},{"$f":"IF('DC Power Distribution (Desc)'!J178=\"\",\"\",'DC Power Distribution (Desc)'!J178)","v":""},{"$f":"IF('DC Power Distribution (Desc)'!K178=\"\",\"\",INDEX([1]YES_NO!$A$2:$A$100,MATCH('DC Power Distribution (Desc)'!$K178,[1]!MASTER_YES_NO_DESC[#Data],0),0))","v":""},{"$f":"IF('DC Power Distribution (Desc)'!L178=\"\",\"\",INDEX([1]DEV_INPUT_VOLTAGE!$A$2:$A$100,MATCH('DC Power Distribution (Desc)'!$L178,[1]!MASTER_DEV_INPUT_VOLTAGE_DESC[#Data],0),0))","v":""},{"$f":"IF('DC Power Distribution (Desc)'!M178=\"\",\"\",INDEX([1]DEV_OUTPUT_VOLTAGE!$A$2:$A$100,MATCH('DC Power Distribution (Desc)'!$M178,[1]!MASTER_DEV_INPUT_VOLTAGE_DESC[#Data],0),0))","v":""},{"$f":"IF('DC Power Distribution (Desc)'!N178=\"\",\"\",'DC Power Distribution (Desc)'!N178)","v":""},{"$f":"IF('DC Power Distribution (Desc)'!O178=\"\",\"\",'DC Power Distribution (Desc)'!O178)","v":""},{"$f":"IF('DC Power Distribution (Desc)'!P178=\"\",\"\",'DC Power Distribution (Desc)'!P178)","v":""},{"$f":"IF('DC Power Distribution (Desc)'!B178=\"\",\"\",\"NA\")","v":""}]
[{"$f":"IF('DC Power Distribution (Desc)'!B179=\"\",\"\",2029)","v":""},{"$f":"IF('DC Power Distribution (Desc)'!B179=\"\",\"\",'DC Power Distribution (Desc)'!B179)","v":""},{"$f":"IF('DC Power Distribution (Desc)'!D179=\"\",\"\",'DC Power Distribution (Desc)'!D179)","v":""},{"$f":"IF('DC Power Distribution (Desc)'!E179=\"\",\"\",INDEX([1]ELECTRIC_DEV_MANUF!$A$2:$A$1500,MATCH(1,([1]ELECTRIC_DEV_MANUF!$B$2:$B$1500='DC Power Distribution (Desc)'!$E179)*([1]ELECTRIC_DEV_MANUF!$D$2:$D$1500=\"DCPWRDIS\"),0),0))","v":""},{"$f":"IF('DC Power Distribution (Desc)'!F179=\"\",\"\",INDEX([1]ELECTRIC_DEV_MODEL!$A$2:$A$1500,MATCH(1,([1]ELECTRIC_DEV_MODEL!$C$2:$C$1500='DC Power Distribution (Desc)'!$E179)*([1]ELECTRIC_DEV_MODEL!$D$2:$D$1500='DC Power Distribution (Desc)'!$F179)*([1]ELECTRIC_DEV_MODEL!$F$2:$F$1500=\"DCPWRDIS\"),0),0))","v":""},{"$f":"IF('DC Power Distribution (Desc)'!G179=\"\",\"\",'DC Power Distribution (Desc)'!G179)","v":""},{"$f":"IF('DC Power Distribution (Desc)'!H179=\"\",\"\",INDEX([1]YES_NO!$A$2:$A$100,MATCH('DC Power Distribution (Desc)'!$H179,[1]!MASTER_YES_NO_DESC[#Data],0),0))","v":""},{"$f":"IF('DC Power Distribution (Desc)'!I179=\"\",\"\",'DC Power Distribution (Desc)'!I179)","v":""},{"$f":"IF('DC Power Distribution (Desc)'!J179=\"\",\"\",'DC Power Distribution (Desc)'!J179)","v":""},{"$f":"IF('DC Power Distribution (Desc)'!K179=\"\",\"\",INDEX([1]YES_NO!$A$2:$A$100,MATCH('DC Power Distribution (Desc)'!$K179,[1]!MASTER_YES_NO_DESC[#Data],0),0))","v":""},{"$f":"IF('DC Power Distribution (Desc)'!L179=\"\",\"\",INDEX([1]DEV_INPUT_VOLTAGE!$A$2:$A$100,MATCH('DC Power Distribution (Desc)'!$L179,[1]!MASTER_DEV_INPUT_VOLTAGE_DESC[#Data],0),0))","v":""},{"$f":"IF('DC Power Distribution (Desc)'!M179=\"\",\"\",INDEX([1]DEV_OUTPUT_VOLTAGE!$A$2:$A$100,MATCH('DC Power Distribution (Desc)'!$M179,[1]!MASTER_DEV_INPUT_VOLTAGE_DESC[#Data],0),0))","v":""},{"$f":"IF('DC Power Distribution (Desc)'!N179=\"\",\"\",'DC Power Distribution (Desc)'!N179)","v":""},{"$f":"IF('DC Power Distribution (Desc)'!O179=\"\",\"\",'DC Power Distribution (Desc)'!O179)","v":""},{"$f":"IF('DC Power Distribution (Desc)'!P179=\"\",\"\",'DC Power Distribution (Desc)'!P179)","v":""},{"$f":"IF('DC Power Distribution (Desc)'!B179=\"\",\"\",\"NA\")","v":""}]
[{"$f":"IF('DC Power Distribution (Desc)'!B180=\"\",\"\",2029)","v":""},{"$f":"IF('DC Power Distribution (Desc)'!B180=\"\",\"\",'DC Power Distribution (Desc)'!B180)","v":""},{"$f":"IF('DC Power Distribution (Desc)'!D180=\"\",\"\",'DC Power Distribution (Desc)'!D180)","v":""},{"$f":"IF('DC Power Distribution (Desc)'!E180=\"\",\"\",INDEX([1]ELECTRIC_DEV_MANUF!$A$2:$A$1500,MATCH(1,([1]ELECTRIC_DEV_MANUF!$B$2:$B$1500='DC Power Distribution (Desc)'!$E180)*([1]ELECTRIC_DEV_MANUF!$D$2:$D$1500=\"DCPWRDIS\"),0),0))","v":""},{"$f":"IF('DC Power Distribution (Desc)'!F180=\"\",\"\",INDEX([1]ELECTRIC_DEV_MODEL!$A$2:$A$1500,MATCH(1,([1]ELECTRIC_DEV_MODEL!$C$2:$C$1500='DC Power Distribution (Desc)'!$E180)*([1]ELECTRIC_DEV_MODEL!$D$2:$D$1500='DC Power Distribution (Desc)'!$F180)*([1]ELECTRIC_DEV_MODEL!$F$2:$F$1500=\"DCPWRDIS\"),0),0))","v":""},{"$f":"IF('DC Power Distribution (Desc)'!G180=\"\",\"\",'DC Power Distribution (Desc)'!G180)","v":""},{"$f":"IF('DC Power Distribution (Desc)'!H180=\"\",\"\",INDEX([1]YES_NO!$A$2:$A$100,MATCH('DC Power Distribution (Desc)'!$H180,[1]!MASTER_YES_NO_DESC[#Data],0),0))","v":""},{"$f":"IF('DC Power Distribution (Desc)'!I180=\"\",\"\",'DC Power Distribution (Desc)'!I180)","v":""},{"$f":"IF('DC Power Distribution (Desc)'!J180=\"\",\"\",'DC Power Distribution (Desc)'!J180)","v":""},{"$f":"IF('DC Power Distribution (Desc)'!K180=\"\",\"\",INDEX([1]YES_NO!$A$2:$A$100,MATCH('DC Power Distribution (Desc)'!$K180,[1]!MASTER_YES_NO_DESC[#Data],0),0))","v":""},{"$f":"IF('DC Power Distribution (Desc)'!L180=\"\",\"\",INDEX([1]DEV_INPUT_VOLTAGE!$A$2:$A$100,MATCH('DC Power Distribution (Desc)'!$L180,[1]!MASTER_DEV_INPUT_VOLTAGE_DESC[#Data],0),0))","v":""},{"$f":"IF('DC Power Distribution (Desc)'!M180=\"\",\"\",INDEX([1]DEV_OUTPUT_VOLTAGE!$A$2:$A$100,MATCH('DC Power Distribution (Desc)'!$M180,[1]!MASTER_DEV_INPUT_VOLTAGE_DESC[#Data],0),0))","v":""},{"$f":"IF('DC Power Distribution (Desc)'!N180=\"\",\"\",'DC Power Distribution (Desc)'!N180)","v":""},{"$f":"IF('DC Power Distribution (Desc)'!O180=\"\",\"\",'DC Power Distribution (Desc)'!O180)","v":""},{"$f":"IF('DC Power Distribution (Desc)'!P180=\"\",\"\",'DC Power Distribution (Desc)'!P180)","v":""},{"$f":"IF('DC Power Distribution (Desc)'!B180=\"\",\"\",\"NA\")","v":""}]
[{"$f":"IF('DC Power Distribution (Desc)'!B181=\"\",\"\",2029)","v":""},{"$f":"IF('DC Power Distribution (Desc)'!B181=\"\",\"\",'DC Power Distribution (Desc)'!B181)","v":""},{"$f":"IF('DC Power Distribution (Desc)'!D181=\"\",\"\",'DC Power Distribution (Desc)'!D181)","v":""},{"$f":"IF('DC Power Distribution (Desc)'!E181=\"\",\"\",INDEX([1]ELECTRIC_DEV_MANUF!$A$2:$A$1500,MATCH(1,([1]ELECTRIC_DEV_MANUF!$B$2:$B$1500='DC Power Distribution (Desc)'!$E181)*([1]ELECTRIC_DEV_MANUF!$D$2:$D$1500=\"DCPWRDIS\"),0),0))","v":""},{"$f":"IF('DC Power Distribution (Desc)'!F181=\"\",\"\",INDEX([1]ELECTRIC_DEV_MODEL!$A$2:$A$1500,MATCH(1,([1]ELECTRIC_DEV_MODEL!$C$2:$C$1500='DC Power Distribution (Desc)'!$E181)*([1]ELECTRIC_DEV_MODEL!$D$2:$D$1500='DC Power Distribution (Desc)'!$F181)*([1]ELECTRIC_DEV_MODEL!$F$2:$F$1500=\"DCPWRDIS\"),0),0))","v":""},{"$f":"IF('DC Power Distribution (Desc)'!G181=\"\",\"\",'DC Power Distribution (Desc)'!G181)","v":""},{"$f":"IF('DC Power Distribution (Desc)'!H181=\"\",\"\",INDEX([1]YES_NO!$A$2:$A$100,MATCH('DC Power Distribution (Desc)'!$H181,[1]!MASTER_YES_NO_DESC[#Data],0),0))","v":""},{"$f":"IF('DC Power Distribution (Desc)'!I181=\"\",\"\",'DC Power Distribution (Desc)'!I181)","v":""},{"$f":"IF('DC Power Distribution (Desc)'!J181=\"\",\"\",'DC Power Distribution (Desc)'!J181)","v":""},{"$f":"IF('DC Power Distribution (Desc)'!K181=\"\",\"\",INDEX([1]YES_NO!$A$2:$A$100,MATCH('DC Power Distribution (Desc)'!$K181,[1]!MASTER_YES_NO_DESC[#Data],0),0))","v":""},{"$f":"IF('DC Power Distribution (Desc)'!L181=\"\",\"\",INDEX([1]DEV_INPUT_VOLTAGE!$A$2:$A$100,MATCH('DC Power Distribution (Desc)'!$L181,[1]!MASTER_DEV_INPUT_VOLTAGE_DESC[#Data],0),0))","v":""},{"$f":"IF('DC Power Distribution (Desc)'!M181=\"\",\"\",INDEX([1]DEV_OUTPUT_VOLTAGE!$A$2:$A$100,MATCH('DC Power Distribution (Desc)'!$M181,[1]!MASTER_DEV_INPUT_VOLTAGE_DESC[#Data],0),0))","v":""},{"$f":"IF('DC Power Distribution (Desc)'!N181=\"\",\"\",'DC Power Distribution (Desc)'!N181)","v":""},{"$f":"IF('DC Power Distribution (Desc)'!O181=\"\",\"\",'DC Power Distribution (Desc)'!O181)","v":""},{"$f":"IF('DC Power Distribution (Desc)'!P181=\"\",\"\",'DC Power Distribution (Desc)'!P181)","v":""},{"$f":"IF('DC Power Distribution (Desc)'!B181=\"\",\"\",\"NA\")","v":""}]
[{"$f":"IF('DC Power Distribution (Desc)'!B182=\"\",\"\",2029)","v":""},{"$f":"IF('DC Power Distribution (Desc)'!B182=\"\",\"\",'DC Power Distribution (Desc)'!B182)","v":""},{"$f":"IF('DC Power Distribution (Desc)'!D182=\"\",\"\",'DC Power Distribution (Desc)'!D182)","v":""},{"$f":"IF('DC Power Distribution (Desc)'!E182=\"\",\"\",INDEX([1]ELECTRIC_DEV_MANUF!$A$2:$A$1500,MATCH(1,([1]ELECTRIC_DEV_MANUF!$B$2:$B$1500='DC Power Distribution (Desc)'!$E182)*([1]ELECTRIC_DEV_MANUF!$D$2:$D$1500=\"DCPWRDIS\"),0),0))","v":""},{"$f":"IF('DC Power Distribution (Desc)'!F182=\"\",\"\",INDEX([1]ELECTRIC_DEV_MODEL!$A$2:$A$1500,MATCH(1,([1]ELECTRIC_DEV_MODEL!$C$2:$C$1500='DC Power Distribution (Desc)'!$E182)*([1]ELECTRIC_DEV_MODEL!$D$2:$D$1500='DC Power Distribution (Desc)'!$F182)*([1]ELECTRIC_DEV_MODEL!$F$2:$F$1500=\"DCPWRDIS\"),0),0))","v":""},{"$f":"IF('DC Power Distribution (Desc)'!G182=\"\",\"\",'DC Power Distribution (Desc)'!G182)","v":""},{"$f":"IF('DC Power Distribution (Desc)'!H182=\"\",\"\",INDEX([1]YES_NO!$A$2:$A$100,MATCH('DC Power Distribution (Desc)'!$H182,[1]!MASTER_YES_NO_DESC[#Data],0),0))","v":""},{"$f":"IF('DC Power Distribution (Desc)'!I182=\"\",\"\",'DC Power Distribution (Desc)'!I182)","v":""},{"$f":"IF('DC Power Distribution (Desc)'!J182=\"\",\"\",'DC Power Distribution (Desc)'!J182)","v":""},{"$f":"IF('DC Power Distribution (Desc)'!K182=\"\",\"\",INDEX([1]YES_NO!$A$2:$A$100,MATCH('DC Power Distribution (Desc)'!$K182,[1]!MASTER_YES_NO_DESC[#Data],0),0))","v":""},{"$f":"IF('DC Power Distribution (Desc)'!L182=\"\",\"\",INDEX([1]DEV_INPUT_VOLTAGE!$A$2:$A$100,MATCH('DC Power Distribution (Desc)'!$L182,[1]!MASTER_DEV_INPUT_VOLTAGE_DESC[#Data],0),0))","v":""},{"$f":"IF('DC Power Distribution (Desc)'!M182=\"\",\"\",INDEX([1]DEV_OUTPUT_VOLTAGE!$A$2:$A$100,MATCH('DC Power Distribution (Desc)'!$M182,[1]!MASTER_DEV_INPUT_VOLTAGE_DESC[#Data],0),0))","v":""},{"$f":"IF('DC Power Distribution (Desc)'!N182=\"\",\"\",'DC Power Distribution (Desc)'!N182)","v":""},{"$f":"IF('DC Power Distribution (Desc)'!O182=\"\",\"\",'DC Power Distribution (Desc)'!O182)","v":""},{"$f":"IF('DC Power Distribution (Desc)'!P182=\"\",\"\",'DC Power Distribution (Desc)'!P182)","v":""},{"$f":"IF('DC Power Distribution (Desc)'!B182=\"\",\"\",\"NA\")","v":""}]
[{"$f":"IF('DC Power Distribution (Desc)'!B183=\"\",\"\",2029)","v":""},{"$f":"IF('DC Power Distribution (Desc)'!B183=\"\",\"\",'DC Power Distribution (Desc)'!B183)","v":""},{"$f":"IF('DC Power Distribution (Desc)'!D183=\"\",\"\",'DC Power Distribution (Desc)'!D183)","v":""},{"$f":"IF('DC Power Distribution (Desc)'!E183=\"\",\"\",INDEX([1]ELECTRIC_DEV_MANUF!$A$2:$A$1500,MATCH(1,([1]ELECTRIC_DEV_MANUF!$B$2:$B$1500='DC Power Distribution (Desc)'!$E183)*([1]ELECTRIC_DEV_MANUF!$D$2:$D$1500=\"DCPWRDIS\"),0),0))","v":""},{"$f":"IF('DC Power Distribution (Desc)'!F183=\"\",\"\",INDEX([1]ELECTRIC_DEV_MODEL!$A$2:$A$1500,MATCH(1,([1]ELECTRIC_DEV_MODEL!$C$2:$C$1500='DC Power Distribution (Desc)'!$E183)*([1]ELECTRIC_DEV_MODEL!$D$2:$D$1500='DC Power Distribution (Desc)'!$F183)*([1]ELECTRIC_DEV_MODEL!$F$2:$F$1500=\"DCPWRDIS\"),0),0))","v":""},{"$f":"IF('DC Power Distribution (Desc)'!G183=\"\",\"\",'DC Power Distribution (Desc)'!G183)","v":""},{"$f":"IF('DC Power Distribution (Desc)'!H183=\"\",\"\",INDEX([1]YES_NO!$A$2:$A$100,MATCH('DC Power Distribution (Desc)'!$H183,[1]!MASTER_YES_NO_DESC[#Data],0),0))","v":""},{"$f":"IF('DC Power Distribution (Desc)'!I183=\"\",\"\",'DC Power Distribution (Desc)'!I183)","v":""},{"$f":"IF('DC Power Distribution (Desc)'!J183=\"\",\"\",'DC Power Distribution (Desc)'!J183)","v":""},{"$f":"IF('DC Power Distribution (Desc)'!K183=\"\",\"\",INDEX([1]YES_NO!$A$2:$A$100,MATCH('DC Power Distribution (Desc)'!$K183,[1]!MASTER_YES_NO_DESC[#Data],0),0))","v":""},{"$f":"IF('DC Power Distribution (Desc)'!L183=\"\",\"\",INDEX([1]DEV_INPUT_VOLTAGE!$A$2:$A$100,MATCH('DC Power Distribution (Desc)'!$L183,[1]!MASTER_DEV_INPUT_VOLTAGE_DESC[#Data],0),0))","v":""},{"$f":"IF('DC Power Distribution (Desc)'!M183=\"\",\"\",INDEX([1]DEV_OUTPUT_VOLTAGE!$A$2:$A$100,MATCH('DC Power Distribution (Desc)'!$M183,[1]!MASTER_DEV_INPUT_VOLTAGE_DESC[#Data],0),0))","v":""},{"$f":"IF('DC Power Distribution (Desc)'!N183=\"\",\"\",'DC Power Distribution (Desc)'!N183)","v":""},{"$f":"IF('DC Power Distribution (Desc)'!O183=\"\",\"\",'DC Power Distribution (Desc)'!O183)","v":""},{"$f":"IF('DC Power Distribution (Desc)'!P183=\"\",\"\",'DC Power Distribution (Desc)'!P183)","v":""},{"$f":"IF('DC Power Distribution (Desc)'!B183=\"\",\"\",\"NA\")","v":""}]
[{"$f":"IF('DC Power Distribution (Desc)'!B184=\"\",\"\",2029)","v":""},{"$f":"IF('DC Power Distribution (Desc)'!B184=\"\",\"\",'DC Power Distribution (Desc)'!B184)","v":""},{"$f":"IF('DC Power Distribution (Desc)'!D184=\"\",\"\",'DC Power Distribution (Desc)'!D184)","v":""},{"$f":"IF('DC Power Distribution (Desc)'!E184=\"\",\"\",INDEX([1]ELECTRIC_DEV_MANUF!$A$2:$A$1500,MATCH(1,([1]ELECTRIC_DEV_MANUF!$B$2:$B$1500='DC Power Distribution (Desc)'!$E184)*([1]ELECTRIC_DEV_MANUF!$D$2:$D$1500=\"DCPWRDIS\"),0),0))","v":""},{"$f":"IF('DC Power Distribution (Desc)'!F184=\"\",\"\",INDEX([1]ELECTRIC_DEV_MODEL!$A$2:$A$1500,MATCH(1,([1]ELECTRIC_DEV_MODEL!$C$2:$C$1500='DC Power Distribution (Desc)'!$E184)*([1]ELECTRIC_DEV_MODEL!$D$2:$D$1500='DC Power Distribution (Desc)'!$F184)*([1]ELECTRIC_DEV_MODEL!$F$2:$F$1500=\"DCPWRDIS\"),0),0))","v":""},{"$f":"IF('DC Power Distribution (Desc)'!G184=\"\",\"\",'DC Power Distribution (Desc)'!G184)","v":""},{"$f":"IF('DC Power Distribution (Desc)'!H184=\"\",\"\",INDEX([1]YES_NO!$A$2:$A$100,MATCH('DC Power Distribution (Desc)'!$H184,[1]!MASTER_YES_NO_DESC[#Data],0),0))","v":""},{"$f":"IF('DC Power Distribution (Desc)'!I184=\"\",\"\",'DC Power Distribution (Desc)'!I184)","v":""},{"$f":"IF('DC Power Distribution (Desc)'!J184=\"\",\"\",'DC Power Distribution (Desc)'!J184)","v":""},{"$f":"IF('DC Power Distribution (Desc)'!K184=\"\",\"\",INDEX([1]YES_NO!$A$2:$A$100,MATCH('DC Power Distribution (Desc)'!$K184,[1]!MASTER_YES_NO_DESC[#Data],0),0))","v":""},{"$f":"IF('DC Power Distribution (Desc)'!L184=\"\",\"\",INDEX([1]DEV_INPUT_VOLTAGE!$A$2:$A$100,MATCH('DC Power Distribution (Desc)'!$L184,[1]!MASTER_DEV_INPUT_VOLTAGE_DESC[#Data],0),0))","v":""},{"$f":"IF('DC Power Distribution (Desc)'!M184=\"\",\"\",INDEX([1]DEV_OUTPUT_VOLTAGE!$A$2:$A$100,MATCH('DC Power Distribution (Desc)'!$M184,[1]!MASTER_DEV_INPUT_VOLTAGE_DESC[#Data],0),0))","v":""},{"$f":"IF('DC Power Distribution (Desc)'!N184=\"\",\"\",'DC Power Distribution (Desc)'!N184)","v":""},{"$f":"IF('DC Power Distribution (Desc)'!O184=\"\",\"\",'DC Power Distribution (Desc)'!O184)","v":""},{"$f":"IF('DC Power Distribution (Desc)'!P184=\"\",\"\",'DC Power Distribution (Desc)'!P184)","v":""},{"$f":"IF('DC Power Distribution (Desc)'!B184=\"\",\"\",\"NA\")","v":""}]
[{"$f":"IF('DC Power Distribution (Desc)'!B185=\"\",\"\",2029)","v":""},{"$f":"IF('DC Power Distribution (Desc)'!B185=\"\",\"\",'DC Power Distribution (Desc)'!B185)","v":""},{"$f":"IF('DC Power Distribution (Desc)'!D185=\"\",\"\",'DC Power Distribution (Desc)'!D185)","v":""},{"$f":"IF('DC Power Distribution (Desc)'!E185=\"\",\"\",INDEX([1]ELECTRIC_DEV_MANUF!$A$2:$A$1500,MATCH(1,([1]ELECTRIC_DEV_MANUF!$B$2:$B$1500='DC Power Distribution (Desc)'!$E185)*([1]ELECTRIC_DEV_MANUF!$D$2:$D$1500=\"DCPWRDIS\"),0),0))","v":""},{"$f":"IF('DC Power Distribution (Desc)'!F185=\"\",\"\",INDEX([1]ELECTRIC_DEV_MODEL!$A$2:$A$1500,MATCH(1,([1]ELECTRIC_DEV_MODEL!$C$2:$C$1500='DC Power Distribution (Desc)'!$E185)*([1]ELECTRIC_DEV_MODEL!$D$2:$D$1500='DC Power Distribution (Desc)'!$F185)*([1]ELECTRIC_DEV_MODEL!$F$2:$F$1500=\"DCPWRDIS\"),0),0))","v":""},{"$f":"IF('DC Power Distribution (Desc)'!G185=\"\",\"\",'DC Power Distribution (Desc)'!G185)","v":""},{"$f":"IF('DC Power Distribution (Desc)'!H185=\"\",\"\",INDEX([1]YES_NO!$A$2:$A$100,MATCH('DC Power Distribution (Desc)'!$H185,[1]!MASTER_YES_NO_DESC[#Data],0),0))","v":""},{"$f":"IF('DC Power Distribution (Desc)'!I185=\"\",\"\",'DC Power Distribution (Desc)'!I185)","v":""},{"$f":"IF('DC Power Distribution (Desc)'!J185=\"\",\"\",'DC Power Distribution (Desc)'!J185)","v":""},{"$f":"IF('DC Power Distribution (Desc)'!K185=\"\",\"\",INDEX([1]YES_NO!$A$2:$A$100,MATCH('DC Power Distribution (Desc)'!$K185,[1]!MASTER_YES_NO_DESC[#Data],0),0))","v":""},{"$f":"IF('DC Power Distribution (Desc)'!L185=\"\",\"\",INDEX([1]DEV_INPUT_VOLTAGE!$A$2:$A$100,MATCH('DC Power Distribution (Desc)'!$L185,[1]!MASTER_DEV_INPUT_VOLTAGE_DESC[#Data],0),0))","v":""},{"$f":"IF('DC Power Distribution (Desc)'!M185=\"\",\"\",INDEX([1]DEV_OUTPUT_VOLTAGE!$A$2:$A$100,MATCH('DC Power Distribution (Desc)'!$M185,[1]!MASTER_DEV_INPUT_VOLTAGE_DESC[#Data],0),0))","v":""},{"$f":"IF('DC Power Distribution (Desc)'!N185=\"\",\"\",'DC Power Distribution (Desc)'!N185)","v":""},{"$f":"IF('DC Power Distribution (Desc)'!O185=\"\",\"\",'DC Power Distribution (Desc)'!O185)","v":""},{"$f":"IF('DC Power Distribution (Desc)'!P185=\"\",\"\",'DC Power Distribution (Desc)'!P185)","v":""},{"$f":"IF('DC Power Distribution (Desc)'!B185=\"\",\"\",\"NA\")","v":""}]
[{"$f":"IF('DC Power Distribution (Desc)'!B186=\"\",\"\",2029)","v":""},{"$f":"IF('DC Power Distribution (Desc)'!B186=\"\",\"\",'DC Power Distribution (Desc)'!B186)","v":""},{"$f":"IF('DC Power Distribution (Desc)'!D186=\"\",\"\",'DC Power Distribution (Desc)'!D186)","v":""},{"$f":"IF('DC Power Distribution (Desc)'!E186=\"\",\"\",INDEX([1]ELECTRIC_DEV_MANUF!$A$2:$A$1500,MATCH(1,([1]ELECTRIC_DEV_MANUF!$B$2:$B$1500='DC Power Distribution (Desc)'!$E186)*([1]ELECTRIC_DEV_MANUF!$D$2:$D$1500=\"DCPWRDIS\"),0),0))","v":""},{"$f":"IF('DC Power Distribution (Desc)'!F186=\"\",\"\",INDEX([1]ELECTRIC_DEV_MODEL!$A$2:$A$1500,MATCH(1,([1]ELECTRIC_DEV_MODEL!$C$2:$C$1500='DC Power Distribution (Desc)'!$E186)*([1]ELECTRIC_DEV_MODEL!$D$2:$D$1500='DC Power Distribution (Desc)'!$F186)*([1]ELECTRIC_DEV_MODEL!$F$2:$F$1500=\"DCPWRDIS\"),0),0))","v":""},{"$f":"IF('DC Power Distribution (Desc)'!G186=\"\",\"\",'DC Power Distribution (Desc)'!G186)","v":""},{"$f":"IF('DC Power Distribution (Desc)'!H186=\"\",\"\",INDEX([1]YES_NO!$A$2:$A$100,MATCH('DC Power Distribution (Desc)'!$H186,[1]!MASTER_YES_NO_DESC[#Data],0),0))","v":""},{"$f":"IF('DC Power Distribution (Desc)'!I186=\"\",\"\",'DC Power Distribution (Desc)'!I186)","v":""},{"$f":"IF('DC Power Distribution (Desc)'!J186=\"\",\"\",'DC Power Distribution (Desc)'!J186)","v":""},{"$f":"IF('DC Power Distribution (Desc)'!K186=\"\",\"\",INDEX([1]YES_NO!$A$2:$A$100,MATCH('DC Power Distribution (Desc)'!$K186,[1]!MASTER_YES_NO_DESC[#Data],0),0))","v":""},{"$f":"IF('DC Power Distribution (Desc)'!L186=\"\",\"\",INDEX([1]DEV_INPUT_VOLTAGE!$A$2:$A$100,MATCH('DC Power Distribution (Desc)'!$L186,[1]!MASTER_DEV_INPUT_VOLTAGE_DESC[#Data],0),0))","v":""},{"$f":"IF('DC Power Distribution (Desc)'!M186=\"\",\"\",INDEX([1]DEV_OUTPUT_VOLTAGE!$A$2:$A$100,MATCH('DC Power Distribution (Desc)'!$M186,[1]!MASTER_DEV_INPUT_VOLTAGE_DESC[#Data],0),0))","v":""},{"$f":"IF('DC Power Distribution (Desc)'!N186=\"\",\"\",'DC Power Distribution (Desc)'!N186)","v":""},{"$f":"IF('DC Power Distribution (Desc)'!O186=\"\",\"\",'DC Power Distribution (Desc)'!O186)","v":""},{"$f":"IF('DC Power Distribution (Desc)'!P186=\"\",\"\",'DC Power Distribution (Desc)'!P186)","v":""},{"$f":"IF('DC Power Distribution (Desc)'!B186=\"\",\"\",\"NA\")","v":""}]
[{"$f":"IF('DC Power Distribution (Desc)'!B187=\"\",\"\",2029)","v":""},{"$f":"IF('DC Power Distribution (Desc)'!B187=\"\",\"\",'DC Power Distribution (Desc)'!B187)","v":""},{"$f":"IF('DC Power Distribution (Desc)'!D187=\"\",\"\",'DC Power Distribution (Desc)'!D187)","v":""},{"$f":"IF('DC Power Distribution (Desc)'!E187=\"\",\"\",INDEX([1]ELECTRIC_DEV_MANUF!$A$2:$A$1500,MATCH(1,([1]ELECTRIC_DEV_MANUF!$B$2:$B$1500='DC Power Distribution (Desc)'!$E187)*([1]ELECTRIC_DEV_MANUF!$D$2:$D$1500=\"DCPWRDIS\"),0),0))","v":""},{"$f":"IF('DC Power Distribution (Desc)'!F187=\"\",\"\",INDEX([1]ELECTRIC_DEV_MODEL!$A$2:$A$1500,MATCH(1,([1]ELECTRIC_DEV_MODEL!$C$2:$C$1500='DC Power Distribution (Desc)'!$E187)*([1]ELECTRIC_DEV_MODEL!$D$2:$D$1500='DC Power Distribution (Desc)'!$F187)*([1]ELECTRIC_DEV_MODEL!$F$2:$F$1500=\"DCPWRDIS\"),0),0))","v":""},{"$f":"IF('DC Power Distribution (Desc)'!G187=\"\",\"\",'DC Power Distribution (Desc)'!G187)","v":""},{"$f":"IF('DC Power Distribution (Desc)'!H187=\"\",\"\",INDEX([1]YES_NO!$A$2:$A$100,MATCH('DC Power Distribution (Desc)'!$H187,[1]!MASTER_YES_NO_DESC[#Data],0),0))","v":""},{"$f":"IF('DC Power Distribution (Desc)'!I187=\"\",\"\",'DC Power Distribution (Desc)'!I187)","v":""},{"$f":"IF('DC Power Distribution (Desc)'!J187=\"\",\"\",'DC Power Distribution (Desc)'!J187)","v":""},{"$f":"IF('DC Power Distribution (Desc)'!K187=\"\",\"\",INDEX([1]YES_NO!$A$2:$A$100,MATCH('DC Power Distribution (Desc)'!$K187,[1]!MASTER_YES_NO_DESC[#Data],0),0))","v":""},{"$f":"IF('DC Power Distribution (Desc)'!L187=\"\",\"\",INDEX([1]DEV_INPUT_VOLTAGE!$A$2:$A$100,MATCH('DC Power Distribution (Desc)'!$L187,[1]!MASTER_DEV_INPUT_VOLTAGE_DESC[#Data],0),0))","v":""},{"$f":"IF('DC Power Distribution (Desc)'!M187=\"\",\"\",INDEX([1]DEV_OUTPUT_VOLTAGE!$A$2:$A$100,MATCH('DC Power Distribution (Desc)'!$M187,[1]!MASTER_DEV_INPUT_VOLTAGE_DESC[#Data],0),0))","v":""},{"$f":"IF('DC Power Distribution (Desc)'!N187=\"\",\"\",'DC Power Distribution (Desc)'!N187)","v":""},{"$f":"IF('DC Power Distribution (Desc)'!O187=\"\",\"\",'DC Power Distribution (Desc)'!O187)","v":""},{"$f":"IF('DC Power Distribution (Desc)'!P187=\"\",\"\",'DC Power Distribution (Desc)'!P187)","v":""},{"$f":"IF('DC Power Distribution (Desc)'!B187=\"\",\"\",\"NA\")","v":""}]
[{"$f":"IF('DC Power Distribution (Desc)'!B188=\"\",\"\",2029)","v":""},{"$f":"IF('DC Power Distribution (Desc)'!B188=\"\",\"\",'DC Power Distribution (Desc)'!B188)","v":""},{"$f":"IF('DC Power Distribution (Desc)'!D188=\"\",\"\",'DC Power Distribution (Desc)'!D188)","v":""},{"$f":"IF('DC Power Distribution (Desc)'!E188=\"\",\"\",INDEX([1]ELECTRIC_DEV_MANUF!$A$2:$A$1500,MATCH(1,([1]ELECTRIC_DEV_MANUF!$B$2:$B$1500='DC Power Distribution (Desc)'!$E188)*([1]ELECTRIC_DEV_MANUF!$D$2:$D$1500=\"DCPWRDIS\"),0),0))","v":""},{"$f":"IF('DC Power Distribution (Desc)'!F188=\"\",\"\",INDEX([1]ELECTRIC_DEV_MODEL!$A$2:$A$1500,MATCH(1,([1]ELECTRIC_DEV_MODEL!$C$2:$C$1500='DC Power Distribution (Desc)'!$E188)*([1]ELECTRIC_DEV_MODEL!$D$2:$D$1500='DC Power Distribution (Desc)'!$F188)*([1]ELECTRIC_DEV_MODEL!$F$2:$F$1500=\"DCPWRDIS\"),0),0))","v":""},{"$f":"IF('DC Power Distribution (Desc)'!G188=\"\",\"\",'DC Power Distribution (Desc)'!G188)","v":""},{"$f":"IF('DC Power Distribution (Desc)'!H188=\"\",\"\",INDEX([1]YES_NO!$A$2:$A$100,MATCH('DC Power Distribution (Desc)'!$H188,[1]!MASTER_YES_NO_DESC[#Data],0),0))","v":""},{"$f":"IF('DC Power Distribution (Desc)'!I188=\"\",\"\",'DC Power Distribution (Desc)'!I188)","v":""},{"$f":"IF('DC Power Distribution (Desc)'!J188=\"\",\"\",'DC Power Distribution (Desc)'!J188)","v":""},{"$f":"IF('DC Power Distribution (Desc)'!K188=\"\",\"\",INDEX([1]YES_NO!$A$2:$A$100,MATCH('DC Power Distribution (Desc)'!$K188,[1]!MASTER_YES_NO_DESC[#Data],0),0))","v":""},{"$f":"IF('DC Power Distribution (Desc)'!L188=\"\",\"\",INDEX([1]DEV_INPUT_VOLTAGE!$A$2:$A$100,MATCH('DC Power Distribution (Desc)'!$L188,[1]!MASTER_DEV_INPUT_VOLTAGE_DESC[#Data],0),0))","v":""},{"$f":"IF('DC Power Distribution (Desc)'!M188=\"\",\"\",INDEX([1]DEV_OUTPUT_VOLTAGE!$A$2:$A$100,MATCH('DC Power Distribution (Desc)'!$M188,[1]!MASTER_DEV_INPUT_VOLTAGE_DESC[#Data],0),0))","v":""},{"$f":"IF('DC Power Distribution (Desc)'!N188=\"\",\"\",'DC Power Distribution (Desc)'!N188)","v":""},{"$f":"IF('DC Power Distribution (Desc)'!O188=\"\",\"\",'DC Power Distribution (Desc)'!O188)","v":""},{"$f":"IF('DC Power Distribution (Desc)'!P188=\"\",\"\",'DC Power Distribution (Desc)'!P188)","v":""},{"$f":"IF('DC Power Distribution (Desc)'!B188=\"\",\"\",\"NA\")","v":""}]
[{"$f":"IF('DC Power Distribution (Desc)'!B189=\"\",\"\",2029)","v":""},{"$f":"IF('DC Power Distribution (Desc)'!B189=\"\",\"\",'DC Power Distribution (Desc)'!B189)","v":""},{"$f":"IF('DC Power Distribution (Desc)'!D189=\"\",\"\",'DC Power Distribution (Desc)'!D189)","v":""},{"$f":"IF('DC Power Distribution (Desc)'!E189=\"\",\"\",INDEX([1]ELECTRIC_DEV_MANUF!$A$2:$A$1500,MATCH(1,([1]ELECTRIC_DEV_MANUF!$B$2:$B$1500='DC Power Distribution (Desc)'!$E189)*([1]ELECTRIC_DEV_MANUF!$D$2:$D$1500=\"DCPWRDIS\"),0),0))","v":""},{"$f":"IF('DC Power Distribution (Desc)'!F189=\"\",\"\",INDEX([1]ELECTRIC_DEV_MODEL!$A$2:$A$1500,MATCH(1,([1]ELECTRIC_DEV_MODEL!$C$2:$C$1500='DC Power Distribution (Desc)'!$E189)*([1]ELECTRIC_DEV_MODEL!$D$2:$D$1500='DC Power Distribution (Desc)'!$F189)*([1]ELECTRIC_DEV_MODEL!$F$2:$F$1500=\"DCPWRDIS\"),0),0))","v":""},{"$f":"IF('DC Power Distribution (Desc)'!G189=\"\",\"\",'DC Power Distribution (Desc)'!G189)","v":""},{"$f":"IF('DC Power Distribution (Desc)'!H189=\"\",\"\",INDEX([1]YES_NO!$A$2:$A$100,MATCH('DC Power Distribution (Desc)'!$H189,[1]!MASTER_YES_NO_DESC[#Data],0),0))","v":""},{"$f":"IF('DC Power Distribution (Desc)'!I189=\"\",\"\",'DC Power Distribution (Desc)'!I189)","v":""},{"$f":"IF('DC Power Distribution (Desc)'!J189=\"\",\"\",'DC Power Distribution (Desc)'!J189)","v":""},{"$f":"IF('DC Power Distribution (Desc)'!K189=\"\",\"\",INDEX([1]YES_NO!$A$2:$A$100,MATCH('DC Power Distribution (Desc)'!$K189,[1]!MASTER_YES_NO_DESC[#Data],0),0))","v":""},{"$f":"IF('DC Power Distribution (Desc)'!L189=\"\",\"\",INDEX([1]DEV_INPUT_VOLTAGE!$A$2:$A$100,MATCH('DC Power Distribution (Desc)'!$L189,[1]!MASTER_DEV_INPUT_VOLTAGE_DESC[#Data],0),0))","v":""},{"$f":"IF('DC Power Distribution (Desc)'!M189=\"\",\"\",INDEX([1]DEV_OUTPUT_VOLTAGE!$A$2:$A$100,MATCH('DC Power Distribution (Desc)'!$M189,[1]!MASTER_DEV_INPUT_VOLTAGE_DESC[#Data],0),0))","v":""},{"$f":"IF('DC Power Distribution (Desc)'!N189=\"\",\"\",'DC Power Distribution (Desc)'!N189)","v":""},{"$f":"IF('DC Power Distribution (Desc)'!O189=\"\",\"\",'DC Power Distribution (Desc)'!O189)","v":""},{"$f":"IF('DC Power Distribution (Desc)'!P189=\"\",\"\",'DC Power Distribution (Desc)'!P189)","v":""},{"$f":"IF('DC Power Distribution (Desc)'!B189=\"\",\"\",\"NA\")","v":""}]
[{"$f":"IF('DC Power Distribution (Desc)'!B190=\"\",\"\",2029)","v":""},{"$f":"IF('DC Power Distribution (Desc)'!B190=\"\",\"\",'DC Power Distribution (Desc)'!B190)","v":""},{"$f":"IF('DC Power Distribution (Desc)'!D190=\"\",\"\",'DC Power Distribution (Desc)'!D190)","v":""},{"$f":"IF('DC Power Distribution (Desc)'!E190=\"\",\"\",INDEX([1]ELECTRIC_DEV_MANUF!$A$2:$A$1500,MATCH(1,([1]ELECTRIC_DEV_MANUF!$B$2:$B$1500='DC Power Distribution (Desc)'!$E190)*([1]ELECTRIC_DEV_MANUF!$D$2:$D$1500=\"DCPWRDIS\"),0),0))","v":""},{"$f":"IF('DC Power Distribution (Desc)'!F190=\"\",\"\",INDEX([1]ELECTRIC_DEV_MODEL!$A$2:$A$1500,MATCH(1,([1]ELECTRIC_DEV_MODEL!$C$2:$C$1500='DC Power Distribution (Desc)'!$E190)*([1]ELECTRIC_DEV_MODEL!$D$2:$D$1500='DC Power Distribution (Desc)'!$F190)*([1]ELECTRIC_DEV_MODEL!$F$2:$F$1500=\"DCPWRDIS\"),0),0))","v":""},{"$f":"IF('DC Power Distribution (Desc)'!G190=\"\",\"\",'DC Power Distribution (Desc)'!G190)","v":""},{"$f":"IF('DC Power Distribution (Desc)'!H190=\"\",\"\",INDEX([1]YES_NO!$A$2:$A$100,MATCH('DC Power Distribution (Desc)'!$H190,[1]!MASTER_YES_NO_DESC[#Data],0),0))","v":""},{"$f":"IF('DC Power Distribution (Desc)'!I190=\"\",\"\",'DC Power Distribution (Desc)'!I190)","v":""},{"$f":"IF('DC Power Distribution (Desc)'!J190=\"\",\"\",'DC Power Distribution (Desc)'!J190)","v":""},{"$f":"IF('DC Power Distribution (Desc)'!K190=\"\",\"\",INDEX([1]YES_NO!$A$2:$A$100,MATCH('DC Power Distribution (Desc)'!$K190,[1]!MASTER_YES_NO_DESC[#Data],0),0))","v":""},{"$f":"IF('DC Power Distribution (Desc)'!L190=\"\",\"\",INDEX([1]DEV_INPUT_VOLTAGE!$A$2:$A$100,MATCH('DC Power Distribution (Desc)'!$L190,[1]!MASTER_DEV_INPUT_VOLTAGE_DESC[#Data],0),0))","v":""},{"$f":"IF('DC Power Distribution (Desc)'!M190=\"\",\"\",INDEX([1]DEV_OUTPUT_VOLTAGE!$A$2:$A$100,MATCH('DC Power Distribution (Desc)'!$M190,[1]!MASTER_DEV_INPUT_VOLTAGE_DESC[#Data],0),0))","v":""},{"$f":"IF('DC Power Distribution (Desc)'!N190=\"\",\"\",'DC Power Distribution (Desc)'!N190)","v":""},{"$f":"IF('DC Power Distribution (Desc)'!O190=\"\",\"\",'DC Power Distribution (Desc)'!O190)","v":""},{"$f":"IF('DC Power Distribution (Desc)'!P190=\"\",\"\",'DC Power Distribution (Desc)'!P190)","v":""},{"$f":"IF('DC Power Distribution (Desc)'!B190=\"\",\"\",\"NA\")","v":""}]
[{"$f":"IF('DC Power Distribution (Desc)'!B191=\"\",\"\",2029)","v":""},{"$f":"IF('DC Power Distribution (Desc)'!B191=\"\",\"\",'DC Power Distribution (Desc)'!B191)","v":""},{"$f":"IF('DC Power Distribution (Desc)'!D191=\"\",\"\",'DC Power Distribution (Desc)'!D191)","v":""},{"$f":"IF('DC Power Distribution (Desc)'!E191=\"\",\"\",INDEX([1]ELECTRIC_DEV_MANUF!$A$2:$A$1500,MATCH(1,([1]ELECTRIC_DEV_MANUF!$B$2:$B$1500='DC Power Distribution (Desc)'!$E191)*([1]ELECTRIC_DEV_MANUF!$D$2:$D$1500=\"DCPWRDIS\"),0),0))","v":""},{"$f":"IF('DC Power Distribution (Desc)'!F191=\"\",\"\",INDEX([1]ELECTRIC_DEV_MODEL!$A$2:$A$1500,MATCH(1,([1]ELECTRIC_DEV_MODEL!$C$2:$C$1500='DC Power Distribution (Desc)'!$E191)*([1]ELECTRIC_DEV_MODEL!$D$2:$D$1500='DC Power Distribution (Desc)'!$F191)*([1]ELECTRIC_DEV_MODEL!$F$2:$F$1500=\"DCPWRDIS\"),0),0))","v":""},{"$f":"IF('DC Power Distribution (Desc)'!G191=\"\",\"\",'DC Power Distribution (Desc)'!G191)","v":""},{"$f":"IF('DC Power Distribution (Desc)'!H191=\"\",\"\",INDEX([1]YES_NO!$A$2:$A$100,MATCH('DC Power Distribution (Desc)'!$H191,[1]!MASTER_YES_NO_DESC[#Data],0),0))","v":""},{"$f":"IF('DC Power Distribution (Desc)'!I191=\"\",\"\",'DC Power Distribution (Desc)'!I191)","v":""},{"$f":"IF('DC Power Distribution (Desc)'!J191=\"\",\"\",'DC Power Distribution (Desc)'!J191)","v":""},{"$f":"IF('DC Power Distribution (Desc)'!K191=\"\",\"\",INDEX([1]YES_NO!$A$2:$A$100,MATCH('DC Power Distribution (Desc)'!$K191,[1]!MASTER_YES_NO_DESC[#Data],0),0))","v":""},{"$f":"IF('DC Power Distribution (Desc)'!L191=\"\",\"\",INDEX([1]DEV_INPUT_VOLTAGE!$A$2:$A$100,MATCH('DC Power Distribution (Desc)'!$L191,[1]!MASTER_DEV_INPUT_VOLTAGE_DESC[#Data],0),0))","v":""},{"$f":"IF('DC Power Distribution (Desc)'!M191=\"\",\"\",INDEX([1]DEV_OUTPUT_VOLTAGE!$A$2:$A$100,MATCH('DC Power Distribution (Desc)'!$M191,[1]!MASTER_DEV_INPUT_VOLTAGE_DESC[#Data],0),0))","v":""},{"$f":"IF('DC Power Distribution (Desc)'!N191=\"\",\"\",'DC Power Distribution (Desc)'!N191)","v":""},{"$f":"IF('DC Power Distribution (Desc)'!O191=\"\",\"\",'DC Power Distribution (Desc)'!O191)","v":""},{"$f":"IF('DC Power Distribution (Desc)'!P191=\"\",\"\",'DC Power Distribution (Desc)'!P191)","v":""},{"$f":"IF('DC Power Distribution (Desc)'!B191=\"\",\"\",\"NA\")","v":""}]
[{"$f":"IF('DC Power Distribution (Desc)'!B192=\"\",\"\",2029)","v":""},{"$f":"IF('DC Power Distribution (Desc)'!B192=\"\",\"\",'DC Power Distribution (Desc)'!B192)","v":""},{"$f":"IF('DC Power Distribution (Desc)'!D192=\"\",\"\",'DC Power Distribution (Desc)'!D192)","v":""},{"$f":"IF('DC Power Distribution (Desc)'!E192=\"\",\"\",INDEX([1]ELECTRIC_DEV_MANUF!$A$2:$A$1500,MATCH(1,([1]ELECTRIC_DEV_MANUF!$B$2:$B$1500='DC Power Distribution (Desc)'!$E192)*([1]ELECTRIC_DEV_MANUF!$D$2:$D$1500=\"DCPWRDIS\"),0),0))","v":""},{"$f":"IF('DC Power Distribution (Desc)'!F192=\"\",\"\",INDEX([1]ELECTRIC_DEV_MODEL!$A$2:$A$1500,MATCH(1,([1]ELECTRIC_DEV_MODEL!$C$2:$C$1500='DC Power Distribution (Desc)'!$E192)*([1]ELECTRIC_DEV_MODEL!$D$2:$D$1500='DC Power Distribution (Desc)'!$F192)*([1]ELECTRIC_DEV_MODEL!$F$2:$F$1500=\"DCPWRDIS\"),0),0))","v":""},{"$f":"IF('DC Power Distribution (Desc)'!G192=\"\",\"\",'DC Power Distribution (Desc)'!G192)","v":""},{"$f":"IF('DC Power Distribution (Desc)'!H192=\"\",\"\",INDEX([1]YES_NO!$A$2:$A$100,MATCH('DC Power Distribution (Desc)'!$H192,[1]!MASTER_YES_NO_DESC[#Data],0),0))","v":""},{"$f":"IF('DC Power Distribution (Desc)'!I192=\"\",\"\",'DC Power Distribution (Desc)'!I192)","v":""},{"$f":"IF('DC Power Distribution (Desc)'!J192=\"\",\"\",'DC Power Distribution (Desc)'!J192)","v":""},{"$f":"IF('DC Power Distribution (Desc)'!K192=\"\",\"\",INDEX([1]YES_NO!$A$2:$A$100,MATCH('DC Power Distribution (Desc)'!$K192,[1]!MASTER_YES_NO_DESC[#Data],0),0))","v":""},{"$f":"IF('DC Power Distribution (Desc)'!L192=\"\",\"\",INDEX([1]DEV_INPUT_VOLTAGE!$A$2:$A$100,MATCH('DC Power Distribution (Desc)'!$L192,[1]!MASTER_DEV_INPUT_VOLTAGE_DESC[#Data],0),0))","v":""},{"$f":"IF('DC Power Distribution (Desc)'!M192=\"\",\"\",INDEX([1]DEV_OUTPUT_VOLTAGE!$A$2:$A$100,MATCH('DC Power Distribution (Desc)'!$M192,[1]!MASTER_DEV_INPUT_VOLTAGE_DESC[#Data],0),0))","v":""},{"$f":"IF('DC Power Distribution (Desc)'!N192=\"\",\"\",'DC Power Distribution (Desc)'!N192)","v":""},{"$f":"IF('DC Power Distribution (Desc)'!O192=\"\",\"\",'DC Power Distribution (Desc)'!O192)","v":""},{"$f":"IF('DC Power Distribution (Desc)'!P192=\"\",\"\",'DC Power Distribution (Desc)'!P192)","v":""},{"$f":"IF('DC Power Distribution (Desc)'!B192=\"\",\"\",\"NA\")","v":""}]
[{"$f":"IF('DC Power Distribution (Desc)'!B193=\"\",\"\",2029)","v":""},{"$f":"IF('DC Power Distribution (Desc)'!B193=\"\",\"\",'DC Power Distribution (Desc)'!B193)","v":""},{"$f":"IF('DC Power Distribution (Desc)'!D193=\"\",\"\",'DC Power Distribution (Desc)'!D193)","v":""},{"$f":"IF('DC Power Distribution (Desc)'!E193=\"\",\"\",INDEX([1]ELECTRIC_DEV_MANUF!$A$2:$A$1500,MATCH(1,([1]ELECTRIC_DEV_MANUF!$B$2:$B$1500='DC Power Distribution (Desc)'!$E193)*([1]ELECTRIC_DEV_MANUF!$D$2:$D$1500=\"DCPWRDIS\"),0),0))","v":""},{"$f":"IF('DC Power Distribution (Desc)'!F193=\"\",\"\",INDEX([1]ELECTRIC_DEV_MODEL!$A$2:$A$1500,MATCH(1,([1]ELECTRIC_DEV_MODEL!$C$2:$C$1500='DC Power Distribution (Desc)'!$E193)*([1]ELECTRIC_DEV_MODEL!$D$2:$D$1500='DC Power Distribution (Desc)'!$F193)*([1]ELECTRIC_DEV_MODEL!$F$2:$F$1500=\"DCPWRDIS\"),0),0))","v":""},{"$f":"IF('DC Power Distribution (Desc)'!G193=\"\",\"\",'DC Power Distribution (Desc)'!G193)","v":""},{"$f":"IF('DC Power Distribution (Desc)'!H193=\"\",\"\",INDEX([1]YES_NO!$A$2:$A$100,MATCH('DC Power Distribution (Desc)'!$H193,[1]!MASTER_YES_NO_DESC[#Data],0),0))","v":""},{"$f":"IF('DC Power Distribution (Desc)'!I193=\"\",\"\",'DC Power Distribution (Desc)'!I193)","v":""},{"$f":"IF('DC Power Distribution (Desc)'!J193=\"\",\"\",'DC Power Distribution (Desc)'!J193)","v":""},{"$f":"IF('DC Power Distribution (Desc)'!K193=\"\",\"\",INDEX([1]YES_NO!$A$2:$A$100,MATCH('DC Power Distribution (Desc)'!$K193,[1]!MASTER_YES_NO_DESC[#Data],0),0))","v":""},{"$f":"IF('DC Power Distribution (Desc)'!L193=\"\",\"\",INDEX([1]DEV_INPUT_VOLTAGE!$A$2:$A$100,MATCH('DC Power Distribution (Desc)'!$L193,[1]!MASTER_DEV_INPUT_VOLTAGE_DESC[#Data],0),0))","v":""},{"$f":"IF('DC Power Distribution (Desc)'!M193=\"\",\"\",INDEX([1]DEV_OUTPUT_VOLTAGE!$A$2:$A$100,MATCH('DC Power Distribution (Desc)'!$M193,[1]!MASTER_DEV_INPUT_VOLTAGE_DESC[#Data],0),0))","v":""},{"$f":"IF('DC Power Distribution (Desc)'!N193=\"\",\"\",'DC Power Distribution (Desc)'!N193)","v":""},{"$f":"IF('DC Power Distribution (Desc)'!O193=\"\",\"\",'DC Power Distribution (Desc)'!O193)","v":""},{"$f":"IF('DC Power Distribution (Desc)'!P193=\"\",\"\",'DC Power Distribution (Desc)'!P193)","v":""},{"$f":"IF('DC Power Distribution (Desc)'!B193=\"\",\"\",\"NA\")","v":""}]
[{"$f":"IF('DC Power Distribution (Desc)'!B194=\"\",\"\",2029)","v":""},{"$f":"IF('DC Power Distribution (Desc)'!B194=\"\",\"\",'DC Power Distribution (Desc)'!B194)","v":""},{"$f":"IF('DC Power Distribution (Desc)'!D194=\"\",\"\",'DC Power Distribution (Desc)'!D194)","v":""},{"$f":"IF('DC Power Distribution (Desc)'!E194=\"\",\"\",INDEX([1]ELECTRIC_DEV_MANUF!$A$2:$A$1500,MATCH(1,([1]ELECTRIC_DEV_MANUF!$B$2:$B$1500='DC Power Distribution (Desc)'!$E194)*([1]ELECTRIC_DEV_MANUF!$D$2:$D$1500=\"DCPWRDIS\"),0),0))","v":""},{"$f":"IF('DC Power Distribution (Desc)'!F194=\"\",\"\",INDEX([1]ELECTRIC_DEV_MODEL!$A$2:$A$1500,MATCH(1,([1]ELECTRIC_DEV_MODEL!$C$2:$C$1500='DC Power Distribution (Desc)'!$E194)*([1]ELECTRIC_DEV_MODEL!$D$2:$D$1500='DC Power Distribution (Desc)'!$F194)*([1]ELECTRIC_DEV_MODEL!$F$2:$F$1500=\"DCPWRDIS\"),0),0))","v":""},{"$f":"IF('DC Power Distribution (Desc)'!G194=\"\",\"\",'DC Power Distribution (Desc)'!G194)","v":""},{"$f":"IF('DC Power Distribution (Desc)'!H194=\"\",\"\",INDEX([1]YES_NO!$A$2:$A$100,MATCH('DC Power Distribution (Desc)'!$H194,[1]!MASTER_YES_NO_DESC[#Data],0),0))","v":""},{"$f":"IF('DC Power Distribution (Desc)'!I194=\"\",\"\",'DC Power Distribution (Desc)'!I194)","v":""},{"$f":"IF('DC Power Distribution (Desc)'!J194=\"\",\"\",'DC Power Distribution (Desc)'!J194)","v":""},{"$f":"IF('DC Power Distribution (Desc)'!K194=\"\",\"\",INDEX([1]YES_NO!$A$2:$A$100,MATCH('DC Power Distribution (Desc)'!$K194,[1]!MASTER_YES_NO_DESC[#Data],0),0))","v":""},{"$f":"IF('DC Power Distribution (Desc)'!L194=\"\",\"\",INDEX([1]DEV_INPUT_VOLTAGE!$A$2:$A$100,MATCH('DC Power Distribution (Desc)'!$L194,[1]!MASTER_DEV_INPUT_VOLTAGE_DESC[#Data],0),0))","v":""},{"$f":"IF('DC Power Distribution (Desc)'!M194=\"\",\"\",INDEX([1]DEV_OUTPUT_VOLTAGE!$A$2:$A$100,MATCH('DC Power Distribution (Desc)'!$M194,[1]!MASTER_DEV_INPUT_VOLTAGE_DESC[#Data],0),0))","v":""},{"$f":"IF('DC Power Distribution (Desc)'!N194=\"\",\"\",'DC Power Distribution (Desc)'!N194)","v":""},{"$f":"IF('DC Power Distribution (Desc)'!O194=\"\",\"\",'DC Power Distribution (Desc)'!O194)","v":""},{"$f":"IF('DC Power Distribution (Desc)'!P194=\"\",\"\",'DC Power Distribution (Desc)'!P194)","v":""},{"$f":"IF('DC Power Distribution (Desc)'!B194=\"\",\"\",\"NA\")","v":""}]
[{"$f":"IF('DC Power Distribution (Desc)'!B195=\"\",\"\",2029)","v":""},{"$f":"IF('DC Power Distribution (Desc)'!B195=\"\",\"\",'DC Power Distribution (Desc)'!B195)","v":""},{"$f":"IF('DC Power Distribution (Desc)'!D195=\"\",\"\",'DC Power Distribution (Desc)'!D195)","v":""},{"$f":"IF('DC Power Distribution (Desc)'!E195=\"\",\"\",INDEX([1]ELECTRIC_DEV_MANUF!$A$2:$A$1500,MATCH(1,([1]ELECTRIC_DEV_MANUF!$B$2:$B$1500='DC Power Distribution (Desc)'!$E195)*([1]ELECTRIC_DEV_MANUF!$D$2:$D$1500=\"DCPWRDIS\"),0),0))","v":""},{"$f":"IF('DC Power Distribution (Desc)'!F195=\"\",\"\",INDEX([1]ELECTRIC_DEV_MODEL!$A$2:$A$1500,MATCH(1,([1]ELECTRIC_DEV_MODEL!$C$2:$C$1500='DC Power Distribution (Desc)'!$E195)*([1]ELECTRIC_DEV_MODEL!$D$2:$D$1500='DC Power Distribution (Desc)'!$F195)*([1]ELECTRIC_DEV_MODEL!$F$2:$F$1500=\"DCPWRDIS\"),0),0))","v":""},{"$f":"IF('DC Power Distribution (Desc)'!G195=\"\",\"\",'DC Power Distribution (Desc)'!G195)","v":""},{"$f":"IF('DC Power Distribution (Desc)'!H195=\"\",\"\",INDEX([1]YES_NO!$A$2:$A$100,MATCH('DC Power Distribution (Desc)'!$H195,[1]!MASTER_YES_NO_DESC[#Data],0),0))","v":""},{"$f":"IF('DC Power Distribution (Desc)'!I195=\"\",\"\",'DC Power Distribution (Desc)'!I195)","v":""},{"$f":"IF('DC Power Distribution (Desc)'!J195=\"\",\"\",'DC Power Distribution (Desc)'!J195)","v":""},{"$f":"IF('DC Power Distribution (Desc)'!K195=\"\",\"\",INDEX([1]YES_NO!$A$2:$A$100,MATCH('DC Power Distribution (Desc)'!$K195,[1]!MASTER_YES_NO_DESC[#Data],0),0))","v":""},{"$f":"IF('DC Power Distribution (Desc)'!L195=\"\",\"\",INDEX([1]DEV_INPUT_VOLTAGE!$A$2:$A$100,MATCH('DC Power Distribution (Desc)'!$L195,[1]!MASTER_DEV_INPUT_VOLTAGE_DESC[#Data],0),0))","v":""},{"$f":"IF('DC Power Distribution (Desc)'!M195=\"\",\"\",INDEX([1]DEV_OUTPUT_VOLTAGE!$A$2:$A$100,MATCH('DC Power Distribution (Desc)'!$M195,[1]!MASTER_DEV_INPUT_VOLTAGE_DESC[#Data],0),0))","v":""},{"$f":"IF('DC Power Distribution (Desc)'!N195=\"\",\"\",'DC Power Distribution (Desc)'!N195)","v":""},{"$f":"IF('DC Power Distribution (Desc)'!O195=\"\",\"\",'DC Power Distribution (Desc)'!O195)","v":""},{"$f":"IF('DC Power Distribution (Desc)'!P195=\"\",\"\",'DC Power Distribution (Desc)'!P195)","v":""},{"$f":"IF('DC Power Distribution (Desc)'!B195=\"\",\"\",\"NA\")","v":""}]
[{"$f":"IF('DC Power Distribution (Desc)'!B196=\"\",\"\",2029)","v":""},{"$f":"IF('DC Power Distribution (Desc)'!B196=\"\",\"\",'DC Power Distribution (Desc)'!B196)","v":""},{"$f":"IF('DC Power Distribution (Desc)'!D196=\"\",\"\",'DC Power Distribution (Desc)'!D196)","v":""},{"$f":"IF('DC Power Distribution (Desc)'!E196=\"\",\"\",INDEX([1]ELECTRIC_DEV_MANUF!$A$2:$A$1500,MATCH(1,([1]ELECTRIC_DEV_MANUF!$B$2:$B$1500='DC Power Distribution (Desc)'!$E196)*([1]ELECTRIC_DEV_MANUF!$D$2:$D$1500=\"DCPWRDIS\"),0),0))","v":""},{"$f":"IF('DC Power Distribution (Desc)'!F196=\"\",\"\",INDEX([1]ELECTRIC_DEV_MODEL!$A$2:$A$1500,MATCH(1,([1]ELECTRIC_DEV_MODEL!$C$2:$C$1500='DC Power Distribution (Desc)'!$E196)*([1]ELECTRIC_DEV_MODEL!$D$2:$D$1500='DC Power Distribution (Desc)'!$F196)*([1]ELECTRIC_DEV_MODEL!$F$2:$F$1500=\"DCPWRDIS\"),0),0))","v":""},{"$f":"IF('DC Power Distribution (Desc)'!G196=\"\",\"\",'DC Power Distribution (Desc)'!G196)","v":""},{"$f":"IF('DC Power Distribution (Desc)'!H196=\"\",\"\",INDEX([1]YES_NO!$A$2:$A$100,MATCH('DC Power Distribution (Desc)'!$H196,[1]!MASTER_YES_NO_DESC[#Data],0),0))","v":""},{"$f":"IF('DC Power Distribution (Desc)'!I196=\"\",\"\",'DC Power Distribution (Desc)'!I196)","v":""},{"$f":"IF('DC Power Distribution (Desc)'!J196=\"\",\"\",'DC Power Distribution (Desc)'!J196)","v":""},{"$f":"IF('DC Power Distribution (Desc)'!K196=\"\",\"\",INDEX([1]YES_NO!$A$2:$A$100,MATCH('DC Power Distribution (Desc)'!$K196,[1]!MASTER_YES_NO_DESC[#Data],0),0))","v":""},{"$f":"IF('DC Power Distribution (Desc)'!L196=\"\",\"\",INDEX([1]DEV_INPUT_VOLTAGE!$A$2:$A$100,MATCH('DC Power Distribution (Desc)'!$L196,[1]!MASTER_DEV_INPUT_VOLTAGE_DESC[#Data],0),0))","v":""},{"$f":"IF('DC Power Distribution (Desc)'!M196=\"\",\"\",INDEX([1]DEV_OUTPUT_VOLTAGE!$A$2:$A$100,MATCH('DC Power Distribution (Desc)'!$M196,[1]!MASTER_DEV_INPUT_VOLTAGE_DESC[#Data],0),0))","v":""},{"$f":"IF('DC Power Distribution (Desc)'!N196=\"\",\"\",'DC Power Distribution (Desc)'!N196)","v":""},{"$f":"IF('DC Power Distribution (Desc)'!O196=\"\",\"\",'DC Power Distribution (Desc)'!O196)","v":""},{"$f":"IF('DC Power Distribution (Desc)'!P196=\"\",\"\",'DC Power Distribution (Desc)'!P196)","v":""},{"$f":"IF('DC Power Distribution (Desc)'!B196=\"\",\"\",\"NA\")","v":""}]
[{"$f":"IF('DC Power Distribution (Desc)'!B197=\"\",\"\",2029)","v":""},{"$f":"IF('DC Power Distribution (Desc)'!B197=\"\",\"\",'DC Power Distribution (Desc)'!B197)","v":""},{"$f":"IF('DC Power Distribution (Desc)'!D197=\"\",\"\",'DC Power Distribution (Desc)'!D197)","v":""},{"$f":"IF('DC Power Distribution (Desc)'!E197=\"\",\"\",INDEX([1]ELECTRIC_DEV_MANUF!$A$2:$A$1500,MATCH(1,([1]ELECTRIC_DEV_MANUF!$B$2:$B$1500='DC Power Distribution (Desc)'!$E197)*([1]ELECTRIC_DEV_MANUF!$D$2:$D$1500=\"DCPWRDIS\"),0),0))","v":""},{"$f":"IF('DC Power Distribution (Desc)'!F197=\"\",\"\",INDEX([1]ELECTRIC_DEV_MODEL!$A$2:$A$1500,MATCH(1,([1]ELECTRIC_DEV_MODEL!$C$2:$C$1500='DC Power Distribution (Desc)'!$E197)*([1]ELECTRIC_DEV_MODEL!$D$2:$D$1500='DC Power Distribution (Desc)'!$F197)*([1]ELECTRIC_DEV_MODEL!$F$2:$F$1500=\"DCPWRDIS\"),0),0))","v":""},{"$f":"IF('DC Power Distribution (Desc)'!G197=\"\",\"\",'DC Power Distribution (Desc)'!G197)","v":""},{"$f":"IF('DC Power Distribution (Desc)'!H197=\"\",\"\",INDEX([1]YES_NO!$A$2:$A$100,MATCH('DC Power Distribution (Desc)'!$H197,[1]!MASTER_YES_NO_DESC[#Data],0),0))","v":""},{"$f":"IF('DC Power Distribution (Desc)'!I197=\"\",\"\",'DC Power Distribution (Desc)'!I197)","v":""},{"$f":"IF('DC Power Distribution (Desc)'!J197=\"\",\"\",'DC Power Distribution (Desc)'!J197)","v":""},{"$f":"IF('DC Power Distribution (Desc)'!K197=\"\",\"\",INDEX([1]YES_NO!$A$2:$A$100,MATCH('DC Power Distribution (Desc)'!$K197,[1]!MASTER_YES_NO_DESC[#Data],0),0))","v":""},{"$f":"IF('DC Power Distribution (Desc)'!L197=\"\",\"\",INDEX([1]DEV_INPUT_VOLTAGE!$A$2:$A$100,MATCH('DC Power Distribution (Desc)'!$L197,[1]!MASTER_DEV_INPUT_VOLTAGE_DESC[#Data],0),0))","v":""},{"$f":"IF('DC Power Distribution (Desc)'!M197=\"\",\"\",INDEX([1]DEV_OUTPUT_VOLTAGE!$A$2:$A$100,MATCH('DC Power Distribution (Desc)'!$M197,[1]!MASTER_DEV_INPUT_VOLTAGE_DESC[#Data],0),0))","v":""},{"$f":"IF('DC Power Distribution (Desc)'!N197=\"\",\"\",'DC Power Distribution (Desc)'!N197)","v":""},{"$f":"IF('DC Power Distribution (Desc)'!O197=\"\",\"\",'DC Power Distribution (Desc)'!O197)","v":""},{"$f":"IF('DC Power Distribution (Desc)'!P197=\"\",\"\",'DC Power Distribution (Desc)'!P197)","v":""},{"$f":"IF('DC Power Distribution (Desc)'!B197=\"\",\"\",\"NA\")","v":""}]
[{"$f":"IF('DC Power Distribution (Desc)'!B198=\"\",\"\",2029)","v":""},{"$f":"IF('DC Power Distribution (Desc)'!B198=\"\",\"\",'DC Power Distribution (Desc)'!B198)","v":""},{"$f":"IF('DC Power Distribution (Desc)'!D198=\"\",\"\",'DC Power Distribution (Desc)'!D198)","v":""},{"$f":"IF('DC Power Distribution (Desc)'!E198=\"\",\"\",INDEX([1]ELECTRIC_DEV_MANUF!$A$2:$A$1500,MATCH(1,([1]ELECTRIC_DEV_MANUF!$B$2:$B$1500='DC Power Distribution (Desc)'!$E198)*([1]ELECTRIC_DEV_MANUF!$D$2:$D$1500=\"DCPWRDIS\"),0),0))","v":""},{"$f":"IF('DC Power Distribution (Desc)'!F198=\"\",\"\",INDEX([1]ELECTRIC_DEV_MODEL!$A$2:$A$1500,MATCH(1,([1]ELECTRIC_DEV_MODEL!$C$2:$C$1500='DC Power Distribution (Desc)'!$E198)*([1]ELECTRIC_DEV_MODEL!$D$2:$D$1500='DC Power Distribution (Desc)'!$F198)*([1]ELECTRIC_DEV_MODEL!$F$2:$F$1500=\"DCPWRDIS\"),0),0))","v":""},{"$f":"IF('DC Power Distribution (Desc)'!G198=\"\",\"\",'DC Power Distribution (Desc)'!G198)","v":""},{"$f":"IF('DC Power Distribution (Desc)'!H198=\"\",\"\",INDEX([1]YES_NO!$A$2:$A$100,MATCH('DC Power Distribution (Desc)'!$H198,[1]!MASTER_YES_NO_DESC[#Data],0),0))","v":""},{"$f":"IF('DC Power Distribution (Desc)'!I198=\"\",\"\",'DC Power Distribution (Desc)'!I198)","v":""},{"$f":"IF('DC Power Distribution (Desc)'!J198=\"\",\"\",'DC Power Distribution (Desc)'!J198)","v":""},{"$f":"IF('DC Power Distribution (Desc)'!K198=\"\",\"\",INDEX([1]YES_NO!$A$2:$A$100,MATCH('DC Power Distribution (Desc)'!$K198,[1]!MASTER_YES_NO_DESC[#Data],0),0))","v":""},{"$f":"IF('DC Power Distribution (Desc)'!L198=\"\",\"\",INDEX([1]DEV_INPUT_VOLTAGE!$A$2:$A$100,MATCH('DC Power Distribution (Desc)'!$L198,[1]!MASTER_DEV_INPUT_VOLTAGE_DESC[#Data],0),0))","v":""},{"$f":"IF('DC Power Distribution (Desc)'!M198=\"\",\"\",INDEX([1]DEV_OUTPUT_VOLTAGE!$A$2:$A$100,MATCH('DC Power Distribution (Desc)'!$M198,[1]!MASTER_DEV_INPUT_VOLTAGE_DESC[#Data],0),0))","v":""},{"$f":"IF('DC Power Distribution (Desc)'!N198=\"\",\"\",'DC Power Distribution (Desc)'!N198)","v":""},{"$f":"IF('DC Power Distribution (Desc)'!O198=\"\",\"\",'DC Power Distribution (Desc)'!O198)","v":""},{"$f":"IF('DC Power Distribution (Desc)'!P198=\"\",\"\",'DC Power Distribution (Desc)'!P198)","v":""},{"$f":"IF('DC Power Distribution (Desc)'!B198=\"\",\"\",\"NA\")","v":""}]
[{"$f":"IF('DC Power Distribution (Desc)'!B199=\"\",\"\",2029)","v":""},{"$f":"IF('DC Power Distribution (Desc)'!B199=\"\",\"\",'DC Power Distribution (Desc)'!B199)","v":""},{"$f":"IF('DC Power Distribution (Desc)'!D199=\"\",\"\",'DC Power Distribution (Desc)'!D199)","v":""},{"$f":"IF('DC Power Distribution (Desc)'!E199=\"\",\"\",INDEX([1]ELECTRIC_DEV_MANUF!$A$2:$A$1500,MATCH(1,([1]ELECTRIC_DEV_MANUF!$B$2:$B$1500='DC Power Distribution (Desc)'!$E199)*([1]ELECTRIC_DEV_MANUF!$D$2:$D$1500=\"DCPWRDIS\"),0),0))","v":""},{"$f":"IF('DC Power Distribution (Desc)'!F199=\"\",\"\",INDEX([1]ELECTRIC_DEV_MODEL!$A$2:$A$1500,MATCH(1,([1]ELECTRIC_DEV_MODEL!$C$2:$C$1500='DC Power Distribution (Desc)'!$E199)*([1]ELECTRIC_DEV_MODEL!$D$2:$D$1500='DC Power Distribution (Desc)'!$F199)*([1]ELECTRIC_DEV_MODEL!$F$2:$F$1500=\"DCPWRDIS\"),0),0))","v":""},{"$f":"IF('DC Power Distribution (Desc)'!G199=\"\",\"\",'DC Power Distribution (Desc)'!G199)","v":""},{"$f":"IF('DC Power Distribution (Desc)'!H199=\"\",\"\",INDEX([1]YES_NO!$A$2:$A$100,MATCH('DC Power Distribution (Desc)'!$H199,[1]!MASTER_YES_NO_DESC[#Data],0),0))","v":""},{"$f":"IF('DC Power Distribution (Desc)'!I199=\"\",\"\",'DC Power Distribution (Desc)'!I199)","v":""},{"$f":"IF('DC Power Distribution (Desc)'!J199=\"\",\"\",'DC Power Distribution (Desc)'!J199)","v":""},{"$f":"IF('DC Power Distribution (Desc)'!K199=\"\",\"\",INDEX([1]YES_NO!$A$2:$A$100,MATCH('DC Power Distribution (Desc)'!$K199,[1]!MASTER_YES_NO_DESC[#Data],0),0))","v":""},{"$f":"IF('DC Power Distribution (Desc)'!L199=\"\",\"\",INDEX([1]DEV_INPUT_VOLTAGE!$A$2:$A$100,MATCH('DC Power Distribution (Desc)'!$L199,[1]!MASTER_DEV_INPUT_VOLTAGE_DESC[#Data],0),0))","v":""},{"$f":"IF('DC Power Distribution (Desc)'!M199=\"\",\"\",INDEX([1]DEV_OUTPUT_VOLTAGE!$A$2:$A$100,MATCH('DC Power Distribution (Desc)'!$M199,[1]!MASTER_DEV_INPUT_VOLTAGE_DESC[#Data],0),0))","v":""},{"$f":"IF('DC Power Distribution (Desc)'!N199=\"\",\"\",'DC Power Distribution (Desc)'!N199)","v":""},{"$f":"IF('DC Power Distribution (Desc)'!O199=\"\",\"\",'DC Power Distribution (Desc)'!O199)","v":""},{"$f":"IF('DC Power Distribution (Desc)'!P199=\"\",\"\",'DC Power Distribution (Desc)'!P199)","v":""},{"$f":"IF('DC Power Distribution (Desc)'!B199=\"\",\"\",\"NA\")","v":""}]
[{"$f":"IF('DC Power Distribution (Desc)'!B200=\"\",\"\",2029)","v":""},{"$f":"IF('DC Power Distribution (Desc)'!B200=\"\",\"\",'DC Power Distribution (Desc)'!B200)","v":""},{"$f":"IF('DC Power Distribution (Desc)'!D200=\"\",\"\",'DC Power Distribution (Desc)'!D200)","v":""},{"$f":"IF('DC Power Distribution (Desc)'!E200=\"\",\"\",INDEX([1]ELECTRIC_DEV_MANUF!$A$2:$A$1500,MATCH(1,([1]ELECTRIC_DEV_MANUF!$B$2:$B$1500='DC Power Distribution (Desc)'!$E200)*([1]ELECTRIC_DEV_MANUF!$D$2:$D$1500=\"DCPWRDIS\"),0),0))","v":""},{"$f":"IF('DC Power Distribution (Desc)'!F200=\"\",\"\",INDEX([1]ELECTRIC_DEV_MODEL!$A$2:$A$1500,MATCH(1,([1]ELECTRIC_DEV_MODEL!$C$2:$C$1500='DC Power Distribution (Desc)'!$E200)*([1]ELECTRIC_DEV_MODEL!$D$2:$D$1500='DC Power Distribution (Desc)'!$F200)*([1]ELECTRIC_DEV_MODEL!$F$2:$F$1500=\"DCPWRDIS\"),0),0))","v":""},{"$f":"IF('DC Power Distribution (Desc)'!G200=\"\",\"\",'DC Power Distribution (Desc)'!G200)","v":""},{"$f":"IF('DC Power Distribution (Desc)'!H200=\"\",\"\",INDEX([1]YES_NO!$A$2:$A$100,MATCH('DC Power Distribution (Desc)'!$H200,[1]!MASTER_YES_NO_DESC[#Data],0),0))","v":""},{"$f":"IF('DC Power Distribution (Desc)'!I200=\"\",\"\",'DC Power Distribution (Desc)'!I200)","v":""},{"$f":"IF('DC Power Distribution (Desc)'!J200=\"\",\"\",'DC Power Distribution (Desc)'!J200)","v":""},{"$f":"IF('DC Power Distribution (Desc)'!K200=\"\",\"\",INDEX([1]YES_NO!$A$2:$A$100,MATCH('DC Power Distribution (Desc)'!$K200,[1]!MASTER_YES_NO_DESC[#Data],0),0))","v":""},{"$f":"IF('DC Power Distribution (Desc)'!L200=\"\",\"\",INDEX([1]DEV_INPUT_VOLTAGE!$A$2:$A$100,MATCH('DC Power Distribution (Desc)'!$L200,[1]!MASTER_DEV_INPUT_VOLTAGE_DESC[#Data],0),0))","v":""},{"$f":"IF('DC Power Distribution (Desc)'!M200=\"\",\"\",INDEX([1]DEV_OUTPUT_VOLTAGE!$A$2:$A$100,MATCH('DC Power Distribution (Desc)'!$M200,[1]!MASTER_DEV_INPUT_VOLTAGE_DESC[#Data],0),0))","v":""},{"$f":"IF('DC Power Distribution (Desc)'!N200=\"\",\"\",'DC Power Distribution (Desc)'!N200)","v":""},{"$f":"IF('DC Power Distribution (Desc)'!O200=\"\",\"\",'DC Power Distribution (Desc)'!O200)","v":""},{"$f":"IF('DC Power Distribution (Desc)'!P200=\"\",\"\",'DC Power Distribution (Desc)'!P200)","v":""},{"$f":"IF('DC Power Distribution (Desc)'!B200=\"\",\"\",\"NA\")","v":""}]
[{"$f":"IF('DC Power Distribution (Desc)'!B201=\"\",\"\",2029)","v":""},{"$f":"IF('DC Power Distribution (Desc)'!B201=\"\",\"\",'DC Power Distribution (Desc)'!B201)","v":""},{"$f":"IF('DC Power Distribution (Desc)'!D201=\"\",\"\",'DC Power Distribution (Desc)'!D201)","v":""},{"$f":"IF('DC Power Distribution (Desc)'!E201=\"\",\"\",INDEX([1]ELECTRIC_DEV_MANUF!$A$2:$A$1500,MATCH(1,([1]ELECTRIC_DEV_MANUF!$B$2:$B$1500='DC Power Distribution (Desc)'!$E201)*([1]ELECTRIC_DEV_MANUF!$D$2:$D$1500=\"DCPWRDIS\"),0),0))","v":""},{"$f":"IF('DC Power Distribution (Desc)'!F201=\"\",\"\",INDEX([1]ELECTRIC_DEV_MODEL!$A$2:$A$1500,MATCH(1,([1]ELECTRIC_DEV_MODEL!$C$2:$C$1500='DC Power Distribution (Desc)'!$E201)*([1]ELECTRIC_DEV_MODEL!$D$2:$D$1500='DC Power Distribution (Desc)'!$F201)*([1]ELECTRIC_DEV_MODEL!$F$2:$F$1500=\"DCPWRDIS\"),0),0))","v":""},{"$f":"IF('DC Power Distribution (Desc)'!G201=\"\",\"\",'DC Power Distribution (Desc)'!G201)","v":""},{"$f":"IF('DC Power Distribution (Desc)'!H201=\"\",\"\",INDEX([1]YES_NO!$A$2:$A$100,MATCH('DC Power Distribution (Desc)'!$H201,[1]!MASTER_YES_NO_DESC[#Data],0),0))","v":""},{"$f":"IF('DC Power Distribution (Desc)'!I201=\"\",\"\",'DC Power Distribution (Desc)'!I201)","v":""},{"$f":"IF('DC Power Distribution (Desc)'!J201=\"\",\"\",'DC Power Distribution (Desc)'!J201)","v":""},{"$f":"IF('DC Power Distribution (Desc)'!K201=\"\",\"\",INDEX([1]YES_NO!$A$2:$A$100,MATCH('DC Power Distribution (Desc)'!$K201,[1]!MASTER_YES_NO_DESC[#Data],0),0))","v":""},{"$f":"IF('DC Power Distribution (Desc)'!L201=\"\",\"\",INDEX([1]DEV_INPUT_VOLTAGE!$A$2:$A$100,MATCH('DC Power Distribution (Desc)'!$L201,[1]!MASTER_DEV_INPUT_VOLTAGE_DESC[#Data],0),0))","v":""},{"$f":"IF('DC Power Distribution (Desc)'!M201=\"\",\"\",INDEX([1]DEV_OUTPUT_VOLTAGE!$A$2:$A$100,MATCH('DC Power Distribution (Desc)'!$M201,[1]!MASTER_DEV_INPUT_VOLTAGE_DESC[#Data],0),0))","v":""},{"$f":"IF('DC Power Distribution (Desc)'!N201=\"\",\"\",'DC Power Distribution (Desc)'!N201)","v":""},{"$f":"IF('DC Power Distribution (Desc)'!O201=\"\",\"\",'DC Power Distribution (Desc)'!O201)","v":""},{"$f":"IF('DC Power Distribution (Desc)'!P201=\"\",\"\",'DC Power Distribution (Desc)'!P201)","v":""},{"$f":"IF('DC Power Distribution (Desc)'!B201=\"\",\"\",\"NA\")","v":""}]
[{"$f":"IF('DC Power Distribution (Desc)'!B202=\"\",\"\",2029)","v":""},{"$f":"IF('DC Power Distribution (Desc)'!B202=\"\",\"\",'DC Power Distribution (Desc)'!B202)","v":""},{"$f":"IF('DC Power Distribution (Desc)'!D202=\"\",\"\",'DC Power Distribution (Desc)'!D202)","v":""},{"$f":"IF('DC Power Distribution (Desc)'!E202=\"\",\"\",INDEX([1]ELECTRIC_DEV_MANUF!$A$2:$A$1500,MATCH(1,([1]ELECTRIC_DEV_MANUF!$B$2:$B$1500='DC Power Distribution (Desc)'!$E202)*([1]ELECTRIC_DEV_MANUF!$D$2:$D$1500=\"DCPWRDIS\"),0),0))","v":""},{"$f":"IF('DC Power Distribution (Desc)'!F202=\"\",\"\",INDEX([1]ELECTRIC_DEV_MODEL!$A$2:$A$1500,MATCH(1,([1]ELECTRIC_DEV_MODEL!$C$2:$C$1500='DC Power Distribution (Desc)'!$E202)*([1]ELECTRIC_DEV_MODEL!$D$2:$D$1500='DC Power Distribution (Desc)'!$F202)*([1]ELECTRIC_DEV_MODEL!$F$2:$F$1500=\"DCPWRDIS\"),0),0))","v":""},{"$f":"IF('DC Power Distribution (Desc)'!G202=\"\",\"\",'DC Power Distribution (Desc)'!G202)","v":""},{"$f":"IF('DC Power Distribution (Desc)'!H202=\"\",\"\",INDEX([1]YES_NO!$A$2:$A$100,MATCH('DC Power Distribution (Desc)'!$H202,[1]!MASTER_YES_NO_DESC[#Data],0),0))","v":""},{"$f":"IF('DC Power Distribution (Desc)'!I202=\"\",\"\",'DC Power Distribution (Desc)'!I202)","v":""},{"$f":"IF('DC Power Distribution (Desc)'!J202=\"\",\"\",'DC Power Distribution (Desc)'!J202)","v":""},{"$f":"IF('DC Power Distribution (Desc)'!K202=\"\",\"\",INDEX([1]YES_NO!$A$2:$A$100,MATCH('DC Power Distribution (Desc)'!$K202,[1]!MASTER_YES_NO_DESC[#Data],0),0))","v":""},{"$f":"IF('DC Power Distribution (Desc)'!L202=\"\",\"\",INDEX([1]DEV_INPUT_VOLTAGE!$A$2:$A$100,MATCH('DC Power Distribution (Desc)'!$L202,[1]!MASTER_DEV_INPUT_VOLTAGE_DESC[#Data],0),0))","v":""},{"$f":"IF('DC Power Distribution (Desc)'!M202=\"\",\"\",INDEX([1]DEV_OUTPUT_VOLTAGE!$A$2:$A$100,MATCH('DC Power Distribution (Desc)'!$M202,[1]!MASTER_DEV_INPUT_VOLTAGE_DESC[#Data],0),0))","v":""},{"$f":"IF('DC Power Distribution (Desc)'!N202=\"\",\"\",'DC Power Distribution (Desc)'!N202)","v":""},{"$f":"IF('DC Power Distribution (Desc)'!O202=\"\",\"\",'DC Power Distribution (Desc)'!O202)","v":""},{"$f":"IF('DC Power Distribution (Desc)'!P202=\"\",\"\",'DC Power Distribution (Desc)'!P202)","v":""},{"$f":"IF('DC Power Distribution (Desc)'!B202=\"\",\"\",\"NA\")","v":""}]